Workbook

Sheet Underlag utrulling
B1: Standard oppstart | C1: 44885
B2: Siste i rute-dato | C2: =maks_i_rute_innstilt -> 45658
B3: Oppstartsdato | C3: =IF(ISBLANK(oppstart),Standard_oppstart,oppstart) -> 44885
B4: I rute-dato | C4: =IF(valgt_helseforetak="Alle",C2,IF(ISBLANK(i_rute_innstilt),MIN(C2,DATE(YEAR(Oppstartsdato)+2,MONTH(Oppstartsdato),1)),i_rute_innstilt)) -> 45658
B6: År | C6: Utrullingsdagskull | D6: Utrullingsmåneder | E6: Normal inklusjonsmåneder | F6: Andel 55-åringer i utrulling | G6: Kolonne1 | H6: Utrullingsbefolkning dette år | I6: Vanlig inklusjon befolkning | J6: Per utrullingsmnd | K6: Per normalmåned | L6: Sum år
B7: 2022 | C7: =IF(AND(Oppstartsdato<=DATE(B7,1,1),I_rute_dato>DATE(B7+1,1,1)),365,IF(Oppstartsdato>DATE(B7,1,1),MAXA(0,MIN(I_rute_dato,DATE(B7+1,1,1))-Oppstartsdato),MAXA(0,I_rute_dato-DATE(B7,1,1)))) -> 42 | D7: =ROUND(C7/30.5,0) -> 1 | E7: =IF(I_rute_dato<DATE(B7+1,1,1),12-D7,0) -> 0 | F7: =IF(I_rute_dato>=DATE(B7+1,1,1),1,IF(I_rute_dato<DATE(B7,1,1),0,(I_rute_dato-DATE(B7,1,1))/365)) -> 1 | G7: 7000 | H7: =Utrullingsbefolkning*C7/Utrullingdager -> 12029.76714 | I7: =G7*(1-F7) -> 0 | J7: =IF(D7>0,H7/D7,0)/46*52 -> 13598.8672 | K7: 0 | L7: =SUM(H7:I7) -> 12029.76714
B8: 2023 | C8: 365 | D8: =ROUND(C8/30.5,0) -> 12 | E8: 0 | F8: =IF(I_rute_dato>=DATE(B8+1,1,1),1,IF(I_rute_dato<DATE(B8,1,1),0,(I_rute_dato-DATE(B8,1,1))/365)) -> 1 | G8: 8000 | H8: 104544.4049 | I8: =G8*(1-F8) -> 0 | J8: 9848.38597 | K8: 0 | L8: =SUM(H8:I8) -> 104544.4049
B9: 2024 | C9: 366 | D9: =ROUND(C9/30.5,0) -> 12 | E9: 0 | F9: =IF(I_rute_dato>=DATE(B9+1,1,1),1,IF(I_rute_dato<DATE(B9,1,1),0,(I_rute_dato-DATE(B9,1,1))/365)) -> 1 | G9: 8500 | H9: 104830.8279 | I9: =G9*(1-F9) -> 0 | J9: 9875.36785 | K9: 0 | L9: =SUM(H9:I9) -> 104830.8279
B10: 2025 | C10: 0 | D10: =ROUND(C10/30.5,0) -> 0 | E10: 12 | F10: =IF(I_rute_dato>=DATE(B10+1,1,1),1,IF(I_rute_dato<=DATE(B10,1,1),0,"neste")) -> 0 | G10: 8700 | H10: 0 | I10: =G10*(1-F10) -> 8700 | J10: 0 | K10: 819.5652174 | L10: =SUM(H10:I10) -> 8700
B11: 2026 | C11: 0 | D11: =ROUND(C11/30.5,0) -> 0 | E11: 12 | F11: 0 | G11: 8701 | H11: 0 | I11: =G11*(1-F11) -> 8701 | J11: =IF(D11>0,H11/D11,0)/46*52 -> 0 | K11: 819.6594203 | L11: =SUM(H11:I11) -> 8701
B12: 2027 | C12: 0 | D12: 0 | E12: 12 | F12: 0 | G12: 8702 | H12: 0 | I12: 8702 | J12: 0 | K12: 819.7536232 | L12: 8702
B13: 2028 | C13: 0 | D13: 0 | E13: 12 | F13: 0 | G13: 8703 | H13: 0 | I13: 8703 | J13: 0 | K13: 819.8478261 | L13: 8703
B14: 2029 | C14: 0 | D14: 0 | E14: 12 | F14: 0 | G14: 8704 | H14: 0 | I14: 8704 | J14: 0 | K14: 819.942029 | L14: 8704
B15: 2030 | C15: 0 | D15: 0 | E15: 12 | F15: 0 | G15: 8705 | H15: 0 | I15: 8705 | J15: 0 | K15: 820.0362319 | L15: 8705
B16: 2031 | C16: 0 | D16: 0 | E16: 12 | F16: 0 | G16: 8706 | H16: 0 | I16: 8706 | J16: 0 | K16: 820.1304348 | L16: 8706
B17: 2032 | C17: 0 | D17: 0 | E17: 12 | F17: 0 | G17: 8707 | H17: 0 | I17: 8707 | J17: 0 | K17: 820.2246377 | L17: 8707
B18: 2033 | C18: 0 | D18: 0 | E18: 12 | F18: 0 | G18: 8708 | H18: 0 | I18: 8708 | J18: 0 | K18: 820.3188406 | L18: 8708
B19: 2034 | C19: 0 | D19: 0 | E19: 12 | F19: 0 | G19: 8709 | H19: 0 | I19: 8709 | J19: 0 | K19: 820.4130435 | L19: 8709
B20: 2035 | C20: 0 | D20: 0 | E20: 12 | F20: 0 | G20: 8710 | H20: 0 | I20: 8710 | J20: 0 | K20: 820.5072464 | L20: 8710
B22: Utrullingdager | C22: =SUM(C7:C10) -> 773 | F22: Utrullingsbefolkning | G22: =SUM(Prognoser!AU28:AU41) -> 221405

Sheet Prognoser
B2: Prognoseverktøy for nasjonalt tarmscreeningprogram
B3: Lysegule felter kan redigeres av brukeren.
B5: 1. Velg befolkning/område: (klikk på cellene for å få nedtrekksmenyer)
B7: Velg helseforetak: | G7: Eller lokalsykehusområde: | J7: Eller kommune/bydel:
B8: Alle
J9: =IF(ISBLANK(valgt_kommune),"","Kommunen hører inn under "&INDEX(hf_kommune[Helseforetak],MATCH(valgt_kommune,hf_kommune[Kommune],0))&", lokalsykehusområde "&INDEX(hf_kommune[Lokalsykehusområde],MATCH(valgt_kommune,hf_kommune[Kommune],0))&".") -> 
B11: Eller skriv inn fast verdi for totalbefolkning:
D12: Befolkning blir fordelt ut fra aldersfordeling av hele befolkningen pr. 1.1.22
B15: 2. Velg innstillinger:
B17: Oppmøte koloskopi som primær metode | H17: ="Blank = standard anslag "&deltakelse_kolo*100&" %" -> Blank = standard anslag 60 %
B18: Deltakelse iFOBT | H18: ="Blank = standard anslag "&100*deltakelse_ifobt&" %." -> Blank = standard anslag 58 %.
B19: Positivitet iFOBT | H19: ="Blank = standard anslag "&100*positivitet_ifobt&" %." -> Blank = standard anslag 6,1 %.
B20: Oppstartsdato iFOBT | H20: Blank = 20.11.2022 (gir noenlunde ok nasjonale tall. Husk å legge inn lokal oppstartsdato)
B21: I rute dato iFOBT | H21: ="Blank = Innen 2 år, men senest "&DAY(maks_i_rute_innstilt)&"."&MONTH(maks_i_rute_innstilt)&"."&YEAR(maks_i_rute_innstilt) -> Blank = Innen 2 år, men senest 1.1.2025 | L21: Beregnet: | M21: =IF(ISBLANK(i_rute_innstilt),I_rute_dato,"") -> 45658 | O21: =IF(valgt_helseforetak="Alle","Nasjonalt alltid 1.1.25","") -> Nasjonalt alltid 1.1.25
B24: 3. Resultat: Prognosetabell koloskopi, iFOBT og utsendelser
G26: Andel av inviterte | K26: Personer som inviteres | Q26: Personer som møter til koloskopi | Z26: Antall screeningkoloskopier | AI26: Surveillance | AJ26: Totalt koloskopier | AL26: Skopirom | AO26: iFOBT
B27: År | C27: Hele be-folkningen | D27: Befolkning 55 år | G27: Andel til primær kolo | H27: Andel til iFOBT | I27: Primær koloskopi | J27: iFOBT utrulling runde 1 | K27: iFOBT runde 1 | L27: iFOBT runde 2 | M27: iFOBT runde 3 | N27: iFOBT runde 4 | O27: iFOBT runde 5 | P27: iFOBT-invitasjoner totalt | Q27: Primær koloskopi | R27: iFOBT utrulling R1 | S27: iFOBT R1 | T27: iFOBT R2 | U27: iFOBT R3 | V27: iFOBT R4 | W27: iFOBT R5 | X27: Primær koloskopi | Y27: iFOBT utrulling R1 | Z27: iFOBT runde 1 | AA27: iFOBT R2 | AB27: iFOBT R3 | AC27: iFOBT R4 | AD27: iFOBT R5 | AE27: iFOBT runde 2-5 | AF27: Sum screening-koloskopier | AG27: Første gang | AH27: Gjentak-ende | AI27: Totalt surveillance-koloskopier | AJ27: Sum koloskopier | AK27: Sum koloskopier (rundet opp til nærmeste 50 eller 10) | AL27: Skopirom | AM27: Hele rom, rundet opp hvis > 0,2 | AN27: Overkapasitet | AO27: iFOBT-prøvesett | AP27: iFOBT-analyser | AQ27: Første varsel (begge typer) | AR27: Påminnelse iFOBT | AS27: Neg. prøvesvar iFOBT | AT27: Utrullingsbefolkningandel | AU27: Utrullingsbefolkning 55-åringer | AV27: Utrullingsbefolkning inklusjon | AW27: Normal befolkning
B28: 2022 | C28: =IF( ISBLANK(fast_befolkning), IF( ISBLANK(valgt_kommune), IF( ISBLANK(valgt_sykehus), IF(OR(valgt_helseforetak="Alle",ISBLANK(valgt_helseforetak)), INDEX(hf[#Totals],1,MATCH("Hele"&TEXT(Table3[[#This Row],[År]],"#"),hf[#Headers],0)), INDEX(hf[],MATCH(valgt_helseforetak,alle_helseforetak,0),MATCH("Hele"&TEXT(Table3[[#This Row],[År]],"#"),hf[#Headers],0))), INDEX(lokalsykehus_befolkning[],MATCH(valgt_sykehus,alle_lokalsykehusområder,0),MATCH("Hele"&TEXT(Table3[[#This Row],[År]],"#"),lokalsykehus_befolkning[#Headers],0)) ), INDEX(hf_kommune[],MATCH(valgt_kommune,alle_kommuner,0),MATCH(TEXT(Table3[[#This Row],[År]],"#")&"-tot",hf_kommune[#Headers],0)) ), fast_befolkning) -> 5417351 | D28: =IF( ISBLANK(fast_befolkning), IF( ISBLANK(valgt_kommune), IF( ISBLANK(valgt_sykehus), IF(OR(valgt_helseforetak="Alle",ISBLANK(valgt_helseforetak)), INDEX(hf[#Totals],1,MATCH(TEXT(Table3[[#This Row],[År]],"#"),hf[#Headers],0)), INDEX(hf[],MATCH(valgt_helseforetak,alle_helseforetak,0),MATCH(TEXT(Table3[[#This Row],[År]],"#"),hf[#Headers],0))), INDEX(lokalsykehus_befolkning[],MATCH(valgt_sykehus,alle_lokalsykehusområder,0),MATCH(TEXT(Table3[[#This Row],[År]],"#"),lokalsykehus_befolkning[#Headers],0)) ), INDEX(hf_kommune[],MATCH(valgt_kommune,alle_kommuner,0),MATCH(TEXT(Table3[[#This Row],[År]],"#"),hf_kommune[#Headers],0)) ), fast_befolkning*INDEX(befolkningsfordeling[],1,MATCH(TEXT(Table3[[#This Row],[År]],"#"),befolkningsfordeling[#Headers],0))) -> 72908 | G28: 0 | H28: =1-Table3[[#This Row],[Andel til primær kolo]] -> 1 | I28: =Table3[[#This Row],[Normal befolkning]]*inviterbare*Table3[[#This Row],[Andel til primær kolo]] -> 0 | J28: =Table3[[#This Row],[Utrullingsbefolkning inklusjon]]*inviterbare -> 11909.46947 | K28: =inviterbare*Table3[[#This Row],[Andel til iFOBT]]*Table3[[#This Row],[Normal befolkning]] -> 0 | L28: 0 | M28: 0 | N28: 0 | O28: 0 | P28: =ROUNDUP(SUM(Table3[[#This Row],[iFOBT utrulling runde 1]:[iFOBT runde 5 ]])/1000,0)*1000 -> 12000 | Q28: =Table3[[#This Row],[Primær koloskopi ]]*beregnet_deltakelse_kolo -> 0 | R28: =Table3[[#This Row],[iFOBT utrulling runde 1]]*beregnet_deltakelse_ifobt*beregnet_positivitet_ifobt*andel_positive_til_kolo_ifobt -> 400.2891783 | S28: =Table3[[#This Row],[iFOBT runde 1]]*beregnet_deltakelse_ifobt*beregnet_positivitet_ifobt*andel_positive_til_kolo_ifobt -> 0 | T28: =Table3[[#This Row],[iFOBT runde 2]]*beregnet_deltakelse_ifobt*beregnet_positivitet_ifobt*andel_positive_til_kolo_ifobt -> 0 | U28: =Table3[[#This Row],[iFOBT runde 3 ]]*beregnet_deltakelse_ifobt*beregnet_positivitet_ifobt*andel_positive_til_kolo_ifobt -> 0 | V28: =Table3[[#This Row],[iFOBT runde 4 ]]*beregnet_deltakelse_ifobt*beregnet_positivitet_ifobt*andel_positive_til_kolo_ifobt -> 0 | W28: =Table3[[#This Row],[iFOBT runde 5 ]]*beregnet_deltakelse_ifobt*beregnet_positivitet_ifobt*andel_positive_til_kolo_ifobt -> 0 | X28: =kolo_per_inv_kolo*Table3[[#This Row],[Primær koloskopi ]] -> 0 | Y28: =kolo_per_inv_ifobt*Table3[[#This Row],[iFOBT utrulling runde 1]] -> 436.5258829 | Z28: =kolo_per_inv_ifobt*Table3[[#This Row],[iFOBT runde 1]] -> 0 | AA28: =kolo_per_inv_ifobt*Table3[[#This Row],[iFOBT runde 2]] -> 0 | AB28: =kolo_per_inv_ifobt*Table3[[#This Row],[iFOBT runde 3 ]] -> 0 | AC28: =kolo_per_inv_ifobt*Table3[[#This Row],[iFOBT runde 4 ]] -> 0 | AD28: =kolo_per_inv_ifobt*Table3[[#This Row],[iFOBT runde 5 ]] -> 0 | AE28: =SUM(Table3[[#This Row],[iFOBT R2 ]:[iFOBT R5 ]]) -> 0 | AF28: =SUM(Table3[[#This Row],[Primær koloskopi ]:[iFOBT R5 ]]) -> 436.5258829 | AG28: 0 | AH28: 0 | AI28: =Table3[[#This Row],[Første gang]]+Table3[[#This Row],[Gjentak-ende]] -> 0 | AJ28: =Table3[[#This Row],[Sum screening-koloskopier]]+Table3[[#This Row],[Totalt surveillance-koloskopier]] -> 436.5258829 | AK28: =IF(SUM(Table3[Befolkning 55 år])>30000,ROUNDUP((Table3[[#This Row],[Sum screening-koloskopier]]+Table3[[#This Row],[Totalt surveillance-koloskopier]])/50,0)*50,ROUNDUP((Table3[[#This Row],[Sum screening-koloskopier]]+Table3[[#This Row],[Totalt surveillance-koloskopier]])/10,0)*10) -> 450 | AL28: =(Table3[[#This Row],[Sum screening-koloskopier]]+Table3[[#This Row],[Totalt surveillance-koloskopier]])/undersokelser_per_rom -> 0.3968417117 | AM28: =IF(ISBLANK(Table3[[#This Row],[Skopirom]]),"",IF(Table3[[#This Row],[Skopirom]]<0.2,1,ROUND(Table3[[#This Row],[Skopirom]]+0.3,0))) -> 1 | AN28: =IF(Table3[[#This Row],[Hele rom, rundet opp hvis > 0,2]]-Table3[[#This Row],[Skopirom]]>0,Table3[[#This Row],[Hele rom, rundet opp hvis > 0,2]]-Table3[[#This Row],[Skopirom]],0) -> 0.6031582883 | AO28: =ROUNDUP(ifobt_per_invitasjon*SUM(Table3[[#This Row],[iFOBT utrulling runde 1]:[iFOBT runde 5 ]])/1000,0)*1000 -> 13000 | AP28: =ROUNDUP(SUM(Table3[[#This Row],[iFOBT runde 1]:[iFOBT runde 5 ]])*deltakelse_ifobt/1000,0)*1000 -> 0 | AQ28: =ROUNDUP((Table3[[#This Row],[Primær koloskopi ]]+Table3[[#This Row],[iFOBT runde 1]])/1000,0)*1000*ikke_digital_post -> 0 | AR28: =ROUNDUP(SUM(Table3[[#This Row],[iFOBT runde 1]:[iFOBT runde 5 ]])*påminnelse/1000,0)*1000*ikke_digital_post -> 0 | AS28: =ROUNDUP((beregnet_deltakelse_ifobt-beregnet_positivitet_ifobt)*SUM(Table3[[#This Row],[iFOBT runde 1]:[iFOBT runde 5 ]])/1000,0)*1000*ikke_digital_post -> 0 | AT28: =INDEX(Utrulling[Andel 55-åringer i utrulling],MATCH(Table3[[#This Row],[År]],Utrulling[År],0)) -> 1 | AU28: =AT28*Table3[[#This Row],[Befolkning 55 år]] -> 72908 | AV28: =INDEX(Utrulling[Utrullingsbefolkning dette år],MATCH(Table3[[#This Row],[År]],Utrulling[År],0)) -> 12029.76714 | AW28: =(1-AT28)*Table3[[#This Row],[Befolkning 55 år]] -> 0
B29: 2023 | C29: =IF( ISBLANK(fast_befolkning), IF( ISBLANK(valgt_kommune), IF( ISBLANK(valgt_sykehus), IF(OR(valgt_helseforetak="Alle",ISBLANK(valgt_helseforetak)), INDEX(hf[#Totals],1,MATCH("Hele"&TEXT(Table3[[#This Row],[År]],"#"),hf[#Headers],0)), INDEX(hf[],MATCH(valgt_helseforetak,alle_helseforetak,0),MATCH("Hele"&TEXT(Table3[[#This Row],[År]],"#"),hf[#Headers],0))), INDEX(lokalsykehus_befolkning[],MATCH(valgt_sykehus,alle_lokalsykehusområder,0),MATCH("Hele"&TEXT(Table3[[#This Row],[År]],"#"),lokalsykehus_befolkning[#Headers],0)) ), INDEX(hf_kommune[],MATCH(valgt_kommune,alle_kommuner,0),MATCH(TEXT(Table3[[#This Row],[År]],"#")&"-tot",hf_kommune[#Headers],0)) ), fast_befolkning) -> 5444679 | D29: =IF( ISBLANK(fast_befolkning), IF( ISBLANK(valgt_kommune), IF( ISBLANK(valgt_sykehus), IF(OR(valgt_helseforetak="Alle",ISBLANK(valgt_helseforetak)), INDEX(hf[#Totals],1,MATCH(TEXT(Table3[[#This Row],[År]],"#"),hf[#Headers],0)), INDEX(hf[],MATCH(valgt_helseforetak,alle_helseforetak,0),MATCH(TEXT(Table3[[#This Row],[År]],"#"),hf[#Headers],0))), INDEX(lokalsykehus_befolkning[],MATCH(valgt_sykehus,alle_lokalsykehusområder,0),MATCH(TEXT(Table3[[#This Row],[År]],"#"),lokalsykehus_befolkning[#Headers],0)) ), INDEX(hf_kommune[],MATCH(valgt_kommune,alle_kommuner,0),MATCH(TEXT(Table3[[#This Row],[År]],"#"),hf_kommune[#Headers],0)) ), fast_befolkning*INDEX(befolkningsfordeling[],1,MATCH(TEXT(Table3[[#This Row],[År]],"#"),befolkningsfordeling[#Headers],0))) -> 73280 | G29: 0 | H29: =1-Table3[[#This Row],[Andel til primær kolo]] -> 1 | I29: =Table3[[#This Row],[Normal befolkning]]*inviterbare*Table3[[#This Row],[Andel til primær kolo]] -> 0 | J29: =Table3[[#This Row],[Utrullingsbefolkning inklusjon]]*inviterbare -> 103498.9609 | K29: =inviterbare*Table3[[#This Row],[Andel til iFOBT]]*Table3[[#This Row],[Normal befolkning]] -> 0 | L29: 0 | M29: 0 | N29: 0 | O29: 0 | P29: =ROUNDUP(SUM(Table3[[#This Row],[iFOBT utrulling runde 1]:[iFOBT runde 5 ]])/1000,0)*1000 -> 104000 | Q29: =Table3[[#This Row],[Primær koloskopi ]]*beregnet_deltakelse_kolo -> 0 | R29: =Table3[[#This Row],[iFOBT utrulling runde 1]]*beregnet_deltakelse_ifobt*beregnet_positivitet_ifobt*andel_positive_til_kolo_ifobt -> 3478.703574 | S29: =Table3[[#This Row],[iFOBT runde 1]]*beregnet_deltakelse_ifobt*beregnet_positivitet_ifobt*andel_positive_til_kolo_ifobt -> 0 | T29: =Table3[[#This Row],[iFOBT runde 2]]*beregnet_deltakelse_ifobt*beregnet_positivitet_ifobt*andel_positive_til_kolo_ifobt -> 0 | U29: =Table3[[#This Row],[iFOBT runde 3 ]]*beregnet_deltakelse_ifobt*beregnet_positivitet_ifobt*andel_positive_til_kolo_ifobt -> 0 | V29: =Table3[[#This Row],[iFOBT runde 4 ]]*beregnet_deltakelse_ifobt*beregnet_positivitet_ifobt*andel_positive_til_kolo_ifobt -> 0 | W29: =Table3[[#This Row],[iFOBT runde 5 ]]*beregnet_deltakelse_ifobt*beregnet_positivitet_ifobt*andel_positive_til_kolo_ifobt -> 0 | X29: =kolo_per_inv_kolo*Table3[[#This Row],[Primær koloskopi ]] -> 0 | Y29: =kolo_per_inv_ifobt*Table3[[#This Row],[iFOBT utrulling runde 1]] -> 3793.617792 | Z29: =kolo_per_inv_ifobt*Table3[[#This Row],[iFOBT runde 1]] -> 0 | AA29: =kolo_per_inv_ifobt*Table3[[#This Row],[iFOBT runde 2]] -> 0 | AB29: =kolo_per_inv_ifobt*Table3[[#This Row],[iFOBT runde 3 ]] -> 0 | AC29: =kolo_per_inv_ifobt*Table3[[#This Row],[iFOBT runde 4 ]] -> 0 | AD29: =kolo_per_inv_ifobt*Table3[[#This Row],[iFOBT runde 5 ]] -> 0 | AE29: =SUM(Table3[[#This Row],[iFOBT R2 ]:[iFOBT R5 ]]) -> 0 | AF29: =SUM(Table3[[#This Row],[Primær koloskopi ]:[iFOBT R5 ]]) -> 3793.617792 | AG29: 0 | AH29: 0 | AI29: =Table3[[#This Row],[Første gang]]+Table3[[#This Row],[Gjentak-ende]] -> 0 | AJ29: =Table3[[#This Row],[Sum screening-koloskopier]]+Table3[[#This Row],[Totalt surveillance-koloskopier]] -> 3793.617792 | AK29: =IF(SUM(Table3[Befolkning 55 år])>30000,ROUNDUP((Table3[[#This Row],[Sum screening-koloskopier]]+Table3[[#This Row],[Totalt surveillance-koloskopier]])/50,0)*50,ROUNDUP((Table3[[#This Row],[Sum screening-koloskopier]]+Table3[[#This Row],[Totalt surveillance-koloskopier]])/10,0)*10) -> 3800 | AL29: =(Table3[[#This Row],[Sum screening-koloskopier]]+Table3[[#This Row],[Totalt surveillance-koloskopier]])/undersokelser_per_rom -> 3.448743447 | AM29: =IF(ISBLANK(Table3[[#This Row],[Skopirom]]),"",IF(Table3[[#This Row],[Skopirom]]<0.2,1,ROUND(Table3[[#This Row],[Skopirom]]+0.3,0))) -> 4 | AN29: =IF(Table3[[#This Row],[Hele rom, rundet opp hvis > 0,2]]-Table3[[#This Row],[Skopirom]]>0,Table3[[#This Row],[Hele rom, rundet opp hvis > 0,2]]-Table3[[#This Row],[Skopirom]],0) -> 0.5512565528 | AO29: =ROUNDUP(ifobt_per_invitasjon*SUM(Table3[[#This Row],[iFOBT utrulling runde 1]:[iFOBT runde 5 ]])/1000,0)*1000 -> 111000 | AP29: =ROUNDUP(SUM(Table3[[#This Row],[iFOBT runde 1]:[iFOBT runde 5 ]])*deltakelse_ifobt/1000,0)*1000 -> 0 | AQ29: =ROUNDUP((Table3[[#This Row],[Primær koloskopi ]]+Table3[[#This Row],[iFOBT runde 1]])/1000,0)*1000*ikke_digital_post -> 0 | AR29: =ROUNDUP(SUM(Table3[[#This Row],[iFOBT runde 1]:[iFOBT runde 5 ]])*påminnelse/1000,0)*1000*ikke_digital_post -> 0 | AS29: =ROUNDUP((beregnet_deltakelse_ifobt-beregnet_positivitet_ifobt)*SUM(Table3[[#This Row],[iFOBT runde 1]:[iFOBT runde 5 ]])/1000,0)*1000*ikke_digital_post -> 0 | AT29: =INDEX(Utrulling[Andel 55-åringer i utrulling],MATCH(Table3[[#This Row],[År]],Utrulling[År],0)) -> 1 | AU29: =AT29*Table3[[#This Row],[Befolkning 55 år]] -> 73280 | AV29: =INDEX(Utrulling[Utrullingsbefolkning dette år],MATCH(Table3[[#This Row],[År]],Utrulling[År],0)) -> 104544.4049 | AW29: =(1-AT29)*Table3[[#This Row],[Befolkning 55 år]] -> 0
B30: 2024 | C30: =IF( ISBLANK(fast_befolkning), IF( ISBLANK(valgt_kommune), IF( ISBLANK(valgt_sykehus), IF(OR(valgt_helseforetak="Alle",ISBLANK(valgt_helseforetak)), INDEX(hf[#Totals],1,MATCH("Hele"&TEXT(Table3[[#This Row],[År]],"#"),hf[#Headers],0)), INDEX(hf[],MATCH(valgt_helseforetak,alle_helseforetak,0),MATCH("Hele"&TEXT(Table3[[#This Row],[År]],"#"),hf[#Headers],0))), INDEX(lokalsykehus_befolkning[],MATCH(valgt_sykehus,alle_lokalsykehusområder,0),MATCH("Hele"&TEXT(Table3[[#This Row],[År]],"#"),lokalsykehus_befolkning[#Headers],0)) ), INDEX(hf_kommune[],MATCH(valgt_kommune,alle_kommuner,0),MATCH(TEXT(Table3[[#This Row],[År]],"#")&"-tot",hf_kommune[#Headers],0)) ), fast_befolkning) -> 5471238 | D30: =IF( ISBLANK(fast_befolkning), IF( ISBLANK(valgt_kommune), IF( ISBLANK(valgt_sykehus), IF(OR(valgt_helseforetak="Alle",ISBLANK(valgt_helseforetak)), INDEX(hf[#Totals],1,MATCH(TEXT(Table3[[#This Row],[År]],"#"),hf[#Headers],0)), INDEX(hf[],MATCH(valgt_helseforetak,alle_helseforetak,0),MATCH(TEXT(Table3[[#This Row],[År]],"#"),hf[#Headers],0))), INDEX(lokalsykehus_befolkning[],MATCH(valgt_sykehus,alle_lokalsykehusområder,0),MATCH(TEXT(Table3[[#This Row],[År]],"#"),lokalsykehus_befolkning[#Headers],0)) ), INDEX(hf_kommune[],MATCH(valgt_kommune,alle_kommuner,0),MATCH(TEXT(Table3[[#This Row],[År]],"#"),hf_kommune[#Headers],0)) ), fast_befolkning*INDEX(befolkningsfordeling[],1,MATCH(TEXT(Table3[[#This Row],[År]],"#"),befolkningsfordeling[#Headers],0))) -> 75217 | G30: 0 | H30: =1-Table3[[#This Row],[Andel til primær kolo]] -> 1 | I30: =Table3[[#This Row],[Normal befolkning]]*inviterbare*Table3[[#This Row],[Andel til primær kolo]] -> 0 | J30: =Table3[[#This Row],[Utrullingsbefolkning inklusjon]]*inviterbare -> 103782.5197 | K30: =inviterbare*Table3[[#This Row],[Andel til iFOBT]]*Table3[[#This Row],[Normal befolkning]] -> 0 | L30: =(K28+J28)*(1-andel_reservasjon_ifobt)-S28-R28 -> 11151.89621 | M30: 0 | N30: 0 | O30: 0 | P30: =ROUNDUP(SUM(Table3[[#This Row],[iFOBT utrulling runde 1]:[iFOBT runde 5 ]])/1000,0)*1000 -> 115000 | Q30: =Table3[[#This Row],[Primær koloskopi ]]*beregnet_deltakelse_kolo -> 0 | R30: =Table3[[#This Row],[iFOBT utrulling runde 1]]*beregnet_deltakelse_ifobt*beregnet_positivitet_ifobt*andel_positive_til_kolo_ifobt -> 3488.234268 | S30: =Table3[[#This Row],[iFOBT runde 1]]*beregnet_deltakelse_ifobt*beregnet_positivitet_ifobt*andel_positive_til_kolo_ifobt -> 0 | T30: =Table3[[#This Row],[iFOBT runde 2]]*beregnet_deltakelse_ifobt*beregnet_positivitet_ifobt*andel_positive_til_kolo_ifobt -> 374.8263834 | U30: =Table3[[#This Row],[iFOBT runde 3 ]]*beregnet_deltakelse_ifobt*beregnet_positivitet_ifobt*andel_positive_til_kolo_ifobt -> 0 | V30: =Table3[[#This Row],[iFOBT runde 4 ]]*beregnet_deltakelse_ifobt*beregnet_positivitet_ifobt*andel_positive_til_kolo_ifobt -> 0 | W30: =Table3[[#This Row],[iFOBT runde 5 ]]*beregnet_deltakelse_ifobt*beregnet_positivitet_ifobt*andel_positive_til_kolo_ifobt -> 0 | X30: =kolo_per_inv_kolo*Table3[[#This Row],[Primær koloskopi ]] -> 0 | Y30: =kolo_per_inv_ifobt*Table3[[#This Row],[iFOBT utrulling runde 1]] -> 3804.011265 | Z30: =kolo_per_inv_ifobt*Table3[[#This Row],[iFOBT runde 1]] -> 0 | AA30: =kolo_per_inv_ifobt*Table3[[#This Row],[iFOBT runde 2]] -> 408.758035 | AB30: =kolo_per_inv_ifobt*Table3[[#This Row],[iFOBT runde 3 ]] -> 0 | AC30: =kolo_per_inv_ifobt*Table3[[#This Row],[iFOBT runde 4 ]] -> 0 | AD30: =kolo_per_inv_ifobt*Table3[[#This Row],[iFOBT runde 5 ]] -> 0 | AE30: =SUM(Table3[[#This Row],[iFOBT R2 ]:[iFOBT R5 ]]) -> 408.758035 | AF30: =SUM(Table3[[#This Row],[Primær koloskopi ]:[iFOBT R5 ]]) -> 4212.7693 | AG30: 0 | AH30: 0 | AI30: =Table3[[#This Row],[Første gang]]+Table3[[#This Row],[Gjentak-ende]] -> 0 | AJ30: =Table3[[#This Row],[Sum screening-koloskopier]]+Table3[[#This Row],[Totalt surveillance-koloskopier]] -> 4212.7693 | AK30: =IF(SUM(Table3[Befolkning 55 år])>30000,ROUNDUP((Table3[[#This Row],[Sum screening-koloskopier]]+Table3[[#This Row],[Totalt surveillance-koloskopier]])/50,0)*50,ROUNDUP((Table3[[#This Row],[Sum screening-koloskopier]]+Table3[[#This Row],[Totalt surveillance-koloskopier]])/10,0)*10) -> 4250 | AL30: =(Table3[[#This Row],[Sum screening-koloskopier]]+Table3[[#This Row],[Totalt surveillance-koloskopier]])/undersokelser_per_rom -> 3.829790273 | AM30: =IF(ISBLANK(Table3[[#This Row],[Skopirom]]),"",IF(Table3[[#This Row],[Skopirom]]<0.2,1,ROUND(Table3[[#This Row],[Skopirom]]+0.3,0))) -> 4 | AN30: =IF(Table3[[#This Row],[Hele rom, rundet opp hvis > 0,2]]-Table3[[#This Row],[Skopirom]]>0,Table3[[#This Row],[Hele rom, rundet opp hvis > 0,2]]-Table3[[#This Row],[Skopirom]],0) -> 0.170209727 | AO30: =ROUNDUP(ifobt_per_invitasjon*SUM(Table3[[#This Row],[iFOBT utrulling runde 1]:[iFOBT runde 5 ]])/1000,0)*1000 -> 123000 | AP30: =ROUNDUP(SUM(Table3[[#This Row],[iFOBT runde 1]:[iFOBT runde 5 ]])*deltakelse_ifobt/1000,0)*1000 -> 7000 | AQ30: =ROUNDUP((Table3[[#This Row],[Primær koloskopi ]]+Table3[[#This Row],[iFOBT runde 1]])/1000,0)*1000*ikke_digital_post -> 0 | AR30: =ROUNDUP(SUM(Table3[[#This Row],[iFOBT runde 1]:[iFOBT runde 5 ]])*påminnelse/1000,0)*1000*ikke_digital_post -> 3600 | AS30: =ROUNDUP((beregnet_deltakelse_ifobt-beregnet_positivitet_ifobt)*SUM(Table3[[#This Row],[iFOBT runde 1]:[iFOBT runde 5 ]])/1000,0)*1000*ikke_digital_post -> 3600 | AT30: =INDEX(Utrulling[Andel 55-åringer i utrulling],MATCH(Table3[[#This Row],[År]],Utrulling[År],0)) -> 1 | AU30: =AT30*Table3[[#This Row],[Befolkning 55 år]] -> 75217 | AV30: =INDEX(Utrulling[Utrullingsbefolkning dette år],MATCH(Table3[[#This Row],[År]],Utrulling[År],0)) -> 104830.8279 | AW30: =(1-AT30)*Table3[[#This Row],[Befolkning 55 år]] -> 0
B31: 2025 | C31: =IF( ISBLANK(fast_befolkning), IF( ISBLANK(valgt_kommune), IF( ISBLANK(valgt_sykehus), IF(OR(valgt_helseforetak="Alle",ISBLANK(valgt_helseforetak)), INDEX(hf[#Totals],1,MATCH("Hele"&TEXT(Table3[[#This Row],[År]],"#"),hf[#Headers],0)), INDEX(hf[],MATCH(valgt_helseforetak,alle_helseforetak,0),MATCH("Hele"&TEXT(Table3[[#This Row],[År]],"#"),hf[#Headers],0))), INDEX(lokalsykehus_befolkning[],MATCH(valgt_sykehus,alle_lokalsykehusområder,0),MATCH("Hele"&TEXT(Table3[[#This Row],[År]],"#"),lokalsykehus_befolkning[#Headers],0)) ), INDEX(hf_kommune[],MATCH(valgt_kommune,alle_kommuner,0),MATCH(TEXT(Table3[[#This Row],[År]],"#")&"-tot",hf_kommune[#Headers],0)) ), fast_befolkning) -> 5497555 | D31: =IF( ISBLANK(fast_befolkning), IF( ISBLANK(valgt_kommune), IF( ISBLANK(valgt_sykehus), IF(OR(valgt_helseforetak="Alle",ISBLANK(valgt_helseforetak)), INDEX(hf[#Totals],1,MATCH(TEXT(Table3[[#This Row],[År]],"#"),hf[#Headers],0)), INDEX(hf[],MATCH(valgt_helseforetak,alle_helseforetak,0),MATCH(TEXT(Table3[[#This Row],[År]],"#"),hf[#Headers],0))), INDEX(lokalsykehus_befolkning[],MATCH(valgt_sykehus,alle_lokalsykehusområder,0),MATCH(TEXT(Table3[[#This Row],[År]],"#"),lokalsykehus_befolkning[#Headers],0)) ), INDEX(hf_kommune[],MATCH(valgt_kommune,alle_kommuner,0),MATCH(TEXT(Table3[[#This Row],[År]],"#"),hf_kommune[#Headers],0)) ), fast_befolkning*INDEX(befolkningsfordeling[],1,MATCH(TEXT(Table3[[#This Row],[År]],"#"),befolkningsfordeling[#Headers],0))) -> 75959 | G31: 0 | H31: =1-Table3[[#This Row],[Andel til primær kolo]] -> 1 | I31: =Table3[[#This Row],[Normal befolkning]]*inviterbare*Table3[[#This Row],[Andel til primær kolo]] -> 0 | J31: =Table3[[#This Row],[Utrullingsbefolkning inklusjon]]*inviterbare -> 0 | K31: =inviterbare*Table3[[#This Row],[Andel til iFOBT]]*Table3[[#This Row],[Normal befolkning]] -> 75199.41 | L31: 96915.28847 | M31: 0 | N31: 0 | O31: 0 | P31: =ROUNDUP(SUM(Table3[[#This Row],[iFOBT utrulling runde 1]:[iFOBT runde 5 ]])/1000,0)*1000 -> 173000 | Q31: =Table3[[#This Row],[Primær koloskopi ]]*beregnet_deltakelse_kolo -> 0 | R31: =Table3[[#This Row],[iFOBT utrulling runde 1]]*beregnet_deltakelse_ifobt*beregnet_positivitet_ifobt*andel_positive_til_kolo_ifobt -> 0 | S31: =Table3[[#This Row],[iFOBT runde 1]]*beregnet_deltakelse_ifobt*beregnet_positivitet_ifobt*andel_positive_til_kolo_ifobt -> 2527.52737 | T31: =Table3[[#This Row],[iFOBT runde 2]]*beregnet_deltakelse_ifobt*beregnet_positivitet_ifobt*andel_positive_til_kolo_ifobt -> 3257.419761 | U31: =Table3[[#This Row],[iFOBT runde 3 ]]*beregnet_deltakelse_ifobt*beregnet_positivitet_ifobt*andel_positive_til_kolo_ifobt -> 0 | V31: =Table3[[#This Row],[iFOBT runde 4 ]]*beregnet_deltakelse_ifobt*beregnet_positivitet_ifobt*andel_positive_til_kolo_ifobt -> 0 | W31: =Table3[[#This Row],[iFOBT runde 5 ]]*beregnet_deltakelse_ifobt*beregnet_positivitet_ifobt*andel_positive_til_kolo_ifobt -> 0 | X31: =kolo_per_inv_kolo*Table3[[#This Row],[Primær koloskopi ]] -> 0 | Y31: =kolo_per_inv_ifobt*Table3[[#This Row],[iFOBT utrulling runde 1]] -> 0 | Z31: =kolo_per_inv_ifobt*Table3[[#This Row],[iFOBT runde 1]] -> 2756.33511 | AA31: =kolo_per_inv_ifobt*Table3[[#This Row],[iFOBT runde 2]] -> 3552.301971 | AB31: =kolo_per_inv_ifobt*Table3[[#This Row],[iFOBT runde 3 ]] -> 0 | AC31: =kolo_per_inv_ifobt*Table3[[#This Row],[iFOBT runde 4 ]] -> 0 | AD31: =kolo_per_inv_ifobt*Table3[[#This Row],[iFOBT runde 5 ]] -> 0 | AE31: =SUM(Table3[[#This Row],[iFOBT R2 ]:[iFOBT R5 ]]) -> 3552.301971 | AF31: =SUM(Table3[[#This Row],[Primær koloskopi ]:[iFOBT R5 ]]) -> 6308.637081 | AG31: =Q28*andel_avansert_adenom_kolo+SUM(R28:W28)*andel_avansert_adenom_ifobt -> 144.2642199 | AH31: 0 | AI31: =Table3[[#This Row],[Første gang]]+Table3[[#This Row],[Gjentak-ende]] -> 144.2642199 | AJ31: =Table3[[#This Row],[Sum screening-koloskopier]]+Table3[[#This Row],[Totalt surveillance-koloskopier]] -> 6452.901301 | AK31: =IF(SUM(Table3[Befolkning 55 år])>30000,ROUNDUP((Table3[[#This Row],[Sum screening-koloskopier]]+Table3[[#This Row],[Totalt surveillance-koloskopier]])/50,0)*50,ROUNDUP((Table3[[#This Row],[Sum screening-koloskopier]]+Table3[[#This Row],[Totalt surveillance-koloskopier]])/10,0)*10) -> 6500 | AL31: =(Table3[[#This Row],[Sum screening-koloskopier]]+Table3[[#This Row],[Totalt surveillance-koloskopier]])/undersokelser_per_rom -> 5.86627391 | AM31: =IF(ISBLANK(Table3[[#This Row],[Skopirom]]),"",IF(Table3[[#This Row],[Skopirom]]<0.2,1,ROUND(Table3[[#This Row],[Skopirom]]+0.3,0))) -> 6 | AN31: =IF(Table3[[#This Row],[Hele rom, rundet opp hvis > 0,2]]-Table3[[#This Row],[Skopirom]]>0,Table3[[#This Row],[Hele rom, rundet opp hvis > 0,2]]-Table3[[#This Row],[Skopirom]],0) -> 0.1337260902 | AO31: =ROUNDUP(ifobt_per_invitasjon*SUM(Table3[[#This Row],[iFOBT utrulling runde 1]:[iFOBT runde 5 ]])/1000,0)*1000 -> 184000 | AP31: =ROUNDUP(SUM(Table3[[#This Row],[iFOBT runde 1]:[iFOBT runde 5 ]])*deltakelse_ifobt/1000,0)*1000 -> 100000 | AQ31: =ROUNDUP((Table3[[#This Row],[Primær koloskopi ]]+Table3[[#This Row],[iFOBT runde 1]])/1000,0)*1000*ikke_digital_post -> 45600 | AR31: =ROUNDUP(SUM(Table3[[#This Row],[iFOBT runde 1]:[iFOBT runde 5 ]])*påminnelse/1000,0)*1000*ikke_digital_post -> 52200 | AS31: =ROUNDUP((beregnet_deltakelse_ifobt-beregnet_positivitet_ifobt)*SUM(Table3[[#This Row],[iFOBT runde 1]:[iFOBT runde 5 ]])/1000,0)*1000*ikke_digital_post -> 54000 | AT31: =INDEX(Utrulling[Andel 55-åringer i utrulling],MATCH(Table3[[#This Row],[År]],Utrulling[År],0)) -> 0 | AU31: =AT31*Table3[[#This Row],[Befolkning 55 år]] -> 0 | AV31: =INDEX(Utrulling[Utrullingsbefolkning dette år],MATCH(Table3[[#This Row],[År]],Utrulling[År],0)) -> 0 | AW31: =(1-AT31)*Table3[[#This Row],[Befolkning 55 år]] -> 75959
B32: 2026 | C32: =IF( ISBLANK(fast_befolkning), IF( ISBLANK(valgt_kommune), IF( ISBLANK(valgt_sykehus), IF(OR(valgt_helseforetak="Alle",ISBLANK(valgt_helseforetak)), INDEX(hf[#Totals],1,MATCH("Hele"&TEXT(Table3[[#This Row],[År]],"#"),hf[#Headers],0)), INDEX(hf[],MATCH(valgt_helseforetak,alle_helseforetak,0),MATCH("Hele"&TEXT(Table3[[#This Row],[År]],"#"),hf[#Headers],0))), INDEX(lokalsykehus_befolkning[],MATCH(valgt_sykehus,alle_lokalsykehusområder,0),MATCH("Hele"&TEXT(Table3[[#This Row],[År]],"#"),lokalsykehus_befolkning[#Headers],0)) ), INDEX(hf_kommune[],MATCH(valgt_kommune,alle_kommuner,0),MATCH(TEXT(Table3[[#This Row],[År]],"#")&"-tot",hf_kommune[#Headers],0)) ), fast_befolkning) -> 5523922 | D32: =IF( ISBLANK(fast_befolkning), IF( ISBLANK(valgt_kommune), IF( ISBLANK(valgt_sykehus), IF(OR(valgt_helseforetak="Alle",ISBLANK(valgt_helseforetak)), INDEX(hf[#Totals],1,MATCH(TEXT(Table3[[#This Row],[År]],"#"),hf[#Headers],0)), INDEX(hf[],MATCH(valgt_helseforetak,alle_helseforetak,0),MATCH(TEXT(Table3[[#This Row],[År]],"#"),hf[#Headers],0))), INDEX(lokalsykehus_befolkning[],MATCH(valgt_sykehus,alle_lokalsykehusområder,0),MATCH(TEXT(Table3[[#This Row],[År]],"#"),lokalsykehus_befolkning[#Headers],0)) ), INDEX(hf_kommune[],MATCH(valgt_kommune,alle_kommuner,0),MATCH(TEXT(Table3[[#This Row],[År]],"#"),hf_kommune[#Headers],0)) ), fast_befolkning*INDEX(befolkningsfordeling[],1,MATCH(TEXT(Table3[[#This Row],[År]],"#"),befolkningsfordeling[#Headers],0))) -> 74460 | G32: 0 | H32: =1-Table3[[#This Row],[Andel til primær kolo]] -> 1 | I32: =Table3[[#This Row],[Normal befolkning]]*inviterbare*Table3[[#This Row],[Andel til primær kolo]] -> 0 | J32: =Table3[[#This Row],[Utrullingsbefolkning inklusjon]]*inviterbare -> 0 | K32: =inviterbare*Table3[[#This Row],[Andel til iFOBT]]*Table3[[#This Row],[Normal befolkning]] -> 73715.4 | L32: 97180.80981 | M32: =L30*(1-andel_reservasjon_ifobt_2gang)-T30 -> 10609.79138 | N32: 0 | O32: 0 | P32: =ROUNDUP(SUM(Table3[[#This Row],[iFOBT utrulling runde 1]:[iFOBT runde 5 ]])/1000,0)*1000 -> 182000 | Q32: =Table3[[#This Row],[Primær koloskopi ]]*beregnet_deltakelse_kolo -> 0 | R32: =Table3[[#This Row],[iFOBT utrulling runde 1]]*beregnet_deltakelse_ifobt*beregnet_positivitet_ifobt*andel_positive_til_kolo_ifobt -> 0 | S32: =Table3[[#This Row],[iFOBT runde 1]]*beregnet_deltakelse_ifobt*beregnet_positivitet_ifobt*andel_positive_til_kolo_ifobt -> 2477.648309 | T32: =Table3[[#This Row],[iFOBT runde 2]]*beregnet_deltakelse_ifobt*beregnet_positivitet_ifobt*andel_positive_til_kolo_ifobt -> 3266.344198 | U32: =Table3[[#This Row],[iFOBT runde 3 ]]*beregnet_deltakelse_ifobt*beregnet_positivitet_ifobt*andel_positive_til_kolo_ifobt -> 356.6056981 | V32: =Table3[[#This Row],[iFOBT runde 4 ]]*beregnet_deltakelse_ifobt*beregnet_positivitet_ifobt*andel_positive_til_kolo_ifobt -> 0 | W32: =Table3[[#This Row],[iFOBT runde 5 ]]*beregnet_deltakelse_ifobt*beregnet_positivitet_ifobt*andel_positive_til_kolo_ifobt -> 0 | X32: =kolo_per_inv_kolo*Table3[[#This Row],[Primær koloskopi ]] -> 0 | Y32: =kolo_per_inv_ifobt*Table3[[#This Row],[iFOBT utrulling runde 1]] -> 0 | Z32: =kolo_per_inv_ifobt*Table3[[#This Row],[iFOBT runde 1]] -> 2701.940683 | AA32: =kolo_per_inv_ifobt*Table3[[#This Row],[iFOBT runde 2]] -> 3562.034305 | AB32: =kolo_per_inv_ifobt*Table3[[#This Row],[iFOBT runde 3 ]] -> 388.8878981 | AC32: =kolo_per_inv_ifobt*Table3[[#This Row],[iFOBT runde 4 ]] -> 0 | AD32: =kolo_per_inv_ifobt*Table3[[#This Row],[iFOBT runde 5 ]] -> 0 | AE32: =SUM(Table3[[#This Row],[iFOBT R2 ]:[iFOBT R5 ]]) -> 3950.922203 | AF32: =SUM(Table3[[#This Row],[Primær koloskopi ]:[iFOBT R5 ]]) -> 6652.862886 | AG32: 1253.724768 | AH32: 0 | AI32: =Table3[[#This Row],[Første gang]]+Table3[[#This Row],[Gjentak-ende]] -> 1253.724768 | AJ32: =Table3[[#This Row],[Sum screening-koloskopier]]+Table3[[#This Row],[Totalt surveillance-koloskopier]] -> 7906.587654 | AK32: =IF(SUM(Table3[Befolkning 55 år])>30000,ROUNDUP((Table3[[#This Row],[Sum screening-koloskopier]]+Table3[[#This Row],[Totalt surveillance-koloskopier]])/50,0)*50,ROUNDUP((Table3[[#This Row],[Sum screening-koloskopier]]+Table3[[#This Row],[Totalt surveillance-koloskopier]])/10,0)*10) -> 7950 | AL32: =(Table3[[#This Row],[Sum screening-koloskopier]]+Table3[[#This Row],[Totalt surveillance-koloskopier]])/undersokelser_per_rom -> 7.187806958 | AM32: =IF(ISBLANK(Table3[[#This Row],[Skopirom]]),"",IF(Table3[[#This Row],[Skopirom]]<0.2,1,ROUND(Table3[[#This Row],[Skopirom]]+0.3,0))) -> 7 | AN32: =IF(Table3[[#This Row],[Hele rom, rundet opp hvis > 0,2]]-Table3[[#This Row],[Skopirom]]>0,Table3[[#This Row],[Hele rom, rundet opp hvis > 0,2]]-Table3[[#This Row],[Skopirom]],0) -> 0 | AO32: =ROUNDUP(ifobt_per_invitasjon*SUM(Table3[[#This Row],[iFOBT utrulling runde 1]:[iFOBT runde 5 ]])/1000,0)*1000 -> 194000 | AP32: =ROUNDUP(SUM(Table3[[#This Row],[iFOBT runde 1]:[iFOBT runde 5 ]])*deltakelse_ifobt/1000,0)*1000 -> 106000 | AQ32: =ROUNDUP((Table3[[#This Row],[Primær koloskopi ]]+Table3[[#This Row],[iFOBT runde 1]])/1000,0)*1000*ikke_digital_post -> 44400 | AR32: =ROUNDUP(SUM(Table3[[#This Row],[iFOBT runde 1]:[iFOBT runde 5 ]])*påminnelse/1000,0)*1000*ikke_digital_post -> 54600 | AS32: =ROUNDUP((beregnet_deltakelse_ifobt-beregnet_positivitet_ifobt)*SUM(Table3[[#This Row],[iFOBT runde 1]:[iFOBT runde 5 ]])/1000,0)*1000*ikke_digital_post -> 57000 | AT32: =INDEX(Utrulling[Andel 55-åringer i utrulling],MATCH(Table3[[#This Row],[År]],Utrulling[År],0)) -> 0 | AU32: =AT32*Table3[[#This Row],[Befolkning 55 år]] -> 0 | AV32: =INDEX(Utrulling[Utrullingsbefolkning dette år],MATCH(Table3[[#This Row],[År]],Utrulling[År],0)) -> 0 | AW32: =(1-AT32)*Table3[[#This Row],[Befolkning 55 år]] -> 74460
B33: 2027 | C33: =IF( ISBLANK(fast_befolkning), IF( ISBLANK(valgt_kommune), IF( ISBLANK(valgt_sykehus), IF(OR(valgt_helseforetak="Alle",ISBLANK(valgt_helseforetak)), INDEX(hf[#Totals],1,MATCH("Hele"&TEXT(Table3[[#This Row],[År]],"#"),hf[#Headers],0)), INDEX(hf[],MATCH(valgt_helseforetak,alle_helseforetak,0),MATCH("Hele"&TEXT(Table3[[#This Row],[År]],"#"),hf[#Headers],0))), INDEX(lokalsykehus_befolkning[],MATCH(valgt_sykehus,alle_lokalsykehusområder,0),MATCH("Hele"&TEXT(Table3[[#This Row],[År]],"#"),lokalsykehus_befolkning[#Headers],0)) ), INDEX(hf_kommune[],MATCH(valgt_kommune,alle_kommuner,0),MATCH(TEXT(Table3[[#This Row],[År]],"#")&"-tot",hf_kommune[#Headers],0)) ), fast_befolkning) -> 5549889 | D33: =IF( ISBLANK(fast_befolkning), IF( ISBLANK(valgt_kommune), IF( ISBLANK(valgt_sykehus), IF(OR(valgt_helseforetak="Alle",ISBLANK(valgt_helseforetak)), INDEX(hf[#Totals],1,MATCH(TEXT(Table3[[#This Row],[År]],"#"),hf[#Headers],0)), INDEX(hf[],MATCH(valgt_helseforetak,alle_helseforetak,0),MATCH(TEXT(Table3[[#This Row],[År]],"#"),hf[#Headers],0))), INDEX(lokalsykehus_befolkning[],MATCH(valgt_sykehus,alle_lokalsykehusområder,0),MATCH(TEXT(Table3[[#This Row],[År]],"#"),lokalsykehus_befolkning[#Headers],0)) ), INDEX(hf_kommune[],MATCH(valgt_kommune,alle_kommuner,0),MATCH(TEXT(Table3[[#This Row],[År]],"#"),hf_kommune[#Headers],0)) ), fast_befolkning*INDEX(befolkningsfordeling[],1,MATCH(TEXT(Table3[[#This Row],[År]],"#"),befolkningsfordeling[#Headers],0))) -> 75330 | G33: 0 | H33: =1-Table3[[#This Row],[Andel til primær kolo]] -> 1 | I33: =Table3[[#This Row],[Normal befolkning]]*inviterbare*Table3[[#This Row],[Andel til primær kolo]] -> 0 | J33: =Table3[[#This Row],[Utrullingsbefolkning inklusjon]]*inviterbare -> 0 | K33: =inviterbare*Table3[[#This Row],[Andel til iFOBT]]*Table3[[#This Row],[Normal befolkning]] -> 74576.7 | L33: 70415.90033 | M33: 92204.13938 | N33: 0 | O33: 0 | P33: =ROUNDUP(SUM(Table3[[#This Row],[iFOBT utrulling runde 1]:[iFOBT runde 5 ]])/1000,0)*1000 -> 238000 | Q33: =Table3[[#This Row],[Primær koloskopi ]]*beregnet_deltakelse_kolo -> 0 | R33: =Table3[[#This Row],[iFOBT utrulling runde 1]]*beregnet_deltakelse_ifobt*beregnet_positivitet_ifobt*andel_positive_til_kolo_ifobt -> 0 | S33: =Table3[[#This Row],[iFOBT runde 1]]*beregnet_deltakelse_ifobt*beregnet_positivitet_ifobt*andel_positive_til_kolo_ifobt -> 2506.597464 | T33: =Table3[[#This Row],[iFOBT runde 2]]*beregnet_deltakelse_ifobt*beregnet_positivitet_ifobt*andel_positive_til_kolo_ifobt -> 2366.748826 | U33: =Table3[[#This Row],[iFOBT runde 3 ]]*beregnet_deltakelse_ifobt*beregnet_positivitet_ifobt*andel_positive_til_kolo_ifobt -> 3099.073329 | V33: =Table3[[#This Row],[iFOBT runde 4 ]]*beregnet_deltakelse_ifobt*beregnet_positivitet_ifobt*andel_positive_til_kolo_ifobt -> 0 | W33: =Table3[[#This Row],[iFOBT runde 5 ]]*beregnet_deltakelse_ifobt*beregnet_positivitet_ifobt*andel_positive_til_kolo_ifobt -> 0 | X33: =kolo_per_inv_kolo*Table3[[#This Row],[Primær koloskopi ]] -> 0 | Y33: =kolo_per_inv_ifobt*Table3[[#This Row],[iFOBT utrulling runde 1]] -> 0 | Z33: =kolo_per_inv_ifobt*Table3[[#This Row],[iFOBT runde 1]] -> 2733.510497 | AA33: =kolo_per_inv_ifobt*Table3[[#This Row],[iFOBT runde 2]] -> 2581.001878 | AB33: =kolo_per_inv_ifobt*Table3[[#This Row],[iFOBT runde 3 ]] -> 3379.621019 | AC33: =kolo_per_inv_ifobt*Table3[[#This Row],[iFOBT runde 4 ]] -> 0 | AD33: =kolo_per_inv_ifobt*Table3[[#This Row],[iFOBT runde 5 ]] -> 0 | AE33: =SUM(Table3[[#This Row],[iFOBT R2 ]:[iFOBT R5 ]]) -> 5960.622897 | AF33: =SUM(Table3[[#This Row],[Primær koloskopi ]:[iFOBT R5 ]]) -> 8694.133394 | AG33: 1392.247059 | AH33: =AG30*surveillance_6_av_3+AG28*surveillance_8_av_3 -> 0 | AI33: =Table3[[#This Row],[Første gang]]+Table3[[#This Row],[Gjentak-ende]] -> 1392.247059 | AJ33: =Table3[[#This Row],[Sum screening-koloskopier]]+Table3[[#This Row],[Totalt surveillance-koloskopier]] -> 10086.38045 | AK33: =IF(SUM(Table3[Befolkning 55 år])>30000,ROUNDUP((Table3[[#This Row],[Sum screening-koloskopier]]+Table3[[#This Row],[Totalt surveillance-koloskopier]])/50,0)*50,ROUNDUP((Table3[[#This Row],[Sum screening-koloskopier]]+Table3[[#This Row],[Totalt surveillance-koloskopier]])/10,0)*10) -> 10100 | AL33: =(Table3[[#This Row],[Sum screening-koloskopier]]+Table3[[#This Row],[Totalt surveillance-koloskopier]])/undersokelser_per_rom -> 9.169436776 | AM33: =IF(ISBLANK(Table3[[#This Row],[Skopirom]]),"",IF(Table3[[#This Row],[Skopirom]]<0.2,1,ROUND(Table3[[#This Row],[Skopirom]]+0.3,0))) -> 9 | AN33: =IF(Table3[[#This Row],[Hele rom, rundet opp hvis > 0,2]]-Table3[[#This Row],[Skopirom]]>0,Table3[[#This Row],[Hele rom, rundet opp hvis > 0,2]]-Table3[[#This Row],[Skopirom]],0) -> 0 | AO33: =ROUNDUP(ifobt_per_invitasjon*SUM(Table3[[#This Row],[iFOBT utrulling runde 1]:[iFOBT runde 5 ]])/1000,0)*1000 -> 253000 | AP33: =ROUNDUP(SUM(Table3[[#This Row],[iFOBT runde 1]:[iFOBT runde 5 ]])*deltakelse_ifobt/1000,0)*1000 -> 138000 | AQ33: =ROUNDUP((Table3[[#This Row],[Primær koloskopi ]]+Table3[[#This Row],[iFOBT runde 1]])/1000,0)*1000*ikke_digital_post -> 45000 | AR33: =ROUNDUP(SUM(Table3[[#This Row],[iFOBT runde 1]:[iFOBT runde 5 ]])*påminnelse/1000,0)*1000*ikke_digital_post -> 71400 | AS33: =ROUNDUP((beregnet_deltakelse_ifobt-beregnet_positivitet_ifobt)*SUM(Table3[[#This Row],[iFOBT runde 1]:[iFOBT runde 5 ]])/1000,0)*1000*ikke_digital_post -> 74400 | AT33: =INDEX(Utrulling[Andel 55-åringer i utrulling],MATCH(Table3[[#This Row],[År]],Utrulling[År],0)) -> 0 | AU33: =AT33*Table3[[#This Row],[Befolkning 55 år]] -> 0 | AV33: =INDEX(Utrulling[Utrullingsbefolkning dette år],MATCH(Table3[[#This Row],[År]],Utrulling[År],0)) -> 0 | AW33: =(1-AT33)*Table3[[#This Row],[Befolkning 55 år]] -> 75330
B34: 2028 | C34: =IF( ISBLANK(fast_befolkning), IF( ISBLANK(valgt_kommune), IF( ISBLANK(valgt_sykehus), IF(OR(valgt_helseforetak="Alle",ISBLANK(valgt_helseforetak)), INDEX(hf[#Totals],1,MATCH("Hele"&TEXT(Table3[[#This Row],[År]],"#"),hf[#Headers],0)), INDEX(hf[],MATCH(valgt_helseforetak,alle_helseforetak,0),MATCH("Hele"&TEXT(Table3[[#This Row],[År]],"#"),hf[#Headers],0))), INDEX(lokalsykehus_befolkning[],MATCH(valgt_sykehus,alle_lokalsykehusområder,0),MATCH("Hele"&TEXT(Table3[[#This Row],[År]],"#"),lokalsykehus_befolkning[#Headers],0)) ), INDEX(hf_kommune[],MATCH(valgt_kommune,alle_kommuner,0),MATCH(TEXT(Table3[[#This Row],[År]],"#")&"-tot",hf_kommune[#Headers],0)) ), fast_befolkning) -> 5575492 | D34: =IF( ISBLANK(fast_befolkning), IF( ISBLANK(valgt_kommune), IF( ISBLANK(valgt_sykehus), IF(OR(valgt_helseforetak="Alle",ISBLANK(valgt_helseforetak)), INDEX(hf[#Totals],1,MATCH(TEXT(Table3[[#This Row],[År]],"#"),hf[#Headers],0)), INDEX(hf[],MATCH(valgt_helseforetak,alle_helseforetak,0),MATCH(TEXT(Table3[[#This Row],[År]],"#"),hf[#Headers],0))), INDEX(lokalsykehus_befolkning[],MATCH(valgt_sykehus,alle_lokalsykehusområder,0),MATCH(TEXT(Table3[[#This Row],[År]],"#"),lokalsykehus_befolkning[#Headers],0)) ), INDEX(hf_kommune[],MATCH(valgt_kommune,alle_kommuner,0),MATCH(TEXT(Table3[[#This Row],[År]],"#"),hf_kommune[#Headers],0)) ), fast_befolkning*INDEX(befolkningsfordeling[],1,MATCH(TEXT(Table3[[#This Row],[År]],"#"),befolkningsfordeling[#Headers],0))) -> 75335 | G34: 0 | H34: =1-Table3[[#This Row],[Andel til primær kolo]] -> 1 | I34: =Table3[[#This Row],[Normal befolkning]]*inviterbare*Table3[[#This Row],[Andel til primær kolo]] -> 0 | J34: =Table3[[#This Row],[Utrullingsbefolkning inklusjon]]*inviterbare -> 0 | K34: =inviterbare*Table3[[#This Row],[Andel til iFOBT]]*Table3[[#This Row],[Normal befolkning]] -> 74581.65 | L34: 69026.28969 | M34: 92456.75346 | N34: =M32*(1-andel_reservasjon_ifobt_3gang)-U32 -> 10094.03881 | O34: 0 | P34: =ROUNDUP(SUM(Table3[[#This Row],[iFOBT utrulling runde 1]:[iFOBT runde 5 ]])/1000,0)*1000 -> 247000 | Q34: =Table3[[#This Row],[Primær koloskopi ]]*beregnet_deltakelse_kolo -> 0 | R34: =Table3[[#This Row],[iFOBT utrulling runde 1]]*beregnet_deltakelse_ifobt*beregnet_positivitet_ifobt*andel_positive_til_kolo_ifobt -> 0 | S34: =Table3[[#This Row],[iFOBT runde 1]]*beregnet_deltakelse_ifobt*beregnet_positivitet_ifobt*andel_positive_til_kolo_ifobt -> 2506.763838 | T34: =Table3[[#This Row],[iFOBT runde 2]]*beregnet_deltakelse_ifobt*beregnet_positivitet_ifobt*andel_positive_til_kolo_ifobt -> 2320.042623 | U34: =Table3[[#This Row],[iFOBT runde 3 ]]*beregnet_deltakelse_ifobt*beregnet_positivitet_ifobt*andel_positive_til_kolo_ifobt -> 3107.563941 | V34: =Table3[[#This Row],[iFOBT runde 4 ]]*beregnet_deltakelse_ifobt*beregnet_positivitet_ifobt*andel_positive_til_kolo_ifobt -> 339.2707385 | W34: =Table3[[#This Row],[iFOBT runde 5 ]]*beregnet_deltakelse_ifobt*beregnet_positivitet_ifobt*andel_positive_til_kolo_ifobt -> 0 | X34: =kolo_per_inv_kolo*Table3[[#This Row],[Primær koloskopi ]] -> 0 | Y34: =kolo_per_inv_ifobt*Table3[[#This Row],[iFOBT utrulling runde 1]] -> 0 | Z34: =kolo_per_inv_ifobt*Table3[[#This Row],[iFOBT runde 1]] -> 2733.691933 | AA34: =kolo_per_inv_ifobt*Table3[[#This Row],[iFOBT runde 2]] -> 2530.067534 | AB34: =kolo_per_inv_ifobt*Table3[[#This Row],[iFOBT runde 3 ]] -> 3388.880255 | AC34: =kolo_per_inv_ifobt*Table3[[#This Row],[iFOBT runde 4 ]] -> 369.9836685 | AD34: =kolo_per_inv_ifobt*Table3[[#This Row],[iFOBT runde 5 ]] -> 0 | AE34: =SUM(Table3[[#This Row],[iFOBT R2 ]:[iFOBT R5 ]]) -> 6288.931458 | AF34: =SUM(Table3[[#This Row],[Primær koloskopi ]:[iFOBT R5 ]]) -> 9022.623391 | AG34: 2084.894946 | AH34: =AG31*surveillance_6_av_3+AG29*surveillance_8_av_3+AG28*surveillance_9_av_3 -> 21.63963298 | AI34: =Table3[[#This Row],[Første gang]]+Table3[[#This Row],[Gjentak-ende]] -> 2106.534579 | AJ34: =Table3[[#This Row],[Sum screening-koloskopier]]+Table3[[#This Row],[Totalt surveillance-koloskopier]] -> 11129.15797 | AK34: =IF(SUM(Table3[Befolkning 55 år])>30000,ROUNDUP((Table3[[#This Row],[Sum screening-koloskopier]]+Table3[[#This Row],[Totalt surveillance-koloskopier]])/50,0)*50,ROUNDUP((Table3[[#This Row],[Sum screening-koloskopier]]+Table3[[#This Row],[Totalt surveillance-koloskopier]])/10,0)*10) -> 11150 | AL34: =(Table3[[#This Row],[Sum screening-koloskopier]]+Table3[[#This Row],[Totalt surveillance-koloskopier]])/undersokelser_per_rom -> 10.11741634 | AM34: =IF(ISBLANK(Table3[[#This Row],[Skopirom]]),"",IF(Table3[[#This Row],[Skopirom]]<0.2,1,ROUND(Table3[[#This Row],[Skopirom]]+0.3,0))) -> 10 | AN34: =IF(Table3[[#This Row],[Hele rom, rundet opp hvis > 0,2]]-Table3[[#This Row],[Skopirom]]>0,Table3[[#This Row],[Hele rom, rundet opp hvis > 0,2]]-Table3[[#This Row],[Skopirom]],0) -> 0 | AO34: =ROUNDUP(ifobt_per_invitasjon*SUM(Table3[[#This Row],[iFOBT utrulling runde 1]:[iFOBT runde 5 ]])/1000,0)*1000 -> 263000 | AP34: =ROUNDUP(SUM(Table3[[#This Row],[iFOBT runde 1]:[iFOBT runde 5 ]])*deltakelse_ifobt/1000,0)*1000 -> 143000 | AQ34: =ROUNDUP((Table3[[#This Row],[Primær koloskopi ]]+Table3[[#This Row],[iFOBT runde 1]])/1000,0)*1000*ikke_digital_post -> 45000 | AR34: =ROUNDUP(SUM(Table3[[#This Row],[iFOBT runde 1]:[iFOBT runde 5 ]])*påminnelse/1000,0)*1000*ikke_digital_post -> 74400 | AS34: =ROUNDUP((beregnet_deltakelse_ifobt-beregnet_positivitet_ifobt)*SUM(Table3[[#This Row],[iFOBT runde 1]:[iFOBT runde 5 ]])/1000,0)*1000*ikke_digital_post -> 76800 | AT34: =INDEX(Utrulling[Andel 55-åringer i utrulling],MATCH(Table3[[#This Row],[År]],Utrulling[År],0)) -> 0 | AU34: =AT34*Table3[[#This Row],[Befolkning 55 år]] -> 0 | AV34: =INDEX(Utrulling[Utrullingsbefolkning dette år],MATCH(Table3[[#This Row],[År]],Utrulling[År],0)) -> 0 | AW34: =(1-AT34)*Table3[[#This Row],[Befolkning 55 år]] -> 75335
B35: 2029 | C35: =IF( ISBLANK(fast_befolkning), IF( ISBLANK(valgt_kommune), IF( ISBLANK(valgt_sykehus), IF(OR(valgt_helseforetak="Alle",ISBLANK(valgt_helseforetak)), INDEX(hf[#Totals],1,MATCH("Hele"&TEXT(Table3[[#This Row],[År]],"#"),hf[#Headers],0)), INDEX(hf[],MATCH(valgt_helseforetak,alle_helseforetak,0),MATCH("Hele"&TEXT(Table3[[#This Row],[År]],"#"),hf[#Headers],0))), INDEX(lokalsykehus_befolkning[],MATCH(valgt_sykehus,alle_lokalsykehusområder,0),MATCH("Hele"&TEXT(Table3[[#This Row],[År]],"#"),lokalsykehus_befolkning[#Headers],0)) ), INDEX(hf_kommune[],MATCH(valgt_kommune,alle_kommuner,0),MATCH(TEXT(Table3[[#This Row],[År]],"#")&"-tot",hf_kommune[#Headers],0)) ), fast_befolkning) -> 5600752 | D35: =IF( ISBLANK(fast_befolkning), IF( ISBLANK(valgt_kommune), IF( ISBLANK(valgt_sykehus), IF(OR(valgt_helseforetak="Alle",ISBLANK(valgt_helseforetak)), INDEX(hf[#Totals],1,MATCH(TEXT(Table3[[#This Row],[År]],"#"),hf[#Headers],0)), INDEX(hf[],MATCH(valgt_helseforetak,alle_helseforetak,0),MATCH(TEXT(Table3[[#This Row],[År]],"#"),hf[#Headers],0))), INDEX(lokalsykehus_befolkning[],MATCH(valgt_sykehus,alle_lokalsykehusområder,0),MATCH(TEXT(Table3[[#This Row],[År]],"#"),lokalsykehus_befolkning[#Headers],0)) ), INDEX(hf_kommune[],MATCH(valgt_kommune,alle_kommuner,0),MATCH(TEXT(Table3[[#This Row],[År]],"#"),hf_kommune[#Headers],0)) ), fast_befolkning*INDEX(befolkningsfordeling[],1,MATCH(TEXT(Table3[[#This Row],[År]],"#"),befolkningsfordeling[#Headers],0))) -> 73014 | G35: 0 | H35: =1-Table3[[#This Row],[Andel til primær kolo]] -> 1 | I35: =Table3[[#This Row],[Normal befolkning]]*inviterbare*Table3[[#This Row],[Andel til primær kolo]] -> 0 | J35: =Table3[[#This Row],[Utrullingsbefolkning inklusjon]]*inviterbare -> 0 | K35: =inviterbare*Table3[[#This Row],[Andel til iFOBT]]*Table3[[#This Row],[Normal befolkning]] -> 72283.86 | L35: 69832.80154 | M35: 66992.913 | N35: 87722.00396 | O35: 0 | P35: =ROUNDUP(SUM(Table3[[#This Row],[iFOBT utrulling runde 1]:[iFOBT runde 5 ]])/1000,0)*1000 -> 297000 | Q35: =Table3[[#This Row],[Primær koloskopi ]]*beregnet_deltakelse_kolo -> 0 | R35: =Table3[[#This Row],[iFOBT utrulling runde 1]]*beregnet_deltakelse_ifobt*beregnet_positivitet_ifobt*andel_positive_til_kolo_ifobt -> 0 | S35: =Table3[[#This Row],[iFOBT runde 1]]*beregnet_deltakelse_ifobt*beregnet_positivitet_ifobt*andel_positive_til_kolo_ifobt -> 2429.532818 | T35: =Table3[[#This Row],[iFOBT runde 2]]*beregnet_deltakelse_ifobt*beregnet_positivitet_ifobt*andel_positive_til_kolo_ifobt -> 2347.150292 | U35: =Table3[[#This Row],[iFOBT runde 3 ]]*beregnet_deltakelse_ifobt*beregnet_positivitet_ifobt*andel_positive_til_kolo_ifobt -> 2251.698799 | V35: =Table3[[#This Row],[iFOBT runde 4 ]]*beregnet_deltakelse_ifobt*beregnet_positivitet_ifobt*andel_positive_til_kolo_ifobt -> 2948.424275 | W35: =Table3[[#This Row],[iFOBT runde 5 ]]*beregnet_deltakelse_ifobt*beregnet_positivitet_ifobt*andel_positive_til_kolo_ifobt -> 0 | X35: =kolo_per_inv_kolo*Table3[[#This Row],[Primær koloskopi ]] -> 0 | Y35: =kolo_per_inv_ifobt*Table3[[#This Row],[iFOBT utrulling runde 1]] -> 0 | Z35: =kolo_per_inv_ifobt*Table3[[#This Row],[iFOBT runde 1]] -> 2649.469474 | AA35: =kolo_per_inv_ifobt*Table3[[#This Row],[iFOBT runde 2]] -> 2559.629161 | AB35: =kolo_per_inv_ifobt*Table3[[#This Row],[iFOBT runde 3 ]] -> 2455.536795 | AC35: =kolo_per_inv_ifobt*Table3[[#This Row],[iFOBT runde 4 ]] -> 3215.334262 | AD35: =kolo_per_inv_ifobt*Table3[[#This Row],[iFOBT runde 5 ]] -> 0 | AE35: =SUM(Table3[[#This Row],[iFOBT R2 ]:[iFOBT R5 ]]) -> 8230.500218 | AF35: =SUM(Table3[[#This Row],[Primær koloskopi ]:[iFOBT R5 ]]) -> 10879.96969 | AG35: 2198.655593 | AH35: 188.0587152 | AI35: =Table3[[#This Row],[Første gang]]+Table3[[#This Row],[Gjentak-ende]] -> 2386.714309 | AJ35: =Table3[[#This Row],[Sum screening-koloskopier]]+Table3[[#This Row],[Totalt surveillance-koloskopier]] -> 13266.684 | AK35: =IF(SUM(Table3[Befolkning 55 år])>30000,ROUNDUP((Table3[[#This Row],[Sum screening-koloskopier]]+Table3[[#This Row],[Totalt surveillance-koloskopier]])/50,0)*50,ROUNDUP((Table3[[#This Row],[Sum screening-koloskopier]]+Table3[[#This Row],[Totalt surveillance-koloskopier]])/10,0)*10) -> 13300 | AL35: =(Table3[[#This Row],[Sum screening-koloskopier]]+Table3[[#This Row],[Totalt surveillance-koloskopier]])/undersokelser_per_rom -> 12.06062182 | AM35: =IF(ISBLANK(Table3[[#This Row],[Skopirom]]),"",IF(Table3[[#This Row],[Skopirom]]<0.2,1,ROUND(Table3[[#This Row],[Skopirom]]+0.3,0))) -> 12 | AN35: =IF(Table3[[#This Row],[Hele rom, rundet opp hvis > 0,2]]-Table3[[#This Row],[Skopirom]]>0,Table3[[#This Row],[Hele rom, rundet opp hvis > 0,2]]-Table3[[#This Row],[Skopirom]],0) -> 0 | AO35: =ROUNDUP(ifobt_per_invitasjon*SUM(Table3[[#This Row],[iFOBT utrulling runde 1]:[iFOBT runde 5 ]])/1000,0)*1000 -> 317000 | AP35: =ROUNDUP(SUM(Table3[[#This Row],[iFOBT runde 1]:[iFOBT runde 5 ]])*deltakelse_ifobt/1000,0)*1000 -> 173000 | AQ35: =ROUNDUP((Table3[[#This Row],[Primær koloskopi ]]+Table3[[#This Row],[iFOBT runde 1]])/1000,0)*1000*ikke_digital_post -> 43800 | AR35: =ROUNDUP(SUM(Table3[[#This Row],[iFOBT runde 1]:[iFOBT runde 5 ]])*påminnelse/1000,0)*1000*ikke_digital_post -> 89400 | AS35: =ROUNDUP((beregnet_deltakelse_ifobt-beregnet_positivitet_ifobt)*SUM(Table3[[#This Row],[iFOBT runde 1]:[iFOBT runde 5 ]])/1000,0)*1000*ikke_digital_post -> 93000 | AT35: =INDEX(Utrulling[Andel 55-åringer i utrulling],MATCH(Table3[[#This Row],[År]],Utrulling[År],0)) -> 0 | AU35: =AT35*Table3[[#This Row],[Befolkning 55 år]] -> 0 | AV35: =INDEX(Utrulling[Utrullingsbefolkning dette år],MATCH(Table3[[#This Row],[År]],Utrulling[År],0)) -> 0 | AW35: =(1-AT35)*Table3[[#This Row],[Befolkning 55 år]] -> 73014
B36: 2030 | C36: =IF( ISBLANK(fast_befolkning), IF( ISBLANK(valgt_kommune), IF( ISBLANK(valgt_sykehus), IF(OR(valgt_helseforetak="Alle",ISBLANK(valgt_helseforetak)), INDEX(hf[#Totals],1,MATCH("Hele"&TEXT(Table3[[#This Row],[År]],"#"),hf[#Headers],0)), INDEX(hf[],MATCH(valgt_helseforetak,alle_helseforetak,0),MATCH("Hele"&TEXT(Table3[[#This Row],[År]],"#"),hf[#Headers],0))), INDEX(lokalsykehus_befolkning[],MATCH(valgt_sykehus,alle_lokalsykehusområder,0),MATCH("Hele"&TEXT(Table3[[#This Row],[År]],"#"),lokalsykehus_befolkning[#Headers],0)) ), INDEX(hf_kommune[],MATCH(valgt_kommune,alle_kommuner,0),MATCH(TEXT(Table3[[#This Row],[År]],"#")&"-tot",hf_kommune[#Headers],0)) ), fast_befolkning) -> 5625562 | D36: =IF( ISBLANK(fast_befolkning), IF( ISBLANK(valgt_kommune), IF( ISBLANK(valgt_sykehus), IF(OR(valgt_helseforetak="Alle",ISBLANK(valgt_helseforetak)), INDEX(hf[#Totals],1,MATCH(TEXT(Table3[[#This Row],[År]],"#"),hf[#Headers],0)), INDEX(hf[],MATCH(valgt_helseforetak,alle_helseforetak,0),MATCH(TEXT(Table3[[#This Row],[År]],"#"),hf[#Headers],0))), INDEX(lokalsykehus_befolkning[],MATCH(valgt_sykehus,alle_lokalsykehusområder,0),MATCH(TEXT(Table3[[#This Row],[År]],"#"),lokalsykehus_befolkning[#Headers],0)) ), INDEX(hf_kommune[],MATCH(valgt_kommune,alle_kommuner,0),MATCH(TEXT(Table3[[#This Row],[År]],"#"),hf_kommune[#Headers],0)) ), fast_befolkning*INDEX(befolkningsfordeling[],1,MATCH(TEXT(Table3[[#This Row],[År]],"#"),befolkningsfordeling[#Headers],0))) -> 72921 | G36: 0 | H36: =1-Table3[[#This Row],[Andel til primær kolo]] -> 1 | I36: =Table3[[#This Row],[Normal befolkning]]*inviterbare*Table3[[#This Row],[Andel til primær kolo]] -> 0 | J36: =Table3[[#This Row],[Utrullingsbefolkning inklusjon]]*inviterbare -> 0 | K36: =inviterbare*Table3[[#This Row],[Andel til iFOBT]]*Table3[[#This Row],[Normal befolkning]] -> 72191.79 | L36: 69837.43666 | M36: 65670.85272 | N36: 87962.33822 | O36: =N34*(1-andel_reservasjon_ifobt_3gang)-V34 -> 9603.357491 | P36: =ROUNDUP(SUM(Table3[[#This Row],[iFOBT utrulling runde 1]:[iFOBT runde 5 ]])/1000,0)*1000 -> 306000 | Q36: =Table3[[#This Row],[Primær koloskopi ]]*beregnet_deltakelse_kolo -> 0 | R36: =Table3[[#This Row],[iFOBT utrulling runde 1]]*beregnet_deltakelse_ifobt*beregnet_positivitet_ifobt*andel_positive_til_kolo_ifobt -> 0 | S36: =Table3[[#This Row],[iFOBT runde 1]]*beregnet_deltakelse_ifobt*beregnet_positivitet_ifobt*andel_positive_til_kolo_ifobt -> 2426.438254 | T36: =Table3[[#This Row],[iFOBT runde 2]]*beregnet_deltakelse_ifobt*beregnet_positivitet_ifobt*andel_positive_til_kolo_ifobt -> 2347.306084 | U36: =Table3[[#This Row],[iFOBT runde 3 ]]*beregnet_deltakelse_ifobt*beregnet_positivitet_ifobt*andel_positive_til_kolo_ifobt -> 2207.263031 | V36: =Table3[[#This Row],[iFOBT runde 4 ]]*beregnet_deltakelse_ifobt*beregnet_positivitet_ifobt*andel_positive_til_kolo_ifobt -> 2956.50215 | W36: =Table3[[#This Row],[iFOBT runde 5 ]]*beregnet_deltakelse_ifobt*beregnet_positivitet_ifobt*andel_positive_til_kolo_ifobt -> 322.7784486 | X36: =kolo_per_inv_kolo*Table3[[#This Row],[Primær koloskopi ]] -> 0 | Y36: =kolo_per_inv_ifobt*Table3[[#This Row],[iFOBT utrulling runde 1]] -> 0 | Z36: =kolo_per_inv_ifobt*Table3[[#This Row],[iFOBT runde 1]] -> 2646.094769 | AA36: =kolo_per_inv_ifobt*Table3[[#This Row],[iFOBT runde 2]] -> 2559.799055 | AB36: =kolo_per_inv_ifobt*Table3[[#This Row],[iFOBT runde 3 ]] -> 2407.078421 | AC36: =kolo_per_inv_ifobt*Table3[[#This Row],[iFOBT runde 4 ]] -> 3224.143397 | AD36: =kolo_per_inv_ifobt*Table3[[#This Row],[iFOBT runde 5 ]] -> 351.9983924 | AE36: =SUM(Table3[[#This Row],[iFOBT R2 ]:[iFOBT R5 ]]) -> 8543.019266 | AF36: =SUM(Table3[[#This Row],[Primær koloskopi ]:[iFOBT R5 ]]) -> 11189.11404 | AG36: 2873.26003 | AH36: 331.4616457 | AI36: =Table3[[#This Row],[Første gang]]+Table3[[#This Row],[Gjentak-ende]] -> 3204.721676 | AJ36: =Table3[[#This Row],[Sum screening-koloskopier]]+Table3[[#This Row],[Totalt surveillance-koloskopier]] -> 14393.83571 | AK36: =IF(SUM(Table3[Befolkning 55 år])>30000,ROUNDUP((Table3[[#This Row],[Sum screening-koloskopier]]+Table3[[#This Row],[Totalt surveillance-koloskopier]])/50,0)*50,ROUNDUP((Table3[[#This Row],[Sum screening-koloskopier]]+Table3[[#This Row],[Totalt surveillance-koloskopier]])/10,0)*10) -> 14400 | AL36: =(Table3[[#This Row],[Sum screening-koloskopier]]+Table3[[#This Row],[Totalt surveillance-koloskopier]])/undersokelser_per_rom -> 13.08530519 | AM36: =IF(ISBLANK(Table3[[#This Row],[Skopirom]]),"",IF(Table3[[#This Row],[Skopirom]]<0.2,1,ROUND(Table3[[#This Row],[Skopirom]]+0.3,0))) -> 13 | AN36: =IF(Table3[[#This Row],[Hele rom, rundet opp hvis > 0,2]]-Table3[[#This Row],[Skopirom]]>0,Table3[[#This Row],[Hele rom, rundet opp hvis > 0,2]]-Table3[[#This Row],[Skopirom]],0) -> 0 | AO36: =ROUNDUP(ifobt_per_invitasjon*SUM(Table3[[#This Row],[iFOBT utrulling runde 1]:[iFOBT runde 5 ]])/1000,0)*1000 -> 326000 | AP36: =ROUNDUP(SUM(Table3[[#This Row],[iFOBT runde 1]:[iFOBT runde 5 ]])*deltakelse_ifobt/1000,0)*1000 -> 178000 | AQ36: =ROUNDUP((Table3[[#This Row],[Primær koloskopi ]]+Table3[[#This Row],[iFOBT runde 1]])/1000,0)*1000*ikke_digital_post -> 43800 | AR36: =ROUNDUP(SUM(Table3[[#This Row],[iFOBT runde 1]:[iFOBT runde 5 ]])*påminnelse/1000,0)*1000*ikke_digital_post -> 91800 | AS36: =ROUNDUP((beregnet_deltakelse_ifobt-beregnet_positivitet_ifobt)*SUM(Table3[[#This Row],[iFOBT runde 1]:[iFOBT runde 5 ]])/1000,0)*1000*ikke_digital_post -> 95400 | AT36: =INDEX(Utrulling[Andel 55-åringer i utrulling],MATCH(Table3[[#This Row],[År]],Utrulling[År],0)) -> 0 | AU36: =AT36*Table3[[#This Row],[Befolkning 55 år]] -> 0 | AV36: =INDEX(Utrulling[Utrullingsbefolkning dette år],MATCH(Table3[[#This Row],[År]],Utrulling[År],0)) -> 0 | AW36: =(1-AT36)*Table3[[#This Row],[Befolkning 55 år]] -> 72921
B37: 2031 | C37: =IF( ISBLANK(fast_befolkning), IF( ISBLANK(valgt_kommune), IF( ISBLANK(valgt_sykehus), IF(OR(valgt_helseforetak="Alle",ISBLANK(valgt_helseforetak)), INDEX(hf[#Totals],1,MATCH("Hele"&TEXT(Table3[[#This Row],[År]],"#"),hf[#Headers],0)), INDEX(hf[],MATCH(valgt_helseforetak,alle_helseforetak,0),MATCH("Hele"&TEXT(Table3[[#This Row],[År]],"#"),hf[#Headers],0))), INDEX(lokalsykehus_befolkning[],MATCH(valgt_sykehus,alle_lokalsykehusområder,0),MATCH("Hele"&TEXT(Table3[[#This Row],[År]],"#"),lokalsykehus_befolkning[#Headers],0)) ), INDEX(hf_kommune[],MATCH(valgt_kommune,alle_kommuner,0),MATCH(TEXT(Table3[[#This Row],[År]],"#")&"-tot",hf_kommune[#Headers],0)) ), fast_befolkning) -> 5649887 | D37: =IF( ISBLANK(fast_befolkning), IF( ISBLANK(valgt_kommune), IF( ISBLANK(valgt_sykehus), IF(OR(valgt_helseforetak="Alle",ISBLANK(valgt_helseforetak)), INDEX(hf[#Totals],1,MATCH(TEXT(Table3[[#This Row],[År]],"#"),hf[#Headers],0)), INDEX(hf[],MATCH(valgt_helseforetak,alle_helseforetak,0),MATCH(TEXT(Table3[[#This Row],[År]],"#"),hf[#Headers],0))), INDEX(lokalsykehus_befolkning[],MATCH(valgt_sykehus,alle_lokalsykehusområder,0),MATCH(TEXT(Table3[[#This Row],[År]],"#"),lokalsykehus_befolkning[#Headers],0)) ), INDEX(hf_kommune[],MATCH(valgt_kommune,alle_kommuner,0),MATCH(TEXT(Table3[[#This Row],[År]],"#"),hf_kommune[#Headers],0)) ), fast_befolkning*INDEX(befolkningsfordeling[],1,MATCH(TEXT(Table3[[#This Row],[År]],"#"),befolkningsfordeling[#Headers],0))) -> 70182 | G37: 0 | H37: =1-Table3[[#This Row],[Andel til primær kolo]] -> 1 | I37: =Table3[[#This Row],[Normal befolkning]]*inviterbare*Table3[[#This Row],[Andel til primær kolo]] -> 0 | J37: =Table3[[#This Row],[Utrullingsbefolkning inklusjon]]*inviterbare -> 0 | K37: =inviterbare*Table3[[#This Row],[Andel til iFOBT]]*Table3[[#This Row],[Normal befolkning]] -> 69480.18 | L37: 67685.81138 | M37: 66438.15922 | N37: 63736.32051 | O37: 83457.74963 | P37: =ROUNDUP(SUM(Table3[[#This Row],[iFOBT utrulling runde 1]:[iFOBT runde 5 ]])/1000,0)*1000 -> 351000 | Q37: =Table3[[#This Row],[Primær koloskopi ]]*beregnet_deltakelse_kolo -> 0 | R37: =Table3[[#This Row],[iFOBT utrulling runde 1]]*beregnet_deltakelse_ifobt*beregnet_positivitet_ifobt*andel_positive_til_kolo_ifobt -> 0 | S37: =Table3[[#This Row],[iFOBT runde 1]]*beregnet_deltakelse_ifobt*beregnet_positivitet_ifobt*andel_positive_til_kolo_ifobt -> 2335.29833 | T37: =Table3[[#This Row],[iFOBT runde 2]]*beregnet_deltakelse_ifobt*beregnet_positivitet_ifobt*andel_positive_til_kolo_ifobt -> 2274.987806 | U37: =Table3[[#This Row],[iFOBT runde 3 ]]*beregnet_deltakelse_ifobt*beregnet_positivitet_ifobt*andel_positive_til_kolo_ifobt -> 2233.05297 | V37: =Table3[[#This Row],[iFOBT runde 4 ]]*beregnet_deltakelse_ifobt*beregnet_positivitet_ifobt*andel_positive_til_kolo_ifobt -> 2142.241469 | W37: =Table3[[#This Row],[iFOBT runde 5 ]]*beregnet_deltakelse_ifobt*beregnet_positivitet_ifobt*andel_positive_til_kolo_ifobt -> 2805.098423 | X37: =kolo_per_inv_kolo*Table3[[#This Row],[Primær koloskopi ]] -> 0 | Y37: =kolo_per_inv_ifobt*Table3[[#This Row],[iFOBT utrulling runde 1]] -> 0 | Z37: =kolo_per_inv_ifobt*Table3[[#This Row],[iFOBT runde 1]] -> 2546.704284 | AA37: =kolo_per_inv_ifobt*Table3[[#This Row],[iFOBT runde 2]] -> 2480.934071 | AB37: =kolo_per_inv_ifobt*Table3[[#This Row],[iFOBT runde 3 ]] -> 2435.203028 | AC37: =kolo_per_inv_ifobt*Table3[[#This Row],[iFOBT runde 4 ]] -> 2336.170696 | AD37: =kolo_per_inv_ifobt*Table3[[#This Row],[iFOBT runde 5 ]] -> 3059.033648 | AE37: =SUM(Table3[[#This Row],[iFOBT R2 ]:[iFOBT R5 ]]) -> 10311.34144 | AF37: =SUM(Table3[[#This Row],[Primær koloskopi ]:[iFOBT R5 ]]) -> 12858.04573 | AG37: 2981.820267 | AH37: 1381.64624 | AI37: =Table3[[#This Row],[Første gang]]+Table3[[#This Row],[Gjentak-ende]] -> 4363.466506 | AJ37: =Table3[[#This Row],[Sum screening-koloskopier]]+Table3[[#This Row],[Totalt surveillance-koloskopier]] -> 17221.51223 | AK37: =IF(SUM(Table3[Befolkning 55 år])>30000,ROUNDUP((Table3[[#This Row],[Sum screening-koloskopier]]+Table3[[#This Row],[Totalt surveillance-koloskopier]])/50,0)*50,ROUNDUP((Table3[[#This Row],[Sum screening-koloskopier]]+Table3[[#This Row],[Totalt surveillance-koloskopier]])/10,0)*10) -> 17250 | AL37: =(Table3[[#This Row],[Sum screening-koloskopier]]+Table3[[#This Row],[Totalt surveillance-koloskopier]])/undersokelser_per_rom -> 15.65592021 | AM37: =IF(ISBLANK(Table3[[#This Row],[Skopirom]]),"",IF(Table3[[#This Row],[Skopirom]]<0.2,1,ROUND(Table3[[#This Row],[Skopirom]]+0.3,0))) -> 16 | AN37: =IF(Table3[[#This Row],[Hele rom, rundet opp hvis > 0,2]]-Table3[[#This Row],[Skopirom]]>0,Table3[[#This Row],[Hele rom, rundet opp hvis > 0,2]]-Table3[[#This Row],[Skopirom]],0) -> 0.3440797875 | AO37: =ROUNDUP(ifobt_per_invitasjon*SUM(Table3[[#This Row],[iFOBT utrulling runde 1]:[iFOBT runde 5 ]])/1000,0)*1000 -> 374000 | AP37: =ROUNDUP(SUM(Table3[[#This Row],[iFOBT runde 1]:[iFOBT runde 5 ]])*deltakelse_ifobt/1000,0)*1000 -> 204000 | AQ37: =ROUNDUP((Table3[[#This Row],[Primær koloskopi ]]+Table3[[#This Row],[iFOBT runde 1]])/1000,0)*1000*ikke_digital_post -> 42000 | AR37: =ROUNDUP(SUM(Table3[[#This Row],[iFOBT runde 1]:[iFOBT runde 5 ]])*påminnelse/1000,0)*1000*ikke_digital_post -> 105600 | AS37: =ROUNDUP((beregnet_deltakelse_ifobt-beregnet_positivitet_ifobt)*SUM(Table3[[#This Row],[iFOBT runde 1]:[iFOBT runde 5 ]])/1000,0)*1000*ikke_digital_post -> 109800 | AT37: =INDEX(Utrulling[Andel 55-åringer i utrulling],MATCH(Table3[[#This Row],[År]],Utrulling[År],0)) -> 0 | AU37: =AT37*Table3[[#This Row],[Befolkning 55 år]] -> 0 | AV37: =INDEX(Utrulling[Utrullingsbefolkning dette år],MATCH(Table3[[#This Row],[År]],Utrulling[År],0)) -> 0 | AW37: =(1-AT37)*Table3[[#This Row],[Befolkning 55 år]] -> 70182
B38: 2032 | C38: =IF( ISBLANK(fast_befolkning), IF( ISBLANK(valgt_kommune), IF( ISBLANK(valgt_sykehus), IF(OR(valgt_helseforetak="Alle",ISBLANK(valgt_helseforetak)), INDEX(hf[#Totals],1,MATCH("Hele"&TEXT(Table3[[#This Row],[År]],"#"),hf[#Headers],0)), INDEX(hf[],MATCH(valgt_helseforetak,alle_helseforetak,0),MATCH("Hele"&TEXT(Table3[[#This Row],[År]],"#"),hf[#Headers],0))), INDEX(lokalsykehus_befolkning[],MATCH(valgt_sykehus,alle_lokalsykehusområder,0),MATCH("Hele"&TEXT(Table3[[#This Row],[År]],"#"),lokalsykehus_befolkning[#Headers],0)) ), INDEX(hf_kommune[],MATCH(valgt_kommune,alle_kommuner,0),MATCH(TEXT(Table3[[#This Row],[År]],"#")&"-tot",hf_kommune[#Headers],0)) ), fast_befolkning) -> 5673571 | D38: =IF( ISBLANK(fast_befolkning), IF( ISBLANK(valgt_kommune), IF( ISBLANK(valgt_sykehus), IF(OR(valgt_helseforetak="Alle",ISBLANK(valgt_helseforetak)), INDEX(hf[#Totals],1,MATCH(TEXT(Table3[[#This Row],[År]],"#"),hf[#Headers],0)), INDEX(hf[],MATCH(valgt_helseforetak,alle_helseforetak,0),MATCH(TEXT(Table3[[#This Row],[År]],"#"),hf[#Headers],0))), INDEX(lokalsykehus_befolkning[],MATCH(valgt_sykehus,alle_lokalsykehusområder,0),MATCH(TEXT(Table3[[#This Row],[År]],"#"),lokalsykehus_befolkning[#Headers],0)) ), INDEX(hf_kommune[],MATCH(valgt_kommune,alle_kommuner,0),MATCH(TEXT(Table3[[#This Row],[År]],"#"),hf_kommune[#Headers],0)) ), fast_befolkning*INDEX(befolkningsfordeling[],1,MATCH(TEXT(Table3[[#This Row],[År]],"#"),befolkningsfordeling[#Headers],0))) -> 68563 | G38: 0 | H38: =1-Table3[[#This Row],[Andel til primær kolo]] -> 1 | I38: =Table3[[#This Row],[Normal befolkning]]*inviterbare*Table3[[#This Row],[Andel til primær kolo]] -> 0 | J38: =Table3[[#This Row],[Utrullingsbefolkning inklusjon]]*inviterbare -> 0 | K38: =inviterbare*Table3[[#This Row],[Andel til iFOBT]]*Table3[[#This Row],[Normal befolkning]] -> 67877.37 | L38: 67599.59805 | M38: 66442.56903 | N38: 62478.5269 | O38: 83686.40099 | P38: =ROUNDUP(SUM(Table3[[#This Row],[iFOBT utrulling runde 1]:[iFOBT runde 5 ]])/1000,0)*1000 -> 349000 | Q38: =Table3[[#This Row],[Primær koloskopi ]]*beregnet_deltakelse_kolo -> 0 | R38: =Table3[[#This Row],[iFOBT utrulling runde 1]]*beregnet_deltakelse_ifobt*beregnet_positivitet_ifobt*andel_positive_til_kolo_ifobt -> 0 | S38: =Table3[[#This Row],[iFOBT runde 1]]*beregnet_deltakelse_ifobt*beregnet_positivitet_ifobt*andel_positive_til_kolo_ifobt -> 2281.426283 | T38: =Table3[[#This Row],[iFOBT runde 2]]*beregnet_deltakelse_ifobt*beregnet_positivitet_ifobt*andel_positive_til_kolo_ifobt -> 2272.09009 | U38: =Table3[[#This Row],[iFOBT runde 3 ]]*beregnet_deltakelse_ifobt*beregnet_positivitet_ifobt*andel_positive_til_kolo_ifobt -> 2233.201188 | V38: =Table3[[#This Row],[iFOBT runde 4 ]]*beregnet_deltakelse_ifobt*beregnet_positivitet_ifobt*andel_positive_til_kolo_ifobt -> 2099.965768 | W38: =Table3[[#This Row],[iFOBT runde 5 ]]*beregnet_deltakelse_ifobt*beregnet_positivitet_ifobt*andel_positive_til_kolo_ifobt -> 2812.783624 | X38: =kolo_per_inv_kolo*Table3[[#This Row],[Primær koloskopi ]] -> 0 | Y38: =kolo_per_inv_ifobt*Table3[[#This Row],[iFOBT utrulling runde 1]] -> 0 | Z38: =kolo_per_inv_ifobt*Table3[[#This Row],[iFOBT runde 1]] -> 2487.955399 | AA38: =kolo_per_inv_ifobt*Table3[[#This Row],[iFOBT runde 2]] -> 2477.774035 | AB38: =kolo_per_inv_ifobt*Table3[[#This Row],[iFOBT runde 3 ]] -> 2435.364664 | AC38: =kolo_per_inv_ifobt*Table3[[#This Row],[iFOBT runde 4 ]] -> 2290.067932 | AD38: =kolo_per_inv_ifobt*Table3[[#This Row],[iFOBT runde 5 ]] -> 3067.414562 | AE38: =SUM(Table3[[#This Row],[iFOBT R2 ]:[iFOBT R5 ]]) -> 10270.62119 | AF38: =SUM(Table3[[#This Row],[Primær koloskopi ]:[iFOBT R5 ]]) -> 12758.57659 | AG38: 3595.640949 | AH38: 1541.417146 | AI38: =Table3[[#This Row],[Første gang]]+Table3[[#This Row],[Gjentak-ende]] -> 5137.058095 | AJ38: =Table3[[#This Row],[Sum screening-koloskopier]]+Table3[[#This Row],[Totalt surveillance-koloskopier]] -> 17895.63469 | AK38: =IF(SUM(Table3[Befolkning 55 år])>30000,ROUNDUP((Table3[[#This Row],[Sum screening-koloskopier]]+Table3[[#This Row],[Totalt surveillance-koloskopier]])/50,0)*50,ROUNDUP((Table3[[#This Row],[Sum screening-koloskopier]]+Table3[[#This Row],[Totalt surveillance-koloskopier]])/10,0)*10) -> 17900 | AL38: =(Table3[[#This Row],[Sum screening-koloskopier]]+Table3[[#This Row],[Totalt surveillance-koloskopier]])/undersokelser_per_rom -> 16.26875881 | AM38: =IF(ISBLANK(Table3[[#This Row],[Skopirom]]),"",IF(Table3[[#This Row],[Skopirom]]<0.2,1,ROUND(Table3[[#This Row],[Skopirom]]+0.3,0))) -> 17 | AN38: =IF(Table3[[#This Row],[Hele rom, rundet opp hvis > 0,2]]-Table3[[#This Row],[Skopirom]]>0,Table3[[#This Row],[Hele rom, rundet opp hvis > 0,2]]-Table3[[#This Row],[Skopirom]],0) -> 0.7312411933 | AO38: =ROUNDUP(ifobt_per_invitasjon*SUM(Table3[[#This Row],[iFOBT utrulling runde 1]:[iFOBT runde 5 ]])/1000,0)*1000 -> 371000 | AP38: =ROUNDUP(SUM(Table3[[#This Row],[iFOBT runde 1]:[iFOBT runde 5 ]])*deltakelse_ifobt/1000,0)*1000 -> 202000 | AQ38: =ROUNDUP((Table3[[#This Row],[Primær koloskopi ]]+Table3[[#This Row],[iFOBT runde 1]])/1000,0)*1000*ikke_digital_post -> 40800 | AR38: =ROUNDUP(SUM(Table3[[#This Row],[iFOBT runde 1]:[iFOBT runde 5 ]])*påminnelse/1000,0)*1000*ikke_digital_post -> 105000 | AS38: =ROUNDUP((beregnet_deltakelse_ifobt-beregnet_positivitet_ifobt)*SUM(Table3[[#This Row],[iFOBT runde 1]:[iFOBT runde 5 ]])/1000,0)*1000*ikke_digital_post -> 108600 | AT38: =INDEX(Utrulling[Andel 55-åringer i utrulling],MATCH(Table3[[#This Row],[År]],Utrulling[År],0)) -> 0 | AU38: =AT38*Table3[[#This Row],[Befolkning 55 år]] -> 0 | AV38: =INDEX(Utrulling[Utrullingsbefolkning dette år],MATCH(Table3[[#This Row],[År]],Utrulling[År],0)) -> 0 | AW38: =(1-AT38)*Table3[[#This Row],[Befolkning 55 år]] -> 68563
B39: 2033 | C39: =IF( ISBLANK(fast_befolkning), IF( ISBLANK(valgt_kommune), IF( ISBLANK(valgt_sykehus), IF(OR(valgt_helseforetak="Alle",ISBLANK(valgt_helseforetak)), INDEX(hf[#Totals],1,MATCH("Hele"&TEXT(Table3[[#This Row],[År]],"#"),hf[#Headers],0)), INDEX(hf[],MATCH(valgt_helseforetak,alle_helseforetak,0),MATCH("Hele"&TEXT(Table3[[#This Row],[År]],"#"),hf[#Headers],0))), INDEX(lokalsykehus_befolkning[],MATCH(valgt_sykehus,alle_lokalsykehusområder,0),MATCH("Hele"&TEXT(Table3[[#This Row],[År]],"#"),lokalsykehus_befolkning[#Headers],0)) ), INDEX(hf_kommune[],MATCH(valgt_kommune,alle_kommuner,0),MATCH(TEXT(Table3[[#This Row],[År]],"#")&"-tot",hf_kommune[#Headers],0)) ), fast_befolkning) -> 5696691 | D39: =IF( ISBLANK(fast_befolkning), IF( ISBLANK(valgt_kommune), IF( ISBLANK(valgt_sykehus), IF(OR(valgt_helseforetak="Alle",ISBLANK(valgt_helseforetak)), INDEX(hf[#Totals],1,MATCH(TEXT(Table3[[#This Row],[År]],"#"),hf[#Headers],0)), INDEX(hf[],MATCH(valgt_helseforetak,alle_helseforetak,0),MATCH(TEXT(Table3[[#This Row],[År]],"#"),hf[#Headers],0))), INDEX(lokalsykehus_befolkning[],MATCH(valgt_sykehus,alle_lokalsykehusområder,0),MATCH(TEXT(Table3[[#This Row],[År]],"#"),lokalsykehus_befolkning[#Headers],0)) ), INDEX(hf_kommune[],MATCH(valgt_kommune,alle_kommuner,0),MATCH(TEXT(Table3[[#This Row],[År]],"#"),hf_kommune[#Headers],0)) ), fast_befolkning*INDEX(befolkningsfordeling[],1,MATCH(TEXT(Table3[[#This Row],[År]],"#"),befolkningsfordeling[#Headers],0))) -> 67152 | G39: 0 | H39: =1-Table3[[#This Row],[Andel til primær kolo]] -> 1 | I39: =Table3[[#This Row],[Normal befolkning]]*inviterbare*Table3[[#This Row],[Andel til primær kolo]] -> 0 | J39: =Table3[[#This Row],[Utrullingsbefolkning inklusjon]]*inviterbare -> 0 | K39: =inviterbare*Table3[[#This Row],[Andel til iFOBT]]*Table3[[#This Row],[Normal befolkning]] -> 66480.48 | L39: 65060.47627 | M39: 64395.5364 | N39: 63208.53386 | O39: 60638.03423 | P39: =ROUNDUP(SUM(Table3[[#This Row],[iFOBT utrulling runde 1]:[iFOBT runde 5 ]])/1000,0)*1000 -> 320000 | Q39: =Table3[[#This Row],[Primær koloskopi ]]*beregnet_deltakelse_kolo -> 0 | R39: =Table3[[#This Row],[iFOBT utrulling runde 1]]*beregnet_deltakelse_ifobt*beregnet_positivitet_ifobt*andel_positive_til_kolo_ifobt -> 0 | S39: =Table3[[#This Row],[iFOBT runde 1]]*beregnet_deltakelse_ifobt*beregnet_positivitet_ifobt*andel_positive_til_kolo_ifobt -> 2234.475413 | T39: =Table3[[#This Row],[iFOBT runde 2]]*beregnet_deltakelse_ifobt*beregnet_positivitet_ifobt*andel_positive_til_kolo_ifobt -> 2186.747668 | U39: =Table3[[#This Row],[iFOBT runde 3 ]]*beregnet_deltakelse_ifobt*beregnet_positivitet_ifobt*andel_positive_til_kolo_ifobt -> 2164.398374 | V39: =Table3[[#This Row],[iFOBT runde 4 ]]*beregnet_deltakelse_ifobt*beregnet_positivitet_ifobt*andel_positive_til_kolo_ifobt -> 2124.502032 | W39: =Table3[[#This Row],[iFOBT runde 5 ]]*beregnet_deltakelse_ifobt*beregnet_positivitet_ifobt*andel_positive_til_kolo_ifobt -> 2038.104968 | X39: =kolo_per_inv_kolo*Table3[[#This Row],[Primær koloskopi ]] -> 0 | Y39: =kolo_per_inv_ifobt*Table3[[#This Row],[iFOBT utrulling runde 1]] -> 0 | Z39: =kolo_per_inv_ifobt*Table3[[#This Row],[iFOBT runde 1]] -> 2436.75424 | AA39: =kolo_per_inv_ifobt*Table3[[#This Row],[iFOBT runde 2]] -> 2384.705878 | AB39: =kolo_per_inv_ifobt*Table3[[#This Row],[iFOBT runde 3 ]] -> 2360.333385 | AC39: =kolo_per_inv_ifobt*Table3[[#This Row],[iFOBT runde 4 ]] -> 2316.825373 | AD39: =kolo_per_inv_ifobt*Table3[[#This Row],[iFOBT runde 5 ]] -> 2222.607102 | AE39: =SUM(Table3[[#This Row],[iFOBT R2 ]:[iFOBT R5 ]]) -> 9284.471739 | AF39: =SUM(Table3[[#This Row],[Primær koloskopi ]:[iFOBT R5 ]]) -> 11721.22598 | AG39: 3697.807783 | AH39: 2234.475267 | AI39: =Table3[[#This Row],[Første gang]]+Table3[[#This Row],[Gjentak-ende]] -> 5932.28305 | AJ39: =Table3[[#This Row],[Sum screening-koloskopier]]+Table3[[#This Row],[Totalt surveillance-koloskopier]] -> 17653.50903 | AK39: =IF(SUM(Table3[Befolkning 55 år])>30000,ROUNDUP((Table3[[#This Row],[Sum screening-koloskopier]]+Table3[[#This Row],[Totalt surveillance-koloskopier]])/50,0)*50,ROUNDUP((Table3[[#This Row],[Sum screening-koloskopier]]+Table3[[#This Row],[Totalt surveillance-koloskopier]])/10,0)*10) -> 17700 | AL39: =(Table3[[#This Row],[Sum screening-koloskopier]]+Table3[[#This Row],[Totalt surveillance-koloskopier]])/undersokelser_per_rom -> 16.04864457 | AM39: =IF(ISBLANK(Table3[[#This Row],[Skopirom]]),"",IF(Table3[[#This Row],[Skopirom]]<0.2,1,ROUND(Table3[[#This Row],[Skopirom]]+0.3,0))) -> 16 | AN39: =IF(Table3[[#This Row],[Hele rom, rundet opp hvis > 0,2]]-Table3[[#This Row],[Skopirom]]>0,Table3[[#This Row],[Hele rom, rundet opp hvis > 0,2]]-Table3[[#This Row],[Skopirom]],0) -> 0 | AO39: =ROUNDUP(ifobt_per_invitasjon*SUM(Table3[[#This Row],[iFOBT utrulling runde 1]:[iFOBT runde 5 ]])/1000,0)*1000 -> 341000 | AP39: =ROUNDUP(SUM(Table3[[#This Row],[iFOBT runde 1]:[iFOBT runde 5 ]])*deltakelse_ifobt/1000,0)*1000 -> 186000 | AQ39: =ROUNDUP((Table3[[#This Row],[Primær koloskopi ]]+Table3[[#This Row],[iFOBT runde 1]])/1000,0)*1000*ikke_digital_post -> 40200 | AR39: =ROUNDUP(SUM(Table3[[#This Row],[iFOBT runde 1]:[iFOBT runde 5 ]])*påminnelse/1000,0)*1000*ikke_digital_post -> 96000 | AS39: =ROUNDUP((beregnet_deltakelse_ifobt-beregnet_positivitet_ifobt)*SUM(Table3[[#This Row],[iFOBT runde 1]:[iFOBT runde 5 ]])/1000,0)*1000*ikke_digital_post -> 99600 | AT39: =INDEX(Utrulling[Andel 55-åringer i utrulling],MATCH(Table3[[#This Row],[År]],Utrulling[År],0)) -> 0 | AU39: =AT39*Table3[[#This Row],[Befolkning 55 år]] -> 0 | AV39: =INDEX(Utrulling[Utrullingsbefolkning dette år],MATCH(Table3[[#This Row],[År]],Utrulling[År],0)) -> 0 | AW39: =(1-AT39)*Table3[[#This Row],[Befolkning 55 år]] -> 67152
B40: 2034 | C40: =IF( ISBLANK(fast_befolkning), IF( ISBLANK(valgt_kommune), IF( ISBLANK(valgt_sykehus), IF(OR(valgt_helseforetak="Alle",ISBLANK(valgt_helseforetak)), INDEX(hf[#Totals],1,MATCH("Hele"&TEXT(Table3[[#This Row],[År]],"#"),hf[#Headers],0)), INDEX(hf[],MATCH(valgt_helseforetak,alle_helseforetak,0),MATCH("Hele"&TEXT(Table3[[#This Row],[År]],"#"),hf[#Headers],0))), INDEX(lokalsykehus_befolkning[],MATCH(valgt_sykehus,alle_lokalsykehusområder,0),MATCH("Hele"&TEXT(Table3[[#This Row],[År]],"#"),lokalsykehus_befolkning[#Headers],0)) ), INDEX(hf_kommune[],MATCH(valgt_kommune,alle_kommuner,0),MATCH(TEXT(Table3[[#This Row],[År]],"#")&"-tot",hf_kommune[#Headers],0)) ), fast_befolkning) -> 5719345 | D40: =IF( ISBLANK(fast_befolkning), IF( ISBLANK(valgt_kommune), IF( ISBLANK(valgt_sykehus), IF(OR(valgt_helseforetak="Alle",ISBLANK(valgt_helseforetak)), INDEX(hf[#Totals],1,MATCH(TEXT(Table3[[#This Row],[År]],"#"),hf[#Headers],0)), INDEX(hf[],MATCH(valgt_helseforetak,alle_helseforetak,0),MATCH(TEXT(Table3[[#This Row],[År]],"#"),hf[#Headers],0))), INDEX(lokalsykehus_befolkning[],MATCH(valgt_sykehus,alle_lokalsykehusområder,0),MATCH(TEXT(Table3[[#This Row],[År]],"#"),lokalsykehus_befolkning[#Headers],0)) ), INDEX(hf_kommune[],MATCH(valgt_kommune,alle_kommuner,0),MATCH(TEXT(Table3[[#This Row],[År]],"#"),hf_kommune[#Headers],0)) ), fast_befolkning*INDEX(befolkningsfordeling[],1,MATCH(TEXT(Table3[[#This Row],[År]],"#"),befolkningsfordeling[#Headers],0))) -> 68963 | G40: 0 | H40: =1-Table3[[#This Row],[Andel til primær kolo]] -> 1 | I40: =Table3[[#This Row],[Normal befolkning]]*inviterbare*Table3[[#This Row],[Andel til primær kolo]] -> 0 | J40: =Table3[[#This Row],[Utrullingsbefolkning inklusjon]]*inviterbare -> 0 | K40: =inviterbare*Table3[[#This Row],[Andel til iFOBT]]*Table3[[#This Row],[Normal befolkning]] -> 68273.37 | L40: 63559.62262 | M40: 64313.51399 | N40: 63212.72931 | O40: 59441.38323 | P40: =ROUNDUP(SUM(Table3[[#This Row],[iFOBT utrulling runde 1]:[iFOBT runde 5 ]])/1000,0)*1000 -> 319000 | Q40: =Table3[[#This Row],[Primær koloskopi ]]*beregnet_deltakelse_kolo -> 0 | R40: =Table3[[#This Row],[iFOBT utrulling runde 1]]*beregnet_deltakelse_ifobt*beregnet_positivitet_ifobt*andel_positive_til_kolo_ifobt -> 0 | S40: =Table3[[#This Row],[iFOBT runde 1]]*beregnet_deltakelse_ifobt*beregnet_positivitet_ifobt*andel_positive_til_kolo_ifobt -> 2294.736239 | T40: =Table3[[#This Row],[iFOBT runde 2]]*beregnet_deltakelse_ifobt*beregnet_positivitet_ifobt*andel_positive_til_kolo_ifobt -> 2136.302476 | U40: =Table3[[#This Row],[iFOBT runde 3 ]]*beregnet_deltakelse_ifobt*beregnet_positivitet_ifobt*andel_positive_til_kolo_ifobt -> 2161.641519 | V40: =Table3[[#This Row],[iFOBT runde 4 ]]*beregnet_deltakelse_ifobt*beregnet_positivitet_ifobt*andel_positive_til_kolo_ifobt -> 2124.643045 | W40: =Table3[[#This Row],[iFOBT runde 5 ]]*beregnet_deltakelse_ifobt*beregnet_positivitet_ifobt*andel_positive_til_kolo_ifobt -> 1997.884332 | X40: =kolo_per_inv_kolo*Table3[[#This Row],[Primær koloskopi ]] -> 0 | Y40: =kolo_per_inv_ifobt*Table3[[#This Row],[iFOBT utrulling runde 1]] -> 0 | Z40: =kolo_per_inv_ifobt*Table3[[#This Row],[iFOBT runde 1]] -> 2502.470257 | AA40: =kolo_per_inv_ifobt*Table3[[#This Row],[iFOBT runde 2]] -> 2329.694068 | AB40: =kolo_per_inv_ifobt*Table3[[#This Row],[iFOBT runde 3 ]] -> 2357.326961 | AC40: =kolo_per_inv_ifobt*Table3[[#This Row],[iFOBT runde 4 ]] -> 2316.979152 | AD40: =kolo_per_inv_ifobt*Table3[[#This Row],[iFOBT runde 5 ]] -> 2178.74544 | AE40: =SUM(Table3[[#This Row],[iFOBT R2 ]:[iFOBT R5 ]]) -> 9182.745621 | AF40: =SUM(Table3[[#This Row],[Primær koloskopi ]:[iFOBT R5 ]]) -> 11685.21588 | AG40: 4249.360711 | AH40: 2363.040431 | AI40: =Table3[[#This Row],[Første gang]]+Table3[[#This Row],[Gjentak-ende]] -> 6612.401141 | AJ40: =Table3[[#This Row],[Sum screening-koloskopier]]+Table3[[#This Row],[Totalt surveillance-koloskopier]] -> 18297.61702 | AK40: =IF(SUM(Table3[Befolkning 55 år])>30000,ROUNDUP((Table3[[#This Row],[Sum screening-koloskopier]]+Table3[[#This Row],[Totalt surveillance-koloskopier]])/50,0)*50,ROUNDUP((Table3[[#This Row],[Sum screening-koloskopier]]+Table3[[#This Row],[Totalt surveillance-koloskopier]])/10,0)*10) -> 18300 | AL40: =(Table3[[#This Row],[Sum screening-koloskopier]]+Table3[[#This Row],[Totalt surveillance-koloskopier]])/undersokelser_per_rom -> 16.63419729 | AM40: =IF(ISBLANK(Table3[[#This Row],[Skopirom]]),"",IF(Table3[[#This Row],[Skopirom]]<0.2,1,ROUND(Table3[[#This Row],[Skopirom]]+0.3,0))) -> 17 | AN40: =IF(Table3[[#This Row],[Hele rom, rundet opp hvis > 0,2]]-Table3[[#This Row],[Skopirom]]>0,Table3[[#This Row],[Hele rom, rundet opp hvis > 0,2]]-Table3[[#This Row],[Skopirom]],0) -> 0.3658027101 | AO40: =ROUNDUP(ifobt_per_invitasjon*SUM(Table3[[#This Row],[iFOBT utrulling runde 1]:[iFOBT runde 5 ]])/1000,0)*1000 -> 340000 | AP40: =ROUNDUP(SUM(Table3[[#This Row],[iFOBT runde 1]:[iFOBT runde 5 ]])*deltakelse_ifobt/1000,0)*1000 -> 185000 | AQ40: =ROUNDUP((Table3[[#This Row],[Primær koloskopi ]]+Table3[[#This Row],[iFOBT runde 1]])/1000,0)*1000*ikke_digital_post -> 41400 | AR40: =ROUNDUP(SUM(Table3[[#This Row],[iFOBT runde 1]:[iFOBT runde 5 ]])*påminnelse/1000,0)*1000*ikke_digital_post -> 96000 | AS40: =ROUNDUP((beregnet_deltakelse_ifobt-beregnet_positivitet_ifobt)*SUM(Table3[[#This Row],[iFOBT runde 1]:[iFOBT runde 5 ]])/1000,0)*1000*ikke_digital_post -> 99600 | AT40: =INDEX(Utrulling[Andel 55-åringer i utrulling],MATCH(Table3[[#This Row],[År]],Utrulling[År],0)) -> 0 | AU40: =AT40*Table3[[#This Row],[Befolkning 55 år]] -> 0 | AV40: =INDEX(Utrulling[Utrullingsbefolkning dette år],MATCH(Table3[[#This Row],[År]],Utrulling[År],0)) -> 0 | AW40: =(1-AT40)*Table3[[#This Row],[Befolkning 55 år]] -> 68963
B41: 2035 | C41: =IF( ISBLANK(fast_befolkning), IF( ISBLANK(valgt_kommune), IF( ISBLANK(valgt_sykehus), IF(OR(valgt_helseforetak="Alle",ISBLANK(valgt_helseforetak)), INDEX(hf[#Totals],1,MATCH("Hele"&TEXT(Table3[[#This Row],[År]],"#"),hf[#Headers],0)), INDEX(hf[],MATCH(valgt_helseforetak,alle_helseforetak,0),MATCH("Hele"&TEXT(Table3[[#This Row],[År]],"#"),hf[#Headers],0))), INDEX(lokalsykehus_befolkning[],MATCH(valgt_sykehus,alle_lokalsykehusområder,0),MATCH("Hele"&TEXT(Table3[[#This Row],[År]],"#"),lokalsykehus_befolkning[#Headers],0)) ), INDEX(hf_kommune[],MATCH(valgt_kommune,alle_kommuner,0),MATCH(TEXT(Table3[[#This Row],[År]],"#")&"-tot",hf_kommune[#Headers],0)) ), fast_befolkning) -> 5741563 | D41: =IF( ISBLANK(fast_befolkning), IF( ISBLANK(valgt_kommune), IF( ISBLANK(valgt_sykehus), IF(OR(valgt_helseforetak="Alle",ISBLANK(valgt_helseforetak)), INDEX(hf[#Totals],1,MATCH(TEXT(Table3[[#This Row],[År]],"#"),hf[#Headers],0)), INDEX(hf[],MATCH(valgt_helseforetak,alle_helseforetak,0),MATCH(TEXT(Table3[[#This Row],[År]],"#"),hf[#Headers],0))), INDEX(lokalsykehus_befolkning[],MATCH(valgt_sykehus,alle_lokalsykehusområder,0),MATCH(TEXT(Table3[[#This Row],[År]],"#"),lokalsykehus_befolkning[#Headers],0)) ), INDEX(hf_kommune[],MATCH(valgt_kommune,alle_kommuner,0),MATCH(TEXT(Table3[[#This Row],[År]],"#"),hf_kommune[#Headers],0)) ), fast_befolkning*INDEX(befolkningsfordeling[],1,MATCH(TEXT(Table3[[#This Row],[År]],"#"),befolkningsfordeling[#Headers],0))) -> 69573 | G41: 0 | H41: =1-Table3[[#This Row],[Andel til primær kolo]] -> 1 | I41: =Table3[[#This Row],[Normal befolkning]]*inviterbare*Table3[[#This Row],[Andel til primær kolo]] -> 0 | J41: =Table3[[#This Row],[Utrullingsbefolkning inklusjon]]*inviterbare -> 0 | K41: =inviterbare*Table3[[#This Row],[Andel til iFOBT]]*Table3[[#This Row],[Normal befolkning]] -> 68877.27 | L41: 62251.59019 | M41: 61897.82146 | N41: 61265.20498 | O41: 60135.90382 | P41: =ROUNDUP(SUM(Table3[[#This Row],[iFOBT utrulling runde 1]:[iFOBT runde 5 ]])/1000,0)*1000 -> 315000 | Q41: =Table3[[#This Row],[Primær koloskopi ]]*beregnet_deltakelse_kolo -> 0 | R41: =Table3[[#This Row],[iFOBT utrulling runde 1]]*beregnet_deltakelse_ifobt*beregnet_positivitet_ifobt*andel_positive_til_kolo_ifobt -> 0 | S41: =Table3[[#This Row],[iFOBT runde 1]]*beregnet_deltakelse_ifobt*beregnet_positivitet_ifobt*andel_positive_til_kolo_ifobt -> 2315.033922 | T41: =Table3[[#This Row],[iFOBT runde 2]]*beregnet_deltakelse_ifobt*beregnet_positivitet_ifobt*andel_positive_til_kolo_ifobt -> 2092.338198 | U41: =Table3[[#This Row],[iFOBT runde 3 ]]*beregnet_deltakelse_ifobt*beregnet_positivitet_ifobt*andel_positive_til_kolo_ifobt -> 2080.447677 | V41: =Table3[[#This Row],[iFOBT runde 4 ]]*beregnet_deltakelse_ifobt*beregnet_positivitet_ifobt*andel_positive_til_kolo_ifobt -> 2059.184805 | W41: =Table3[[#This Row],[iFOBT runde 5 ]]*beregnet_deltakelse_ifobt*beregnet_positivitet_ifobt*andel_positive_til_kolo_ifobt -> 2021.227863 | X41: =kolo_per_inv_kolo*Table3[[#This Row],[Primær koloskopi ]] -> 0 | Y41: =kolo_per_inv_ifobt*Table3[[#This Row],[iFOBT utrulling runde 1]] -> 0 | Z41: =kolo_per_inv_ifobt*Table3[[#This Row],[iFOBT runde 1]] -> 2524.605414 | AA41: =kolo_per_inv_ifobt*Table3[[#This Row],[iFOBT runde 2]] -> 2281.749866 | AB41: =kolo_per_inv_ifobt*Table3[[#This Row],[iFOBT runde 3 ]] -> 2268.78294 | AC41: =kolo_per_inv_ifobt*Table3[[#This Row],[iFOBT runde 4 ]] -> 2245.595219 | AD41: =kolo_per_inv_ifobt*Table3[[#This Row],[iFOBT runde 5 ]] -> 2204.202175 | AE41: =SUM(Table3[[#This Row],[iFOBT R2 ]:[iFOBT R5 ]]) -> 9000.3302 | AF41: =SUM(Table3[[#This Row],[Primær koloskopi ]:[iFOBT R5 ]]) -> 11524.93561 | AG41: 4216.48789 | AH41: 3031.086919 | AI41: =Table3[[#This Row],[Første gang]]+Table3[[#This Row],[Gjentak-ende]] -> 7247.574809 | AJ41: =Table3[[#This Row],[Sum screening-koloskopier]]+Table3[[#This Row],[Totalt surveillance-koloskopier]] -> 18772.51042 | AK41: =IF(SUM(Table3[Befolkning 55 år])>30000,ROUNDUP((Table3[[#This Row],[Sum screening-koloskopier]]+Table3[[#This Row],[Totalt surveillance-koloskopier]])/50,0)*50,ROUNDUP((Table3[[#This Row],[Sum screening-koloskopier]]+Table3[[#This Row],[Totalt surveillance-koloskopier]])/10,0)*10) -> 18800 | AL41: =(Table3[[#This Row],[Sum screening-koloskopier]]+Table3[[#This Row],[Totalt surveillance-koloskopier]])/undersokelser_per_rom -> 17.06591857 | AM41: =IF(ISBLANK(Table3[[#This Row],[Skopirom]]),"",IF(Table3[[#This Row],[Skopirom]]<0.2,1,ROUND(Table3[[#This Row],[Skopirom]]+0.3,0))) -> 17 | AN41: =IF(Table3[[#This Row],[Hele rom, rundet opp hvis > 0,2]]-Table3[[#This Row],[Skopirom]]>0,Table3[[#This Row],[Hele rom, rundet opp hvis > 0,2]]-Table3[[#This Row],[Skopirom]],0) -> 0 | AO41: =ROUNDUP(ifobt_per_invitasjon*SUM(Table3[[#This Row],[iFOBT utrulling runde 1]:[iFOBT runde 5 ]])/1000,0)*1000 -> 335000 | AP41: =ROUNDUP(SUM(Table3[[#This Row],[iFOBT runde 1]:[iFOBT runde 5 ]])*deltakelse_ifobt/1000,0)*1000 -> 183000 | AQ41: =ROUNDUP((Table3[[#This Row],[Primær koloskopi ]]+Table3[[#This Row],[iFOBT runde 1]])/1000,0)*1000*ikke_digital_post -> 41400 | AR41: =ROUNDUP(SUM(Table3[[#This Row],[iFOBT runde 1]:[iFOBT runde 5 ]])*påminnelse/1000,0)*1000*ikke_digital_post -> 94800 | AS41: =ROUNDUP((beregnet_deltakelse_ifobt-beregnet_positivitet_ifobt)*SUM(Table3[[#This Row],[iFOBT runde 1]:[iFOBT runde 5 ]])/1000,0)*1000*ikke_digital_post -> 98400 | AT41: =INDEX(Utrulling[Andel 55-åringer i utrulling],MATCH(Table3[[#This Row],[År]],Utrulling[År],0)) -> 0 | AU41: =AT41*Table3[[#This Row],[Befolkning 55 år]] -> 0 | AV41: =INDEX(Utrulling[Utrullingsbefolkning dette år],MATCH(Table3[[#This Row],[År]],Utrulling[År],0)) -> 0 | AW41: =(1-AT41)*Table3[[#This Row],[Befolkning 55 år]] -> 69573
B42: 2036 | C42: =IF( ISBLANK(fast_befolkning), IF( ISBLANK(valgt_kommune), IF( ISBLANK(valgt_sykehus), IF(OR(valgt_helseforetak="Alle",ISBLANK(valgt_helseforetak)), INDEX(hf[#Totals],1,MATCH("Hele"&TEXT(Table3[[#This Row],[År]],"#"),hf[#Headers],0)), INDEX(hf[],MATCH(valgt_helseforetak,alle_helseforetak,0),MATCH("Hele"&TEXT(Table3[[#This Row],[År]],"#"),hf[#Headers],0))), INDEX(lokalsykehus_befolkning[],MATCH(valgt_sykehus,alle_lokalsykehusområder,0),MATCH("Hele"&TEXT(Table3[[#This Row],[År]],"#"),lokalsykehus_befolkning[#Headers],0)) ), INDEX(hf_kommune[],MATCH(valgt_kommune,alle_kommuner,0),MATCH(TEXT(Table3[[#This Row],[År]],"#")&"-tot",hf_kommune[#Headers],0)) ), fast_befolkning) -> 5763380 | D42: =IF( ISBLANK(fast_befolkning), IF( ISBLANK(valgt_kommune), IF( ISBLANK(valgt_sykehus), IF(OR(valgt_helseforetak="Alle",ISBLANK(valgt_helseforetak)), INDEX(hf[#Totals],1,MATCH(TEXT(Table3[[#This Row],[År]],"#"),hf[#Headers],0)), INDEX(hf[],MATCH(valgt_helseforetak,alle_helseforetak,0),MATCH(TEXT(Table3[[#This Row],[År]],"#"),hf[#Headers],0))), INDEX(lokalsykehus_befolkning[],MATCH(valgt_sykehus,alle_lokalsykehusområder,0),MATCH(TEXT(Table3[[#This Row],[År]],"#"),lokalsykehus_befolkning[#Headers],0)) ), INDEX(hf_kommune[],MATCH(valgt_kommune,alle_kommuner,0),MATCH(TEXT(Table3[[#This Row],[År]],"#"),hf_kommune[#Headers],0)) ), fast_befolkning*INDEX(befolkningsfordeling[],1,MATCH(TEXT(Table3[[#This Row],[År]],"#"),befolkningsfordeling[#Headers],0))) -> 70674 | G42: 0 | H42: =1-Table3[[#This Row],[Andel til primær kolo]] -> 1 | I42: =Table3[[#This Row],[Normal befolkning]]*inviterbare*Table3[[#This Row],[Andel til primær kolo]] -> 0 | J42: 0 | K42: =inviterbare*Table3[[#This Row],[Andel til iFOBT]]*Table3[[#This Row],[Normal befolkning]] -> 69967.26 | L42: =K40-S40 -> 65978.63376 | M42: 61423.32014 | N42: 62151.87247 | O42: 61088.08626 | P42: =ROUNDUP(SUM(Table3[[#This Row],[iFOBT utrulling runde 1]:[iFOBT runde 5 ]])/1000,0)*1000 -> 321000 | Q42: =Table3[[#This Row],[Primær koloskopi ]]*beregnet_deltakelse_kolo -> 0 | R42: =Table3[[#This Row],[iFOBT utrulling runde 1]]*beregnet_deltakelse_ifobt*beregnet_positivitet_ifobt*andel_positive_til_kolo_ifobt -> 0 | S42: =Table3[[#This Row],[iFOBT runde 1]]*beregnet_deltakelse_ifobt*beregnet_positivitet_ifobt*andel_positive_til_kolo_ifobt -> 2351.669576 | T42: =Table3[[#This Row],[iFOBT runde 2]]*beregnet_deltakelse_ifobt*beregnet_positivitet_ifobt*andel_positive_til_kolo_ifobt -> 2217.607859 | U42: =Table3[[#This Row],[iFOBT runde 3 ]]*beregnet_deltakelse_ifobt*beregnet_positivitet_ifobt*andel_positive_til_kolo_ifobt -> 2064.499213 | V42: =Table3[[#This Row],[iFOBT runde 4 ]]*beregnet_deltakelse_ifobt*beregnet_positivitet_ifobt*andel_positive_til_kolo_ifobt -> 2088.986585 | W42: =Table3[[#This Row],[iFOBT runde 5 ]]*beregnet_deltakelse_ifobt*beregnet_positivitet_ifobt*andel_positive_til_kolo_ifobt -> 2053.231667 | X42: =kolo_per_inv_kolo*Table3[[#This Row],[Primær koloskopi ]] -> 0 | Z42: =kolo_per_inv_ifobt*Table3[[#This Row],[iFOBT runde 1]] -> 2564.557559 | AA42: =kolo_per_inv_ifobt*Table3[[#This Row],[iFOBT runde 2]] -> 2418.359729 | AB42: =kolo_per_inv_ifobt*Table3[[#This Row],[iFOBT runde 3 ]] -> 2251.390721 | AC42: =kolo_per_inv_ifobt*Table3[[#This Row],[iFOBT runde 4 ]] -> 2278.094845 | AD42: =kolo_per_inv_ifobt*Table3[[#This Row],[iFOBT runde 5 ]] -> 2239.103166 | AE42: =SUM(Table3[[#This Row],[iFOBT R2 ]:[iFOBT R5 ]]) -> 9186.94846 | AF42: =SUM(Table3[[#This Row],[Primær koloskopi ]:[iFOBT R5 ]]) -> 11751.50602 | AG42: =Q39*andel_avansert_adenom_kolo+SUM(S39:W39)*andel_avansert_adenom_ifobt -> 3873.661535 | AH42: 3153.866745 | AI42: =Table3[[#This Row],[Første gang]]+Table3[[#This Row],[Gjentak-ende]] -> 7027.52828 | AJ42: =Table3[[#This Row],[Sum screening-koloskopier]]+Table3[[#This Row],[Totalt surveillance-koloskopier]] -> 18779.0343 | AK42: =IF(SUM(Table3[Befolkning 55 år])>30000,ROUNDUP((Table3[[#This Row],[Sum screening-koloskopier]]+Table3[[#This Row],[Totalt surveillance-koloskopier]])/50,0)*50,ROUNDUP((Table3[[#This Row],[Sum screening-koloskopier]]+Table3[[#This Row],[Totalt surveillance-koloskopier]])/10,0)*10) -> 18800 | AL42: =(Table3[[#This Row],[Sum screening-koloskopier]]+Table3[[#This Row],[Totalt surveillance-koloskopier]])/undersokelser_per_rom -> 17.07184936 | AM42: =IF(ISBLANK(Table3[[#This Row],[Skopirom]]),"",IF(Table3[[#This Row],[Skopirom]]<0.2,1,ROUND(Table3[[#This Row],[Skopirom]]+0.3,0))) -> 17 | AN42: =IF(Table3[[#This Row],[Hele rom, rundet opp hvis > 0,2]]-Table3[[#This Row],[Skopirom]]>0,Table3[[#This Row],[Hele rom, rundet opp hvis > 0,2]]-Table3[[#This Row],[Skopirom]],0) -> 0 | AO42: =ROUNDUP(ifobt_per_invitasjon*SUM(Table3[[#This Row],[iFOBT utrulling runde 1]:[iFOBT runde 5 ]])/1000,0)*1000 -> 342000 | AP42: =ROUNDUP(SUM(Table3[[#This Row],[iFOBT runde 1]:[iFOBT runde 5 ]])*deltakelse_ifobt/1000,0)*1000 -> 186000 | AQ42: =ROUNDUP((Table3[[#This Row],[Primær koloskopi ]]+Table3[[#This Row],[iFOBT runde 1]])/1000,0)*1000*ikke_digital_post -> 42000 | AR42: =ROUNDUP(SUM(Table3[[#This Row],[iFOBT runde 1]:[iFOBT runde 5 ]])*påminnelse/1000,0)*1000*ikke_digital_post -> 96600 | AS42: =ROUNDUP((beregnet_deltakelse_ifobt-beregnet_positivitet_ifobt)*SUM(Table3[[#This Row],[iFOBT runde 1]:[iFOBT runde 5 ]])/1000,0)*1000*ikke_digital_post -> 100200 | AW42: =(1-AT42)*Table3[[#This Row],[Befolkning 55 år]] -> 70674
B43: 2037 | C43: =IF( ISBLANK(fast_befolkning), IF( ISBLANK(valgt_kommune), IF( ISBLANK(valgt_sykehus), IF(OR(valgt_helseforetak="Alle",ISBLANK(valgt_helseforetak)), INDEX(hf[#Totals],1,MATCH("Hele"&TEXT(Table3[[#This Row],[År]],"#"),hf[#Headers],0)), INDEX(hf[],MATCH(valgt_helseforetak,alle_helseforetak,0),MATCH("Hele"&TEXT(Table3[[#This Row],[År]],"#"),hf[#Headers],0))), INDEX(lokalsykehus_befolkning[],MATCH(valgt_sykehus,alle_lokalsykehusområder,0),MATCH("Hele"&TEXT(Table3[[#This Row],[År]],"#"),lokalsykehus_befolkning[#Headers],0)) ), INDEX(hf_kommune[],MATCH(valgt_kommune,alle_kommuner,0),MATCH(TEXT(Table3[[#This Row],[År]],"#")&"-tot",hf_kommune[#Headers],0)) ), fast_befolkning) -> 5784462 | D43: =IF( ISBLANK(fast_befolkning), IF( ISBLANK(valgt_kommune), IF( ISBLANK(valgt_sykehus), IF(OR(valgt_helseforetak="Alle",ISBLANK(valgt_helseforetak)), INDEX(hf[#Totals],1,MATCH(TEXT(Table3[[#This Row],[År]],"#"),hf[#Headers],0)), INDEX(hf[],MATCH(valgt_helseforetak,alle_helseforetak,0),MATCH(TEXT(Table3[[#This Row],[År]],"#"),hf[#Headers],0))), INDEX(lokalsykehus_befolkning[],MATCH(valgt_sykehus,alle_lokalsykehusområder,0),MATCH(TEXT(Table3[[#This Row],[År]],"#"),lokalsykehus_befolkning[#Headers],0)) ), INDEX(hf_kommune[],MATCH(valgt_kommune,alle_kommuner,0),MATCH(TEXT(Table3[[#This Row],[År]],"#"),hf_kommune[#Headers],0)) ), fast_befolkning*INDEX(befolkningsfordeling[],1,MATCH(TEXT(Table3[[#This Row],[År]],"#"),befolkningsfordeling[#Headers],0))) -> 69961 | G43: 0 | H43: =1-Table3[[#This Row],[Andel til primær kolo]] -> 1 | I43: =Table3[[#This Row],[Normal befolkning]]*inviterbare*Table3[[#This Row],[Andel til primær kolo]] -> 0 | J43: 0 | K43: =inviterbare*Table3[[#This Row],[Andel til iFOBT]]*Table3[[#This Row],[Normal befolkning]] -> 69261.39 | L43: 66562.23608 | M43: 60159.25199 | N43: 59817.37378 | O43: 59206.02018 | P43: =ROUNDUP(SUM(Table3[[#This Row],[iFOBT utrulling runde 1]:[iFOBT runde 5 ]])/1000,0)*1000 -> 316000 | Q43: =Table3[[#This Row],[Primær koloskopi ]]*beregnet_deltakelse_kolo -> 0 | R43: =Table3[[#This Row],[iFOBT utrulling runde 1]]*beregnet_deltakelse_ifobt*beregnet_positivitet_ifobt*andel_positive_til_kolo_ifobt -> 0 | S43: =Table3[[#This Row],[iFOBT runde 1]]*beregnet_deltakelse_ifobt*beregnet_positivitet_ifobt*andel_positive_til_kolo_ifobt -> 2327.944579 | T43: =Table3[[#This Row],[iFOBT runde 2]]*beregnet_deltakelse_ifobt*beregnet_positivitet_ifobt*andel_positive_til_kolo_ifobt -> 2237.223317 | U43: =Table3[[#This Row],[iFOBT runde 3 ]]*beregnet_deltakelse_ifobt*beregnet_positivitet_ifobt*andel_positive_til_kolo_ifobt -> 2022.012619 | V43: =Table3[[#This Row],[iFOBT runde 4 ]]*beregnet_deltakelse_ifobt*beregnet_positivitet_ifobt*andel_positive_til_kolo_ifobt -> 2010.52175 | W43: =Table3[[#This Row],[iFOBT runde 5 ]]*beregnet_deltakelse_ifobt*beregnet_positivitet_ifobt*andel_positive_til_kolo_ifobt -> 1989.973544 | X43: =kolo_per_inv_kolo*Table3[[#This Row],[Primær koloskopi ]] -> 0 | Z43: =kolo_per_inv_ifobt*Table3[[#This Row],[iFOBT runde 1]] -> 2538.684825 | AA43: =kolo_per_inv_ifobt*Table3[[#This Row],[iFOBT runde 2]] -> 2439.750901 | AB43: =kolo_per_inv_ifobt*Table3[[#This Row],[iFOBT runde 3 ]] -> 2205.057971 | AC43: =kolo_per_inv_ifobt*Table3[[#This Row],[iFOBT runde 4 ]] -> 2192.526877 | AD43: =kolo_per_inv_ifobt*Table3[[#This Row],[iFOBT runde 5 ]] -> 2170.118518 | AE43: =SUM(Table3[[#This Row],[iFOBT R2 ]:[iFOBT R5 ]]) -> 9007.454267 | AF43: =SUM(Table3[[#This Row],[Primær koloskopi ]:[iFOBT R5 ]]) -> 11546.13909 | AG43: =Q40*andel_avansert_adenom_kolo+SUM(S40:W40)*andel_avansert_adenom_ifobt -> 3861.760823 | AH43: 3760.789869 | AI43: =Table3[[#This Row],[Første gang]]+Table3[[#This Row],[Gjentak-ende]] -> 7622.550692 | AJ43: =Table3[[#This Row],[Sum screening-koloskopier]]+Table3[[#This Row],[Totalt surveillance-koloskopier]] -> 19168.68978 | AK43: =IF(SUM(Table3[Befolkning 55 år])>30000,ROUNDUP((Table3[[#This Row],[Sum screening-koloskopier]]+Table3[[#This Row],[Totalt surveillance-koloskopier]])/50,0)*50,ROUNDUP((Table3[[#This Row],[Sum screening-koloskopier]]+Table3[[#This Row],[Totalt surveillance-koloskopier]])/10,0)*10) -> 19200 | AL43: =(Table3[[#This Row],[Sum screening-koloskopier]]+Table3[[#This Row],[Totalt surveillance-koloskopier]])/undersokelser_per_rom -> 17.42608162 | AM43: =IF(ISBLANK(Table3[[#This Row],[Skopirom]]),"",IF(Table3[[#This Row],[Skopirom]]<0.2,1,ROUND(Table3[[#This Row],[Skopirom]]+0.3,0))) -> 18 | AN43: =IF(Table3[[#This Row],[Hele rom, rundet opp hvis > 0,2]]-Table3[[#This Row],[Skopirom]]>0,Table3[[#This Row],[Hele rom, rundet opp hvis > 0,2]]-Table3[[#This Row],[Skopirom]],0) -> 0.5739183775 | AO43: =ROUNDUP(ifobt_per_invitasjon*SUM(Table3[[#This Row],[iFOBT utrulling runde 1]:[iFOBT runde 5 ]])/1000,0)*1000 -> 336000 | AP43: =ROUNDUP(SUM(Table3[[#This Row],[iFOBT runde 1]:[iFOBT runde 5 ]])*deltakelse_ifobt/1000,0)*1000 -> 183000 | AQ43: =ROUNDUP((Table3[[#This Row],[Primær koloskopi ]]+Table3[[#This Row],[iFOBT runde 1]])/1000,0)*1000*ikke_digital_post -> 42000 | AR43: =ROUNDUP(SUM(Table3[[#This Row],[iFOBT runde 1]:[iFOBT runde 5 ]])*påminnelse/1000,0)*1000*ikke_digital_post -> 94800 | AS43: =ROUNDUP((beregnet_deltakelse_ifobt-beregnet_positivitet_ifobt)*SUM(Table3[[#This Row],[iFOBT runde 1]:[iFOBT runde 5 ]])/1000,0)*1000*ikke_digital_post -> 98400 | AW43: =(1-AT43)*Table3[[#This Row],[Befolkning 55 år]] -> 69961
B44: 2038 | C44: =IF( ISBLANK(fast_befolkning), IF( ISBLANK(valgt_kommune), IF( ISBLANK(valgt_sykehus), IF(OR(valgt_helseforetak="Alle",ISBLANK(valgt_helseforetak)), INDEX(hf[#Totals],1,MATCH("Hele"&TEXT(Table3[[#This Row],[År]],"#"),hf[#Headers],0)), INDEX(hf[],MATCH(valgt_helseforetak,alle_helseforetak,0),MATCH("Hele"&TEXT(Table3[[#This Row],[År]],"#"),hf[#Headers],0))), INDEX(lokalsykehus_befolkning[],MATCH(valgt_sykehus,alle_lokalsykehusområder,0),MATCH("Hele"&TEXT(Table3[[#This Row],[År]],"#"),lokalsykehus_befolkning[#Headers],0)) ), INDEX(hf_kommune[],MATCH(valgt_kommune,alle_kommuner,0),MATCH(TEXT(Table3[[#This Row],[År]],"#")&"-tot",hf_kommune[#Headers],0)) ), fast_befolkning) -> 5804512 | D44: =IF( ISBLANK(fast_befolkning), IF( ISBLANK(valgt_kommune), IF( ISBLANK(valgt_sykehus), IF(OR(valgt_helseforetak="Alle",ISBLANK(valgt_helseforetak)), INDEX(hf[#Totals],1,MATCH(TEXT(Table3[[#This Row],[År]],"#"),hf[#Headers],0)), INDEX(hf[],MATCH(valgt_helseforetak,alle_helseforetak,0),MATCH(TEXT(Table3[[#This Row],[År]],"#"),hf[#Headers],0))), INDEX(lokalsykehus_befolkning[],MATCH(valgt_sykehus,alle_lokalsykehusområder,0),MATCH(TEXT(Table3[[#This Row],[År]],"#"),lokalsykehus_befolkning[#Headers],0)) ), INDEX(hf_kommune[],MATCH(valgt_kommune,alle_kommuner,0),MATCH(TEXT(Table3[[#This Row],[År]],"#"),hf_kommune[#Headers],0)) ), fast_befolkning*INDEX(befolkningsfordeling[],1,MATCH(TEXT(Table3[[#This Row],[År]],"#"),befolkningsfordeling[#Headers],0))) -> 71589 | G44: 0 | H44: =1-Table3[[#This Row],[Andel til primær kolo]] -> 1 | I44: =Table3[[#This Row],[Normal befolkning]]*inviterbare*Table3[[#This Row],[Andel til primær kolo]] -> 0 | J44: 0 | K44: =inviterbare*Table3[[#This Row],[Andel til iFOBT]]*Table3[[#This Row],[Normal befolkning]] -> 70873.11 | L44: 67615.59042 | M44: 63761.0259 | N44: 59358.82093 | O44: 60062.88588 | P44: =ROUNDUP(SUM(Table3[[#This Row],[iFOBT utrulling runde 1]:[iFOBT runde 5 ]])/1000,0)*1000 -> 322000 | Q44: =Table3[[#This Row],[Primær koloskopi ]]*beregnet_deltakelse_kolo -> 0 | R44: =Table3[[#This Row],[iFOBT utrulling runde 1]]*beregnet_deltakelse_ifobt*beregnet_positivitet_ifobt*andel_positive_til_kolo_ifobt -> 0 | S44: =Table3[[#This Row],[iFOBT runde 1]]*beregnet_deltakelse_ifobt*beregnet_positivitet_ifobt*andel_positive_til_kolo_ifobt -> 2382.1161 | T44: =Table3[[#This Row],[iFOBT runde 2]]*beregnet_deltakelse_ifobt*beregnet_positivitet_ifobt*andel_positive_til_kolo_ifobt -> 2272.62761 | U44: =Table3[[#This Row],[iFOBT runde 3 ]]*beregnet_deltakelse_ifobt*beregnet_positivitet_ifobt*andel_positive_til_kolo_ifobt -> 2143.071842 | V44: =Table3[[#This Row],[iFOBT runde 4 ]]*beregnet_deltakelse_ifobt*beregnet_positivitet_ifobt*andel_positive_til_kolo_ifobt -> 1995.10933 | W44: =Table3[[#This Row],[iFOBT runde 5 ]]*beregnet_deltakelse_ifobt*beregnet_positivitet_ifobt*andel_positive_til_kolo_ifobt -> 2018.773657 | X44: =kolo_per_inv_kolo*Table3[[#This Row],[Primær koloskopi ]] -> 0 | Z44: =kolo_per_inv_ifobt*Table3[[#This Row],[iFOBT runde 1]] -> 2597.760295 | AA44: =kolo_per_inv_ifobt*Table3[[#This Row],[iFOBT runde 2]] -> 2478.360214 | AB44: =kolo_per_inv_ifobt*Table3[[#This Row],[iFOBT runde 3 ]] -> 2337.07624 | AC44: =kolo_per_inv_ifobt*Table3[[#This Row],[iFOBT runde 4 ]] -> 2175.719227 | AD44: =kolo_per_inv_ifobt*Table3[[#This Row],[iFOBT runde 5 ]] -> 2201.525799 | AE44: =SUM(Table3[[#This Row],[iFOBT R2 ]:[iFOBT R5 ]]) -> 9192.681481 | AF44: =SUM(Table3[[#This Row],[Primær koloskopi ]:[iFOBT R5 ]]) -> 11790.44178 | AG44: =Q41*andel_avansert_adenom_kolo+SUM(S41:W41)*andel_avansert_adenom_ifobt -> 3808.79098 | AH44: 3856.51172 | AI44: =Table3[[#This Row],[Første gang]]+Table3[[#This Row],[Gjentak-ende]] -> 7665.302701 | AJ44: =Table3[[#This Row],[Sum screening-koloskopier]]+Table3[[#This Row],[Totalt surveillance-koloskopier]] -> 19455.74448 | AK44: =IF(SUM(Table3[Befolkning 55 år])>30000,ROUNDUP((Table3[[#This Row],[Sum screening-koloskopier]]+Table3[[#This Row],[Totalt surveillance-koloskopier]])/50,0)*50,ROUNDUP((Table3[[#This Row],[Sum screening-koloskopier]]+Table3[[#This Row],[Totalt surveillance-koloskopier]])/10,0)*10) -> 19500 | AL44: =(Table3[[#This Row],[Sum screening-koloskopier]]+Table3[[#This Row],[Totalt surveillance-koloskopier]])/undersokelser_per_rom -> 17.68704043 | AM44: =IF(ISBLANK(Table3[[#This Row],[Skopirom]]),"",IF(Table3[[#This Row],[Skopirom]]<0.2,1,ROUND(Table3[[#This Row],[Skopirom]]+0.3,0))) -> 18 | AN44: =IF(Table3[[#This Row],[Hele rom, rundet opp hvis > 0,2]]-Table3[[#This Row],[Skopirom]]>0,Table3[[#This Row],[Hele rom, rundet opp hvis > 0,2]]-Table3[[#This Row],[Skopirom]],0) -> 0.3129595672 | AO44: =ROUNDUP(ifobt_per_invitasjon*SUM(Table3[[#This Row],[iFOBT utrulling runde 1]:[iFOBT runde 5 ]])/1000,0)*1000 -> 343000 | AP44: =ROUNDUP(SUM(Table3[[#This Row],[iFOBT runde 1]:[iFOBT runde 5 ]])*deltakelse_ifobt/1000,0)*1000 -> 187000 | AQ44: =ROUNDUP((Table3[[#This Row],[Primær koloskopi ]]+Table3[[#This Row],[iFOBT runde 1]])/1000,0)*1000*ikke_digital_post -> 42600 | AR44: =ROUNDUP(SUM(Table3[[#This Row],[iFOBT runde 1]:[iFOBT runde 5 ]])*påminnelse/1000,0)*1000*ikke_digital_post -> 96600 | AS44: =ROUNDUP((beregnet_deltakelse_ifobt-beregnet_positivitet_ifobt)*SUM(Table3[[#This Row],[iFOBT runde 1]:[iFOBT runde 5 ]])/1000,0)*1000*ikke_digital_post -> 100200 | AW44: =(1-AT44)*Table3[[#This Row],[Befolkning 55 år]] -> 71589
B45: 2039 | C45: =IF( ISBLANK(fast_befolkning), IF( ISBLANK(valgt_kommune), IF( ISBLANK(valgt_sykehus), IF(OR(valgt_helseforetak="Alle",ISBLANK(valgt_helseforetak)), INDEX(hf[#Totals],1,MATCH("Hele"&TEXT(Table3[[#This Row],[År]],"#"),hf[#Headers],0)), INDEX(hf[],MATCH(valgt_helseforetak,alle_helseforetak,0),MATCH("Hele"&TEXT(Table3[[#This Row],[År]],"#"),hf[#Headers],0))), INDEX(lokalsykehus_befolkning[],MATCH(valgt_sykehus,alle_lokalsykehusområder,0),MATCH("Hele"&TEXT(Table3[[#This Row],[År]],"#"),lokalsykehus_befolkning[#Headers],0)) ), INDEX(hf_kommune[],MATCH(valgt_kommune,alle_kommuner,0),MATCH(TEXT(Table3[[#This Row],[År]],"#")&"-tot",hf_kommune[#Headers],0)) ), fast_befolkning) -> 5823542 | D45: =IF( ISBLANK(fast_befolkning), IF( ISBLANK(valgt_kommune), IF( ISBLANK(valgt_sykehus), IF(OR(valgt_helseforetak="Alle",ISBLANK(valgt_helseforetak)), INDEX(hf[#Totals],1,MATCH(TEXT(Table3[[#This Row],[År]],"#"),hf[#Headers],0)), INDEX(hf[],MATCH(valgt_helseforetak,alle_helseforetak,0),MATCH(TEXT(Table3[[#This Row],[År]],"#"),hf[#Headers],0))), INDEX(lokalsykehus_befolkning[],MATCH(valgt_sykehus,alle_lokalsykehusområder,0),MATCH(TEXT(Table3[[#This Row],[År]],"#"),lokalsykehus_befolkning[#Headers],0)) ), INDEX(hf_kommune[],MATCH(valgt_kommune,alle_kommuner,0),MATCH(TEXT(Table3[[#This Row],[År]],"#"),hf_kommune[#Headers],0)) ), fast_befolkning*INDEX(befolkningsfordeling[],1,MATCH(TEXT(Table3[[#This Row],[År]],"#"),befolkningsfordeling[#Headers],0))) -> 71405 | G45: 0 | H45: =1-Table3[[#This Row],[Andel til primær kolo]] -> 1 | I45: =Table3[[#This Row],[Normal befolkning]]*inviterbare*Table3[[#This Row],[Andel til primær kolo]] -> 0 | J45: 0 | K45: =inviterbare*Table3[[#This Row],[Andel til iFOBT]]*Table3[[#This Row],[Normal befolkning]] -> 70690.95 | L45: 66933.44542 | M45: 64325.01276 | N45: 58137.23937 | O45: 57806.85203 | P45: =ROUNDUP(SUM(Table3[[#This Row],[iFOBT utrulling runde 1]:[iFOBT runde 5 ]])/1000,0)*1000 -> 318000 | Q45: =Table3[[#This Row],[Primær koloskopi ]]*beregnet_deltakelse_kolo -> 0 | R45: =Table3[[#This Row],[iFOBT utrulling runde 1]]*beregnet_deltakelse_ifobt*beregnet_positivitet_ifobt*andel_positive_til_kolo_ifobt -> 0 | S45: =Table3[[#This Row],[iFOBT runde 1]]*beregnet_deltakelse_ifobt*beregnet_positivitet_ifobt*andel_positive_til_kolo_ifobt -> 2375.99352 | T45: =Table3[[#This Row],[iFOBT runde 2]]*beregnet_deltakelse_ifobt*beregnet_positivitet_ifobt*andel_positive_til_kolo_ifobt -> 2249.700034 | U45: =Table3[[#This Row],[iFOBT runde 3 ]]*beregnet_deltakelse_ifobt*beregnet_positivitet_ifobt*andel_positive_til_kolo_ifobt -> 2162.028004 | V45: =Table3[[#This Row],[iFOBT runde 4 ]]*beregnet_deltakelse_ifobt*beregnet_positivitet_ifobt*andel_positive_til_kolo_ifobt -> 1954.050752 | W45: =Table3[[#This Row],[iFOBT runde 5 ]]*beregnet_deltakelse_ifobt*beregnet_positivitet_ifobt*andel_positive_til_kolo_ifobt -> 1942.946104 | X45: =kolo_per_inv_kolo*Table3[[#This Row],[Primær koloskopi ]] -> 0 | Z45: =kolo_per_inv_ifobt*Table3[[#This Row],[iFOBT runde 1]] -> 2591.08346 | AA45: =kolo_per_inv_ifobt*Table3[[#This Row],[iFOBT runde 2]] -> 2453.35709 | AB45: =kolo_per_inv_ifobt*Table3[[#This Row],[iFOBT runde 3 ]] -> 2357.748434 | AC45: =kolo_per_inv_ifobt*Table3[[#This Row],[iFOBT runde 4 ]] -> 2130.943768 | AD45: =kolo_per_inv_ifobt*Table3[[#This Row],[iFOBT runde 5 ]] -> 2118.833856 | AE45: =SUM(Table3[[#This Row],[iFOBT R2 ]:[iFOBT R5 ]]) -> 9060.883148 | AF45: =SUM(Table3[[#This Row],[Primær koloskopi ]:[iFOBT R5 ]]) -> 11651.96661 | AG45: =Q42*andel_avansert_adenom_kolo+SUM(S42:W42)*andel_avansert_adenom_ifobt -> 3883.668562 | AH45: 4276.206509 | AI45: =Table3[[#This Row],[Første gang]]+Table3[[#This Row],[Gjentak-ende]] -> 8159.875072 | AJ45: =Table3[[#This Row],[Sum screening-koloskopier]]+Table3[[#This Row],[Totalt surveillance-koloskopier]] -> 19811.84168 | AK45: =IF(SUM(Table3[Befolkning 55 år])>30000,ROUNDUP((Table3[[#This Row],[Sum screening-koloskopier]]+Table3[[#This Row],[Totalt surveillance-koloskopier]])/50,0)*50,ROUNDUP((Table3[[#This Row],[Sum screening-koloskopier]]+Table3[[#This Row],[Totalt surveillance-koloskopier]])/10,0)*10) -> 19850 | AL45: =(Table3[[#This Row],[Sum screening-koloskopier]]+Table3[[#This Row],[Totalt surveillance-koloskopier]])/undersokelser_per_rom -> 18.01076516 | AM45: =IF(ISBLANK(Table3[[#This Row],[Skopirom]]),"",IF(Table3[[#This Row],[Skopirom]]<0.2,1,ROUND(Table3[[#This Row],[Skopirom]]+0.3,0))) -> 18 | AN45: =IF(Table3[[#This Row],[Hele rom, rundet opp hvis > 0,2]]-Table3[[#This Row],[Skopirom]]>0,Table3[[#This Row],[Hele rom, rundet opp hvis > 0,2]]-Table3[[#This Row],[Skopirom]],0) -> 0 | AO45: =ROUNDUP(ifobt_per_invitasjon*SUM(Table3[[#This Row],[iFOBT utrulling runde 1]:[iFOBT runde 5 ]])/1000,0)*1000 -> 339000 | AP45: =ROUNDUP(SUM(Table3[[#This Row],[iFOBT runde 1]:[iFOBT runde 5 ]])*deltakelse_ifobt/1000,0)*1000 -> 185000 | AQ45: =ROUNDUP((Table3[[#This Row],[Primær koloskopi ]]+Table3[[#This Row],[iFOBT runde 1]])/1000,0)*1000*ikke_digital_post -> 42600 | AR45: =ROUNDUP(SUM(Table3[[#This Row],[iFOBT runde 1]:[iFOBT runde 5 ]])*påminnelse/1000,0)*1000*ikke_digital_post -> 95400 | AS45: =ROUNDUP((beregnet_deltakelse_ifobt-beregnet_positivitet_ifobt)*SUM(Table3[[#This Row],[iFOBT runde 1]:[iFOBT runde 5 ]])/1000,0)*1000*ikke_digital_post -> 99000 | AW45: =(1-AT45)*Table3[[#This Row],[Befolkning 55 år]] -> 71405
B46: 2040 | C46: =IF( ISBLANK(fast_befolkning), IF( ISBLANK(valgt_kommune), IF( ISBLANK(valgt_sykehus), IF(OR(valgt_helseforetak="Alle",ISBLANK(valgt_helseforetak)), INDEX(hf[#Totals],1,MATCH("Hele"&TEXT(Table3[[#This Row],[År]],"#"),hf[#Headers],0)), INDEX(hf[],MATCH(valgt_helseforetak,alle_helseforetak,0),MATCH("Hele"&TEXT(Table3[[#This Row],[År]],"#"),hf[#Headers],0))), INDEX(lokalsykehus_befolkning[],MATCH(valgt_sykehus,alle_lokalsykehusområder,0),MATCH("Hele"&TEXT(Table3[[#This Row],[År]],"#"),lokalsykehus_befolkning[#Headers],0)) ), INDEX(hf_kommune[],MATCH(valgt_kommune,alle_kommuner,0),MATCH(TEXT(Table3[[#This Row],[År]],"#")&"-tot",hf_kommune[#Headers],0)) ), fast_befolkning) -> 5841616 | D46: =IF( ISBLANK(fast_befolkning), IF( ISBLANK(valgt_kommune), IF( ISBLANK(valgt_sykehus), IF(OR(valgt_helseforetak="Alle",ISBLANK(valgt_helseforetak)), INDEX(hf[#Totals],1,MATCH(TEXT(Table3[[#This Row],[År]],"#"),hf[#Headers],0)), INDEX(hf[],MATCH(valgt_helseforetak,alle_helseforetak,0),MATCH(TEXT(Table3[[#This Row],[År]],"#"),hf[#Headers],0))), INDEX(lokalsykehus_befolkning[],MATCH(valgt_sykehus,alle_lokalsykehusområder,0),MATCH(TEXT(Table3[[#This Row],[År]],"#"),lokalsykehus_befolkning[#Headers],0)) ), INDEX(hf_kommune[],MATCH(valgt_kommune,alle_kommuner,0),MATCH(TEXT(Table3[[#This Row],[År]],"#"),hf_kommune[#Headers],0)) ), fast_befolkning*INDEX(befolkningsfordeling[],1,MATCH(TEXT(Table3[[#This Row],[År]],"#"),befolkningsfordeling[#Headers],0))) -> 71875 | G46: 0 | H46: =1-Table3[[#This Row],[Andel til primær kolo]] -> 1 | I46: =Table3[[#This Row],[Normal befolkning]]*inviterbare*Table3[[#This Row],[Andel til primær kolo]] -> 0 | J46: 0 | K46: =inviterbare*Table3[[#This Row],[Andel til iFOBT]]*Table3[[#This Row],[Normal befolkning]] -> 71156.25 | L46: 68490.9939 | M46: 65342.96281 | N46: 61617.95406 | O46: 57363.7116 | P46: =ROUNDUP(SUM(Table3[[#This Row],[iFOBT utrulling runde 1]:[iFOBT runde 5 ]])/1000,0)*1000 -> 324000 | Q46: =Table3[[#This Row],[Primær koloskopi ]]*beregnet_deltakelse_kolo -> 0 | R46: =Table3[[#This Row],[iFOBT utrulling runde 1]]*beregnet_deltakelse_ifobt*beregnet_positivitet_ifobt*andel_positive_til_kolo_ifobt -> 0 | S46: =Table3[[#This Row],[iFOBT runde 1]]*beregnet_deltakelse_ifobt*beregnet_positivitet_ifobt*andel_positive_til_kolo_ifobt -> 2391.632719 | T46: =Table3[[#This Row],[iFOBT runde 2]]*beregnet_deltakelse_ifobt*beregnet_positivitet_ifobt*andel_positive_til_kolo_ifobt -> 2302.050796 | U46: =Table3[[#This Row],[iFOBT runde 3 ]]*beregnet_deltakelse_ifobt*beregnet_positivitet_ifobt*andel_positive_til_kolo_ifobt -> 2196.242323 | V46: =Table3[[#This Row],[iFOBT runde 4 ]]*beregnet_deltakelse_ifobt*beregnet_positivitet_ifobt*andel_positive_til_kolo_ifobt -> 2071.041054 | W46: =Table3[[#This Row],[iFOBT runde 5 ]]*beregnet_deltakelse_ifobt*beregnet_positivitet_ifobt*andel_positive_til_kolo_ifobt -> 1928.051711 | X46: =kolo_per_inv_kolo*Table3[[#This Row],[Primær koloskopi ]] -> 0 | Z46: =kolo_per_inv_ifobt*Table3[[#This Row],[iFOBT runde 1]] -> 2608.138417 | AA46: =kolo_per_inv_ifobt*Table3[[#This Row],[iFOBT runde 2]] -> 2510.446973 | AB46: =kolo_per_inv_ifobt*Table3[[#This Row],[iFOBT runde 3 ]] -> 2395.060049 | AC46: =kolo_per_inv_ifobt*Table3[[#This Row],[iFOBT runde 4 ]] -> 2258.52477 | AD46: =kolo_per_inv_ifobt*Table3[[#This Row],[iFOBT runde 5 ]] -> 2102.591129 | AE46: =SUM(Table3[[#This Row],[iFOBT R2 ]:[iFOBT R5 ]]) -> 9266.622921 | AF46: =SUM(Table3[[#This Row],[Primær koloskopi ]:[iFOBT R5 ]]) -> 11874.76134 | AG46: =Q43*andel_avansert_adenom_kolo+SUM(S43:W43)*andel_avansert_adenom_ifobt -> 3815.798362 | AH46: 4258.889445 | AI46: =Table3[[#This Row],[Første gang]]+Table3[[#This Row],[Gjentak-ende]] -> 8074.687807 | AJ46: =Table3[[#This Row],[Sum screening-koloskopier]]+Table3[[#This Row],[Totalt surveillance-koloskopier]] -> 19949.44915 | AK46: =IF(SUM(Table3[Befolkning 55 år])>30000,ROUNDUP((Table3[[#This Row],[Sum screening-koloskopier]]+Table3[[#This Row],[Totalt surveillance-koloskopier]])/50,0)*50,ROUNDUP((Table3[[#This Row],[Sum screening-koloskopier]]+Table3[[#This Row],[Totalt surveillance-koloskopier]])/10,0)*10) -> 19950 | AL46: =(Table3[[#This Row],[Sum screening-koloskopier]]+Table3[[#This Row],[Totalt surveillance-koloskopier]])/undersokelser_per_rom -> 18.13586286 | AM46: =IF(ISBLANK(Table3[[#This Row],[Skopirom]]),"",IF(Table3[[#This Row],[Skopirom]]<0.2,1,ROUND(Table3[[#This Row],[Skopirom]]+0.3,0))) -> 18 | AN46: =IF(Table3[[#This Row],[Hele rom, rundet opp hvis > 0,2]]-Table3[[#This Row],[Skopirom]]>0,Table3[[#This Row],[Hele rom, rundet opp hvis > 0,2]]-Table3[[#This Row],[Skopirom]],0) -> 0 | AO46: =ROUNDUP(ifobt_per_invitasjon*SUM(Table3[[#This Row],[iFOBT utrulling runde 1]:[iFOBT runde 5 ]])/1000,0)*1000 -> 346000 | AP46: =ROUNDUP(SUM(Table3[[#This Row],[iFOBT runde 1]:[iFOBT runde 5 ]])*deltakelse_ifobt/1000,0)*1000 -> 188000 | AQ46: =ROUNDUP((Table3[[#This Row],[Primær koloskopi ]]+Table3[[#This Row],[iFOBT runde 1]])/1000,0)*1000*ikke_digital_post -> 43200 | AR46: =ROUNDUP(SUM(Table3[[#This Row],[iFOBT runde 1]:[iFOBT runde 5 ]])*påminnelse/1000,0)*1000*ikke_digital_post -> 97200 | AS46: =ROUNDUP((beregnet_deltakelse_ifobt-beregnet_positivitet_ifobt)*SUM(Table3[[#This Row],[iFOBT runde 1]:[iFOBT runde 5 ]])/1000,0)*1000*ikke_digital_post -> 101400 | AW46: =(1-AT46)*Table3[[#This Row],[Befolkning 55 år]] -> 71875
B47: Sum førstegangsinviterte | I47: =SUBTOTAL(109,Table3[[Primær koloskopi ]]) -> 0 | J47: =SUBTOTAL(109,Table3[iFOBT utrulling runde 1]) -> 0 | K47: =SUBTOTAL(109,Table3[iFOBT runde 1]) -> 783537.48
B49: ="Prognose for " & IF( ISBLANK(fast_befolkning), IF( ISBLANK(valgt_kommune), IF( ISBLANK(valgt_sykehus), IF(OR(valgt_helseforetak="Alle",ISBLANK(valgt_helseforetak)), "hele landet", valgt_helseforetak),valgt_sykehus),valgt_kommune),"fast befolkning på "&fast_befolkning) -> Prognose for hele landet | O49: =IF( ISBLANK(fast_befolkning), IF( ISBLANK(valgt_kommune), IF( ISBLANK(valgt_sykehus), IF(OR(valgt_helseforetak="Alle",ISBLANK(valgt_helseforetak)), "Estimert antall skopirom for hele landet kan ikke brukes, da dette må sees på per HF", "Antall skopirom for " & valgt_helseforetak),"Antall skopirom for " & valgt_sykehus),"Antall skopirom for " & valgt_kommune),"fast befolkning på "&fast_befolkning) -> Estimert antall skopirom for hele landet kan ikke brukes, da dette må sees på per HF
B66: 4. Resultat: Grunnlag for beregning av patologikapasitet
B67: Antall vevsprøver og remisser. Inkluderer ikke funn ifm. overvåkningskoloskopier (surveillance). | AB67: Prognose for antall patologiremisser
B69: År | C69: Antall screening-skopier | D69: Antall ikke-avanserte adenom | E69: Antall avanserte adenom >= 20 mm | F69: Column1 | G69: Antall avanserte adenom < 20 mm | H69: Antall kreft-tilfeller | I69: Antall andre polypper | J69: Totalt antall vevs-prøver | K69: Vevs-prøver pr. screening-koloskopi | L69: Antall patologi-rekvisisjoner | M69: Antall patologi-rekvisisjoner (avr.) | N69: Rekvisisjoner pr. screening-koloskopi | O69: Vevs- prøver pr. rekvisisjon | V69: Kolonne1 | X69: Antall operasjons-preparat
B70: 2022 | C70: =AF28 -> 436.5258829 | D70: =histo_1_ifobt*($Y28+$Z28)+histo_1_ifobt_2gang*SUM($AA28:$AD28)+histo_1_kolo*$X28 -> 347.8942465 | E70: =histo_2_ifobt*($Y28+$Z28)+histo_2_ifobt_2gang*SUM($AA28:$AD28)+histo_2_kolo*$X28 -> 32.55856033 | G70: =histo_3_ifobt*($Y28+$Z28)+histo_3_ifobt_2gang*SUM($AA28:$AD28)+histo_3_kolo*$X28 -> 122.3960694 | H70: =histo_4_ifobt*($Y28+$Z28)+histo_4_ifobt_2gang*SUM($AA28:$AD28)+histo_4_kolo*$X28 -> 17.48515277 | I70: =histo_5_ifobt*($Y28+$Z28)+histo_5_ifobt_2gang*SUM($AA28:$AD28)+histo_5_kolo*$X28 -> 364.7764629 | J70: =SUM(Table17[[#This Row],[Antall ikke-avanserte adenom]:[Antall andre polypper]]) -> 885.1104919 | K70: =IF(Table17[[#This Row],[Antall screening-skopier]]>0,Table17[[#This Row],[Totalt antall vevs-prøver]]/Table17[[#This Row],[Antall screening-skopier]],"-") -> 2.027624309 | L70: =remisser_fobt*($Y28+$Z28)+remisser_fobt_2gang*SUM($AA28:$AD28)+remisser_kolo*$X28 -> 309.9333769 | M70: =ROUND(Table17[[#This Row],[Antall patologi-rekvisisjoner]]/50,0)*50 -> 300 | N70: =IF(Table17[[#This Row],[Antall screening-skopier]]>0,Table17[[#This Row],[Antall patologi-rekvisisjoner]]/Table17[[#This Row],[Antall screening-skopier]],"-") -> 0.71 | O70: =IF(Table17[[#This Row],[Antall patologi-rekvisisjoner]]>0,Table17[[#This Row],[Totalt antall vevs-prøver]]/Table17[[#This Row],[Antall patologi-rekvisisjoner]],"-") -> 2.855808886 | Q70: =ROUND(Table17[[#This Row],[Antall patologi-rekvisisjoner]]/100,0)*100 -> 300 | X70: =ifobt_operasjonspreparat*$Z28+ifobt_operasjonspreparat_2gang*SUM($AA28:$AD28)+kolo_operasjonspreparat*$X28 -> 0
B71: 2023 | C71: =AF29 -> 3793.617792 | D71: 3023.366666 | E71: 282.9493933 | G71: 1063.680127 | H71: 151.9543038 | I71: 3170.081166 | J71: =SUM(Table17[[#This Row],[Antall ikke-avanserte adenom]:[Antall andre polypper]]) -> 7692.031655 | K71: =IF(Table17[[#This Row],[Antall screening-skopier]]>0,Table17[[#This Row],[Totalt antall vevs-prøver]]/Table17[[#This Row],[Antall screening-skopier]],"-") -> 2.027624309 | L71: 2693.468632 | M71: =ROUND(Table17[[#This Row],[Antall patologi-rekvisisjoner]]/50,0)*50 -> 2700 | N71: =IF(Table17[[#This Row],[Antall screening-skopier]]>0,Table17[[#This Row],[Antall patologi-rekvisisjoner]]/Table17[[#This Row],[Antall screening-skopier]],"-") -> 0.71 | O71: =IF(Table17[[#This Row],[Antall patologi-rekvisisjoner]]>0,Table17[[#This Row],[Totalt antall vevs-prøver]]/Table17[[#This Row],[Antall patologi-rekvisisjoner]],"-") -> 2.855808886 | Q71: =ROUND(Table17[[#This Row],[Antall patologi-rekvisisjoner]]/100,0)*100 -> 2700 | X71: 0
B72: 2024 | C72: 4212.7693 | D72: 3384.441027 | E72: 298.7157231 | G72: 1145.547582 | H72: 163.3641094 | I72: 3513.568133 | J72: =SUM(Table17[[#This Row],[Antall ikke-avanserte adenom]:[Antall andre polypper]]) -> 8505.636575 | K72: =IF(Table17[[#This Row],[Antall screening-skopier]]>0,Table17[[#This Row],[Totalt antall vevs-prøver]]/Table17[[#This Row],[Antall screening-skopier]],"-") -> 2.01901314 | L72: 2958.36556 | M72: =ROUND(Table17[[#This Row],[Antall patologi-rekvisisjoner]]/50,0)*50 -> 2950 | N72: =IF(Table17[[#This Row],[Antall screening-skopier]]>0,Table17[[#This Row],[Antall patologi-rekvisisjoner]]/Table17[[#This Row],[Antall screening-skopier]],"-") -> 0.7022377324 | O72: =IF(Table17[[#This Row],[Antall patologi-rekvisisjoner]]>0,Table17[[#This Row],[Totalt antall vevs-prøver]]/Table17[[#This Row],[Antall patologi-rekvisisjoner]],"-") -> 2.875113437 | Q72: =ROUND(Table17[[#This Row],[Antall patologi-rekvisisjoner]]/100,0)*100 -> 3000 | X72: 12.14420122
B73: 2025 | C73: 6308.637081 | D73: 5262.615701 | E73: 335.8630288 | G73: 1458.981273 | H73: 205.9443719 | I73: 5212.878268 | J73: =SUM(Table17[[#This Row],[Antall ikke-avanserte adenom]:[Antall andre polypper]]) -> 12476.28264 | K73: =IF(Table17[[#This Row],[Antall screening-skopier]]>0,Table17[[#This Row],[Totalt antall vevs-prøver]]/Table17[[#This Row],[Antall screening-skopier]],"-") -> 1.977651034 | L73: 4194.94817 | M73: =ROUND(Table17[[#This Row],[Antall patologi-rekvisisjoner]]/50,0)*50 -> 4200 | N73: =IF(Table17[[#This Row],[Antall screening-skopier]]>0,Table17[[#This Row],[Antall patologi-rekvisisjoner]]/Table17[[#This Row],[Antall screening-skopier]],"-") -> 0.6649531612 | O73: =IF(Table17[[#This Row],[Antall patologi-rekvisisjoner]]>0,Table17[[#This Row],[Totalt antall vevs-prøver]]/Table17[[#This Row],[Antall patologi-rekvisisjoner]],"-") -> 2.974120809 | Q73: =ROUND(Table17[[#This Row],[Antall patologi-rekvisisjoner]]/100,0)*100 -> 4200 | X73: 250.7977519
B74: 2026 | C74: 6652.862886 | D74: 5563.306869 | E74: 346.4253098 | G74: 1520.724903 | H74: 214.4864271 | I74: 5493.922596 | J74: =SUM(Table17[[#This Row],[Antall ikke-avanserte adenom]:[Antall andre polypper]]) -> 13138.8661 | K74: =IF(Table17[[#This Row],[Antall screening-skopier]]>0,Table17[[#This Row],[Totalt antall vevs-prøver]]/Table17[[#This Row],[Antall screening-skopier]],"-") -> 1.974919118 | L74: 4407.458873 | M74: =ROUND(Table17[[#This Row],[Antall patologi-rekvisisjoner]]/50,0)*50 -> 4400 | N74: =IF(Table17[[#This Row],[Antall screening-skopier]]>0,Table17[[#This Row],[Antall patologi-rekvisisjoner]]/Table17[[#This Row],[Antall screening-skopier]],"-") -> 0.6624905621 | O74: =IF(Table17[[#This Row],[Antall patologi-rekvisisjoner]]>0,Table17[[#This Row],[Totalt antall vevs-prøver]]/Table17[[#This Row],[Antall patologi-rekvisisjoner]],"-") -> 2.981052458 | Q74: =ROUND(Table17[[#This Row],[Antall patologi-rekvisisjoner]]/100,0)*100 -> 4400 | X74: 259.7741726
B75: 2027 | C75: 8694.133394 | D75: 7323.000641 | E75: 422.4853689 | G75: 1917.758457 | H75: 269.8015938 | I75: 7166.390815 | J75: =SUM(Table17[[#This Row],[Antall ikke-avanserte adenom]:[Antall andre polypper]]) -> 17099.43688 | K75: =IF(Table17[[#This Row],[Antall screening-skopier]]>0,Table17[[#This Row],[Totalt antall vevs-prøver]]/Table17[[#This Row],[Antall screening-skopier]],"-") -> 1.966778758 | L75: 5695.984878 | M75: =ROUND(Table17[[#This Row],[Antall patologi-rekvisisjoner]]/50,0)*50 -> 5700 | N75: =IF(Table17[[#This Row],[Antall screening-skopier]]>0,Table17[[#This Row],[Antall patologi-rekvisisjoner]]/Table17[[#This Row],[Antall screening-skopier]],"-") -> 0.6551526897 | O75: =IF(Table17[[#This Row],[Antall patologi-rekvisisjoner]]>0,Table17[[#This Row],[Totalt antall vevs-prøver]]/Table17[[#This Row],[Antall patologi-rekvisisjoner]],"-") -> 3.002015848 | Q75: =ROUND(Table17[[#This Row],[Antall patologi-rekvisisjoner]]/100,0)*100 -> 5700 | X75: 321.1461095
B76: 2028 | C76: 9022.623391 | D76: 7606.502015 | E76: 434.5395577 | G76: 1981.223452 | H76: 278.6386759 | I76: 7435.450418 | J76: =SUM(Table17[[#This Row],[Antall ikke-avanserte adenom]:[Antall andre polypper]]) -> 17736.35412 | K76: =IF(Table17[[#This Row],[Antall screening-skopier]]>0,Table17[[#This Row],[Totalt antall vevs-prøver]]/Table17[[#This Row],[Antall screening-skopier]],"-") -> 1.965764651 | L76: 5902.948091 | M76: =ROUND(Table17[[#This Row],[Antall patologi-rekvisisjoner]]/50,0)*50 -> 5900 | N76: =IF(Table17[[#This Row],[Antall screening-skopier]]>0,Table17[[#This Row],[Antall patologi-rekvisisjoner]]/Table17[[#This Row],[Antall screening-skopier]],"-") -> 0.6542385551 | O76: =IF(Table17[[#This Row],[Antall patologi-rekvisisjoner]]>0,Table17[[#This Row],[Totalt antall vevs-prøver]]/Table17[[#This Row],[Antall patologi-rekvisisjoner]],"-") -> 3.004660357 | Q76: =ROUND(Table17[[#This Row],[Antall patologi-rekvisisjoner]]/100,0)*100 -> 5900 | X76: 330.9097185
B77: 2029 | C77: =AF35 -> 10879.96969 | D77: 9215.110468 | E77: 499.4644503 | G77: 2332.63043 | H77: 327.4833551 | I77: 8955.353635 | J77: =SUM(Table17[[#This Row],[Antall ikke-avanserte adenom]:[Antall andre polypper]]) -> 21330.04234 | K77: =IF(Table17[[#This Row],[Antall screening-skopier]]>0,Table17[[#This Row],[Totalt antall vevs-prøver]]/Table17[[#This Row],[Antall screening-skopier]],"-") -> 1.960487294 | L77: 7066.338464 | M77: =ROUND(Table17[[#This Row],[Antall patologi-rekvisisjoner]]/50,0)*50 -> 7050 | N77: =IF(Table17[[#This Row],[Antall screening-skopier]]>0,Table17[[#This Row],[Antall patologi-rekvisisjoner]]/Table17[[#This Row],[Antall screening-skopier]],"-") -> 0.6494814475 | O77: =IF(Table17[[#This Row],[Antall patologi-rekvisisjoner]]>0,Table17[[#This Row],[Totalt antall vevs-prøver]]/Table17[[#This Row],[Antall patologi-rekvisisjoner]],"-") -> 3.01854241 | Q77: =ROUND(Table17[[#This Row],[Antall patologi-rekvisisjoner]]/100,0)*100 -> 7100 | X77: 384.1552027
B78: 2030 | C78: 11189.11404 | D78: 9482.150113 | E78: 510.6743246 | G78: 2392.048523 | H78: 335.7533382 | I78: 9208.508871 | J78: =SUM(Table17[[#This Row],[Antall ikke-avanserte adenom]:[Antall andre polypper]]) -> 21929.13517 | K78: =IF(Table17[[#This Row],[Antall screening-skopier]]>0,Table17[[#This Row],[Totalt antall vevs-prøver]]/Table17[[#This Row],[Antall screening-skopier]],"-") -> 1.959863408 | L78: 7260.829424 | M78: =ROUND(Table17[[#This Row],[Antall patologi-rekvisisjoner]]/50,0)*50 -> 7250 | N78: =IF(Table17[[#This Row],[Antall screening-skopier]]>0,Table17[[#This Row],[Antall patologi-rekvisisjoner]]/Table17[[#This Row],[Antall screening-skopier]],"-") -> 0.6489190655 | O78: =IF(Table17[[#This Row],[Antall patologi-rekvisisjoner]]>0,Table17[[#This Row],[Totalt antall vevs-prøver]]/Table17[[#This Row],[Antall patologi-rekvisisjoner]],"-") -> 3.02019699 | Q78: =ROUND(Table17[[#This Row],[Antall patologi-rekvisisjoner]]/100,0)*100 -> 7300 | X78: 393.2622967
B79: 2031 | C79: 12858.04573 | D79: 10929.14446 | E79: 568.1141137 | G79: 2705.739311 | H79: 379.3310148 | I79: 10573.83591 | J79: =SUM(Table17[[#This Row],[Antall ikke-avanserte adenom]:[Antall andre polypper]]) -> 25156.16481 | K79: =IF(Table17[[#This Row],[Antall screening-skopier]]>0,Table17[[#This Row],[Totalt antall vevs-prøver]]/Table17[[#This Row],[Antall screening-skopier]],"-") -> 1.956453208 | L79: 8304.305151 | M79: =ROUND(Table17[[#This Row],[Antall patologi-rekvisisjoner]]/50,0)*50 -> 8300 | N79: =IF(Table17[[#This Row],[Antall screening-skopier]]>0,Table17[[#This Row],[Antall patologi-rekvisisjoner]]/Table17[[#This Row],[Antall screening-skopier]],"-") -> 0.6458450473 | O79: =IF(Table17[[#This Row],[Antall patologi-rekvisisjoner]]>0,Table17[[#This Row],[Totalt antall vevs-prøver]]/Table17[[#This Row],[Antall patologi-rekvisisjoner]],"-") -> 3.029291958 | Q79: =ROUND(Table17[[#This Row],[Antall patologi-rekvisisjoner]]/100,0)*100 -> 8300 | X79: 440.56127
B80: 2032 | C80: 12758.57659 | D80: 10847.179 | E80: 562.2388831 | G80: 2681.401622 | H80: 375.8826479 | I80: 10491.3905 | J80: =SUM(Table17[[#This Row],[Antall ikke-avanserte adenom]:[Antall andre polypper]]) -> 24958.09265 | K80: =IF(Table17[[#This Row],[Antall screening-skopier]]>0,Table17[[#This Row],[Totalt antall vevs-prøver]]/Table17[[#This Row],[Antall screening-skopier]],"-") -> 1.956181591 | L80: 8236.939685 | M80: =ROUND(Table17[[#This Row],[Antall patologi-rekvisisjoner]]/50,0)*50 -> 8250 | N80: =IF(Table17[[#This Row],[Antall screening-skopier]]>0,Table17[[#This Row],[Antall patologi-rekvisisjoner]]/Table17[[#This Row],[Antall screening-skopier]],"-") -> 0.6456002067 | O80: =IF(Table17[[#This Row],[Antall patologi-rekvisisjoner]]>0,Table17[[#This Row],[Totalt antall vevs-prøver]]/Table17[[#This Row],[Antall patologi-rekvisisjoner]],"-") -> 3.030020081 | Q80: =ROUND(Table17[[#This Row],[Antall patologi-rekvisisjoner]]/100,0)*100 -> 8200 | X80: 436.2554052
B81: 2033 | C81: 11721.22598 | D81: 9955.247115 | E81: 522.2531617 | G81: 2476.56675 | H81: 347.3094158 | I81: 9640.878671 | J81: =SUM(Table17[[#This Row],[Antall ikke-avanserte adenom]:[Antall andre polypper]]) -> 22942.25511 | K81: =IF(Table17[[#This Row],[Antall screening-skopier]]>0,Table17[[#This Row],[Totalt antall vevs-prøver]]/Table17[[#This Row],[Antall screening-skopier]],"-") -> 1.957325552 | L81: 7579.312706 | M81: =ROUND(Table17[[#This Row],[Antall patologi-rekvisisjoner]]/50,0)*50 -> 7600 | N81: =IF(Table17[[#This Row],[Antall screening-skopier]]>0,Table17[[#This Row],[Antall patologi-rekvisisjoner]]/Table17[[#This Row],[Antall screening-skopier]],"-") -> 0.646631395 | O81: =IF(Table17[[#This Row],[Antall patologi-rekvisisjoner]]>0,Table17[[#This Row],[Totalt antall vevs-prøver]]/Table17[[#This Row],[Antall patologi-rekvisisjoner]],"-") -> 3.026957193 | Q81: =ROUND(Table17[[#This Row],[Antall patologi-rekvisisjoner]]/100,0)*100 -> 7600 | X81: 404.2586038
B82: 2034 | C82: 11685.21588 | D82: 9919.822391 | E82: 523.4238458 | G82: 2475.34384 | H82: 347.2057769 | I82: 9612.472395 | J82: =SUM(Table17[[#This Row],[Antall ikke-avanserte adenom]:[Antall andre polypper]]) -> 22878.26825 | K82: =IF(Table17[[#This Row],[Antall screening-skopier]]>0,Table17[[#This Row],[Totalt antall vevs-prøver]]/Table17[[#This Row],[Antall screening-skopier]],"-") -> 1.957881522 | L82: 7561.883623 | M82: =ROUND(Table17[[#This Row],[Antall patologi-rekvisisjoner]]/50,0)*50 -> 7550 | N82: =IF(Table17[[#This Row],[Antall screening-skopier]]>0,Table17[[#This Row],[Antall patologi-rekvisisjoner]]/Table17[[#This Row],[Antall screening-skopier]],"-") -> 0.6471325564 | O82: =IF(Table17[[#This Row],[Antall patologi-rekvisisjoner]]>0,Table17[[#This Row],[Totalt antall vevs-prøver]]/Table17[[#This Row],[Antall patologi-rekvisisjoner]],"-") -> 3.025472143 | Q82: =ROUND(Table17[[#This Row],[Antall patologi-rekvisisjoner]]/100,0)*100 -> 7600 | X82: 404.6995549
B83: 2035 | C83: 11524.93561 | D83: 9780.024029 | E83: 518.3847585 | G83: 2446.31597 | H83: 343.1863679 | I83: 9481.558151 | J83: =SUM(Table17[[#This Row],[Antall ikke-avanserte adenom]:[Antall andre polypper]]) -> 22569.46928 | K83: =IF(Table17[[#This Row],[Antall screening-skopier]]>0,Table17[[#This Row],[Totalt antall vevs-prøver]]/Table17[[#This Row],[Antall screening-skopier]],"-") -> 1.958316301 | L83: 7462.67787 | M83: =ROUND(Table17[[#This Row],[Antall patologi-rekvisisjoner]]/50,0)*50 -> 7450 | N83: =IF(Table17[[#This Row],[Antall screening-skopier]]>0,Table17[[#This Row],[Antall patologi-rekvisisjoner]]/Table17[[#This Row],[Antall screening-skopier]],"-") -> 0.6475244739 | O83: =IF(Table17[[#This Row],[Antall patologi-rekvisisjoner]]>0,Table17[[#This Row],[Totalt antall vevs-prøver]]/Table17[[#This Row],[Antall patologi-rekvisisjoner]],"-") -> 3.024312408 | Q83: =ROUND(Table17[[#This Row],[Antall patologi-rekvisisjoner]]/100,0)*100 -> 7500 | X83: 400.4465156
B84: 2036 | C84: 11751.50602 | D84: 9972.930959 | E84: 528.208805 | G84: 2493.564092 | H84: 349.805734 | I84: 9667.797163 | J84: =SUM(Table17[[#This Row],[Antall ikke-avanserte adenom]:[Antall andre polypper]]) -> 23012.30675 | K84: =IF(Table17[[#This Row],[Antall screening-skopier]]>0,Table17[[#This Row],[Totalt antall vevs-prøver]]/Table17[[#This Row],[Antall screening-skopier]],"-") -> 1.9582432 | L84: 7608.613396 | M84: =ROUND(Table17[[#This Row],[Antall patologi-rekvisisjoner]]/50,0)*50 -> 7600 | N84: =IF(Table17[[#This Row],[Antall screening-skopier]]>0,Table17[[#This Row],[Antall patologi-rekvisisjoner]]/Table17[[#This Row],[Antall screening-skopier]],"-") -> 0.6474585797 | O84: =IF(Table17[[#This Row],[Antall patologi-rekvisisjoner]]>0,Table17[[#This Row],[Totalt antall vevs-prøver]]/Table17[[#This Row],[Antall patologi-rekvisisjoner]],"-") -> 3.024507299 | Q84: =ROUND(Table17[[#This Row],[Antall patologi-rekvisisjoner]]/100,0)*100 -> 7600 | V84: =ifobt_operasjonspreparat*$Z42+ifobt_operasjonspreparat_2gang*SUM($AA42:$AD42)+kolo_operasjonspreparat*$X42 -> 408.0964221

Sheet Rapport
A1: Prognoser for nasjonalt tarmscreeningprogram
A2: Rapportutskriftsdato | B2: =TODAY() -> 45646
A4: Innstillinger brukt ved generering av rapport:
A5: Deltakelse primær koloskopi | C5: 0.6
A6: Deltakelse iFOBT | C6: 0.6
A7: Første invitasjonsår | C7: 2022
A10: Resultater per helseforetak
A11: RHF | B11: Helseforetak | D11: Befolkning 2022 | E11: Koloskopier 2022 | F11: Koloskopier 2023 | G11: Koloskopier 2024 | H11: Koloskopier 2025 | I11: Koloskopier 2026 | J11: Koloskopier 2027 | K11: Koloskopier 2028 | L11: Koloskopier 2029 | M11: Skopirom 2022 | N11: Skopirom 2023 | O11: Skopirom 2024 | P11: Skopirom 2025 | Q11: Skopirom 2026 | R11: Skopirom 2027 | S11: Skopirom 2028 | T11: Skopirom 2029 | U11: Skopirom 2029, rundet opp hvis >=0,2 | V11: Patologi-remisser 2022 | W11: Patologi-remisser 2023 | X11: Patologi-remisser 2024 | Y11: Patologi-remisser 2025 | Z11: Patologi-remisser 2026 | AA11: Patologi-remisser 2027 | AB11: Patologi-remisser 2028 | AC11: Patologi-remisser 2029
A12: Helse Midt-Norge | B12: Helse Møre og Romsdal | D12: 265389 | E12: 0 | F12: 202.2148524 | G12: 202.7688657 | H12: 329.8221544 | I12: 393.539554 | J12: 514.9492996 | K12: 554.3727704 | L12: 671.5859696 | M12: 0 | N12: 0.183831684 | O12: 0.1843353324 | P12: 0.2998383222 | Q12: 0.3577632309 | R12: 0.4681357269 | S12: 0.5039752458 | T12: 0.6105326996 | U12: =IF(ISBLANK(hf_resultat[[#This Row],[Skopirom 2029]]),"",IF(hf_resultat[[#This Row],[Skopirom 2029]]<0.2,1,ROUND(hf_resultat[[#This Row],[Skopirom 2029]]+0.3,0))) -> 1 | V12: 0 | W12: 143.5725452 | X12: 143.9658946 | Y12: 219.0424937 | Z12: 216.7921603 | AA12: 293.1290335 | AB12: 291.5397494 | AC12: 359.1567812
A13: Helse Midt-Norge | B13: Helse Nord-Trøndelag | D13: 135980 | E13: 0 | F13: 107.702201 | G13: 107.9972756 | H13: 173.2495504 | I13: 205.0035646 | J13: 270.0026513 | K13: 287.9801015 | L13: 347.5201335 | M13: 0 | N13: 0.09791109186 | O13: 0.09817934142 | P13: 0.1574995913 | Q13: 0.1863668769 | R13: 0.2454569557 | S13: 0.2618000923 | T13: 0.3159273941 | U13: =IF(ISBLANK(hf_resultat[[#This Row],[Skopirom 2029]]),"",IF(hf_resultat[[#This Row],[Skopirom 2029]]<0.2,1,ROUND(hf_resultat[[#This Row],[Skopirom 2029]]+0.3,0))) -> 1 | V13: 0 | W13: 76.46856274 | X13: 76.67806565 | Y13: 114.9480922 | Z13: 112.1998312 | AA13: 153.2763935 | AB13: 151.0163989 | AC13: 185.4685707
A14: Helse Midt-Norge | B14: St. Olavs hospital | D14: 338476 | E14: 0 | F14: 248.7892821 | G14: 249.4708966 | H14: 401.7835163 | I14: 479.2163701 | J14: 628.4275233 | K14: 671.9758804 | L14: 826.0650403 | M14: 0 | N14: 0.2261720746 | O14: 0.2267917242 | P14: 0.3652577421 | Q14: 0.4356512455 | R14: 0.5712977485 | S14: 0.610887164 | T14: 0.7509682184 | U14: =IF(ISBLANK(hf_resultat[[#This Row],[Skopirom 2029]]),"",IF(hf_resultat[[#This Row],[Skopirom 2029]]<0.2,1,ROUND(hf_resultat[[#This Row],[Skopirom 2029]]+0.3,0))) -> 1 | V14: 0 | W14: 176.6403903 | X14: 177.1243366 | Y14: 266.6500116 | Z14: 263.1997543 | AA14: 357.3033174 | AB14: 352.8410973 | AC14: 443.2879171
A15: Helse Nord | B15: Finnmarkssykehuset | D15: 75333 | E15: 0 | F15: 63.38830323 | G15: 63.56196982 | H15: 102.1304416 | I15: 125.2246259 | J15: 160.2631431 | K15: 174.1205562 | L15: 208.9259949 | M15: 0 | N15: 0.05762573021 | O15: 0.05778360892 | P15: 0.09284585604 | Q15: 0.113840569 | R15: 0.1456937664 | S15: 0.1582914147 | T15: 0.1899327227 | U15: =IF(ISBLANK(hf_resultat[[#This Row],[Skopirom 2029]]),"",IF(hf_resultat[[#This Row],[Skopirom 2029]]<0.2,1,ROUND(hf_resultat[[#This Row],[Skopirom 2029]]+0.3,0))) -> 1 | V15: 0 | W15: 45.0056953 | X15: 45.12899857 | Y15: 67.76942404 | Z15: 69.27969949 | AA15: 91.15916613 | AB15: 91.78738676 | AC15: 111.1028861
A16: Helse Nord | B16: Helgelandssykehuset | D16: 75477 | E16: 0 | F16: 62.93993327 | G16: 63.11237145 | H16: 102.7212759 | I16: 119.6422618 | J16: 156.8445357 | K16: 166.0837866 | L16: 199.0438065 | M16: 0 | N16: 0.05721812116 | O16: 0.05737488313 | P16: 0.09338297806 | Q16: 0.1087656925 | R16: 0.1425859416 | S16: 0.1509852605 | T16: 0.180948915 | U16: =IF(ISBLANK(hf_resultat[[#This Row],[Skopirom 2029]]),"",IF(hf_resultat[[#This Row],[Skopirom 2029]]<0.2,1,ROUND(hf_resultat[[#This Row],[Skopirom 2029]]+0.3,0))) -> 1 | V16: 0 | W16: 44.68735262 | X16: 44.80978373 | Y16: 68.22246675 | Z16: 65.45507 | AA16: 88.79374249 | AB16: 86.34977669 | AC16: 105.6214372
A17: Helse Nord | B17: Nordlandssykehuset | D17: 137928 | E17: 0 | F17: 111.0649757 | G17: 111.3692634 | H17: 178.8268991 | I17: 211.2893005 | J17: 276.7925234 | K17: 293.1390247 | L17: 355.6449288 | M17: 0 | N17: 0.1009681598 | O17: 0.1012447849 | P17: 0.1625699083 | Q17: 0.1920811823 | R17: 0.2516295668 | S17: 0.2664900225 | T17: 0.3233135717 | U17: =IF(ISBLANK(hf_resultat[[#This Row],[Skopirom 2029]]),"",IF(hf_resultat[[#This Row],[Skopirom 2029]]<0.2,1,ROUND(hf_resultat[[#This Row],[Skopirom 2029]]+0.3,0))) -> 1 | V17: 0 | W17: 78.85613278 | X17: 79.07217698 | Y17: 118.6563817 | Z17: 115.6213358 | AA17: 156.8848769 | AB17: 152.9795784 | AC17: 189.473684
A18: Helse Nord | B18: Universitetssykehuset Nord-Norge | D18: 192837 | E18: 0 | F18: 150.1478907 | G18: 150.5592548 | H18: 239.6280141 | I18: 290.6068492 | J18: 375.9722497 | K18: 403.3535239 | L18: 490.786272 | M18: 0 | N18: 0.1364980824 | O18: 0.1368720498 | P18: 0.2178436492 | Q18: 0.2641880447 | R18: 0.3417929542 | S18: 0.3666850217 | T18: 0.4461693381 | U18: =IF(ISBLANK(hf_resultat[[#This Row],[Skopirom 2029]]),"",IF(hf_resultat[[#This Row],[Skopirom 2029]]<0.2,1,ROUND(hf_resultat[[#This Row],[Skopirom 2029]]+0.3,0))) -> 1 | V18: 0 | W18: 106.6050024 | X18: 106.8970709 | Y18: 158.9006957 | Z18: 159.8337862 | AA18: 213.5133747 | AB18: 211.9527034 | AC18: 261.9467381
A19: Helse Sør-Øst | B19: Akershus universitetssykehus | D19: 601226 | E19: 0 | F19: 485.0428874 | G19: 486.371772 | H19: 785.5934995 | I19: 942.6448689 | J19: 1237.921065 | K19: 1336.07268 | L19: 1624.564058 | M19: 0 | N19: 0.4409480794 | O19: 0.4421561564 | P19: 0.7141759086 | Q19: 0.8569498808 | R19: 1.125382786 | S19: 1.214611527 | T19: 1.476876416 | U19: =IF(ISBLANK(hf_resultat[[#This Row],[Skopirom 2029]]),"",IF(hf_resultat[[#This Row],[Skopirom 2029]]<0.2,1,ROUND(hf_resultat[[#This Row],[Skopirom 2029]]+0.3,0))) -> 2 | V19: 0 | W19: 344.38045 | X19: 345.3239581 | Y19: 521.4768283 | Z19: 519.0721082 | AA19: 705.471956 | AB19: 705.1908839 | AC19: 871.3039148
A20: Helse Sør-Øst | B20: Oslosykehusene | D20: 591127 | E20: 0 | F20: 368.4106513 | G20: 369.4199955 | H20: 603.8042176 | I20: 728.5594651 | J20: 957.6319523 | K20: 1042.964934 | L20: 1275.60696 | M20: 0 | N20: 0.3349187739 | O20: 0.3358363596 | P20: 0.5489129251 | Q20: 0.6623267864 | R20: 0.8705745021 | S20: 0.94814994 | T20: 1.159642691 | U20: =IF(ISBLANK(hf_resultat[[#This Row],[Skopirom 2029]]),"",IF(hf_resultat[[#This Row],[Skopirom 2029]]<0.2,1,ROUND(hf_resultat[[#This Row],[Skopirom 2029]]+0.3,0))) -> 1 | V20: 0 | W20: 261.5715624 | X20: 262.2881968 | Y20: 401.1337391 | Z20: 403.1895814 | AA20: 547.6423132 | AB20: 553.0064322 | AC20: 687.1259172
A21: Helse Sør-Øst | B21: Sykehuset i Vestfold | D21: 248509 | E21: 0 | F21: 201.2247021 | G21: 201.7760026 | H21: 329.1579306 | I21: 387.8312317 | J21: 514.3601594 | K21: 551.6129795 | L21: 669.2055368 | M21: 0 | N21: 0.1829315473 | O21: 0.1834327297 | P21: 0.2992344824 | Q21: 0.352573847 | R21: 0.4676001449 | S21: 0.501466345 | T21: 0.6083686699 | U21: =IF(ISBLANK(hf_resultat[[#This Row],[Skopirom 2029]]),"",IF(hf_resultat[[#This Row],[Skopirom 2029]]<0.2,1,ROUND(hf_resultat[[#This Row],[Skopirom 2029]]+0.3,0))) -> 1 | V21: 0 | W21: 142.8695385 | X21: 143.2609619 | Y21: 218.6449853 | Z21: 213.0458765 | AA21: 292.9945256 | AB21: 290.1399214 | AC21: 358.7844515
A22: Helse Sør-Øst | B22: Sykehuset Innlandet | D22: 332626 | E22: 0 | F22: 272.1045201 | G22: 272.8500119 | H22: 441.8499736 | I22: 527.609086 | J22: 687.6135535 | K22: 740.0272467 | L22: 894.4553199 | M22: 0 | N22: 0.2473677455 | O22: 0.2480454654 | P22: 0.4016817942 | Q22: 0.4796446237 | R22: 0.6251032305 | S22: 0.6727520424 | T22: 0.8131411999 | U22: =IF(ISBLANK(hf_resultat[[#This Row],[Skopirom 2029]]),"",IF(hf_resultat[[#This Row],[Skopirom 2029]]<0.2,1,ROUND(hf_resultat[[#This Row],[Skopirom 2029]]+0.3,0))) -> 1 | V22: 0 | W22: 193.1942092 | X22: 193.7235085 | Y22: 293.3525749 | Z22: 290.3384319 | AA22: 390.815418 | AB22: 388.6854862 | AC22: 477.5814343
A23: Helse Sør-Øst | B23: Sykehuset Telemark | D23: 173224 | E23: 0 | F23: 142.675058 | G23: 143.0659486 | H23: 228.7097334 | I23: 277.7984229 | J23: 358.2024076 | K23: 388.5479859 | L23: 466.628032 | M23: 0 | N23: 0.1297045982 | O23: 0.1300599532 | P23: 0.2079179395 | Q23: 0.2525440208 | R23: 0.3256385524 | S23: 0.3532254417 | T23: 0.4242073018 | U23: =IF(ISBLANK(hf_resultat[[#This Row],[Skopirom 2029]]),"",IF(hf_resultat[[#This Row],[Skopirom 2029]]<0.2,1,ROUND(hf_resultat[[#This Row],[Skopirom 2029]]+0.3,0))) -> 1 | V23: 0 | W23: 101.2992912 | X23: 101.5768235 | Y23: 151.70789 | Z23: 153.0539544 | AA23: 203.4804116 | AB23: 204.7847021 | AC23: 248.640075
A24: Helse Sør-Øst | B24: Sykehuset Østfold | D24: 321458 | E24: 0 | F24: 267.8636875 | G24: 268.5975606 | H24: 434.5533705 | I24: 523.0157821 | J24: 681.1197953 | K24: 737.2272586 | L24: 892.8174382 | M24: 0 | N24: 0.2435124432 | O24: 0.2441796006 | P24: 0.3950485186 | Q24: 0.4754688928 | R24: 0.619199814 | S24: 0.6702065987 | T24: 0.8116522165 | U24: =IF(ISBLANK(hf_resultat[[#This Row],[Skopirom 2029]]),"",IF(hf_resultat[[#This Row],[Skopirom 2029]]<0.2,1,ROUND(hf_resultat[[#This Row],[Skopirom 2029]]+0.3,0))) -> 1 | V24: 0 | W24: 190.1832181 | X24: 190.7042681 | Y24: 288.4893176 | Z24: 288.3904667 | AA24: 387.7534028 | AB24: 388.6531953 | AC24: 477.7057419
A25: Helse Sør-Øst | B25: Sørlandet sykehus | D25: 316360 | E25: 0 | F25: 238.3459984 | G25: 238.9990012 | H25: 389.4337946 | I25: 463.2389014 | J25: 612.2587704 | K25: 654.4973059 | L25: 804.9682798 | M25: 0 | N25: 0.2166781804 | O25: 0.2172718192 | P25: 0.3540307224 | Q25: 0.421126274 | R25: 0.5565988822 | S25: 0.5949975508 | T25: 0.7317893453 | U25: =IF(ISBLANK(hf_resultat[[#This Row],[Skopirom 2029]]),"",IF(hf_resultat[[#This Row],[Skopirom 2029]]<0.2,1,ROUND(hf_resultat[[#This Row],[Skopirom 2029]]+0.3,0))) -> 1 | V25: 0 | W25: 169.2256589 | X25: 169.6892908 | Y25: 258.6631542 | Z25: 255.0897774 | AA25: 349.216477 | AB25: 344.2781352 | AC25: 432.5808946
A26: Helse Sør-Øst | B26: Vestre Viken | D26: 493765 | E26: 0 | F26: 395.2007564 | G26: 396.2834982 | H26: 639.1888176 | I26: 767.7030634 | J26: 1009.897583 | K26: 1087.333364 | L26: 1329.414198 | M26: 0 | N26: 0.3592734149 | O26: 0.3602577257 | P26: 0.5810807432 | Q26: 0.6979118758 | R26: 0.9180887118 | S26: 0.988484876 | T26: 1.208558362 | U26: =IF(ISBLANK(hf_resultat[[#This Row],[Skopirom 2029]]),"",IF(hf_resultat[[#This Row],[Skopirom 2029]]<0.2,1,ROUND(hf_resultat[[#This Row],[Skopirom 2029]]+0.3,0))) -> 2 | V26: 0 | W26: 280.5925371 | X26: 281.3612837 | Y26: 424.252168 | Z26: 422.6853053 | AA26: 575.7697757 | AB26: 573.9086078 | AC26: 713.9920682
A27: Helse Vest | B27: Helse Bergen | D27: 465863 | E27: 0 | F27: 334.9510429 | G27: 335.868717 | H27: 546.6539688 | I27: 652.4458463 | J27: 853.9317827 | K27: 921.5257756 | L27: 1128.123944 | M27: 0 | N27: 0.3045009481 | O27: 0.3053351973 | P27: 0.4969581534 | Q27: 0.5931325876 | R27: 0.7763016206 | S27: 0.8377507051 | T27: 1.025567222 | U27: =IF(ISBLANK(hf_resultat[[#This Row],[Skopirom 2029]]),"",IF(hf_resultat[[#This Row],[Skopirom 2029]]<0.2,1,ROUND(hf_resultat[[#This Row],[Skopirom 2029]]+0.3,0))) -> 1 | V27: 0 | W27: 237.8152405 | X27: 238.4667891 | Y27: 363.060762 | Z27: 359.5105227 | AA27: 486.201721 | AB27: 485.1001389 | AC27: 605.85014
A28: Helse Vest | B28: Helse Fonna | D28: 179407 | E28: 0 | F28: 139.2188729 | G28: 139.6002945 | H28: 223.381752 | I28: 268.7377166 | J28: 350.4536383 | K28: 374.1687202 | L28: 460.431382 | M28: 0 | N28: 0.1265626117 | O28: 0.1269093586 | P28: 0.20307432 | Q28: 0.2443070151 | R28: 0.3185942166 | S28: 0.340153382 | T28: 0.4185739836 | U28: =IF(ISBLANK(hf_resultat[[#This Row],[Skopirom 2029]]),"",IF(hf_resultat[[#This Row],[Skopirom 2029]]<0.2,1,ROUND(hf_resultat[[#This Row],[Skopirom 2029]]+0.3,0))) -> 1 | V28: 0 | W28: 98.84539975 | X28: 99.11620906 | Y28: 148.1836409 | Z28: 147.6911477 | AA28: 199.1945346 | AB28: 196.4220066 | AC28: 246.7202728
A29: Helse Vest | B29: Helse Førde | D29: 102567 | E29: 0 | F29: 76.91413039 | G29: 77.12485403 | H29: 124.0981644 | I29: 148.8534942 | J29: 195.6595622 | K29: 209.593025 | L29: 251.926732 | M29: 0 | N29: 0.06992193672 | O29: 0.07011350367 | P29: 0.1128165131 | Q29: 0.1353213584 | R29: 0.1778723293 | S29: 0.1905391137 | T29: 0.2290243019 | U29: =IF(ISBLANK(hf_resultat[[#This Row],[Skopirom 2029]]),"",IF(hf_resultat[[#This Row],[Skopirom 2029]]<0.2,1,ROUND(hf_resultat[[#This Row],[Skopirom 2029]]+0.3,0))) -> 1 | V29: 0 | W29: 54.60903258 | X29: 54.75864636 | Y29: 82.35440307 | Z29: 81.86758288 | AA29: 111.4492207 | AB29: 110.3694447 | AC29: 134.3237614
A30: Helse Vest | B30: Helse Stavanger | D30: 369799 | E30: 0 | F30: 268.1065546 | G30: 268.8410931 | H30: 436.314564 | I30: 519.4326359 | J30: 681.9530395 | K30: 734.5732479 | L30: 898.7082448 | M30: 0 | N30: 0.2437332314 | O30: 0.2444009937 | P30: 0.3966496036 | Q30: 0.4722114872 | R30: 0.6199573086 | S30: 0.6677938617 | T30: 0.8170074953 | U30: =IF(ISBLANK(hf_resultat[[#This Row],[Skopirom 2029]]),"",IF(hf_resultat[[#This Row],[Skopirom 2029]]<0.2,1,ROUND(hf_resultat[[#This Row],[Skopirom 2029]]+0.3,0))) -> 1 | V30: 0 | W30: 190.3556538 | X30: 190.8771761 | Y30: 289.7215918 | Z30: 285.771223 | AA30: 388.1558047 | AB30: 386.629447 | AC30: 482.6809507
A31: Total | D31: =SUM(hf_resultat[Befolkning 2022]) -> 5417351 | E31: =SUBTOTAL(109,hf_resultat[Koloskopier 2022]) -> 0 | F31: =SUBTOTAL(109,hf_resultat[Koloskopier 2023]) -> 4136.3063 | G31: =SUBTOTAL(109,hf_resultat[Koloskopier 2024]) -> 4147.638646 | H31: =SUBTOTAL(109,hf_resultat[Koloskopier 2025]) -> 6710.901638 | I31: =SUBTOTAL(109,hf_resultat[Koloskopier 2026]) -> 8032.393041 | J31: =SUBTOTAL(109,hf_resultat[Koloskopier 2027]) -> 10524.25524 | K31: =SUBTOTAL(109,hf_resultat[Koloskopier 2028]) -> 11329.17017 | L31: =SUBTOTAL(109,hf_resultat[Koloskopier 2029]) -> 13796.42227 | M31: =SUBTOTAL(109,hf_resultat[Skopirom 2022]) -> 0 | N31: =SUBTOTAL(109,hf_resultat[Skopirom 2023]) -> 3.760278455 | O31: =SUBTOTAL(109,hf_resultat[Skopirom 2024]) -> 3.770580588 | P31: =SUBTOTAL(109,hf_resultat[Skopirom 2025]) -> 6.100819671 | Q31: =SUBTOTAL(109,hf_resultat[Skopirom 2026]) -> 7.302175491 | R31: =SUBTOTAL(109,hf_resultat[Skopirom 2027]) -> 9.567504759 | S31: =SUBTOTAL(109,hf_resultat[Skopirom 2028]) -> 10.29924561 | T31: =SUBTOTAL(109,hf_resultat[Skopirom 2029]) -> 12.54220206 | U31: =SUBTOTAL(109,hf_resultat[Skopirom 2029, rundet opp hvis >=0,2]) -> 21 | V31: =SUBTOTAL(109,hf_resultat[Patologi-remisser 2022]) -> 0 | W31: =SUBTOTAL(109,hf_resultat[Patologi-remisser 2023]) -> 2936.777473 | X31: =SUBTOTAL(109,hf_resultat[Patologi-remisser 2024]) -> 2944.823439 | Y31: =SUBTOTAL(109,hf_resultat[Patologi-remisser 2025]) -> 4455.230621 | Z31: =SUBTOTAL(109,hf_resultat[Patologi-remisser 2026]) -> 4422.087615 | AA31: =SUBTOTAL(109,hf_resultat[Patologi-remisser 2027]) -> 5992.205466 | AB31: =SUBTOTAL(109,hf_resultat[Patologi-remisser 2028]) -> 5965.635092 | AC31: =SUBTOTAL(109,hf_resultat[Patologi-remisser 2029]) -> 7393.347637
A33: RHF | D33: Befolkning 2022 | E33: Koloskopier 2022 | F33: Koloskopier 2023 | G33: Koloskopier 2024 | H33: Koloskopier 2025 | I33: Koloskopier 2026 | J33: Koloskopier 2027 | K33: Koloskopier 2028 | L33: Koloskopier 2029 | M33: Skopirom 2022 | N33: Skopirom 2023 | O33: Skopirom 2024 | P33: Skopirom 2025 | Q33: Skopirom 2026 | R33: Skopirom 2027 | S33: Skopirom 2028 | T33: Skopirom 2029 | U33: Skopirom 2029, rundet opp hvis >=0,2 | V33: Patologi-remisser 2022 | W33: Patologi-remisser 2023 | X33: Patologi-remisser 2024 | Y33: Patologi-remisser 2025 | Z33: Patologi-remisser 2026 | AA33: Patologi-remisser 2027 | AB33: Patologi-remisser 2028 | AC33: Patologi-remisser 2029
A34: Helse Sør-Øst | D34: =SUMIFS(hf_resultat[Befolkning 2022],hf_resultat[RHF],"="&$A34) -> 3078295 | E34: =SUMIFS(hf_resultat[Koloskopier 2022],hf_resultat[RHF],"="&$A34) -> 0 | F34: =SUMIFS(hf_resultat[Koloskopier 2023],hf_resultat[RHF],"="&$A34) -> 2370.868261 | G34: =SUMIFS(hf_resultat[Koloskopier 2024],hf_resultat[RHF],"="&$A34) -> 2377.363791 | H34: =SUMIFS(hf_resultat[Koloskopier 2025],hf_resultat[RHF],"="&$A34) -> 3852.291337 | I34: =SUMIFS(hf_resultat[Koloskopier 2026],hf_resultat[RHF],"="&$A34) -> 4618.400821 | J34: =SUMIFS(hf_resultat[Koloskopier 2027],hf_resultat[RHF],"="&$A34) -> 6059.005286 | K34: =SUMIFS(hf_resultat[Koloskopier 2028],hf_resultat[RHF],"="&$A34) -> 6538.283754 | L34: =SUMIFS(hf_resultat[Koloskopier 2029],hf_resultat[RHF],"="&$A34) -> 7957.659822 | M34: =SUMIFS(hf_resultat[Skopirom 2022],hf_resultat[RHF],"="&$A34) -> 0 | N34: =SUMIFS(hf_resultat[Skopirom 2023],hf_resultat[RHF],"="&$A34) -> 2.155334783 | O34: =SUMIFS(hf_resultat[Skopirom 2024],hf_resultat[RHF],"="&$A34) -> 2.16123981 | P34: =SUMIFS(hf_resultat[Skopirom 2025],hf_resultat[RHF],"="&$A34) -> 3.502083034 | Q34: =SUMIFS(hf_resultat[Skopirom 2026],hf_resultat[RHF],"="&$A34) -> 4.198546201 | R34: =SUMIFS(hf_resultat[Skopirom 2027],hf_resultat[RHF],"="&$A34) -> 5.508186624 | S34: =SUMIFS(hf_resultat[Skopirom 2028],hf_resultat[RHF],"="&$A34) -> 5.943894322 | T34: =SUMIFS(hf_resultat[Skopirom 2029],hf_resultat[RHF],"="&$A34) -> 7.234236202 | U34: =SUMIFS(hf_resultat[Skopirom 2029, rundet opp hvis >=0,2],hf_resultat[RHF],"="&$A34) -> 10 | V34: =SUMIFS(hf_resultat[Patologi-remisser 2022],hf_resultat[RHF],"="&$A34) -> 0 | W34: =SUMIFS(hf_resultat[Patologi-remisser 2023],hf_resultat[RHF],"="&$A34) -> 1683.316465 | X34: =SUMIFS(hf_resultat[Patologi-remisser 2024],hf_resultat[RHF],"="&$A34) -> 1687.928291 | Y34: =SUMIFS(hf_resultat[Patologi-remisser 2025],hf_resultat[RHF],"="&$A34) -> 2557.720657 | Z34: =SUMIFS(hf_resultat[Patologi-remisser 2026],hf_resultat[RHF],"="&$A34) -> 2544.865502 | AA34: =SUMIFS(hf_resultat[Patologi-remisser 2027],hf_resultat[RHF],"="&$A34) -> 3453.14428 | AB34: =SUMIFS(hf_resultat[Patologi-remisser 2028],hf_resultat[RHF],"="&$A34) -> 3448.647364 | AC34: =SUMIFS(hf_resultat[Patologi-remisser 2029],hf_resultat[RHF],"="&$A34) -> 4267.714497
A35: Helse Nord | D35: =SUMIFS(hf_resultat[Befolkning 2022],hf_resultat[RHF],"="&$A35) -> 481575 | E35: =SUMIFS(hf_resultat[Koloskopier 2022],hf_resultat[RHF],"="&$A35) -> 0 | F35: =SUMIFS(hf_resultat[Koloskopier 2023],hf_resultat[RHF],"="&$A35) -> 387.5411029 | G35: =SUMIFS(hf_resultat[Koloskopier 2024],hf_resultat[RHF],"="&$A35) -> 388.6028594 | H35: =SUMIFS(hf_resultat[Koloskopier 2025],hf_resultat[RHF],"="&$A35) -> 623.3066307 | I35: =SUMIFS(hf_resultat[Koloskopier 2026],hf_resultat[RHF],"="&$A35) -> 746.7630373 | J35: =SUMIFS(hf_resultat[Koloskopier 2027],hf_resultat[RHF],"="&$A35) -> 969.8724519 | K35: =SUMIFS(hf_resultat[Koloskopier 2028],hf_resultat[RHF],"="&$A35) -> 1036.696891 | L35: =SUMIFS(hf_resultat[Koloskopier 2029],hf_resultat[RHF],"="&$A35) -> 1254.401002 | M35: =SUMIFS(hf_resultat[Skopirom 2022],hf_resultat[RHF],"="&$A35) -> 0 | N35: =SUMIFS(hf_resultat[Skopirom 2023],hf_resultat[RHF],"="&$A35) -> 0.3523100936 | O35: =SUMIFS(hf_resultat[Skopirom 2024],hf_resultat[RHF],"="&$A35) -> 0.3532753267 | P35: =SUMIFS(hf_resultat[Skopirom 2025],hf_resultat[RHF],"="&$A35) -> 0.5666423916 | Q35: =SUMIFS(hf_resultat[Skopirom 2026],hf_resultat[RHF],"="&$A35) -> 0.6788754885 | R35: =SUMIFS(hf_resultat[Skopirom 2027],hf_resultat[RHF],"="&$A35) -> 0.881702229 | S35: =SUMIFS(hf_resultat[Skopirom 2028],hf_resultat[RHF],"="&$A35) -> 0.9424517195 | T35: =SUMIFS(hf_resultat[Skopirom 2029],hf_resultat[RHF],"="&$A35) -> 1.140364548 | U35: =SUMIFS(hf_resultat[Skopirom 2029, rundet opp hvis >=0,2],hf_resultat[RHF],"="&$A35) -> 4 | V35: =SUMIFS(hf_resultat[Patologi-remisser 2022],hf_resultat[RHF],"="&$A35) -> 0 | W35: =SUMIFS(hf_resultat[Patologi-remisser 2023],hf_resultat[RHF],"="&$A35) -> 275.1541831 | X35: =SUMIFS(hf_resultat[Patologi-remisser 2024],hf_resultat[RHF],"="&$A35) -> 275.9080302 | Y35: =SUMIFS(hf_resultat[Patologi-remisser 2025],hf_resultat[RHF],"="&$A35) -> 413.5489682 | Z35: =SUMIFS(hf_resultat[Patologi-remisser 2026],hf_resultat[RHF],"="&$A35) -> 410.1898914 | AA35: =SUMIFS(hf_resultat[Patologi-remisser 2027],hf_resultat[RHF],"="&$A35) -> 550.3511602 | AB35: =SUMIFS(hf_resultat[Patologi-remisser 2028],hf_resultat[RHF],"="&$A35) -> 543.0694452 | AC35: =SUMIFS(hf_resultat[Patologi-remisser 2029],hf_resultat[RHF],"="&$A35) -> 668.1447455
A36: Helse Vest | D36: =SUMIFS(hf_resultat[Befolkning 2022],hf_resultat[RHF],"="&$A36) -> 1117636 | E36: =SUMIFS(hf_resultat[Koloskopier 2022],hf_resultat[RHF],"="&$A36) -> 0 | F36: =SUMIFS(hf_resultat[Koloskopier 2023],hf_resultat[RHF],"="&$A36) -> 819.1906008 | G36: =SUMIFS(hf_resultat[Koloskopier 2024],hf_resultat[RHF],"="&$A36) -> 821.4349586 | H36: =SUMIFS(hf_resultat[Koloskopier 2025],hf_resultat[RHF],"="&$A36) -> 1330.448449 | I36: =SUMIFS(hf_resultat[Koloskopier 2026],hf_resultat[RHF],"="&$A36) -> 1589.469693 | J36: =SUMIFS(hf_resultat[Koloskopier 2027],hf_resultat[RHF],"="&$A36) -> 2081.998023 | K36: =SUMIFS(hf_resultat[Koloskopier 2028],hf_resultat[RHF],"="&$A36) -> 2239.860769 | L36: =SUMIFS(hf_resultat[Koloskopier 2029],hf_resultat[RHF],"="&$A36) -> 2739.190303 | M36: =SUMIFS(hf_resultat[Skopirom 2022],hf_resultat[RHF],"="&$A36) -> 0 | N36: =SUMIFS(hf_resultat[Skopirom 2023],hf_resultat[RHF],"="&$A36) -> 0.744718728 | O36: =SUMIFS(hf_resultat[Skopirom 2024],hf_resultat[RHF],"="&$A36) -> 0.7467590533 | P36: =SUMIFS(hf_resultat[Skopirom 2025],hf_resultat[RHF],"="&$A36) -> 1.20949859 | Q36: =SUMIFS(hf_resultat[Skopirom 2026],hf_resultat[RHF],"="&$A36) -> 1.444972448 | R36: =SUMIFS(hf_resultat[Skopirom 2027],hf_resultat[RHF],"="&$A36) -> 1.892725475 | S36: =SUMIFS(hf_resultat[Skopirom 2028],hf_resultat[RHF],"="&$A36) -> 2.036237062 | T36: =SUMIFS(hf_resultat[Skopirom 2029],hf_resultat[RHF],"="&$A36) -> 2.490173003 | U36: =SUMIFS(hf_resultat[Skopirom 2029, rundet opp hvis >=0,2],hf_resultat[RHF],"="&$A36) -> 4 | V36: =SUMIFS(hf_resultat[Patologi-remisser 2022],hf_resultat[RHF],"="&$A36) -> 0 | W36: =SUMIFS(hf_resultat[Patologi-remisser 2023],hf_resultat[RHF],"="&$A36) -> 581.6253266 | X36: =SUMIFS(hf_resultat[Patologi-remisser 2024],hf_resultat[RHF],"="&$A36) -> 583.2188206 | Y36: =SUMIFS(hf_resultat[Patologi-remisser 2025],hf_resultat[RHF],"="&$A36) -> 883.3203978 | Z36: =SUMIFS(hf_resultat[Patologi-remisser 2026],hf_resultat[RHF],"="&$A36) -> 874.8404763 | AA36: =SUMIFS(hf_resultat[Patologi-remisser 2027],hf_resultat[RHF],"="&$A36) -> 1185.001281 | AB36: =SUMIFS(hf_resultat[Patologi-remisser 2028],hf_resultat[RHF],"="&$A36) -> 1178.521037 | AC36: =SUMIFS(hf_resultat[Patologi-remisser 2029],hf_resultat[RHF],"="&$A36) -> 1469.575125
A37: Helse Midt-Norge | D37: =SUMIFS(hf_resultat[Befolkning 2022],hf_resultat[RHF],"="&$A37) -> 739845 | E37: =SUMIFS(hf_resultat[Koloskopier 2022],hf_resultat[RHF],"="&$A37) -> 0 | F37: =SUMIFS(hf_resultat[Koloskopier 2023],hf_resultat[RHF],"="&$A37) -> 558.7063355 | G37: =SUMIFS(hf_resultat[Koloskopier 2024],hf_resultat[RHF],"="&$A37) -> 560.2370378 | H37: =SUMIFS(hf_resultat[Koloskopier 2025],hf_resultat[RHF],"="&$A37) -> 904.855221 | I37: =SUMIFS(hf_resultat[Koloskopier 2026],hf_resultat[RHF],"="&$A37) -> 1077.759489 | J37: =SUMIFS(hf_resultat[Koloskopier 2027],hf_resultat[RHF],"="&$A37) -> 1413.379474 | K37: =SUMIFS(hf_resultat[Koloskopier 2028],hf_resultat[RHF],"="&$A37) -> 1514.328752 | L37: =SUMIFS(hf_resultat[Koloskopier 2029],hf_resultat[RHF],"="&$A37) -> 1845.171143 | M37: =SUMIFS(hf_resultat[Skopirom 2022],hf_resultat[RHF],"="&$A37) -> 0 | N37: =SUMIFS(hf_resultat[Skopirom 2023],hf_resultat[RHF],"="&$A37) -> 0.5079148505 | O37: =SUMIFS(hf_resultat[Skopirom 2024],hf_resultat[RHF],"="&$A37) -> 0.509306398 | P37: =SUMIFS(hf_resultat[Skopirom 2025],hf_resultat[RHF],"="&$A37) -> 0.8225956555 | Q37: =SUMIFS(hf_resultat[Skopirom 2026],hf_resultat[RHF],"="&$A37) -> 0.9797813533 | R37: =SUMIFS(hf_resultat[Skopirom 2027],hf_resultat[RHF],"="&$A37) -> 1.284890431 | S37: =SUMIFS(hf_resultat[Skopirom 2028],hf_resultat[RHF],"="&$A37) -> 1.376662502 | T37: =SUMIFS(hf_resultat[Skopirom 2029],hf_resultat[RHF],"="&$A37) -> 1.677428312 | U37: =SUMIFS(hf_resultat[Skopirom 2029, rundet opp hvis >=0,2],hf_resultat[RHF],"="&$A37) -> 3 | V37: =SUMIFS(hf_resultat[Patologi-remisser 2022],hf_resultat[RHF],"="&$A37) -> 0 | W37: =SUMIFS(hf_resultat[Patologi-remisser 2023],hf_resultat[RHF],"="&$A37) -> 396.6814982 | X37: =SUMIFS(hf_resultat[Patologi-remisser 2024],hf_resultat[RHF],"="&$A37) -> 397.7682969 | Y37: =SUMIFS(hf_resultat[Patologi-remisser 2025],hf_resultat[RHF],"="&$A37) -> 600.6405974 | Z37: =SUMIFS(hf_resultat[Patologi-remisser 2026],hf_resultat[RHF],"="&$A37) -> 592.1917458 | AA37: =SUMIFS(hf_resultat[Patologi-remisser 2027],hf_resultat[RHF],"="&$A37) -> 803.7087444 | AB37: =SUMIFS(hf_resultat[Patologi-remisser 2028],hf_resultat[RHF],"="&$A37) -> 795.3972456 | AC37: =SUMIFS(hf_resultat[Patologi-remisser 2029],hf_resultat[RHF],"="&$A37) -> 987.913269
A38: Total | D38: =SUBTOTAL(109,Table15[Befolkning 2022]) -> 5417351 | E38: =SUM(Table15[Koloskopier 2022]) -> 0 | F38: =SUM(Table15[Koloskopier 2023]) -> 4136.3063 | G38: =SUM(Table15[Koloskopier 2024]) -> 4147.638646 | H38: =SUM(Table15[Koloskopier 2025]) -> 6710.901638 | I38: =SUM(Table15[Koloskopier 2026]) -> 8032.393041 | J38: =SUM(Table15[Koloskopier 2027]) -> 10524.25524 | K38: =SUM(Table15[Koloskopier 2028]) -> 11329.17017 | L38: =SUM(Table15[Koloskopier 2029]) -> 13796.42227 | M38: =SUM(Table15[Skopirom 2022]) -> 0 | N38: =SUM(Table15[Skopirom 2023]) -> 3.760278455 | O38: =SUM(Table15[Skopirom 2024]) -> 3.770580588 | P38: =SUM(Table15[Skopirom 2025]) -> 6.100819671 | Q38: =SUM(Table15[Skopirom 2026]) -> 7.302175491 | R38: =SUM(Table15[Skopirom 2027]) -> 9.567504759 | S38: =SUM(Table15[Skopirom 2028]) -> 10.29924561 | T38: =SUM(Table15[Skopirom 2029]) -> 12.54220206 | U38: =SUM(Table15[Skopirom 2029, rundet opp hvis >=0,2]) -> 21 | V38: =SUM(Table15[Patologi-remisser 2022]) -> 0 | W38: =SUM(Table15[Patologi-remisser 2023]) -> 2936.777473 | X38: =SUM(Table15[Patologi-remisser 2024]) -> 2944.823439 | Y38: =SUM(Table15[Patologi-remisser 2025]) -> 4455.230621 | Z38: =SUM(Table15[Patologi-remisser 2026]) -> 4422.087615 | AA38: =SUM(Table15[Patologi-remisser 2027]) -> 5992.205466 | AB38: =SUM(Table15[Patologi-remisser 2028]) -> 5965.635092 | AC38: =SUM(Table15[Patologi-remisser 2029]) -> 7393.347637
A41: Resultater per lokalsykehusområde
A42: RHF | B42: Lokalsykehusområde | C42: Helseforetak | D42: Befolkning 2022 | E42: Koloskopier 2021 | F42: Koloskopier 2022 | G42: Koloskopier 2023 | H42: Koloskopier 2024 | I42: Koloskopier 2025 | J42: Koloskopier 2026 | K42: Koloskopier 2027 | L42: Koloskopier 2028 | M42: Skopirom 2021 | N42: Skopirom 2022 | O42: Skopirom 2023 | P42: Skopirom 2024 | Q42: Skopirom 2025 | R42: Skopirom 2026 | S42: Skopirom 2027 | T42: Skopirom 2028 | U42: Skopirom 2028, rundet opp hvis >=0,2 | V42: Patologi-remisser 2021 | W42: Patologi-remisser 2022 | X42: Patologi-remisser 2023 | Y42: Patologi-remisser 2024 | Z42: Patologi-remisser 2025 | AA42: Patologi-remisser 2026 | AB42: Patologi-remisser 2027 | AC42: Patologi-remisser 2028
A43: Helse Midt-Norge | B43: Kristiansund | C43: Helse Møre og Romsdal | D43: 44161 | E43: 0 | F43: 37.1773426 | G43: 37.27919833 | H43: 58.53234981 | I43: 71.13857783 | J43: 92.43340414 | K43: 98.74750381 | L43: 120.5519235 | M43: 0 | N43: 0.03379758418 | O43: 0.0338901803 | P43: 0.0532112271 | Q43: 0.06467143439 | R43: 0.0840303674 | S43: 0.08977045801 | T43: 0.1095926577 | U43: =IF(ISBLANK(lsho_resultat[[#This Row],[Skopirom 2028]]),"",IF(lsho_resultat[[#This Row],[Skopirom 2028]]<0.2,1,ROUND(lsho_resultat[[#This Row],[Skopirom 2028]]+0.3,0))) -> 1 | V43: 0 | W43: 26.39591324 | X43: 26.46823081 | Y43: 38.77608002 | Z43: 38.99548959 | AA43: 52.45886763 | AB43: 51.93094097 | AC43: 64.4131395
A44: Helse Midt-Norge | B44: Molde | C44: Helse Møre og Romsdal | D44: 72033 | E44: 0 | F44: 56.475933 | G44: 56.63066158 | H44: 91.2125713 | I44: 109.0488113 | J44: 140.9287574 | K44: 151.3232066 | L44: 181.5354932 | M44: 0 | N44: 0.05134175727 | O44: 0.05148241962 | P44: 0.08292051937 | Q44: 0.09913528304 | R44: 0.1281170522 | S44: 0.1375665515 | T44: 0.1650322665 | U44: =IF(ISBLANK(lsho_resultat[[#This Row],[Skopirom 2028]]),"",IF(lsho_resultat[[#This Row],[Skopirom 2028]]<0.2,1,ROUND(lsho_resultat[[#This Row],[Skopirom 2028]]+0.3,0))) -> 1 | V44: 0 | W44: 40.09791243 | X44: 40.20776973 | Y44: 60.53497162 | Z44: 59.93546072 | AA44: 79.88284867 | AB44: 79.21030525 | AC44: 96.44614383
A45: Helse Midt-Norge | B45: Volda | C45: Helse Møre og Romsdal | D45: 44243 | E45: 0 | F45: 32.54418633 | G45: 32.63334849 | H45: 55.91986087 | I45: 64.73811755 | J45: 86.5560997 | K45: 92.29168626 | L45: 112.4066995 | M45: 0 | N45: 0.02958562394 | O45: 0.02966668044 | P45: 0.05083623715 | Q45: 0.05885283413 | R45: 0.07868736336 | S45: 0.08390153296 | T45: 0.1021879086 | U45: =IF(ISBLANK(lsho_resultat[[#This Row],[Skopirom 2028]]),"",IF(lsho_resultat[[#This Row],[Skopirom 2028]]<0.2,1,ROUND(lsho_resultat[[#This Row],[Skopirom 2028]]+0.3,0))) -> 1 | V45: 0 | W45: 23.1063723 | X45: 23.16967743 | Y45: 37.26790046 | Z45: 35.88593634 | AA45: 49.57678244 | AB45: 48.32988278 | AC45: 60.26354863
A46: Helse Midt-Norge | B46: Ålesund | C46: Helse Møre og Romsdal | D46: 104952 | E46: 0 | F46: 76.01739047 | G46: 76.22565729 | H46: 124.1573724 | I46: 148.6140473 | J46: 195.0310383 | K46: 212.0103737 | L46: 257.0918534 | M46: 0 | N46: 0.06910671861 | O46: 0.06929605208 | P46: 0.1128703385 | Q46: 0.1351036794 | R46: 0.1773009439 | S46: 0.1927367034 | T46: 0.2337198667 | U46: =IF(ISBLANK(lsho_resultat[[#This Row],[Skopirom 2028]]),"",IF(lsho_resultat[[#This Row],[Skopirom 2028]]<0.2,1,ROUND(lsho_resultat[[#This Row],[Skopirom 2028]]+0.3,0))) -> 1 | V46: 0 | W46: 53.97234723 | X46: 54.12021668 | Y46: 82.4635416 | Z46: 81.97527369 | AA46: 111.2105348 | AB46: 112.0686204 | AC46: 138.0339492
A47: Helse Midt-Norge | B47: Levanger | C47: Helse Nord-Trøndelag | D47: 97355 | E47: 0 | F47: 77.39986451 | G47: 77.61191894 | H47: 123.9912627 | I47: 147.5988268 | J47: 194.1184939 | K47: 206.9687143 | L47: 249.3659134 | M47: 0 | N47: 0.07036351319 | O47: 0.07055628994 | P47: 0.1127193297 | Q47: 0.1341807516 | R47: 0.1764713581 | S47: 0.1881533767 | T47: 0.2266962849 | U47: =IF(ISBLANK(lsho_resultat[[#This Row],[Skopirom 2028]]),"",IF(lsho_resultat[[#This Row],[Skopirom 2028]]<0.2,1,ROUND(lsho_resultat[[#This Row],[Skopirom 2028]]+0.3,0))) -> 1 | V47: 0 | W47: 54.9539038 | X47: 55.10446244 | Y47: 82.24215658 | Z47: 80.8263492 | AA47: 110.2482299 | AB47: 108.6366166 | AC47: 132.9480199
A48: Helse Midt-Norge | B48: Namsos | C48: Helse Nord-Trøndelag | D48: 38625 | E48: 0 | F48: 30.30233653 | G48: 30.38535663 | H48: 49.25828774 | I48: 57.40473778 | J48: 75.88415746 | K48: 81.01138717 | L48: 98.15422013 | M48: 0 | N48: 0.02754757866 | O48: 0.02762305148 | P48: 0.04478026158 | Q48: 0.05218612525 | R48: 0.06898559769 | S48: 0.07364671561 | T48: 0.08923110921 | U48: =IF(ISBLANK(lsho_resultat[[#This Row],[Skopirom 2028]]),"",IF(lsho_resultat[[#This Row],[Skopirom 2028]]<0.2,1,ROUND(lsho_resultat[[#This Row],[Skopirom 2028]]+0.3,0))) -> 1 | V48: 0 | W48: 21.51465894 | X48: 21.57360321 | Y48: 32.70593561 | Z48: 31.37348197 | AA48: 43.02816352 | AB48: 42.37978234 | AC48: 52.52055084
A49: Helse Midt-Norge | B49: St. Olav - Orkdal | C49: St. Olavs hospital | D49: 68846 | E49: 0 | F49: 56.40120467 | G49: 56.55572852 | H49: 90.50661371 | I49: 106.7091059 | J49: 140.2800471 | K49: 149.8214871 | L49: 181.1085773 | M49: 0 | N49: 0.05127382243 | O49: 0.05141429866 | P49: 0.08227873974 | Q49: 0.0970082781 | R49: 0.1275273155 | S49: 0.1362013519 | T49: 0.1646441612 | U49: =IF(ISBLANK(lsho_resultat[[#This Row],[Skopirom 2028]]),"",IF(lsho_resultat[[#This Row],[Skopirom 2028]]<0.2,1,ROUND(lsho_resultat[[#This Row],[Skopirom 2028]]+0.3,0))) -> 1 | V49: 0 | W49: 40.04485532 | X49: 40.15456725 | Y49: 60.03933346 | Z49: 58.29741137 | AA49: 79.49275572 | AB49: 78.48304266 | AC49: 96.73634558
A50: Helse Midt-Norge | B50: St. Olav - Øya | C50: St. Olavs hospital | D50: 269630 | E50: 0 | F50: 192.3880774 | G50: 192.915168 | H50: 311.2769026 | I50: 372.5072642 | J50: 488.1474763 | K50: 522.1543933 | L50: 644.956463 | M50: 0 | N50: 0.1748982522 | O50: 0.1753774255 | P50: 0.2829790023 | Q50: 0.3386429674 | R50: 0.443770433 | S50: 0.4746858121 | T50: 0.5863240573 | U50: =IF(ISBLANK(lsho_resultat[[#This Row],[Skopirom 2028]]),"",IF(lsho_resultat[[#This Row],[Skopirom 2028]]<0.2,1,ROUND(lsho_resultat[[#This Row],[Skopirom 2028]]+0.3,0))) -> 1 | V50: 0 | W50: 136.595535 | X50: 136.9697693 | Y50: 206.6106781 | Z50: 204.9023429 | AA50: 277.8105617 | AB50: 274.3580547 | AC50: 346.5515715
A51: Helse Nord | B51: Hammerfest | C51: Finnmarkssykehuset | D51: 49377 | E51: 0 | F51: 40.9511231 | G51: 41.06331796 | H51: 65.13019123 | I51: 80.37762663 | J51: 103.2007386 | K51: 110.9630527 | L51: 134.096079 | M51: 0 | N51: 0.03722829373 | O51: 0.03733028905 | P51: 0.05920926475 | Q51: 0.07307056966 | R51: 0.09381885329 | S51: 0.1008755025 | T51: 0.1219055264 | U51: =IF(ISBLANK(lsho_resultat[[#This Row],[Skopirom 2028]]),"",IF(lsho_resultat[[#This Row],[Skopirom 2028]]<0.2,1,ROUND(lsho_resultat[[#This Row],[Skopirom 2028]]+0.3,0))) -> 1 | V51: 0 | W51: 29.0752974 | X51: 29.15495575 | Y51: 43.17816479 | Z51: 44.38656804 | AA51: 58.71782335 | AB51: 58.45358573 | AC51: 71.3018467
A52: Helse Nord | B52: Kirkenes | C52: Finnmarkssykehuset | D52: 25956 | E52: 0 | F52: 22.43718013 | G52: 22.49865186 | H52: 37.00025041 | I52: 44.84699929 | J52: 57.06240443 | K52: 63.15750347 | L52: 74.82991592 | M52: 0 | N52: 0.02039743648 | O52: 0.02045331987 | P52: 0.03363659128 | Q52: 0.04076999936 | R52: 0.05187491312 | S52: 0.05741591224 | T52: 0.06802719629 | U52: =IF(ISBLANK(lsho_resultat[[#This Row],[Skopirom 2028]]),"",IF(lsho_resultat[[#This Row],[Skopirom 2028]]<0.2,1,ROUND(lsho_resultat[[#This Row],[Skopirom 2028]]+0.3,0))) -> 1 | V52: 0 | W52: 15.93039789 | X52: 15.97404282 | Y52: 24.59125925 | Z52: 24.89313146 | AA52: 32.44134278 | AB52: 33.33380103 | AC52: 39.80103938
A53: Helse Nord | B53: Mo i Rana | C53: Helgelandssykehuset | D53: 33124 | E53: 0 | F53: 27.44397803 | G53: 27.51916701 | H53: 45.20037142 | I53: 51.98329002 | J53: 69.04343658 | K53: 71.51413446 | L53: 87.52082466 | M53: 0 | N53: 0.02494907093 | O53: 0.02501742455 | P53: 0.04109124675 | Q53: 0.04725753639 | R53: 0.06276676053 | S53: 0.06501284951 | T53: 0.07956438606 | U53: =IF(ISBLANK(lsho_resultat[[#This Row],[Skopirom 2028]]),"",IF(lsho_resultat[[#This Row],[Skopirom 2028]]<0.2,1,ROUND(lsho_resultat[[#This Row],[Skopirom 2028]]+0.3,0))) -> 1 | V53: 0 | W53: 19.4852244 | X53: 19.53860858 | Y53: 30.0386989 | Z53: 28.40941678 | AA53: 39.15063414 | AB53: 36.92709885 | AC53: 46.56749299
A54: Helse Nord | B54: Mosjøen | C54: Helgelandssykehuset | D54: 15743 | E54: 0 | F54: 13.28296009 | G54: 13.31935177 | H54: 21.40382035 | I54: 24.85484758 | J54: 32.42791891 | K54: 35.41943319 | L54: 40.93562804 | M54: 0 | N54: 0.01207541827 | O54: 0.0121085016 | P54: 0.0194580185 | Q54: 0.02259531599 | R54: 0.02947992628 | S54: 0.03219948472 | T54: 0.03721420731 | U54: =IF(ISBLANK(lsho_resultat[[#This Row],[Skopirom 2028]]),"",IF(lsho_resultat[[#This Row],[Skopirom 2028]]<0.2,1,ROUND(lsho_resultat[[#This Row],[Skopirom 2028]]+0.3,0))) -> 1 | V54: 0 | W54: 9.430901667 | X54: 9.456739753 | Y54: 14.20278149 | Z54: 13.53353858 | AA54: 18.28203048 | AB54: 18.57924864 | AC54: 21.67343587
A55: Helse Nord | B55: Sandnessjøen | C55: Helgelandssykehuset | D55: 26610 | E55: 0 | F55: 22.21299515 | G55: 22.27385267 | H55: 36.11708409 | I55: 42.80412416 | J55: 55.37318024 | K55: 59.15021894 | L55: 70.58735384 | M55: 0 | N55: 0.02019363195 | O55: 0.02024895697 | P55: 0.03283371281 | Q55: 0.03891284015 | R55: 0.05033925477 | S55: 0.05377292631 | T55: 0.06417032167 | U55: =IF(ISBLANK(lsho_resultat[[#This Row],[Skopirom 2028]]),"",IF(lsho_resultat[[#This Row],[Skopirom 2028]]<0.2,1,ROUND(lsho_resultat[[#This Row],[Skopirom 2028]]+0.3,0))) -> 1 | V55: 0 | W55: 15.77122656 | X55: 15.8144354 | Y55: 23.98098636 | Z55: 23.51211464 | AA55: 31.36107786 | AB55: 30.8434292 | AC55: 37.38050838
A56: Helse Nord | B56: Bodø | C56: Nordlandssykehuset | D56: 84684 | E56: 0 | F56: 66.35875422 | G56: 66.54055903 | H56: 107.9768936 | I56: 127.6453614 | J56: 166.2712352 | K56: 177.9643216 | L56: 215.4154327 | M56: 0 | N56: 0.0603261402 | O56: 0.0604914173 | P56: 0.09816081239 | Q56: 0.1160412376 | R56: 0.1511556684 | S56: 0.1617857469 | T56: 0.1958322115 | U56: =IF(ISBLANK(lsho_resultat[[#This Row],[Skopirom 2028]]),"",IF(lsho_resultat[[#This Row],[Skopirom 2028]]<0.2,1,ROUND(lsho_resultat[[#This Row],[Skopirom 2028]]+0.3,0))) -> 1 | V56: 0 | W56: 47.1147155 | X56: 47.24379691 | Y56: 71.69813347 | Z56: 70.07854671 | AA56: 94.28519788 | AB56: 93.03360913 | AC56: 114.8856498
A57: Helse Nord | B57: Lofoten | C57: Nordlandssykehuset | D57: 23226 | E57: 0 | F57: 18.77549212 | G57: 18.82693182 | H57: 30.43242333 | I57: 36.01203483 | J57: 46.62376991 | K57: 49.57565315 | L57: 60.0394899 | M57: 0 | N57: 0.0170686292 | O57: 0.01711539256 | P57: 0.02766583939 | Q57: 0.03273821348 | R57: 0.04238524538 | S57: 0.04506877559 | T57: 0.05458135446 | U57: =IF(ISBLANK(lsho_resultat[[#This Row],[Skopirom 2028]]),"",IF(lsho_resultat[[#This Row],[Skopirom 2028]]<0.2,1,ROUND(lsho_resultat[[#This Row],[Skopirom 2028]]+0.3,0))) -> 1 | V57: 0 | W57: 13.3305994 | X57: 13.36712159 | Y57: 20.20209706 | Z57: 19.75424062 | AA57: 26.38701858 | AB57: 25.80644882 | AC57: 31.91555988
A58: Helse Nord | B58: Stokmarknes | C58: Nordlandssykehuset | D58: 30018 | E58: 0 | F58: 25.93072941 | G58: 26.0017725 | H58: 40.41758216 | I58: 47.63190423 | J58: 63.89751831 | K58: 65.59904999 | L58: 80.19000624 | M58: 0 | N58: 0.02357339037 | O58: 0.023637975 | P58: 0.03674325651 | Q58: 0.04330173112 | R58: 0.05808865301 | S58: 0.05963549999 | T58: 0.07290000567 | U58: =IF(ISBLANK(lsho_resultat[[#This Row],[Skopirom 2028]]),"",IF(lsho_resultat[[#This Row],[Skopirom 2028]]<0.2,1,ROUND(lsho_resultat[[#This Row],[Skopirom 2028]]+0.3,0))) -> 1 | V58: 0 | W58: 18.41081788 | X58: 18.46125848 | Y58: 26.75615116 | Z58: 25.78854842 | AA58: 36.21266041 | AB58: 34.13952042 | AC58: 42.67247431
A59: Helse Nord | B59: Harstad | C59: Universitetssykehuset Nord-Norge | D59: 50710 | E59: 0 | F59: 39.56864906 | G59: 39.67705631 | H59: 63.08879548 | I59: 75.59346834 | J59: 99.13010901 | K59: 106.3711285 | L59: 128.9651084 | M59: 0 | N59: 0.03597149914 | O59: 0.03607005119 | P59: 0.05735345044 | Q59: 0.06872133485 | R59: 0.09011828092 | S59: 0.09670102588 | T59: 0.1172410077 | U59: =IF(ISBLANK(lsho_resultat[[#This Row],[Skopirom 2028]]),"",IF(lsho_resultat[[#This Row],[Skopirom 2028]]<0.2,1,ROUND(lsho_resultat[[#This Row],[Skopirom 2028]]+0.3,0))) -> 1 | V59: 0 | W59: 28.09374083 | X59: 28.17070998 | Y59: 41.83222091 | Z59: 41.41793356 | AA59: 56.30725674 | AB59: 55.99767322 | AC59: 68.99550751
A60: Helse Nord | B60: Narvik | C60: Universitetssykehuset Nord-Norge | D60: 27066 | E60: 0 | F60: 22.39981597 | G60: 22.46118533 | H60: 35.13195005 | I60: 42.14311734 | J60: 52.75775103 | K60: 56.35532303 | L60: 67.83974377 | M60: 0 | N60: 0.02036346906 | O60: 0.02041925939 | P60: 0.03193813641 | Q60: 0.03831192486 | R60: 0.04796159185 | S60: 0.05123211185 | T60: 0.06167249434 | U60: =IF(ISBLANK(lsho_resultat[[#This Row],[Skopirom 2028]]),"",IF(lsho_resultat[[#This Row],[Skopirom 2028]]<0.2,1,ROUND(lsho_resultat[[#This Row],[Skopirom 2028]]+0.3,0))) -> 1 | V60: 0 | W60: 15.90386934 | X60: 15.94744158 | Y60: 23.26756186 | Z60: 22.98494602 | AA60: 29.53367233 | AB60: 29.14407874 | AC60: 35.79415855
A61: Helse Nord | B61: Tromsø | C61: Universitetssykehuset Nord-Norge | D61: 115061 | E61: 0 | F61: 88.17942566 | G61: 88.42101313 | H61: 141.4072686 | I61: 172.8702635 | J61: 224.0843896 | K61: 240.6270724 | L61: 293.9814198 | M61: 0 | N61: 0.08016311423 | O61: 0.08038273921 | P61: 0.1285520623 | Q61: 0.157154785 | R61: 0.2037130815 | S61: 0.218751884 | T61: 0.2672558361 | U61: =IF(ISBLANK(lsho_resultat[[#This Row],[Skopirom 2028]]),"",IF(lsho_resultat[[#This Row],[Skopirom 2028]]<0.2,1,ROUND(lsho_resultat[[#This Row],[Skopirom 2028]]+0.3,0))) -> 1 | V61: 0 | W61: 62.60739222 | X61: 62.77891932 | Y61: 93.80091294 | Z61: 95.43090659 | AA61: 127.6724456 | AB61: 126.8109514 | AC61: 157.1570721
A62: Helse Sør-Øst | B62: Ahus | C62: Akershus universitetssykehus | D62: 424135 | E62: 0 | F62: 336.1840603 | G62: 337.1051125 | H62: 545.9739122 | I62: 655.8431443 | J62: 861.2046719 | K62: 932.0843427 | L62: 1132.254365 | M62: 0 | N62: 0.305621873 | O62: 0.3064591932 | P62: 0.4963399202 | Q62: 0.5962210403 | R62: 0.7829133381 | S62: 0.8473494024 | T62: 1.02932215 | U62: =IF(ISBLANK(lsho_resultat[[#This Row],[Skopirom 2028]]),"",IF(lsho_resultat[[#This Row],[Skopirom 2028]]<0.2,1,ROUND(lsho_resultat[[#This Row],[Skopirom 2028]]+0.3,0))) -> 1 | V62: 0 | W62: 238.6906828 | X62: 239.3446299 | Y62: 362.4856582 | Z62: 361.5407694 | AA62: 491.1248643 | AB62: 492.5311842 | AC62: 607.5249096
A63: Helse Sør-Øst | B63: Kongsvinger | C63: Akershus universitetssykehus | D63: 48532 | E63: 0 | F63: 44.03366658 | G63: 44.15430677 | H63: 71.1189036 | I63: 85.44736729 | J63: 111.9622709 | K63: 118.4209517 | L63: 144.3711234 | M63: 0 | N63: 0.04003060599 | O63: 0.04014027888 | P63: 0.06465354872 | Q63: 0.07767942481 | R63: 0.1017838827 | S63: 0.1076554107 | T63: 0.1312464758 | U63: =IF(ISBLANK(lsho_resultat[[#This Row],[Skopirom 2028]]),"",IF(lsho_resultat[[#This Row],[Skopirom 2028]]<0.2,1,ROUND(lsho_resultat[[#This Row],[Skopirom 2028]]+0.3,0))) -> 1 | V63: 0 | W63: 31.26390327 | X63: 31.3495578 | Y63: 47.19949149 | Z63: 47.03149666 | AA63: 63.76165305 | AB63: 62.03688992 | AC63: 76.95215338
A64: Helse Sør-Øst | B64: Ski | C64: Akershus universitetssykehus | D64: 128559 | E64: 0 | F64: 104.8251605 | G64: 105.1123527 | H64: 168.5006837 | I64: 201.3543573 | J64: 264.7541218 | K64: 285.5673857 | L64: 347.9385697 | M64: 0 | N64: 0.09529560042 | O64: 0.09555668425 | P64: 0.1531824397 | Q64: 0.1830494158 | R64: 0.2406855653 | S64: 0.2596067143 | T64: 0.3163077906 | U64: =IF(ISBLANK(lsho_resultat[[#This Row],[Skopirom 2028]]),"",IF(lsho_resultat[[#This Row],[Skopirom 2028]]<0.2,1,ROUND(lsho_resultat[[#This Row],[Skopirom 2028]]+0.3,0))) -> 1 | V64: 0 | W64: 74.42586393 | X64: 74.6297704 | Y64: 111.7916786 | Z64: 110.4998421 | AA64: 150.5854386 | AB64: 150.6228098 | AC64: 186.8268518
A65: Helse Sør-Øst | B65: Diakonhjemmet | C65: Oslosykehusene | D65: 144823 | E65: 0 | F65: 97.52046651 | G65: 97.78764587 | H65: 158.5253928 | I65: 190.8544559 | J65: 251.8529893 | K65: 272.6219154 | L65: 333.5007219 | M65: 0 | N65: 0.08865496956 | O65: 0.08889785988 | P65: 0.1441139935 | Q65: 0.1735040508 | R65: 0.228957263 | S65: 0.2478381049 | T65: 0.3031824744 | U65: =IF(ISBLANK(lsho_resultat[[#This Row],[Skopirom 2028]]),"",IF(lsho_resultat[[#This Row],[Skopirom 2028]]<0.2,1,ROUND(lsho_resultat[[#This Row],[Skopirom 2028]]+0.3,0))) -> 1 | V65: 0 | W65: 69.23953122 | X65: 69.42922857 | Y65: 105.2558143 | Z65: 105.3069946 | AA65: 143.8989484 | AB65: 144.3854184 | AC65: 179.5259038
A66: Helse Sør-Øst | B66: Lovisenberg | C66: Oslosykehusene | D66: 163706 | E66: 0 | F66: 80.66922881 | G66: 80.8902404 | H66: 131.9880688 | I66: 161.2491514 | J66: 210.8466868 | K66: 232.4521825 | L66: 282.9079634 | M66: 0 | N66: 0.07333566256 | O66: 0.07353658218 | P66: 0.1199891534 | Q66: 0.1465901376 | R66: 0.1916788062 | S66: 0.2113201659 | T66: 0.2571890577 | U66: =IF(ISBLANK(lsho_resultat[[#This Row],[Skopirom 2028]]),"",IF(lsho_resultat[[#This Row],[Skopirom 2028]]<0.2,1,ROUND(lsho_resultat[[#This Row],[Skopirom 2028]]+0.3,0))) -> 1 | V66: 0 | W66: 57.27515246 | X66: 57.43207068 | Y66: 87.6752505 | Z66: 89.50563865 | AA66: 120.7539621 | AB66: 123.9092362 | AC66: 152.5186912
A67: Helse Sør-Øst | B67: Ullevål | C67: Oslosykehusene | D67: 282598 | E67: 0 | F67: 190.2209559 | G67: 190.7421092 | H67: 313.290756 | I67: 376.4558578 | J67: 494.9322762 | K67: 537.8908362 | L67: 659.1982744 | M67: 0 | N67: 0.1729281418 | O67: 0.1734019175 | P67: 0.2848097782 | Q67: 0.342232598 | R67: 0.4499384329 | S67: 0.4889916692 | T67: 0.5992711586 | U67: =IF(ISBLANK(lsho_resultat[[#This Row],[Skopirom 2028]]),"",IF(lsho_resultat[[#This Row],[Skopirom 2028]]<0.2,1,ROUND(lsho_resultat[[#This Row],[Skopirom 2028]]+0.3,0))) -> 1 | V67: 0 | W67: 135.0568787 | X67: 135.4268976 | Y67: 208.2026744 | Z67: 208.3769482 | AA67: 282.9894027 | AB67: 284.7117776 | AC67: 355.0813222
A68: Helse Sør-Øst | B68: Tønsberg | C68: Sykehuset i Vestfold | D68: 248509 | E68: 0 | F68: 201.2247021 | G68: 201.7760026 | H68: 329.1579306 | I68: 387.8312317 | J68: 514.3601594 | K68: 551.6129795 | L68: 669.2055368 | M68: 0 | N68: 0.1829315473 | O68: 0.1834327297 | P68: 0.2992344824 | Q68: 0.352573847 | R68: 0.4676001449 | S68: 0.501466345 | T68: 0.6083686699 | U68: =IF(ISBLANK(lsho_resultat[[#This Row],[Skopirom 2028]]),"",IF(lsho_resultat[[#This Row],[Skopirom 2028]]<0.2,1,ROUND(lsho_resultat[[#This Row],[Skopirom 2028]]+0.3,0))) -> 1 | V68: 0 | W68: 142.8695385 | X68: 143.2609619 | Y68: 218.6449853 | Z68: 213.0458765 | AA68: 292.9945256 | AB68: 290.1399214 | AC68: 358.7844515
A69: Helse Sør-Øst | B69: Elverum | C69: Sykehuset Innlandet | D69: 37237 | E69: 0 | F69: 30.638614 | G69: 30.72255541 | H69: 50.09663772 | I69: 59.77686655 | J69: 77.90691986 | K69: 83.96921645 | L69: 100.4183654 | M69: 0 | N69: 0.02785328545 | O69: 0.02792959583 | P69: 0.04554239793 | Q69: 0.05434260595 | R69: 0.0708244726 | S69: 0.07633565132 | T69: 0.09128942311 | U69: =IF(ISBLANK(lsho_resultat[[#This Row],[Skopirom 2028]]),"",IF(lsho_resultat[[#This Row],[Skopirom 2028]]<0.2,1,ROUND(lsho_resultat[[#This Row],[Skopirom 2028]]+0.3,0))) -> 1 | V69: 0 | W69: 21.75341594 | X69: 21.81301434 | Y69: 33.27600128 | Z69: 32.95355661 | AA69: 44.32209452 | AB69: 44.11356535 | AC69: 53.44176609
A70: Helse Sør-Øst | B70: Gjøvik | C70: Sykehuset Innlandet | D70: 111257 | E70: 0 | F70: 93.74668601 | G70: 94.00352624 | H70: 151.7030593 | I70: 182.2140526 | J70: 235.6749442 | K70: 255.7662127 | L70: 308.0562977 | M70: 0 | N70: 0.08522426001 | O70: 0.08545775113 | P70: 0.1379118721 | Q70: 0.1656491388 | R70: 0.2142499493 | S70: 0.2325147388 | T70: 0.2800511797 | U70: =IF(ISBLANK(lsho_resultat[[#This Row],[Skopirom 2028]]),"",IF(lsho_resultat[[#This Row],[Skopirom 2028]]<0.2,1,ROUND(lsho_resultat[[#This Row],[Skopirom 2028]]+0.3,0))) -> 1 | V70: 0 | W70: 66.56014706 | X70: 66.74250363 | Y70: 100.6943401 | Z70: 100.3409545 | AA70: 133.8151864 | AB70: 134.5761447 | AC70: 164.4526601
A71: Helse Sør-Øst | B71: Hamar | C71: Sykehuset Innlandet | D71: 96061 | E71: 0 | F71: 75.15801471 | G71: 75.36392708 | H71: 122.3807614 | I71: 147.5240244 | J71: 191.7254994 | K71: 207.7388468 | L71: 251.013932 | M71: 0 | N71: 0.06832546792 | O71: 0.06851266098 | P71: 0.1112552376 | Q71: 0.1341127494 | R71: 0.1742959085 | S71: 0.1888534971 | T71: 0.2281944836 | U71: =IF(ISBLANK(lsho_resultat[[#This Row],[Skopirom 2028]]),"",IF(lsho_resultat[[#This Row],[Skopirom 2028]]<0.2,1,ROUND(lsho_resultat[[#This Row],[Skopirom 2028]]+0.3,0))) -> 1 | V71: 0 | W71: 53.36219044 | X71: 53.50838822 | Y71: 81.26645275 | Z71: 81.46748475 | AA71: 109.1997047 | AB71: 109.5139843 | AC71: 134.1660412
A72: Helse Sør-Øst | B72: Lillehammer | C72: Sykehuset Innlandet | D72: 70985 | E72: 0 | F72: 58.64305448 | G72: 58.80372038 | H72: 94.99809669 | I72: 111.0492579 | J72: 147.2385179 | K72: 154.9284218 | L72: 189.7081512 | M72: 0 | N72: 0.05331186771 | O72: 0.05345792762 | P72: 0.08636190609 | Q72: 0.1009538708 | R72: 0.1338531981 | S72: 0.1408440198 | T72: 0.1724619556 | U72: =IF(ISBLANK(lsho_resultat[[#This Row],[Skopirom 2028]]),"",IF(lsho_resultat[[#This Row],[Skopirom 2028]]<0.2,1,ROUND(lsho_resultat[[#This Row],[Skopirom 2028]]+0.3,0))) -> 1 | V72: 0 | W72: 41.63656868 | X72: 41.75064147 | Y72: 63.06053432 | Z72: 60.68467401 | AA72: 83.5671924 | AB72: 80.78322593 | AC72: 101.448425
A73: Helse Sør-Øst | B73: Tynset | C73: Sykehuset Innlandet | D73: 17086 | E73: 0 | F73: 13.91815087 | G73: 13.95628279 | H73: 22.67141849 | I73: 27.04488456 | J73: 35.06767214 | K73: 37.62454889 | L73: 45.25857361 | M73: 0 | N73: 0.01265286443 | O73: 0.01268752981 | P73: 0.02061038044 | Q73: 0.02458625869 | R73: 0.03187970194 | S73: 0.03420413535 | T73: 0.04114415783 | U73: =IF(ISBLANK(lsho_resultat[[#This Row],[Skopirom 2028]]),"",IF(lsho_resultat[[#This Row],[Skopirom 2028]]<0.2,1,ROUND(lsho_resultat[[#This Row],[Skopirom 2028]]+0.3,0))) -> 1 | V73: 0 | W73: 9.881887119 | X73: 9.908960782 | Y73: 15.05524641 | Z73: 14.89176201 | AA73: 19.91123991 | AB73: 19.698566 | AC73: 24.0725419
A74: Helse Sør-Øst | B74: Notodden | C74: Sykehuset Telemark | D74: 48159 | E74: 0 | F74: 38.82136579 | G74: 38.92772569 | H74: 61.1551221 | I74: 76.17965154 | J74: 96.20278098 | K74: 106.0144496 | L74: 125.6220584 | M74: 0 | N74: 0.03529215072 | O74: 0.03538884154 | P74: 0.05559556555 | Q74: 0.06925422867 | R74: 0.08745707362 | S74: 0.0963767724 | T74: 0.1142018713 | U74: =IF(ISBLANK(lsho_resultat[[#This Row],[Skopirom 2028]]),"",IF(lsho_resultat[[#This Row],[Skopirom 2028]]<0.2,1,ROUND(lsho_resultat[[#This Row],[Skopirom 2028]]+0.3,0))) -> 1 | V74: 0 | W74: 27.56316971 | X74: 27.63868524 | Y74: 40.51523017 | Z74: 42.06553873 | AA74: 54.55020951 | AB74: 56.13665223 | AC74: 66.65544905
A75: Helse Sør-Øst | B75: Skien | C75: Sykehuset Telemark | D75: 125065 | E75: 0 | F75: 103.8536922 | G75: 104.1382229 | H75: 167.5546113 | I75: 201.6187714 | J75: 261.9996267 | K75: 282.5335363 | L75: 341.0059736 | M75: 0 | N75: 0.09441244746 | O75: 0.0946711117 | P75: 0.1523223739 | Q75: 0.1832897922 | R75: 0.2381814788 | S75: 0.2568486693 | T75: 0.3100054306 | U75: =IF(ISBLANK(lsho_resultat[[#This Row],[Skopirom 2028]]),"",IF(lsho_resultat[[#This Row],[Skopirom 2028]]<0.2,1,ROUND(lsho_resultat[[#This Row],[Skopirom 2028]]+0.3,0))) -> 1 | V75: 0 | W75: 73.73612147 | X75: 73.93813824 | Y75: 111.1926598 | Z75: 110.9884157 | AA75: 148.9302021 | AB75: 148.6480499 | AC75: 181.984626
A76: Helse Sør-Øst | B76: Kalnes | C76: Sykehuset Østfold | D76: 321458 | E76: 0 | F76: 267.8636875 | G76: 268.5975606 | H76: 434.5533705 | I76: 523.0157821 | J76: 681.1197953 | K76: 737.2272586 | L76: 892.8174382 | M76: 0 | N76: 0.2435124432 | O76: 0.2441796006 | P76: 0.3950485186 | Q76: 0.4754688928 | R76: 0.619199814 | S76: 0.6702065987 | T76: 0.8116522165 | U76: =IF(ISBLANK(lsho_resultat[[#This Row],[Skopirom 2028]]),"",IF(lsho_resultat[[#This Row],[Skopirom 2028]]<0.2,1,ROUND(lsho_resultat[[#This Row],[Skopirom 2028]]+0.3,0))) -> 1 | V76: 0 | W76: 190.1832181 | X76: 190.7042681 | Y76: 288.4893176 | Z76: 288.3904667 | AA76: 387.7534028 | AB76: 388.6531953 | AC76: 477.7057419
A77: Helse Sør-Øst | B77: Arendal | C77: Sørlandet sykehus | D77: 119382 | E77: 0 | F77: 92.831264 | G77: 93.08559623 | H77: 152.2311927 | I77: 181.3896794 | J77: 239.2201084 | K77: 256.5996467 | L77: 316.3467798 | M77: 0 | N77: 0.08439205818 | O77: 0.0846232693 | P77: 0.1383919934 | Q77: 0.1648997085 | R77: 0.2174728259 | S77: 0.2332724061 | T77: 0.2875879816 | U77: =IF(ISBLANK(lsho_resultat[[#This Row],[Skopirom 2028]]),"",IF(lsho_resultat[[#This Row],[Skopirom 2028]]<0.2,1,ROUND(lsho_resultat[[#This Row],[Skopirom 2028]]+0.3,0))) -> 1 | V77: 0 | W77: 65.91019744 | X77: 66.09077333 | Y77: 101.1378136 | Z77: 100.0391329 | AA77: 136.5091471 | AB77: 135.0840387 | AC77: 170.2050155
A78: Helse Sør-Øst | B78: Flekkefjord | C78: Sørlandet sykehus | D78: 44573 | E78: 0 | F78: 34.54316908 | G78: 34.6378079 | H78: 57.15353648 | I78: 66.03889923 | J78: 88.02634236 | K78: 93.06437299 | L78: 115.6981623 | M78: 0 | N78: 0.03140288098 | O78: 0.03148891627 | P78: 0.05195776043 | Q78: 0.06003536294 | R78: 0.0800239476 | S78: 0.08460397544 | T78: 0.1051801476 | U78: =IF(ISBLANK(lsho_resultat[[#This Row],[Skopirom 2028]]),"",IF(lsho_resultat[[#This Row],[Skopirom 2028]]<0.2,1,ROUND(lsho_resultat[[#This Row],[Skopirom 2028]]+0.3,0))) -> 1 | V78: 0 | W78: 24.52565004 | X78: 24.59284361 | Y78: 37.99423122 | Z78: 36.19045598 | AA78: 50.05576647 | AB78: 48.53886656 | AC78: 62.31805883
A79: Helse Sør-Øst | B79: Kristiansand | C79: Sørlandet sykehus | D79: 152405 | E79: 0 | F79: 110.9715653 | G79: 111.275597 | H79: 180.0490654 | I79: 215.8103228 | J79: 285.0123197 | K79: 304.8332862 | L79: 372.9233377 | M79: 0 | N79: 0.1008832412 | O79: 0.1011596337 | P79: 0.1636809686 | Q79: 0.1961912025 | R79: 0.2591021088 | S79: 0.2771211693 | T79: 0.3390212161 | U79: =IF(ISBLANK(lsho_resultat[[#This Row],[Skopirom 2028]]),"",IF(lsho_resultat[[#This Row],[Skopirom 2028]]<0.2,1,ROUND(lsho_resultat[[#This Row],[Skopirom 2028]]+0.3,0))) -> 1 | V79: 0 | W79: 78.78981139 | X79: 79.00567389 | Y79: 119.5311094 | Z79: 118.8601885 | AA79: 162.6515635 | AB79: 160.65523 | AC79: 200.0578203
A80: Helse Sør-Øst | B80: Bærum | C80: Vestre Viken | D80: 224445 | E80: 0 | F80: 180.2820885 | G80: 180.776012 | H80: 290.2256482 | I80: 349.1826894 | J80: 458.0273197 | K80: 496.1669239 | L80: 604.1600318 | M80: 0 | N80: 0.1638928077 | O80: 0.1643418291 | P80: 0.2638414983 | Q80: 0.3174388086 | R80: 0.4163884724 | S80: 0.4510608399 | T80: 0.5492363925 | U80: =IF(ISBLANK(lsho_resultat[[#This Row],[Skopirom 2028]]),"",IF(lsho_resultat[[#This Row],[Skopirom 2028]]<0.2,1,ROUND(lsho_resultat[[#This Row],[Skopirom 2028]]+0.3,0))) -> 1 | V80: 0 | W80: 128.0002828 | X80: 128.3509685 | Y80: 192.5701486 | Z80: 192.0908193 | AA80: 260.8624155 | AB80: 262.3060477 | AC80: 324.5238272
A81: Helse Sør-Øst | B81: Drammen | C81: Vestre Viken | D81: 144033 | E81: 0 | F81: 112.3727215 | G81: 112.6805919 | H81: 184.5399329 | I81: 219.5331321 | J81: 291.4553318 | K81: 312.5664458 | L81: 383.2425605 | M81: 0 | N81: 0.1021570195 | O81: 0.1024369018 | P81: 0.1677635754 | Q81: 0.1995755747 | R81: 0.2649593925 | S81: 0.2841513144 | T81: 0.3484023277 | U81: =IF(ISBLANK(lsho_resultat[[#This Row],[Skopirom 2028]]),"",IF(lsho_resultat[[#This Row],[Skopirom 2028]]<0.2,1,ROUND(lsho_resultat[[#This Row],[Skopirom 2028]]+0.3,0))) -> 1 | V81: 0 | W81: 79.78463224 | X81: 80.00322028 | Y81: 122.6147803 | Z81: 121.0694798 | AA81: 166.5588172 | AB81: 164.846528 | AC81: 206.1178416
A82: Helse Sør-Øst | B82: Kongsberg | C82: Vestre Viken | D82: 57854 | E82: 0 | F82: 45.62164353 | G82: 45.74663433 | H82: 73.80149942 | I82: 88.20984706 | J82: 118.2750722 | K82: 124.4534883 | L82: 155.0547688 | M82: 0 | N82: 0.04147422139 | O82: 0.04158784939 | P82: 0.0670922722 | Q82: 0.08019077005 | R82: 0.1075227929 | S82: 0.1131395348 | T82: 0.1409588808 | U82: =IF(ISBLANK(lsho_resultat[[#This Row],[Skopirom 2028]]),"",IF(lsho_resultat[[#This Row],[Skopirom 2028]]<0.2,1,ROUND(lsho_resultat[[#This Row],[Skopirom 2028]]+0.3,0))) -> 1 | V82: 0 | W82: 32.39136691 | X82: 32.48011038 | Y82: 48.98531014 | Z82: 48.50110024 | AA82: 67.66759961 | AB82: 65.52131206 | AC82: 83.52056316
A83: Helse Sør-Øst | B83: Ringerike | C83: Vestre Viken | D83: 67433 | E83: 0 | F83: 56.92430296 | G83: 57.08025996 | H83: 90.62173708 | I83: 110.7773947 | J83: 142.1398593 | K83: 154.1465056 | L83: 186.9568366 | M83: 0 | N83: 0.05174936633 | O83: 0.05189114541 | P83: 0.08238339735 | Q83: 0.1007067225 | R83: 0.1292180539 | S83: 0.1401331869 | T83: 0.1699607605 | U83: =IF(ISBLANK(lsho_resultat[[#This Row],[Skopirom 2028]]),"",IF(lsho_resultat[[#This Row],[Skopirom 2028]]<0.2,1,ROUND(lsho_resultat[[#This Row],[Skopirom 2028]]+0.3,0))) -> 1 | V83: 0 | W83: 40.4162551 | X83: 40.52698457 | Y83: 60.08192891 | Z83: 61.02390587 | AA83: 80.68094341 | AB83: 81.23472002 | AC83: 99.82983627
A84: Helse Vest | B84: Haukeland | C84: Helse Bergen | D84: 436434 | E84: 0 | F84: 313.8776548 | G84: 314.7375935 | H84: 511.1912404 | I84: 613.2198622 | J84: 798.6663228 | K84: 866.5751638 | L84: 1057.323027 | M84: 0 | N84: 0.2853433225 | O84: 0.286125085 | P84: 0.4647193095 | Q84: 0.557472602 | R84: 0.7260602935 | S84: 0.7877956034 | T84: 0.9612027514 | U84: =IF(ISBLANK(lsho_resultat[[#This Row],[Skopirom 2028]]),"",IF(lsho_resultat[[#This Row],[Skopirom 2028]]<0.2,1,ROUND(lsho_resultat[[#This Row],[Skopirom 2028]]+0.3,0))) -> 1 | V84: 0 | W84: 222.8531349 | X84: 223.4636914 | Y84: 339.4590942 | Z84: 338.1859795 | AA84: 454.5987487 | AB84: 456.8440466 | AC84: 567.5461228
A85: Helse Vest | B85: Voss | C85: Helse Bergen | D85: 29429 | E85: 0 | F85: 21.07338817 | G85: 21.13112348 | H85: 35.46272835 | I85: 39.22598417 | J85: 55.26545985 | K85: 54.95061181 | L85: 70.80091773 | M85: 0 | N85: 0.01915762561 | O85: 0.01921011225 | P85: 0.03223884396 | Q85: 0.03565998561 | R85: 0.05024132714 | S85: 0.04995510165 | T85: 0.06436447066 | U85: =IF(ISBLANK(lsho_resultat[[#This Row],[Skopirom 2028]]),"",IF(lsho_resultat[[#This Row],[Skopirom 2028]]<0.2,1,ROUND(lsho_resultat[[#This Row],[Skopirom 2028]]+0.3,0))) -> 1 | V85: 0 | W85: 14.9621056 | X85: 15.00309767 | Y85: 23.60166776 | Z85: 21.32454326 | AA85: 31.60297233 | AB85: 28.2560923 | AC85: 38.30401723
A86: Helse Vest | B86: Haugesund | C86: Helse Fonna | D86: 118334 | E86: 0 | F86: 90.88832751 | G86: 91.13733662 | H86: 147.0090821 | I86: 176.4184514 | J86: 231.7189149 | K86: 246.8312511 | L86: 304.4409322 | M86: 0 | N86: 0.08262575228 | O86: 0.0828521242 | P86: 0.1336446201 | Q86: 0.1603804104 | R86: 0.210653559 | S86: 0.2243920465 | T86: 0.2767644838 | U86: =IF(ISBLANK(lsho_resultat[[#This Row],[Skopirom 2028]]),"",IF(lsho_resultat[[#This Row],[Skopirom 2028]]<0.2,1,ROUND(lsho_resultat[[#This Row],[Skopirom 2028]]+0.3,0))) -> 1 | V86: 0 | W86: 64.53071253 | X86: 64.707509 | Y86: 97.57550016 | Z86: 97.11124032 | AA86: 132.0333829 | AB86: 129.6999319 | AC86: 163.3550555
A87: Helse Vest | B87: Odda | C87: Helse Fonna | D87: 11709 | E87: 0 | F87: 9.752046651 | G87: 9.778764587 | H87: 15.03314318 | I87: 18.24360028 | J87: 22.51818206 | K87: 24.72981572 | L87: 29.72384361 | M87: 0 | N87: 0.008865496956 | O87: 0.008889785988 | P87: 0.0136664938 | Q87: 0.01658509116 | R87: 0.0204710746 | S87: 0.02248165066 | T87: 0.02702167601 | U87: =IF(ISBLANK(lsho_resultat[[#This Row],[Skopirom 2028]]),"",IF(lsho_resultat[[#This Row],[Skopirom 2028]]<0.2,1,ROUND(lsho_resultat[[#This Row],[Skopirom 2028]]+0.3,0))) -> 1 | V87: 0 | W87: 6.923953122 | X87: 6.942922857 | Y87: 9.943810192 | Z87: 9.932989286 | AA87: 12.55755525 | AB87: 12.89581349 | AC87: 15.77599435
A88: Helse Vest | B88: Stord | C88: Helse Fonna | D88: 49364 | E88: 0 | F88: 38.57849873 | G88: 38.68419324 | H88: 61.33952667 | I88: 74.07566491 | J88: 96.21654128 | K88: 102.6076533 | L88: 126.2666062 | M88: 0 | N88: 0.03507136248 | O88: 0.0351674484 | P88: 0.05576320607 | Q88: 0.06734151355 | R88: 0.08746958298 | S88: 0.09327968484 | T88: 0.1147878238 | U88: =IF(ISBLANK(lsho_resultat[[#This Row],[Skopirom 2028]]),"",IF(lsho_resultat[[#This Row],[Skopirom 2028]]<0.2,1,ROUND(lsho_resultat[[#This Row],[Skopirom 2028]]+0.3,0))) -> 1 | V88: 0 | W88: 27.3907341 | X88: 27.4657772 | Y88: 40.66433055 | Z88: 40.64691812 | AA88: 54.60359649 | AB88: 53.82626121 | AC88: 67.58922297
A89: Helse Vest | B89: Førde | C89: Helse Førde | D89: 54266 | E89: 0 | F89: 39.86756236 | G89: 39.97678856 | H89: 65.20173426 | I89: 78.40460432 | J89: 102.5566362 | K89: 111.1446332 | L89: 133.1305947 | M89: 0 | N89: 0.03624323851 | O89: 0.03634253506 | P89: 0.05927430387 | Q89: 0.07127691302 | R89: 0.09323330566 | S89: 0.1010405756 | T89: 0.1210278134 | U89: =IF(ISBLANK(lsho_resultat[[#This Row],[Skopirom 2028]]),"",IF(lsho_resultat[[#This Row],[Skopirom 2028]]<0.2,1,ROUND(lsho_resultat[[#This Row],[Skopirom 2028]]+0.3,0))) -> 1 | V89: 0 | W89: 28.30596928 | X89: 28.38351988 | Y89: 43.31004051 | Z89: 43.32127408 | AA89: 58.51131961 | AB89: 58.68778109 | AC89: 71.05468597
A90: Helse Vest | B90: Lærdal | C90: Helse Førde | D90: 26082 | E90: 0 | F90: 20.10191992 | G90: 20.15699367 | H90: 31.14927476 | I90: 38.3679378 | J90: 49.58579693 | K90: 53.79487226 | L90: 63.40798997 | M90: 0 | N90: 0.01827447265 | O90: 0.0183245397 | P90: 0.02831752251 | Q90: 0.03487994345 | R90: 0.04507799721 | S90: 0.04890442933 | T90: 0.05764362725 | U90: =IF(ISBLANK(lsho_resultat[[#This Row],[Skopirom 2028]]),"",IF(lsho_resultat[[#This Row],[Skopirom 2028]]<0.2,1,ROUND(lsho_resultat[[#This Row],[Skopirom 2028]]+0.3,0))) -> 1 | V90: 0 | W90: 14.27236314 | X90: 14.31146551 | Y90: 20.61180826 | Z90: 21.01616995 | AA90: 28.12283949 | AB90: 28.48891269 | AC90: 33.62099566
A91: Helse Vest | B91: Nordfjordeid | C91: Helse Førde | D91: 22219 | E91: 0 | F91: 16.94464811 | G91: 16.9910718 | H91: 27.74715535 | I91: 32.08095212 | J91: 43.51712909 | K91: 44.6535196 | L91: 55.38814736 | M91: 0 | N91: 0.01540422555 | O91: 0.01544642891 | P91: 0.02522468668 | Q91: 0.02916450192 | R91: 0.03956102645 | S91: 0.04059410873 | T91: 0.05035286124 | U91: =IF(ISBLANK(lsho_resultat[[#This Row],[Skopirom 2028]]),"",IF(lsho_resultat[[#This Row],[Skopirom 2028]]<0.2,1,ROUND(lsho_resultat[[#This Row],[Skopirom 2028]]+0.3,0))) -> 1 | V91: 0 | W91: 12.03070016 | X91: 12.06366098 | Y91: 18.4325543 | Z91: 17.53013886 | AA91: 24.81506159 | AB91: 23.19275089 | AC91: 29.64807981
A92: Helse Vest | B92: Stavanger | C92: Helse Stavanger | D92: 369799 | E92: 0 | F92: 268.1065546 | G92: 268.8410931 | H92: 436.314564 | I92: 519.4326359 | J92: 681.9530395 | K92: 734.5732479 | L92: 898.7082448 | M92: 0 | N92: 0.2437332314 | O92: 0.2444009937 | P92: 0.3966496036 | Q92: 0.4722114872 | R92: 0.6199573086 | S92: 0.6677938617 | T92: 0.8170074953 | U92: =IF(ISBLANK(lsho_resultat[[#This Row],[Skopirom 2028]]),"",IF(lsho_resultat[[#This Row],[Skopirom 2028]]<0.2,1,ROUND(lsho_resultat[[#This Row],[Skopirom 2028]]+0.3,0))) -> 1 | V92: 0 | W92: 190.3556538 | X92: 190.8771761 | Y92: 289.7215918 | Z92: 285.771223 | AA92: 388.1558047 | AB92: 386.629447 | AC92: 482.6809507
A93: Total | D93: =SUM(lsho_resultat[Befolkning 2022]) -> 5417351 | E93: =SUM(lsho_resultat[Koloskopier 2021]) -> 0 | F93: =SUM(lsho_resultat[Koloskopier 2022]) -> 4136.3063 | G93: =SUM(lsho_resultat[Koloskopier 2023]) -> 4147.638646 | H93: =SUM(lsho_resultat[Koloskopier 2024]) -> 6710.901638 | I93: =SUM(lsho_resultat[Koloskopier 2025]) -> 8032.393041 | J93: =SUM(lsho_resultat[Koloskopier 2026]) -> 10524.25524 | K93: =SUM(lsho_resultat[Koloskopier 2027]) -> 11329.17017 | L93: =SUM(lsho_resultat[Koloskopier 2028]) -> 13796.42227 | M93: =SUM(lsho_resultat[Skopirom 2021]) -> 0 | N93: =SUM(lsho_resultat[Skopirom 2022]) -> 3.760278455 | O93: =SUM(lsho_resultat[Skopirom 2023]) -> 3.770580588 | P93: =SUM(lsho_resultat[Skopirom 2024]) -> 6.100819671 | Q93: =SUM(lsho_resultat[Skopirom 2025]) -> 7.302175491 | R93: =SUM(lsho_resultat[Skopirom 2026]) -> 9.567504759 | S93: =SUM(lsho_resultat[Skopirom 2027]) -> 10.29924561 | T93: =SUM(lsho_resultat[Skopirom 2028]) -> 12.54220206 | U93: =SUM(lsho_resultat[Skopirom 2028, rundet opp hvis >=0,2]) -> 50 | V93: =SUBTOTAL(109,lsho_resultat[Patologi-remisser 2021]) -> 0 | W93: =SUBTOTAL(109,lsho_resultat[Patologi-remisser 2022]) -> 2936.777473 | X93: =SUBTOTAL(109,lsho_resultat[Patologi-remisser 2023]) -> 2944.823439 | Y93: =SUBTOTAL(109,lsho_resultat[Patologi-remisser 2024]) -> 4455.230621 | Z93: =SUBTOTAL(109,lsho_resultat[Patologi-remisser 2025]) -> 4422.087615 | AA93: =SUBTOTAL(109,lsho_resultat[Patologi-remisser 2026]) -> 5992.205466 | AB93: =SUBTOTAL(109,lsho_resultat[Patologi-remisser 2027]) -> 5965.635092 | AC93: =SUBTOTAL(109,lsho_resultat[Patologi-remisser 2028]) -> 7393.347637

Sheet Innstillinger
A1: Parameter | B1: Koloskopi | C1: iFOBT | D1: Forklaring
A2: Deltakelse | B2: 0.6 | C2: 0.58 | D2: I NordICC-studien var oppmøtet for primærkoloskopi 60 %. I piloten var oppmøtet for sigmo 52%, og 58 % for iFOBT. Bruker runde tall her.
A3: Koloskopier per person som kalles inn til koloskopi (primær kolo / positiv IFOBT) | B3: 1.0258 | C3: 1.036
A4: Positivitet | C4: 0.061 | D4: Piloten 55-åringer runde 1
A5: Andel iFOBT-positive til koloskopi | C5: 0.95 | D5: I piloten er det 93%. Antar litt høyere pga. lavere alder/komorbiditet
A6: Andel av inviterte som reserverer seg eller får tarmkreft mellom første- og andregangsinvitasjon | C6: 0.03 | D6: I piloten er tallet litt over 4 %, antar lavere pga. lavere alder / komorbiditet
A7: Andel av inviterte som reserverer seg eller får tarmkreft mellom andre- og tredjegangsinvitasjon | C7: 0.015 | D7: I piloten er samlet antall reserverte/tarmkreft utenom screening ca. 8 % ved 2,5 runder. Konservativt tillegg per runde
A8: Andel av inviterte som reserverer seg eller får tarmkreft mellom tredje- og fjerdegangsinvitasjon og mellom fjerde- og femtegangsinvitasjon | C8: 0.015 | D8: I piloten er samlet antall reserverte/tarmkreft utenom screening ca. 8 % ved 2,5 runder. Konservativt tillegg per runde
A9: Andel avanserte adenomer | B9: 0.1 | C9: 0.3604 | D9: NordICC. Piloten: 1172 av 3252 (5-års data). Disse får 3-års surveillance.
A10: Vevsprøver runde 1: andel koloskopier med vevsprøve | B10: 0.45 | C10: 0.71 | D10: NordICC. Pilot, iFOBT, 55-60-åringer
A11: Vevsprøver runde 1: Ikke-avanserte adenom per koloskopi | B11: 0.3435674156 | C11: 0.796961326 | D11: NordICC, 55-59-åringer blant nordmenn. Pilot, iFOBT, 55-60-åringer
A12: Vevsprøver runde 1: Avanserte adenom >= 20 mm per koloskopi | B12: 0.01952087589 | C12: 0.07458563536 | D12: NordICC, 55-59-åringer blant nordmenn. Pilot, iFOBT, 55-60-åringer
A13: Vevsprøver runde 1: Avanserte adenom < 20 mm per koloskopi | B13: 0.05739137511 | C13: 0.2803867403 | D13: NordICC, 55-59-åringer blant nordmenn. Pilot, iFOBT, 55-60-åringer
A14: Vevsprøver runde 1: Kreft per koloskopi | B14: 0.005075427731 | C14: 0.04005524862 | D14: NordICC, 55-59-åringer blant nordmenn. Pilot, iFOBT, 55-60-åringer
A15: Vevsprøver runde 1: Andre polypper per koloskopi | B15: 0.482556052 | C15: 0.8356353591 | D15: NordICC, 55-59-åringer blant nordmenn. Pilot, iFOBT, 55-60-åringer
A16: Vevsprøver runde 2-5: andel koloskopier med vevsprøve | C16: 0.63 | D16: Pilot, iFOBT, 55-60-åringer
A17: Vevsprøver runde 2-5: Ikke-avanserte adenom per koloskopi | C17: 0.8630806846 | D17: Pilot, iFOBT, 55-60-åringer
A18: Vevsprøver runde 2-5: Avanserte adenom >= 20 mm per koloskopi | C18: 0.03667481663 | D18: Pilot, iFOBT, 55-60-åringer
A19: Vevsprøver runde 2-5: Avanserte adenom < 20 mm per koloskopi | C19: 0.1931540342 | D19: Pilot, iFOBT, 55-60-åringer
A20: Vevsprøver runde 2-5: Kreft per koloskopi | C20: 0.02689486553 | D20: Pilot, iFOBT, 55-60-åringer. Sum CRC og annen cancer.
A21: Vevsprøver runde 2-5: Andre polypper per koloskopi | C21: 0.8190709046 | D21: Pilot, iFOBT, 55-60-åringer
A22: Operasjonspreparat per screeningkoloskopi runde 1 | B22: =ifobt_operasjonspreparat*remisser_kolo/remisser_fobt -> 0.03340140845 | C22: 0.0527 | D22: Pilot, iFOBT, 55-60-åringer
A23: Operasjonspreparat per screeningkoloskopi runde 2-5 | C23: 0.02971 | D23: Pilot, iFOBT, 55-60-åringer
A24: iFOBT-prøvesett per invitasjon | C24: 1.065 | D24: Anslag fra piloten
A26: Parameter | B26: Verdi | D26: Forklaring
A27: Andel inviterbare | B27: 0.99 | D27: Pilot, andel av personer født i 1962 som kunne inviteres (har gyldig adresse i screeningområdet) var 98,8 %. Antar litt høyere pga. at utflytting fra kommune ikke betyr ut av program, som det gjør i piloten.
A28: Andel som ikke har digital post | B28: 0.6 | D28: Anslag
A29: Surveillance 6 år blant de som blir inkludert i 3-års-surveillance | B29: 0.15 | D29: Anslag
A30: Surveillance 8 år blant de som blir inkludert i 3-års-surveillance | B30: 0.85 | D30: Anslag
A31: Surveillance 9 år blant de som blir inkludert i 3-års-surveillance | B31: 0.0225 | D31: Anslag (15 % av 15 %)
A32: Andel får påminnelse | B32: 0.5 | D32: Anslag fra piloten
A33: Personellkostnad per skopirom | B33: 3932500
A34: Undersøkelser per år per skopirom | B34: 1100 | D34: 7 timer per dag, 200 dagers fullt program, ca. 80 % av timene i programmet utnyttet
A35: Operasjonspreparat per screeningkoloskopi | B35: 0.04
A36: Maks i rute-dato | B36: 45658
A38: Beregnede innstillinger | B38: Koloskopi | C38: iFOBT
A39: Koloskopier per inviterte | B39: =kolo_per_kolo*beregnet_deltakelse_kolo -> 0.61548 | C39: =kolo_per_positiv_ifobt*beregnet_deltakelse_ifobt*beregnet_positivitet_ifobt -> 0.03665368
A40: Andel av inviterte som møter til koloskopi | B40: =beregnet_deltakelse_kolo -> 0.6 | C40: =beregnet_positivitet_ifobt*andel_positive_til_kolo_ifobt*beregnet_deltakelse_ifobt -> 0.033611
A41: Deltakelse | B41: =IF(ISBLANK(brukervalgt_deltakelse_kolo),deltakelse_kolo,brukervalgt_deltakelse_kolo) -> 0.6 | C41: =IF(ISBLANK(brukervalgt_deltakelse_ifobt),deltakelse_ifobt,brukervalgt_deltakelse_ifobt) -> 0.58
A42: Positivitet | C42: =IF(ISBLANK(brukervalgt_positivitet_ifobt),positivitet_ifobt,brukervalgt_positivitet_ifobt) -> 0.061
A43: Utsendelser per førstegangsinvitasjon | B43: 1 | C43: =1+påminnelse+beregnet_deltakelse_ifobt-beregnet_positivitet_ifobt -> 2.019 | D43: Alle brev sendt i regi av Kreftregisteret, også digitale, men ikke prøvekit
A44: Utsendelser per runde etter første | C44: =påminnelse+beregnet_deltakelse_ifobt-beregnet_positivitet_ifobt -> 1.019 | D44: Alle brev sendt i regi av Kreftregisteret, også digitale, men ikke prøvekit

Sheet Underlag kapasitet skopirom (hidden)
B1: IKKE I BRUK
B2: Timer per dag | C2: 6 | D2: Antar at program på 6 er mulig siden det er mindre andel terapeutiske skopier med primærkoloskopi.
B3: Utnyttelsesgrad timer | C3: 0.85
B4: Virkedager per år | C4: 254
B5: Sommerstengt dager | C5: =8*5 -> 40
B6: Vinterferie og høstferie 50 % program 2 uker | C6: 5
B7: Andre fridager | C7: 9 | D7: 3 dager påske + 4 dager jul + 1 inneklemt + 1 kurs/seminar
B8: Koloskopidager per år | C8: =C4-C5-C7-C6 -> 200
B9: Koloskopiprogram per år | C9: =C2*C8 -> 1200
B10: Koloskopier utført per år | C10: =C9*C3 -> 1020

Sheet Befolkning per HF (hidden)
C1: Hele befolkningen, MMMM
A2: RHF | B2: Helseforetak | C2: Hele2022 | D2: Hele2023 | E2: Hele2024 | F2: Hele2025 | G2: Hele2026 | H2: Hele2027 | I2: Hele2028 | J2: Hele2029 | K2: Hele2030 | L2: Hele2031 | M2: Hele2032 | N2: Hele2033 | O2: Hele2034 | P2: Hele2035 | Q2: Hele2036 | R2: Hele2037 | S2: Hele2038 | T2: Hele2039 | U2: Hele2040 | V2: 2020 | W2: 2021 | X2: 2022 | Y2: 2023 | Z2: 2024 | AA2: 2025 | AB2: 2026 | AC2: 2027 | AD2: 2028 | AE2: 2029 | AF2: 2030 | AG2: 2031 | AH2: 2032 | AI2: 2033 | AJ2: 2034 | AK2: 2035 | AL2: 2036 | AM2: 2037 | AN2: 2038 | AO2: 2039 | AP2: 2040 | AQ2: Gjennomsnitt 2022-2040 | AR2: Variasjons-koeffisient | AS2: Maksavvik ned | AT2: Maksavvik opp | AU2: Variasjonsbredde | AV2: Sum
A3: Helse Midt-Norge | B3: Helse Møre og Romsdal | C3: 265389 | D3: 265762 | E3: 266221 | F3: 266790 | G3: 267483 | H3: 268180 | I3: 268879 | J3: 269573 | K3: 270262 | L3: 270938 | M3: 271587 | N3: 272222 | O3: 272834 | P3: 273422 | Q3: 273994 | R3: 274528 | S3: 275011 | T3: 275448 | U3: 275836 | V3: =SUMIFS(hf_kommune[2020],hf_kommune[Helseforetak],"="&hf[[#This Row],[Helseforetak]]) -> 3297 | W3: =SUMIFS(hf_kommune[2021],hf_kommune[Helseforetak],"="&hf[[#This Row],[Helseforetak]]) -> 3377 | X3: 3452 | Y3: 3619 | Z3: 3753 | AA3: 3760 | AB3: 3663 | AC3: 3651 | AD3: 3660 | AE3: 3473 | AF3: 3417 | AG3: 3186 | AH3: 3218 | AI3: 3153 | AJ3: 3189 | AK3: 3321 | AL3: 3340 | AM3: 3291 | AN3: 3363 | AO3: 3433 | AP3: 3420 | AQ3: =AVERAGE(hf[[#This Row],[2022]:[2040]]) -> 3440.105263 | AR3: =_xlfn.STDEV.P(hf[[#This Row],[2022]:[2040]])/hf[[#This Row],[Gjennomsnitt 2022-2040]] -> 0.05534476304 | AS3: =-(hf[[#This Row],[Gjennomsnitt 2022-2040]]-MIN(hf[[#This Row],[2022]:[2040]]))/hf[[#This Row],[Gjennomsnitt 2022-2040]] -> -0.08345827851 | AT3: =(MAX(hf[[#This Row],[2022]:[2040]])-hf[[#This Row],[Gjennomsnitt 2022-2040]])/hf[[#This Row],[Gjennomsnitt 2022-2040]] -> 0.09298981059 | AU3: =MAX(hf[[#This Row],[2022]:[2040]])-MIN(hf[[#This Row],[2022]:[2040]]) -> 607 | AV3: =SUM(hf[[#This Row],[2022]:[2040]]) -> 65362
A4: Helse Midt-Norge | B4: Helse Nord-Trøndelag | C4: 135980 | D4: 135928 | E4: 135976 | F4: 136132 | G4: 136395 | H4: 136659 | I4: 136924 | J4: 137183 | K4: 137437 | L4: 137681 | M4: 137916 | N4: 138139 | O4: 138356 | P4: 138565 | Q4: 138767 | R4: 138958 | S4: 139131 | T4: 139286 | U4: 139420 | V4: =SUMIFS(hf_kommune[2020],hf_kommune[Helseforetak],"="&hf[[#This Row],[Helseforetak]]) -> 1789 | W4: =SUMIFS(hf_kommune[2021],hf_kommune[Helseforetak],"="&hf[[#This Row],[Helseforetak]]) -> 1929 | X4: 1924 | Y4: 1907 | Z4: 1934 | AA4: 1938 | AB4: 1828 | AC4: 1891 | AD4: 1891 | AE4: 1726 | AF4: 1723 | AG4: 1555 | AH4: 1515 | AI4: 1554 | AJ4: 1553 | AK4: 1580 | AL4: 1584 | AM4: 1546 | AN4: 1628 | AO4: 1584 | AP4: 1632 | AQ4: =AVERAGE(hf[[#This Row],[2022]:[2040]]) -> 1710.157895 | AR4: =_xlfn.STDEV.P(hf[[#This Row],[2022]:[2040]])/hf[[#This Row],[Gjennomsnitt 2022-2040]] -> 0.09157824336 | AS4: =-(hf[[#This Row],[Gjennomsnitt 2022-2040]]-MIN(hf[[#This Row],[2022]:[2040]]))/hf[[#This Row],[Gjennomsnitt 2022-2040]] -> -0.1141168867 | AT4: =(MAX(hf[[#This Row],[2022]:[2040]])-hf[[#This Row],[Gjennomsnitt 2022-2040]])/hf[[#This Row],[Gjennomsnitt 2022-2040]] -> 0.1332286954 | AU4: =MAX(hf[[#This Row],[2022]:[2040]])-MIN(hf[[#This Row],[2022]:[2040]]) -> 423 | AV4: =SUM(hf[[#This Row],[2022]:[2040]]) -> 32493
A5: Helse Midt-Norge | B5: St. Olavs hospital | C5: 338476 | D5: 340940 | E5: 343187 | F5: 345263 | G5: 347190 | H5: 349088 | I5: 350961 | J5: 352801 | K5: 354597 | L5: 356341 | M5: 358020 | N5: 359635 | O5: 361194 | P5: 362701 | Q5: 364156 | R5: 365550 | S5: 366862 | T5: 368094 | U5: 369261 | V5: =SUMIFS(hf_kommune[2020],hf_kommune[Helseforetak],"="&hf[[#This Row],[Helseforetak]]) -> 4063 | W5: =SUMIFS(hf_kommune[2021],hf_kommune[Helseforetak],"="&hf[[#This Row],[Helseforetak]]) -> 4234 | X5: 4407 | Y5: 4286 | Z5: 4624 | AA5: 4519 | AB5: 4374 | AC5: 4455 | AD5: 4393 | AE5: 4441 | AF5: 4371 | AG5: 4161 | AH5: 4037 | AI5: 3930 | AJ5: 4080 | AK5: 4162 | AL5: 4214 | AM5: 4210 | AN5: 4346 | AO5: 4350 | AP5: 4363 | AQ5: =AVERAGE(hf[[#This Row],[2022]:[2040]]) -> 4301.210526 | AR5: =_xlfn.STDEV.P(hf[[#This Row],[2022]:[2040]])/hf[[#This Row],[Gjennomsnitt 2022-2040]] -> 0.0393593443 | AS5: =-(hf[[#This Row],[Gjennomsnitt 2022-2040]]-MIN(hf[[#This Row],[2022]:[2040]]))/hf[[#This Row],[Gjennomsnitt 2022-2040]] -> -0.08630373334 | AT5: =(MAX(hf[[#This Row],[2022]:[2040]])-hf[[#This Row],[Gjennomsnitt 2022-2040]])/hf[[#This Row],[Gjennomsnitt 2022-2040]] -> 0.07504619263 | AU5: =MAX(hf[[#This Row],[2022]:[2040]])-MIN(hf[[#This Row],[2022]:[2040]]) -> 694 | AV5: =SUM(hf[[#This Row],[2022]:[2040]]) -> 81723
A6: Helse Nord | B6: Finnmarkssykehuset | C6: 75333 | D6: 75395 | E6: 75481 | F6: 75597 | G6: 75745 | H6: 75894 | I6: 76041 | J6: 76187 | K6: 76330 | L6: 76470 | M6: 76599 | N6: 76725 | O6: 76844 | P6: 76961 | Q6: 77067 | R6: 77167 | S6: 77249 | T6: 77318 | U6: 77375 | V6: =SUMIFS(hf_kommune[2020],hf_kommune[Helseforetak],"="&hf[[#This Row],[Helseforetak]]) -> 1096 | W6: =SUMIFS(hf_kommune[2021],hf_kommune[Helseforetak],"="&hf[[#This Row],[Helseforetak]]) -> 1014 | X6: 1108 | Y6: 1121 | Z6: 1164 | AA6: 1145 | AB6: 1198 | AC6: 1145 | AD6: 1121 | AE6: 1059 | AF6: 970 | AG6: 922 | AH6: 908 | AI6: 808 | AJ6: 872 | AK6: 851 | AL6: 852 | AM6: 852 | AN6: 884 | AO6: 914 | AP6: 914 | AQ6: =AVERAGE(hf[[#This Row],[2022]:[2040]]) -> 989.8947368 | AR6: =_xlfn.STDEV.P(hf[[#This Row],[2022]:[2040]])/hf[[#This Row],[Gjennomsnitt 2022-2040]] -> 0.1297822028 | AS6: =-(hf[[#This Row],[Gjennomsnitt 2022-2040]]-MIN(hf[[#This Row],[2022]:[2040]]))/hf[[#This Row],[Gjennomsnitt 2022-2040]] -> -0.1837515951 | AT6: =(MAX(hf[[#This Row],[2022]:[2040]])-hf[[#This Row],[Gjennomsnitt 2022-2040]])/hf[[#This Row],[Gjennomsnitt 2022-2040]] -> 0.2102296895 | AU6: =MAX(hf[[#This Row],[2022]:[2040]])-MIN(hf[[#This Row],[2022]:[2040]]) -> 390 | AV6: =SUM(hf[[#This Row],[2022]:[2040]]) -> 18808
A7: Helse Nord | B7: Helgelandssykehuset | C7: 75477 | D7: 75186 | E7: 74983 | F7: 74870 | G7: 74839 | H7: 74806 | I7: 74773 | J7: 74736 | K7: 74699 | L7: 74656 | M7: 74608 | N7: 74557 | O7: 74504 | P7: 74452 | Q7: 74398 | R7: 74343 | S7: 74281 | T7: 74211 | U7: 74134 | V7: =SUMIFS(hf_kommune[2020],hf_kommune[Helseforetak],"="&hf[[#This Row],[Helseforetak]]) -> 1124 | W7: =SUMIFS(hf_kommune[2021],hf_kommune[Helseforetak],"="&hf[[#This Row],[Helseforetak]]) -> 1056 | X7: 1111 | Y7: 1140 | Z7: 1118 | AA7: 1172 | AB7: 1064 | AC7: 1043 | AD7: 1037 | AE7: 925 | AF7: 926 | AG7: 870 | AH7: 809 | AI7: 819 | AJ7: 823 | AK7: 816 | AL7: 828 | AM7: 809 | AN7: 823 | AO7: 856 | AP7: 854 | AQ7: =AVERAGE(hf[[#This Row],[2022]:[2040]]) -> 939.1052632 | AR7: =_xlfn.STDEV.P(hf[[#This Row],[2022]:[2040]])/hf[[#This Row],[Gjennomsnitt 2022-2040]] -> 0.1369259006 | AS7: =-(hf[[#This Row],[Gjennomsnitt 2022-2040]]-MIN(hf[[#This Row],[2022]:[2040]]))/hf[[#This Row],[Gjennomsnitt 2022-2040]] -> -0.138541725 | AT7: =(MAX(hf[[#This Row],[2022]:[2040]])-hf[[#This Row],[Gjennomsnitt 2022-2040]])/hf[[#This Row],[Gjennomsnitt 2022-2040]] -> 0.2479964132 | AU7: =MAX(hf[[#This Row],[2022]:[2040]])-MIN(hf[[#This Row],[2022]:[2040]]) -> 363 | AV7: =SUM(hf[[#This Row],[2022]:[2040]]) -> 17843
A8: Helse Nord | B8: Nordlandssykehuset | C8: 137928 | D8: 138022 | E8: 138136 | F8: 138285 | G8: 138467 | H8: 138650 | I8: 138833 | J8: 139013 | K8: 139182 | L8: 139342 | M8: 139492 | N8: 139626 | O8: 139755 | P8: 139871 | Q8: 139982 | R8: 140076 | S8: 140156 | T8: 140215 | U8: 140255 | V8: =SUMIFS(hf_kommune[2020],hf_kommune[Helseforetak],"="&hf[[#This Row],[Helseforetak]]) -> 1878 | W8: =SUMIFS(hf_kommune[2021],hf_kommune[Helseforetak],"="&hf[[#This Row],[Helseforetak]]) -> 1934 | X8: 1938 | Y8: 1997 | Z8: 2010 | AA8: 2003 | AB8: 1882 | AC8: 1902 | AD8: 1849 | AE8: 1749 | AF8: 1773 | AG8: 1678 | AH8: 1589 | AI8: 1576 | AJ8: 1617 | AK8: 1640 | AL8: 1671 | AM8: 1686 | AN8: 1658 | AO8: 1658 | AP8: 1678 | AQ8: =AVERAGE(hf[[#This Row],[2022]:[2040]]) -> 1766 | AR8: =_xlfn.STDEV.P(hf[[#This Row],[2022]:[2040]])/hf[[#This Row],[Gjennomsnitt 2022-2040]] -> 0.08191106644 | AS8: =-(hf[[#This Row],[Gjennomsnitt 2022-2040]]-MIN(hf[[#This Row],[2022]:[2040]]))/hf[[#This Row],[Gjennomsnitt 2022-2040]] -> -0.107587769 | AT8: =(MAX(hf[[#This Row],[2022]:[2040]])-hf[[#This Row],[Gjennomsnitt 2022-2040]])/hf[[#This Row],[Gjennomsnitt 2022-2040]] -> 0.1381653454 | AU8: =MAX(hf[[#This Row],[2022]:[2040]])-MIN(hf[[#This Row],[2022]:[2040]]) -> 434 | AV8: =SUM(hf[[#This Row],[2022]:[2040]]) -> 33554
A9: Helse Nord | B9: Universitetssykehuset Nord-Norge | C9: 192837 | D9: 193016 | E9: 193256 | F9: 193575 | G9: 193973 | H9: 194365 | I9: 194740 | J9: 195106 | K9: 195457 | L9: 195793 | M9: 196108 | N9: 196406 | O9: 196692 | P9: 196959 | Q9: 197211 | R9: 197438 | S9: 197632 | T9: 197787 | U9: 197915 | V9: =SUMIFS(hf_kommune[2020],hf_kommune[Helseforetak],"="&hf[[#This Row],[Helseforetak]]) -> 2524 | W9: =SUMIFS(hf_kommune[2021],hf_kommune[Helseforetak],"="&hf[[#This Row],[Helseforetak]]) -> 2600 | X9: 2675 | Y9: 2659 | Z9: 2703 | AA9: 2651 | AB9: 2677 | AC9: 2672 | AD9: 2583 | AE9: 2544 | AF9: 2493 | AG9: 2265 | AH9: 2211 | AI9: 2175 | AJ9: 2182 | AK9: 2201 | AL9: 2245 | AM9: 2233 | AN9: 2288 | AO9: 2272 | AP9: 2283 | AQ9: =AVERAGE(hf[[#This Row],[2022]:[2040]]) -> 2421.684211 | AR9: =_xlfn.STDEV.P(hf[[#This Row],[2022]:[2040]])/hf[[#This Row],[Gjennomsnitt 2022-2040]] -> 0.08411586677 | AS9: =-(hf[[#This Row],[Gjennomsnitt 2022-2040]]-MIN(hf[[#This Row],[2022]:[2040]]))/hf[[#This Row],[Gjennomsnitt 2022-2040]] -> -0.1018647309 | AT9: =(MAX(hf[[#This Row],[2022]:[2040]])-hf[[#This Row],[Gjennomsnitt 2022-2040]])/hf[[#This Row],[Gjennomsnitt 2022-2040]] -> 0.1161653482 | AU9: =MAX(hf[[#This Row],[2022]:[2040]])-MIN(hf[[#This Row],[2022]:[2040]]) -> 528 | AV9: =SUM(hf[[#This Row],[2022]:[2040]]) -> 46012
A10: Helse Sør-Øst | B10: Akershus universitetssykehus | C10: 601226 | D10: 607564 | E10: 613162 | F10: 618275 | G10: 622937 | H10: 627519 | I10: 632013 | J10: 636453 | K10: 640794 | L10: 645039 | M10: 649177 | N10: 653202 | O10: 657165 | P10: 661068 | Q10: 664899 | R10: 668641 | S10: 672263 | T10: 675780 | U10: 679137 | V10: =SUMIFS(hf_kommune[2020],hf_kommune[Helseforetak],"="&hf[[#This Row],[Helseforetak]]) -> 7962.651575 | W10: =SUMIFS(hf_kommune[2021],hf_kommune[Helseforetak],"="&hf[[#This Row],[Helseforetak]]) -> 8113.524341 | X10: 8606 | Y10: 8452 | Z10: 8905 | AA10: 8871 | AB10: 8751 | AC10: 8969 | AD10: 9030 | AE10: 8641 | AF10: 8852 | AG10: 8505 | AH10: 8356 | AI10: 8220 | AJ10: 8419 | AK10: 8503 | AL10: 8608 | AM10: 8562 | AN10: 8803 | AO10: 8813 | AP10: 8918 | AQ10: =AVERAGE(hf[[#This Row],[2022]:[2040]]) -> 8672.842105 | AR10: =_xlfn.STDEV.P(hf[[#This Row],[2022]:[2040]])/hf[[#This Row],[Gjennomsnitt 2022-2040]] -> 0.02565972972 | AS10: =-(hf[[#This Row],[Gjennomsnitt 2022-2040]]-MIN(hf[[#This Row],[2022]:[2040]]))/hf[[#This Row],[Gjennomsnitt 2022-2040]] -> -0.05221380717 | AT10: =(MAX(hf[[#This Row],[2022]:[2040]])-hf[[#This Row],[Gjennomsnitt 2022-2040]])/hf[[#This Row],[Gjennomsnitt 2022-2040]] -> 0.04118118264 | AU10: =MAX(hf[[#This Row],[2022]:[2040]])-MIN(hf[[#This Row],[2022]:[2040]]) -> 810 | AV10: =SUM(hf[[#This Row],[2022]:[2040]]) -> 164784
A11: Helse Sør-Øst | B11: Oslosykehusene | C11: 591127 | D11: 596103 | E11: 600726 | F11: 604953 | G11: 608904 | H11: 612704 | I11: 616390 | J11: 619974 | K11: 623478 | L11: 626913 | M11: 630238 | N11: 633489 | O11: 636648 | P11: 639721 | Q11: 642705 | R11: 645516 | S11: 648121 | T11: 650511 | U11: 652761 | V11: =SUMIFS(hf_kommune[2020],hf_kommune[Helseforetak],"="&hf[[#This Row],[Helseforetak]]) -> 5991.348425 | W11: =SUMIFS(hf_kommune[2021],hf_kommune[Helseforetak],"="&hf[[#This Row],[Helseforetak]]) -> 6054.475659 | X11: 6532 | Y11: 6519 | Z11: 6669 | AA11: 6928 | AB11: 6983 | AC11: 7099 | AD11: 7234 | AE11: 7129 | AF11: 7258 | AG11: 7163 | AH11: 7107 | AI11: 7021 | AJ11: 7205 | AK11: 7328 | AL11: 7570 | AM11: 7432 | AN11: 7577 | AO11: 7536 | AP11: 7700 | AQ11: =AVERAGE(hf[[#This Row],[2022]:[2040]]) -> 7157.368421 | AR11: =_xlfn.STDEV.P(hf[[#This Row],[2022]:[2040]])/hf[[#This Row],[Gjennomsnitt 2022-2040]] -> 0.04592063205 | AS11: =-(hf[[#This Row],[Gjennomsnitt 2022-2040]]-MIN(hf[[#This Row],[2022]:[2040]]))/hf[[#This Row],[Gjennomsnitt 2022-2040]] -> -0.08919038165 | AT11: =(MAX(hf[[#This Row],[2022]:[2040]])-hf[[#This Row],[Gjennomsnitt 2022-2040]])/hf[[#This Row],[Gjennomsnitt 2022-2040]] -> 0.07581439812 | AU11: =MAX(hf[[#This Row],[2022]:[2040]])-MIN(hf[[#This Row],[2022]:[2040]]) -> 1181 | AV11: =SUM(hf[[#This Row],[2022]:[2040]]) -> 135990
A12: Helse Sør-Øst | B12: Sykehuset i Vestfold | C12: 248509 | D12: 249812 | E12: 251095 | F12: 252368 | G12: 253634 | H12: 254886 | I12: 256120 | J12: 257342 | K12: 258544 | L12: 259728 | M12: 260888 | N12: 262029 | O12: 263151 | P12: 264254 | Q12: 265351 | R12: 266420 | S12: 267451 | T12: 268442 | U12: 269397 | V12: =SUMIFS(hf_kommune[2020],hf_kommune[Helseforetak],"="&hf[[#This Row],[Helseforetak]]) -> 3417 | W12: =SUMIFS(hf_kommune[2021],hf_kommune[Helseforetak],"="&hf[[#This Row],[Helseforetak]]) -> 3677 | X12: 3499 | Y12: 3614 | Z12: 3658 | AA12: 3767 | AB12: 3544 | AC12: 3661 | AD12: 3727 | AE12: 3465 | AF12: 3475 | AG12: 3389 | AH12: 3309 | AI12: 3234 | AJ12: 3300 | AK12: 3271 | AL12: 3316 | AM12: 3306 | AN12: 3401 | AO12: 3386 | AP12: 3410 | AQ12: =AVERAGE(hf[[#This Row],[2022]:[2040]]) -> 3459.578947 | AR12: =_xlfn.STDEV.P(hf[[#This Row],[2022]:[2040]])/hf[[#This Row],[Gjennomsnitt 2022-2040]] -> 0.04564692434 | AS12: =-(hf[[#This Row],[Gjennomsnitt 2022-2040]]-MIN(hf[[#This Row],[2022]:[2040]]))/hf[[#This Row],[Gjennomsnitt 2022-2040]] -> -0.06520416236 | AT12: =(MAX(hf[[#This Row],[2022]:[2040]])-hf[[#This Row],[Gjennomsnitt 2022-2040]])/hf[[#This Row],[Gjennomsnitt 2022-2040]] -> 0.08886082882 | AU12: =MAX(hf[[#This Row],[2022]:[2040]])-MIN(hf[[#This Row],[2022]:[2040]]) -> 533 | AV12: =SUM(hf[[#This Row],[2022]:[2040]]) -> 65732
A13: Helse Sør-Øst | B13: Sykehuset Innlandet | C13: 332626 | D13: 333287 | E13: 333956 | F13: 334657 | G13: 335397 | H13: 336167 | I13: 336963 | J13: 337768 | K13: 338581 | L13: 339381 | M13: 340164 | N13: 340929 | O13: 341679 | P13: 342411 | Q13: 343137 | R13: 343829 | S13: 344473 | T13: 345078 | U13: 345638 | V13: =SUMIFS(hf_kommune[2020],hf_kommune[Helseforetak],"="&hf[[#This Row],[Helseforetak]]) -> 4698 | W13: =SUMIFS(hf_kommune[2021],hf_kommune[Helseforetak],"="&hf[[#This Row],[Helseforetak]]) -> 4704 | X13: 4898 | Y13: 4845 | Z13: 4822 | AA13: 5007 | AB13: 4877 | AC13: 4820 | AD13: 4832 | AE13: 4577 | AF13: 4506 | AG13: 4291 | AH13: 4129 | AI13: 4020 | AJ13: 4014 | AK13: 4080 | AL13: 4089 | AM13: 4017 | AN13: 4092 | AO13: 4200 | AP13: 4162 | AQ13: =AVERAGE(hf[[#This Row],[2022]:[2040]]) -> 4435.684211 | AR13: =_xlfn.STDEV.P(hf[[#This Row],[2022]:[2040]])/hf[[#This Row],[Gjennomsnitt 2022-2040]] -> 0.082063347 | AS13: =-(hf[[#This Row],[Gjennomsnitt 2022-2040]]-MIN(hf[[#This Row],[2022]:[2040]]))/hf[[#This Row],[Gjennomsnitt 2022-2040]] -> -0.0950663281 | AT13: =(MAX(hf[[#This Row],[2022]:[2040]])-hf[[#This Row],[Gjennomsnitt 2022-2040]])/hf[[#This Row],[Gjennomsnitt 2022-2040]] -> 0.1287999241 | AU13: =MAX(hf[[#This Row],[2022]:[2040]])-MIN(hf[[#This Row],[2022]:[2040]]) -> 993 | AV13: =SUM(hf[[#This Row],[2022]:[2040]]) -> 84278
A14: Helse Sør-Øst | B14: Sykehuset Telemark | C14: 173224 | D14: 173369 | E14: 173590 | F14: 173881 | G14: 174243 | H14: 174603 | I14: 174964 | J14: 175325 | K14: 175676 | L14: 176017 | M14: 176351 | N14: 176669 | O14: 176982 | P14: 177286 | Q14: 177588 | R14: 177874 | S14: 178140 | T14: 178388 | U14: 178614 | V14: =SUMIFS(hf_kommune[2020],hf_kommune[Helseforetak],"="&hf[[#This Row],[Helseforetak]]) -> 2416 | W14: =SUMIFS(hf_kommune[2021],hf_kommune[Helseforetak],"="&hf[[#This Row],[Helseforetak]]) -> 2465 | X14: 2572 | Y14: 2548 | Z14: 2517 | AA14: 2546 | AB14: 2588 | AC14: 2539 | AD14: 2545 | AE14: 2386 | AF14: 2375 | AG14: 2237 | AH14: 2193 | AI14: 2088 | AJ14: 2098 | AK14: 2106 | AL14: 2074 | AM14: 2074 | AN14: 2160 | AO14: 2117 | AP14: 2151 | AQ14: =AVERAGE(hf[[#This Row],[2022]:[2040]]) -> 2311.263158 | AR14: =_xlfn.STDEV.P(hf[[#This Row],[2022]:[2040]])/hf[[#This Row],[Gjennomsnitt 2022-2040]] -> 0.087102334 | AS14: =-(hf[[#This Row],[Gjennomsnitt 2022-2040]]-MIN(hf[[#This Row],[2022]:[2040]]))/hf[[#This Row],[Gjennomsnitt 2022-2040]] -> -0.1026551897 | AT14: =(MAX(hf[[#This Row],[2022]:[2040]])-hf[[#This Row],[Gjennomsnitt 2022-2040]])/hf[[#This Row],[Gjennomsnitt 2022-2040]] -> 0.1197340256 | AU14: =MAX(hf[[#This Row],[2022]:[2040]])-MIN(hf[[#This Row],[2022]:[2040]]) -> 514 | AV14: =SUM(hf[[#This Row],[2022]:[2040]]) -> 43914
A15: Helse Sør-Øst | B15: Sykehuset Østfold | C15: 321458 | D15: 323520 | E15: 325572 | F15: 327621 | G15: 329689 | H15: 331724 | I15: 333727 | J15: 335707 | K15: 337654 | L15: 339572 | M15: 341452 | N15: 343301 | O15: 345120 | P15: 346914 | Q15: 348690 | R15: 350428 | S15: 352110 | T15: 353742 | U15: 355323 | V15: =SUMIFS(hf_kommune[2020],hf_kommune[Helseforetak],"="&hf[[#This Row],[Helseforetak]]) -> 4507 | W15: =SUMIFS(hf_kommune[2021],hf_kommune[Helseforetak],"="&hf[[#This Row],[Helseforetak]]) -> 4720 | X15: 4593 | Y15: 4740 | Z15: 5005 | AA15: 4918 | AB15: 4898 | AC15: 4868 | AD15: 4903 | AE15: 4697 | AF15: 4747 | AG15: 4543 | AH15: 4388 | AI15: 4333 | AJ15: 4431 | AK15: 4355 | AL15: 4477 | AM15: 4383 | AN15: 4455 | AO15: 4494 | AP15: 4541 | AQ15: =AVERAGE(hf[[#This Row],[2022]:[2040]]) -> 4619.421053 | AR15: =_xlfn.STDEV.P(hf[[#This Row],[2022]:[2040]])/hf[[#This Row],[Gjennomsnitt 2022-2040]] -> 0.04624597153 | AS15: =-(hf[[#This Row],[Gjennomsnitt 2022-2040]]-MIN(hf[[#This Row],[2022]:[2040]]))/hf[[#This Row],[Gjennomsnitt 2022-2040]] -> -0.06200366872 | AT15: =(MAX(hf[[#This Row],[2022]:[2040]])-hf[[#This Row],[Gjennomsnitt 2022-2040]])/hf[[#This Row],[Gjennomsnitt 2022-2040]] -> 0.0834691064 | AU15: =MAX(hf[[#This Row],[2022]:[2040]])-MIN(hf[[#This Row],[2022]:[2040]]) -> 672 | AV15: =SUM(hf[[#This Row],[2022]:[2040]]) -> 87769
A16: Helse Sør-Øst | B16: Sørlandet sykehus | C16: 316360 | D16: 317783 | E16: 319182 | F16: 320586 | G16: 321998 | H16: 323418 | I16: 324836 | J16: 326243 | K16: 327638 | L16: 329007 | M16: 330350 | N16: 331674 | O16: 332977 | P16: 334271 | Q16: 335554 | R16: 336814 | S16: 338025 | T16: 339186 | U16: 340301 | V16: =SUMIFS(hf_kommune[2020],hf_kommune[Helseforetak],"="&hf[[#This Row],[Helseforetak]]) -> 4201 | W16: =SUMIFS(hf_kommune[2021],hf_kommune[Helseforetak],"="&hf[[#This Row],[Helseforetak]]) -> 4178 | X16: 4205 | Y16: 4288 | Z16: 4265 | AA16: 4450 | AB16: 4301 | AC16: 4428 | AD16: 4352 | AE16: 4324 | AF16: 4288 | AG16: 4209 | AH16: 4179 | AI16: 3909 | AJ16: 4093 | AK16: 4051 | AL16: 4199 | AM16: 4144 | AN16: 4200 | AO16: 4146 | AP16: 4178 | AQ16: =AVERAGE(hf[[#This Row],[2022]:[2040]]) -> 4221.526316 | AR16: =_xlfn.STDEV.P(hf[[#This Row],[2022]:[2040]])/hf[[#This Row],[Gjennomsnitt 2022-2040]] -> 0.02974020417 | AS16: =-(hf[[#This Row],[Gjennomsnitt 2022-2040]]-MIN(hf[[#This Row],[2022]:[2040]]))/hf[[#This Row],[Gjennomsnitt 2022-2040]] -> -0.07403159246 | AT16: =(MAX(hf[[#This Row],[2022]:[2040]])-hf[[#This Row],[Gjennomsnitt 2022-2040]])/hf[[#This Row],[Gjennomsnitt 2022-2040]] -> 0.0541211086 | AU16: =MAX(hf[[#This Row],[2022]:[2040]])-MIN(hf[[#This Row],[2022]:[2040]]) -> 541 | AV16: =SUM(hf[[#This Row],[2022]:[2040]]) -> 80209
A17: Helse Sør-Øst | B17: Vestre Viken | C17: 493765 | D17: 496794 | E17: 499884 | F17: 503076 | G17: 506371 | H17: 509596 | I17: 512766 | J17: 515889 | K17: 518953 | L17: 521961 | M17: 524901 | N17: 527786 | O17: 530627 | P17: 533432 | Q17: 536209 | R17: 538940 | S17: 541596 | T17: 544175 | U17: 546690 | V17: =SUMIFS(hf_kommune[2020],hf_kommune[Helseforetak],"="&hf[[#This Row],[Helseforetak]]) -> 6682 | W17: =SUMIFS(hf_kommune[2021],hf_kommune[Helseforetak],"="&hf[[#This Row],[Helseforetak]]) -> 6758 | X17: 7055 | Y17: 6899 | Z17: 7200 | AA17: 7204 | AB17: 7121 | AC17: 7364 | AD17: 7340 | AE17: 7166 | AF17: 7316 | AG17: 6978 | AH17: 6753 | AI17: 6623 | AJ17: 6876 | AK17: 6853 | AL17: 6996 | AM17: 6888 | AN17: 7095 | AO17: 7093 | AP17: 7055 | AQ17: =AVERAGE(hf[[#This Row],[2022]:[2040]]) -> 7046.052632 | AR17: =_xlfn.STDEV.P(hf[[#This Row],[2022]:[2040]])/hf[[#This Row],[Gjennomsnitt 2022-2040]] -> 0.02760000252 | AS17: =-(hf[[#This Row],[Gjennomsnitt 2022-2040]]-MIN(hf[[#This Row],[2022]:[2040]]))/hf[[#This Row],[Gjennomsnitt 2022-2040]] -> -0.0600410831 | AT17: =(MAX(hf[[#This Row],[2022]:[2040]])-hf[[#This Row],[Gjennomsnitt 2022-2040]])/hf[[#This Row],[Gjennomsnitt 2022-2040]] -> 0.04512418301 | AU17: =MAX(hf[[#This Row],[2022]:[2040]])-MIN(hf[[#This Row],[2022]:[2040]]) -> 741 | AV17: =SUM(hf[[#This Row],[2022]:[2040]]) -> 133875
A18: Helse Vest | B18: Helse Bergen | C18: 465863 | D18: 468284 | E18: 470700 | F18: 473145 | G18: 475664 | H18: 478167 | I18: 480664 | J18: 483149 | K18: 485616 | L18: 488056 | M18: 490448 | N18: 492796 | O18: 495096 | P18: 497351 | Q18: 499557 | R18: 501686 | S18: 503711 | T18: 505631 | U18: 507457 | V18: =SUMIFS(hf_kommune[2020],hf_kommune[Helseforetak],"="&hf[[#This Row],[Helseforetak]]) -> 5487 | W18: =SUMIFS(hf_kommune[2021],hf_kommune[Helseforetak],"="&hf[[#This Row],[Helseforetak]]) -> 5546 | X18: 5866 | Y18: 6001 | Z18: 6062 | AA18: 6237 | AB18: 6083 | AC18: 6065 | AD18: 6132 | AE18: 6143 | AF18: 6031 | AG18: 5978 | AH18: 5733 | AI18: 5623 | AJ18: 5850 | AK18: 5974 | AL18: 6002 | AM18: 6053 | AN18: 6159 | AO18: 5981 | AP18: 6002 | AQ18: =AVERAGE(hf[[#This Row],[2022]:[2040]]) -> 5998.684211 | AR18: =_xlfn.STDEV.P(hf[[#This Row],[2022]:[2040]])/hf[[#This Row],[Gjennomsnitt 2022-2040]] -> 0.02398814021 | AS18: =-(hf[[#This Row],[Gjennomsnitt 2022-2040]]-MIN(hf[[#This Row],[2022]:[2040]]))/hf[[#This Row],[Gjennomsnitt 2022-2040]] -> -0.06262776925 | AT18: =(MAX(hf[[#This Row],[2022]:[2040]])-hf[[#This Row],[Gjennomsnitt 2022-2040]])/hf[[#This Row],[Gjennomsnitt 2022-2040]] -> 0.03972801053 | AU18: =MAX(hf[[#This Row],[2022]:[2040]])-MIN(hf[[#This Row],[2022]:[2040]]) -> 614 | AV18: =SUM(hf[[#This Row],[2022]:[2040]]) -> 113975
A19: Helse Vest | B19: Helse Fonna | C19: 179407 | D19: 179249 | E19: 179252 | F19: 179418 | G19: 179739 | H19: 180060 | I19: 180375 | J19: 180686 | K19: 180982 | L19: 181275 | M19: 181559 | N19: 181833 | O19: 182110 | P19: 182385 | Q19: 182664 | R19: 182943 | S19: 183205 | T19: 183452 | U19: 183676 | V19: =SUMIFS(hf_kommune[2020],hf_kommune[Helseforetak],"="&hf[[#This Row],[Helseforetak]]) -> 2333 | W19: =SUMIFS(hf_kommune[2021],hf_kommune[Helseforetak],"="&hf[[#This Row],[Helseforetak]]) -> 2315 | X19: 2467 | Y19: 2415 | Z19: 2570 | AA19: 2490 | AB19: 2463 | AC19: 2497 | AD19: 2407 | AE19: 2462 | AF19: 2333 | AG19: 2359 | AH19: 2241 | AI19: 2212 | AJ19: 2253 | AK19: 2352 | AL19: 2326 | AM19: 2252 | AN19: 2323 | AO19: 2271 | AP19: 2252 | AQ19: =AVERAGE(hf[[#This Row],[2022]:[2040]]) -> 2365.526316 | AR19: =_xlfn.STDEV.P(hf[[#This Row],[2022]:[2040]])/hf[[#This Row],[Gjennomsnitt 2022-2040]] -> 0.04325991426 | AS19: =-(hf[[#This Row],[Gjennomsnitt 2022-2040]]-MIN(hf[[#This Row],[2022]:[2040]]))/hf[[#This Row],[Gjennomsnitt 2022-2040]] -> -0.06490154633 | AT19: =(MAX(hf[[#This Row],[2022]:[2040]])-hf[[#This Row],[Gjennomsnitt 2022-2040]])/hf[[#This Row],[Gjennomsnitt 2022-2040]] -> 0.08643898098 | AU19: =MAX(hf[[#This Row],[2022]:[2040]])-MIN(hf[[#This Row],[2022]:[2040]]) -> 358 | AV19: =SUM(hf[[#This Row],[2022]:[2040]]) -> 44945
A20: Helse Vest | B20: Helse Førde | C20: 102567 | D20: 102328 | E20: 102151 | F20: 102043 | G20: 102002 | H20: 101971 | I20: 101952 | J20: 101937 | K20: 101928 | L20: 101921 | M20: 101917 | N20: 101907 | O20: 101902 | P20: 101898 | Q20: 101894 | R20: 101885 | S20: 101864 | T20: 101829 | U20: 101783 | V20: =SUMIFS(hf_kommune[2020],hf_kommune[Helseforetak],"="&hf[[#This Row],[Helseforetak]]) -> 1342 | W20: =SUMIFS(hf_kommune[2021],hf_kommune[Helseforetak],"="&hf[[#This Row],[Helseforetak]]) -> 1342 | X20: 1361 | Y20: 1376 | Z20: 1380 | AA20: 1394 | AB20: 1371 | AC20: 1417 | AD20: 1391 | AE20: 1240 | AF20: 1243 | AG20: 1148 | AH20: 1160 | AI20: 1123 | AJ20: 1178 | AK20: 1140 | AL20: 1187 | AM20: 1188 | AN20: 1175 | AO20: 1197 | AP20: 1207 | AQ20: =AVERAGE(hf[[#This Row],[2022]:[2040]]) -> 1256.631579 | AR20: =_xlfn.STDEV.P(hf[[#This Row],[2022]:[2040]])/hf[[#This Row],[Gjennomsnitt 2022-2040]] -> 0.08114769589 | AS20: =-(hf[[#This Row],[Gjennomsnitt 2022-2040]]-MIN(hf[[#This Row],[2022]:[2040]]))/hf[[#This Row],[Gjennomsnitt 2022-2040]] -> -0.1063410957 | AT20: =(MAX(hf[[#This Row],[2022]:[2040]])-hf[[#This Row],[Gjennomsnitt 2022-2040]])/hf[[#This Row],[Gjennomsnitt 2022-2040]] -> 0.1276176914 | AU20: =MAX(hf[[#This Row],[2022]:[2040]])-MIN(hf[[#This Row],[2022]:[2040]]) -> 294 | AV20: =SUM(hf[[#This Row],[2022]:[2040]]) -> 23876
A21: Helse Vest | B21: Helse Stavanger | C21: 369799 | D21: 372337 | E21: 374728 | F21: 377020 | G21: 379252 | H21: 381432 | I21: 383571 | J21: 385680 | K21: 387754 | L21: 389796 | M21: 391796 | N21: 393766 | O21: 395709 | P21: 397641 | Q21: 399557 | R21: 401426 | S21: 403231 | T21: 404969 | U21: 406643 | V21: =SUMIFS(hf_kommune[2020],hf_kommune[Helseforetak],"="&hf[[#This Row],[Helseforetak]]) -> 4472 | W21: =SUMIFS(hf_kommune[2021],hf_kommune[Helseforetak],"="&hf[[#This Row],[Helseforetak]]) -> 4450 | X21: 4639 | Y21: 4854 | Z21: 4858 | AA21: 4959 | AB21: 4794 | AC21: 4844 | AD21: 4908 | AE21: 4867 | AF21: 4824 | AG21: 4745 | AH21: 4728 | AI21: 4731 | AJ21: 4930 | AK21: 4989 | AL21: 5096 | AM21: 5035 | AN21: 5159 | AO21: 5104 | AP21: 5155 | AQ21: =AVERAGE(hf[[#This Row],[2022]:[2040]]) -> 4906.263158 | AR21: =_xlfn.STDEV.P(hf[[#This Row],[2022]:[2040]])/hf[[#This Row],[Gjennomsnitt 2022-2040]] -> 0.03020955005 | AS21: =-(hf[[#This Row],[Gjennomsnitt 2022-2040]]-MIN(hf[[#This Row],[2022]:[2040]]))/hf[[#This Row],[Gjennomsnitt 2022-2040]] -> -0.05447387335 | AT21: =(MAX(hf[[#This Row],[2022]:[2040]])-hf[[#This Row],[Gjennomsnitt 2022-2040]])/hf[[#This Row],[Gjennomsnitt 2022-2040]] -> 0.05151310355 | AU21: =MAX(hf[[#This Row],[2022]:[2040]])-MIN(hf[[#This Row],[2022]:[2040]]) -> 520 | AV21: =SUM(hf[[#This Row],[2022]:[2040]]) -> 93219
B22: Alle | C22: =SUBTOTAL(109,hf[Hele2022]) -> 5417351 | D22: =SUBTOTAL(109,hf[Hele2023]) -> 5444679 | E22: =SUBTOTAL(109,hf[Hele2024]) -> 5471238 | F22: =SUBTOTAL(109,hf[Hele2025]) -> 5497555 | G22: =SUBTOTAL(109,hf[Hele2026]) -> 5523922 | H22: =SUBTOTAL(109,hf[Hele2027]) -> 5549889 | I22: =SUBTOTAL(109,hf[Hele2028]) -> 5575492 | J22: =SUBTOTAL(109,hf[Hele2029]) -> 5600752 | K22: =SUBTOTAL(109,hf[Hele2030]) -> 5625562 | L22: =SUBTOTAL(109,hf[Hele2031]) -> 5649887 | M22: =SUBTOTAL(109,hf[Hele2032]) -> 5673571 | N22: =SUBTOTAL(109,hf[Hele2033]) -> 5696691 | O22: =SUBTOTAL(109,hf[Hele2034]) -> 5719345 | P22: =SUBTOTAL(109,hf[Hele2035]) -> 5741563 | Q22: =SUBTOTAL(109,hf[Hele2036]) -> 5763380 | R22: =SUBTOTAL(109,hf[Hele2037]) -> 5784462 | S22: =SUBTOTAL(109,hf[Hele2038]) -> 5804512 | T22: =SUBTOTAL(109,hf[Hele2039]) -> 5823542 | U22: =SUBTOTAL(109,hf[Hele2040]) -> 5841616 | X22: =SUBTOTAL(109,hf[2022]) -> 72908 | Y22: =SUBTOTAL(109,hf[2023]) -> 73280 | Z22: =SUBTOTAL(109,hf[2024]) -> 75217 | AA22: =SUBTOTAL(109,hf[2025]) -> 75959 | AB22: =SUBTOTAL(109,hf[2026]) -> 74460 | AC22: =SUBTOTAL(109,hf[2027]) -> 75330 | AD22: =SUBTOTAL(109,hf[2028]) -> 75335 | AE22: =SUBTOTAL(109,hf[2029]) -> 73014 | AF22: =SUBTOTAL(109,hf[2030]) -> 72921 | AG22: =SUBTOTAL(109,hf[2031]) -> 70182 | AH22: =SUBTOTAL(109,hf[2032]) -> 68563 | AI22: =SUBTOTAL(109,hf[2033]) -> 67152 | AJ22: =SUBTOTAL(109,hf[2034]) -> 68963 | AK22: =SUBTOTAL(109,hf[2035]) -> 69573 | AL22: =SUBTOTAL(109,hf[2036]) -> 70674 | AM22: =SUBTOTAL(109,hf[2037]) -> 69961 | AN22: =SUBTOTAL(109,hf[2038]) -> 71589 | AO22: =SUBTOTAL(109,hf[2039]) -> 71405 | AP22: =SUBTOTAL(109,hf[2040]) -> 71875 | AQ22: =SUBTOTAL(109,hf[Gjennomsnitt 2022-2040]) -> 72019 | AR22: =_xlfn.STDEV.P(hf[[#Totals],[2022]:[2031]])/hf[[#Totals],[Gjennomsnitt 2022-2040]] -> 0.02294702856 | AS22: =SUBTOTAL(105,hf[Maksavvik ned]) -> -0.1837515951 | AT22: =SUBTOTAL(104,hf[Maksavvik opp]) -> 0.2479964132 | AU22: =AVERAGE(hf[Variasjonsbredde]) -> 590 | AV22: =SUBTOTAL(109,hf[Sum]) -> 1368361
A25: RHF | B25: Lokalsykehusområde | C25: Helseforetak | D25: Hele2022 | E25: Hele2023 | F25: Hele2024 | G25: Hele2025 | H25: Hele2026 | I25: Hele2027 | J25: Hele2028 | K25: Hele2029 | L25: Hele2030 | M25: Hele2031 | N25: Hele2032 | O25: Hele2033 | P25: Hele2034 | Q25: Hele2035 | R25: Hele2036 | S25: Hele2037 | T25: Hele2038 | U25: Hele2039 | V25: Hele2040 | W25: 2022 | X25: 2023 | Y25: 2024 | Z25: 2025 | AA25: 2026 | AB25: 2027 | AC25: 2028 | AD25: 2029 | AE25: 2030 | AF25: 2031 | AG25: 2032 | AH25: 2033 | AI25: 2034 | AJ25: 2035 | AK25: 2036 | AL25: 2037 | AM25: 2038 | AN25: 2039 | AO25: 2040 | AP25: Gjennomsnitt 2022-2040 | AQ25: Variasjons-koeffisient | AR25: Maksavvik ned | AS25: Maksavvik opp | AT25: Variasjonsbredde | AU25: Sum
A26: Helse Midt-Norge | B26: Kristiansund | C26: Helse Møre og Romsdal | D26: 44161 | E26: 44069 | F26: 44028 | G26: 44037 | H26: 44095 | I26: 44152 | J26: 44205 | K26: 44255 | L26: 44304 | M26: 44349 | N26: 44391 | O26: 44430 | P26: 44468 | Q26: 44503 | R26: 44536 | S26: 44564 | T26: 44586 | U26: 44602 | V26: 44612 | W26: 637 | X26: 655 | Y26: 698 | Z26: 635 | AA26: 641 | AB26: 664 | AC26: 637 | AD26: 628 | AE26: 584 | AF26: 521 | AG26: 518 | AH26: 520 | AI26: 530 | AJ26: 527 | AK26: 533 | AL26: 545 | AM26: 545 | AN26: 557 | AO26: 576 | AP26: =AVERAGE(lokalsykehus_befolkning[[#This Row],[2022]:[2040]]) -> 586.8947368 | AQ26: =_xlfn.STDEV.P(lokalsykehus_befolkning[[#This Row],[2022]:[2040]])/lokalsykehus_befolkning[[#This Row],[Gjennomsnitt 2022-2040]] -> 0.09788358761 | AR26: =-(lokalsykehus_befolkning[[#This Row],[Gjennomsnitt 2022-2040]]-MIN(lokalsykehus_befolkning[[#This Row],[2022]:[2040]]))/lokalsykehus_befolkning[[#This Row],[Gjennomsnitt 2022-2040]] -> -0.117388575 | AS26: =(MAX(lokalsykehus_befolkning[[#This Row],[2022]:[2040]])-lokalsykehus_befolkning[[#This Row],[Gjennomsnitt 2022-2040]])/lokalsykehus_befolkning[[#This Row],[Gjennomsnitt 2022-2040]] -> 0.1893103758 | AT26: =MAX(lokalsykehus_befolkning[[#This Row],[2022]:[2040]])-MIN(lokalsykehus_befolkning[[#This Row],[2022]:[2040]]) -> 180 | AU26: =SUM(lokalsykehus_befolkning[[#This Row],[2022]:[2040]]) -> 11151
A27: Helse Midt-Norge | B27: Molde | C27: Helse Møre og Romsdal | D27: 72033 | E27: 71975 | F27: 71973 | G27: 72028 | H27: 72145 | I27: 72258 | J27: 72372 | K27: 72481 | L27: 72589 | M27: 72691 | N27: 72785 | O27: 72875 | P27: 72960 | Q27: 73036 | R27: 73112 | S27: 73180 | T27: 73235 | U27: 73279 | V27: 73315 | W27: 1015 | X27: 963 | Y27: 1045 | Z27: 1026 | AA27: 1000 | AB27: 965 | AC27: 958 | AD27: 889 | AE27: 912 | AF27: 803 | AG27: 840 | AH27: 838 | AI27: 821 | AJ27: 876 | AK27: 905 | AL27: 883 | AM27: 876 | AN27: 919 | AO27: 888 | AP27: =AVERAGE(lokalsykehus_befolkning[[#This Row],[2022]:[2040]]) -> 916.9473684 | AQ27: =_xlfn.STDEV.P(lokalsykehus_befolkning[[#This Row],[2022]:[2040]])/lokalsykehus_befolkning[[#This Row],[Gjennomsnitt 2022-2040]] -> 0.07570497898 | AR27: =-(lokalsykehus_befolkning[[#This Row],[Gjennomsnitt 2022-2040]]-MIN(lokalsykehus_befolkning[[#This Row],[2022]:[2040]]))/lokalsykehus_befolkning[[#This Row],[Gjennomsnitt 2022-2040]] -> -0.1242681667 | AS27: =(MAX(lokalsykehus_befolkning[[#This Row],[2022]:[2040]])-lokalsykehus_befolkning[[#This Row],[Gjennomsnitt 2022-2040]])/lokalsykehus_befolkning[[#This Row],[Gjennomsnitt 2022-2040]] -> 0.139651016 | AT27: =MAX(lokalsykehus_befolkning[[#This Row],[2022]:[2040]])-MIN(lokalsykehus_befolkning[[#This Row],[2022]:[2040]]) -> 242 | AU27: =SUM(lokalsykehus_befolkning[[#This Row],[2022]:[2040]]) -> 17422
A28: Helse Midt-Norge | B28: Volda | C28: Helse Møre og Romsdal | D28: 44243 | E28: 44267 | F28: 44315 | G28: 44387 | H28: 44487 | I28: 44590 | J28: 44694 | K28: 44799 | L28: 44903 | M28: 45009 | N28: 45110 | O28: 45213 | P28: 45313 | Q28: 45411 | R28: 45506 | S28: 45592 | T28: 45667 | U28: 45732 | V28: 45783 | W28: 538 | X28: 606 | Y28: 598 | Z28: 681 | AA28: 627 | AB28: 615 | AC28: 611 | AD28: 569 | AE28: 577 | AF28: 530 | AG28: 524 | AH28: 507 | AI28: 517 | AJ28: 554 | AK28: 524 | AL28: 539 | AM28: 528 | AN28: 539 | AO28: 546 | AP28: =AVERAGE(lokalsykehus_befolkning[[#This Row],[2022]:[2040]]) -> 564.7368421 | AQ28: =_xlfn.STDEV.P(lokalsykehus_befolkning[[#This Row],[2022]:[2040]])/lokalsykehus_befolkning[[#This Row],[Gjennomsnitt 2022-2040]] -> 0.08025751788 | AR28: =-(lokalsykehus_befolkning[[#This Row],[Gjennomsnitt 2022-2040]]-MIN(lokalsykehus_befolkning[[#This Row],[2022]:[2040]]))/lokalsykehus_befolkning[[#This Row],[Gjennomsnitt 2022-2040]] -> -0.1022367195 | AS28: =(MAX(lokalsykehus_befolkning[[#This Row],[2022]:[2040]])-lokalsykehus_befolkning[[#This Row],[Gjennomsnitt 2022-2040]])/lokalsykehus_befolkning[[#This Row],[Gjennomsnitt 2022-2040]] -> 0.2058713886 | AT28: =MAX(lokalsykehus_befolkning[[#This Row],[2022]:[2040]])-MIN(lokalsykehus_befolkning[[#This Row],[2022]:[2040]]) -> 174 | AU28: =SUM(lokalsykehus_befolkning[[#This Row],[2022]:[2040]]) -> 10730
A29: Helse Midt-Norge | B29: Ålesund | C29: Helse Møre og Romsdal | D29: 104952 | E29: 105451 | F29: 105905 | G29: 106338 | H29: 106756 | I29: 107180 | J29: 107608 | K29: 108038 | L29: 108466 | M29: 108889 | N29: 109301 | O29: 109704 | P29: 110093 | Q29: 110472 | R29: 110840 | S29: 111192 | T29: 111523 | U29: 111835 | V29: 112126 | W29: 1262 | X29: 1395 | Y29: 1412 | Z29: 1418 | AA29: 1395 | AB29: 1407 | AC29: 1454 | AD29: 1387 | AE29: 1344 | AF29: 1332 | AG29: 1336 | AH29: 1288 | AI29: 1321 | AJ29: 1364 | AK29: 1378 | AL29: 1324 | AM29: 1414 | AN29: 1418 | AO29: 1410 | AP29: =AVERAGE(lokalsykehus_befolkning[[#This Row],[2022]:[2040]]) -> 1371.526316 | AQ29: =_xlfn.STDEV.P(lokalsykehus_befolkning[[#This Row],[2022]:[2040]])/lokalsykehus_befolkning[[#This Row],[Gjennomsnitt 2022-2040]] -> 0.03591787767 | AR29: =-(lokalsykehus_befolkning[[#This Row],[Gjennomsnitt 2022-2040]]-MIN(lokalsykehus_befolkning[[#This Row],[2022]:[2040]]))/lokalsykehus_befolkning[[#This Row],[Gjennomsnitt 2022-2040]] -> -0.07985724702 | AS29: =(MAX(lokalsykehus_befolkning[[#This Row],[2022]:[2040]])-lokalsykehus_befolkning[[#This Row],[Gjennomsnitt 2022-2040]])/lokalsykehus_befolkning[[#This Row],[Gjennomsnitt 2022-2040]] -> 0.06013277562 | AT29: =MAX(lokalsykehus_befolkning[[#This Row],[2022]:[2040]])-MIN(lokalsykehus_befolkning[[#This Row],[2022]:[2040]]) -> 192 | AU29: =SUM(lokalsykehus_befolkning[[#This Row],[2022]:[2040]]) -> 26059
A30: Helse Midt-Norge | B30: Levanger | C30: Helse Nord-Trøndelag | D30: 97355 | E30: 97419 | F30: 97553 | G30: 97763 | H30: 98049 | I30: 98331 | J30: 98607 | K30: 98879 | L30: 99146 | M30: 99403 | N30: 99651 | O30: 99891 | P30: 100126 | Q30: 100352 | R30: 100574 | S30: 100785 | T30: 100981 | U30: 101161 | V30: 101327 | W30: 1386 | X30: 1353 | Y30: 1404 | Z30: 1379 | AA30: 1321 | AB30: 1374 | AC30: 1357 | AD30: 1226 | AE30: 1238 | AF30: 1149 | AG30: 1096 | AH30: 1138 | AI30: 1129 | AJ30: 1157 | AK30: 1183 | AL30: 1141 | AM30: 1220 | AN30: 1151 | AO30: 1168 | AP30: =AVERAGE(lokalsykehus_befolkning[[#This Row],[2022]:[2040]]) -> 1240.526316 | AQ30: =_xlfn.STDEV.P(lokalsykehus_befolkning[[#This Row],[2022]:[2040]])/lokalsykehus_befolkning[[#This Row],[Gjennomsnitt 2022-2040]] -> 0.08350526058 | AR30: =-(lokalsykehus_befolkning[[#This Row],[Gjennomsnitt 2022-2040]]-MIN(lokalsykehus_befolkning[[#This Row],[2022]:[2040]]))/lokalsykehus_befolkning[[#This Row],[Gjennomsnitt 2022-2040]] -> -0.1165040305 | AS30: =(MAX(lokalsykehus_befolkning[[#This Row],[2022]:[2040]])-lokalsykehus_befolkning[[#This Row],[Gjennomsnitt 2022-2040]])/lokalsykehus_befolkning[[#This Row],[Gjennomsnitt 2022-2040]] -> 0.1317776835 | AT30: =MAX(lokalsykehus_befolkning[[#This Row],[2022]:[2040]])-MIN(lokalsykehus_befolkning[[#This Row],[2022]:[2040]]) -> 308 | AU30: =SUM(lokalsykehus_befolkning[[#This Row],[2022]:[2040]]) -> 23570
A31: Helse Midt-Norge | B31: Namsos | C31: Helse Nord-Trøndelag | D31: 38625 | E31: 38509 | F31: 38423 | G31: 38369 | H31: 38346 | I31: 38328 | J31: 38317 | K31: 38304 | L31: 38291 | M31: 38278 | N31: 38265 | O31: 38248 | P31: 38230 | Q31: 38213 | R31: 38193 | S31: 38173 | T31: 38150 | U31: 38125 | V31: 38093 | W31: 538 | X31: 554 | Y31: 530 | Z31: 559 | AA31: 507 | AB31: 517 | AC31: 534 | AD31: 500 | AE31: 485 | AF31: 406 | AG31: 419 | AH31: 416 | AI31: 424 | AJ31: 423 | AK31: 401 | AL31: 405 | AM31: 408 | AN31: 433 | AO31: 464 | AP31: =AVERAGE(lokalsykehus_befolkning[[#This Row],[2022]:[2040]]) -> 469.6315789 | AQ31: =_xlfn.STDEV.P(lokalsykehus_befolkning[[#This Row],[2022]:[2040]])/lokalsykehus_befolkning[[#This Row],[Gjennomsnitt 2022-2040]] -> 0.1198277578 | AR31: =-(lokalsykehus_befolkning[[#This Row],[Gjennomsnitt 2022-2040]]-MIN(lokalsykehus_befolkning[[#This Row],[2022]:[2040]]))/lokalsykehus_befolkning[[#This Row],[Gjennomsnitt 2022-2040]] -> -0.1461391909 | AS31: =(MAX(lokalsykehus_befolkning[[#This Row],[2022]:[2040]])-lokalsykehus_befolkning[[#This Row],[Gjennomsnitt 2022-2040]])/lokalsykehus_befolkning[[#This Row],[Gjennomsnitt 2022-2040]] -> 0.1902947439 | AT31: =MAX(lokalsykehus_befolkning[[#This Row],[2022]:[2040]])-MIN(lokalsykehus_befolkning[[#This Row],[2022]:[2040]]) -> 158 | AU31: =SUM(lokalsykehus_befolkning[[#This Row],[2022]:[2040]]) -> 8923
A32: Helse Midt-Norge | B32: St. Olav - Orkdal | C32: St. Olavs hospital | D32: 68846 | E32: 68983 | F32: 69156 | G32: 69368 | H32: 69619 | I32: 69864 | J32: 70103 | K32: 70336 | L32: 70561 | M32: 70778 | N32: 70987 | O32: 71188 | P32: 71378 | Q32: 71565 | R32: 71746 | S32: 71922 | T32: 72089 | U32: 72245 | V32: 72393 | W32: 992 | X32: 986 | Y32: 1041 | Z32: 1009 | AA32: 940 | AB32: 966 | AC32: 982 | AD32: 914 | AE32: 910 | AF32: 875 | AG32: 812 | AH32: 794 | AI32: 819 | AJ32: 841 | AK32: 836 | AL32: 842 | AM32: 855 | AN32: 883 | AO32: 874 | AP32: =AVERAGE(lokalsykehus_befolkning[[#This Row],[2022]:[2040]]) -> 903.7368421 | AQ32: =_xlfn.STDEV.P(lokalsykehus_befolkning[[#This Row],[2022]:[2040]])/lokalsykehus_befolkning[[#This Row],[Gjennomsnitt 2022-2040]] -> 0.08044744598 | AR32: =-(lokalsykehus_befolkning[[#This Row],[Gjennomsnitt 2022-2040]]-MIN(lokalsykehus_befolkning[[#This Row],[2022]:[2040]]))/lokalsykehus_befolkning[[#This Row],[Gjennomsnitt 2022-2040]] -> -0.1214256595 | AS32: =(MAX(lokalsykehus_befolkning[[#This Row],[2022]:[2040]])-lokalsykehus_befolkning[[#This Row],[Gjennomsnitt 2022-2040]])/lokalsykehus_befolkning[[#This Row],[Gjennomsnitt 2022-2040]] -> 0.1518839904 | AT32: =MAX(lokalsykehus_befolkning[[#This Row],[2022]:[2040]])-MIN(lokalsykehus_befolkning[[#This Row],[2022]:[2040]]) -> 247 | AU32: =SUM(lokalsykehus_befolkning[[#This Row],[2022]:[2040]]) -> 17171
A33: Helse Midt-Norge | B33: St. Olav - Øya | C33: St. Olavs hospital | D33: 269630 | E33: 271957 | F33: 274031 | G33: 275895 | H33: 277571 | I33: 279224 | J33: 280858 | K33: 282465 | L33: 284036 | M33: 285563 | N33: 287033 | O33: 288447 | P33: 289816 | Q33: 291136 | R33: 292410 | S33: 293628 | T33: 294773 | U33: 295849 | V33: 296868 | W33: 3415 | X33: 3300 | Y33: 3583 | Z33: 3510 | AA33: 3434 | AB33: 3489 | AC33: 3411 | AD33: 3527 | AE33: 3461 | AF33: 3286 | AG33: 3225 | AH33: 3136 | AI33: 3261 | AJ33: 3321 | AK33: 3378 | AL33: 3368 | AM33: 3491 | AN33: 3467 | AO33: 3489 | AP33: =AVERAGE(lokalsykehus_befolkning[[#This Row],[2022]:[2040]]) -> 3397.473684 | AQ33: =_xlfn.STDEV.P(lokalsykehus_befolkning[[#This Row],[2022]:[2040]])/lokalsykehus_befolkning[[#This Row],[Gjennomsnitt 2022-2040]] -> 0.03347916281 | AR33: =-(lokalsykehus_befolkning[[#This Row],[Gjennomsnitt 2022-2040]]-MIN(lokalsykehus_befolkning[[#This Row],[2022]:[2040]]))/lokalsykehus_befolkning[[#This Row],[Gjennomsnitt 2022-2040]] -> -0.07696120957 | AS33: =(MAX(lokalsykehus_befolkning[[#This Row],[2022]:[2040]])-lokalsykehus_befolkning[[#This Row],[Gjennomsnitt 2022-2040]])/lokalsykehus_befolkning[[#This Row],[Gjennomsnitt 2022-2040]] -> 0.05460713843 | AT33: =MAX(lokalsykehus_befolkning[[#This Row],[2022]:[2040]])-MIN(lokalsykehus_befolkning[[#This Row],[2022]:[2040]]) -> 447 | AU33: =SUM(lokalsykehus_befolkning[[#This Row],[2022]:[2040]]) -> 64552
A34: Helse Nord | B34: Hammerfest | C34: Finnmarkssykehuset | D34: 49377 | E34: 49448 | F34: 49519 | G34: 49595 | H34: 49679 | I34: 49765 | J34: 49847 | K34: 49933 | L34: 50015 | M34: 50095 | N34: 50170 | O34: 50243 | P34: 50311 | Q34: 50380 | R34: 50439 | S34: 50498 | T34: 50545 | U34: 50584 | V34: 50615 | W34: 707 | X34: 709 | Y34: 776 | Z34: 717 | AA34: 760 | AB34: 752 | AC34: 704 | AD34: 674 | AE34: 641 | AF34: 580 | AG34: 581 | AH34: 510 | AI34: 577 | AJ34: 552 | AK34: 555 | AL34: 550 | AM34: 573 | AN34: 599 | AO34: 603 | AP34: =AVERAGE(lokalsykehus_befolkning[[#This Row],[2022]:[2040]]) -> 637.8947368 | AQ34: =_xlfn.STDEV.P(lokalsykehus_befolkning[[#This Row],[2022]:[2040]])/lokalsykehus_befolkning[[#This Row],[Gjennomsnitt 2022-2040]] -> 0.1268205764 | AR34: =-(lokalsykehus_befolkning[[#This Row],[Gjennomsnitt 2022-2040]]-MIN(lokalsykehus_befolkning[[#This Row],[2022]:[2040]]))/lokalsykehus_befolkning[[#This Row],[Gjennomsnitt 2022-2040]] -> -0.2004950495 | AS34: =(MAX(lokalsykehus_befolkning[[#This Row],[2022]:[2040]])-lokalsykehus_befolkning[[#This Row],[Gjennomsnitt 2022-2040]])/lokalsykehus_befolkning[[#This Row],[Gjennomsnitt 2022-2040]] -> 0.2165016502 | AT34: =MAX(lokalsykehus_befolkning[[#This Row],[2022]:[2040]])-MIN(lokalsykehus_befolkning[[#This Row],[2022]:[2040]]) -> 266 | AU34: =SUM(lokalsykehus_befolkning[[#This Row],[2022]:[2040]]) -> 12120
A35: Helse Nord | B35: Kirkenes | C35: Finnmarkssykehuset | D35: 25956 | E35: 25947 | F35: 25962 | G35: 26002 | H35: 26066 | I35: 26129 | J35: 26194 | K35: 26254 | L35: 26315 | M35: 26375 | N35: 26429 | O35: 26482 | P35: 26533 | Q35: 26581 | R35: 26628 | S35: 26669 | T35: 26704 | U35: 26734 | V35: 26760 | W35: 401 | X35: 412 | Y35: 388 | Z35: 428 | AA35: 438 | AB35: 393 | AC35: 417 | AD35: 385 | AE35: 329 | AF35: 342 | AG35: 327 | AH35: 298 | AI35: 295 | AJ35: 299 | AK35: 297 | AL35: 302 | AM35: 311 | AN35: 315 | AO35: 311 | AP35: =AVERAGE(lokalsykehus_befolkning[[#This Row],[2022]:[2040]]) -> 352 | AQ35: =_xlfn.STDEV.P(lokalsykehus_befolkning[[#This Row],[2022]:[2040]])/lokalsykehus_befolkning[[#This Row],[Gjennomsnitt 2022-2040]] -> 0.142713739 | AR35: =-(lokalsykehus_befolkning[[#This Row],[Gjennomsnitt 2022-2040]]-MIN(lokalsykehus_befolkning[[#This Row],[2022]:[2040]]))/lokalsykehus_befolkning[[#This Row],[Gjennomsnitt 2022-2040]] -> -0.1619318182 | AS35: =(MAX(lokalsykehus_befolkning[[#This Row],[2022]:[2040]])-lokalsykehus_befolkning[[#This Row],[Gjennomsnitt 2022-2040]])/lokalsykehus_befolkning[[#This Row],[Gjennomsnitt 2022-2040]] -> 0.2443181818 | AT35: =MAX(lokalsykehus_befolkning[[#This Row],[2022]:[2040]])-MIN(lokalsykehus_befolkning[[#This Row],[2022]:[2040]]) -> 143 | AU35: =SUM(lokalsykehus_befolkning[[#This Row],[2022]:[2040]]) -> 6688
A36: Helse Nord | B36: Mo i Rana | C36: Helgelandssykehuset | D36: 33124 | E36: 32972 | F36: 32869 | G36: 32813 | H36: 32801 | I36: 32787 | J36: 32773 | K36: 32757 | L36: 32741 | M36: 32724 | N36: 32705 | O36: 32687 | P36: 32668 | Q36: 32649 | R36: 32630 | S36: 32610 | T36: 32586 | U36: 32559 | V36: 32530 | W36: 489 | X36: 512 | Y36: 468 | Z36: 522 | AA36: 459 | AB36: 462 | AC36: 429 | AD36: 408 | AE36: 393 | AF36: 383 | AG36: 351 | AH36: 360 | AI36: 370 | AJ36: 347 | AK36: 366 | AL36: 351 | AM36: 371 | AN36: 382 | AO36: 368 | AP36: =AVERAGE(lokalsykehus_befolkning[[#This Row],[2022]:[2040]]) -> 410.0526316 | AQ36: =_xlfn.STDEV.P(lokalsykehus_befolkning[[#This Row],[2022]:[2040]])/lokalsykehus_befolkning[[#This Row],[Gjennomsnitt 2022-2040]] -> 0.1371315942 | AR36: =-(lokalsykehus_befolkning[[#This Row],[Gjennomsnitt 2022-2040]]-MIN(lokalsykehus_befolkning[[#This Row],[2022]:[2040]]))/lokalsykehus_befolkning[[#This Row],[Gjennomsnitt 2022-2040]] -> -0.1537671672 | AS36: =(MAX(lokalsykehus_befolkning[[#This Row],[2022]:[2040]])-lokalsykehus_befolkning[[#This Row],[Gjennomsnitt 2022-2040]])/lokalsykehus_befolkning[[#This Row],[Gjennomsnitt 2022-2040]] -> 0.2730073161 | AT36: =MAX(lokalsykehus_befolkning[[#This Row],[2022]:[2040]])-MIN(lokalsykehus_befolkning[[#This Row],[2022]:[2040]]) -> 175 | AU36: =SUM(lokalsykehus_befolkning[[#This Row],[2022]:[2040]]) -> 7791
A37: Helse Nord | B37: Mosjøen | C37: Helgelandssykehuset | D37: 15743 | E37: 15630 | F37: 15539 | G37: 15470 | H37: 15424 | I37: 15378 | J37: 15334 | K37: 15291 | L37: 15249 | M37: 15207 | N37: 15165 | O37: 15123 | P37: 15081 | Q37: 15041 | R37: 15002 | S37: 14963 | T37: 14923 | U37: 14882 | V37: 14840 | W37: 229 | X37: 241 | Y37: 241 | Z37: 240 | AA37: 214 | AB37: 209 | AC37: 241 | AD37: 187 | AE37: 185 | AF37: 174 | AG37: 163 | AH37: 177 | AI37: 164 | AJ37: 158 | AK37: 154 | AL37: 155 | AM37: 162 | AN37: 165 | AO37: 169 | AP37: =AVERAGE(lokalsykehus_befolkning[[#This Row],[2022]:[2040]]) -> 190.9473684 | AQ37: =_xlfn.STDEV.P(lokalsykehus_befolkning[[#This Row],[2022]:[2040]])/lokalsykehus_befolkning[[#This Row],[Gjennomsnitt 2022-2040]] -> 0.1699247025 | AR37: =-(lokalsykehus_befolkning[[#This Row],[Gjennomsnitt 2022-2040]]-MIN(lokalsykehus_befolkning[[#This Row],[2022]:[2040]]))/lokalsykehus_befolkning[[#This Row],[Gjennomsnitt 2022-2040]] -> -0.1934950386 | AS37: =(MAX(lokalsykehus_befolkning[[#This Row],[2022]:[2040]])-lokalsykehus_befolkning[[#This Row],[Gjennomsnitt 2022-2040]])/lokalsykehus_befolkning[[#This Row],[Gjennomsnitt 2022-2040]] -> 0.2621278942 | AT37: =MAX(lokalsykehus_befolkning[[#This Row],[2022]:[2040]])-MIN(lokalsykehus_befolkning[[#This Row],[2022]:[2040]]) -> 87 | AU37: =SUM(lokalsykehus_befolkning[[#This Row],[2022]:[2040]]) -> 3628
A38: Helse Nord | B38: Sandnessjøen | C38: Helgelandssykehuset | D38: 26610 | E38: 26584 | F38: 26575 | G38: 26587 | H38: 26614 | I38: 26641 | J38: 26666 | K38: 26688 | L38: 26709 | M38: 26725 | N38: 26738 | O38: 26747 | P38: 26755 | Q38: 26762 | R38: 26766 | S38: 26770 | T38: 26772 | U38: 26770 | V38: 26764 | W38: 393 | X38: 387 | Y38: 409 | Z38: 410 | AA38: 391 | AB38: 372 | AC38: 367 | AD38: 330 | AE38: 348 | AF38: 313 | AG38: 295 | AH38: 282 | AI38: 289 | AJ38: 311 | AK38: 308 | AL38: 303 | AM38: 290 | AN38: 309 | AO38: 317 | AP38: =AVERAGE(lokalsykehus_befolkning[[#This Row],[2022]:[2040]]) -> 338.1052632 | AQ38: =_xlfn.STDEV.P(lokalsykehus_befolkning[[#This Row],[2022]:[2040]])/lokalsykehus_befolkning[[#This Row],[Gjennomsnitt 2022-2040]] -> 0.127072107 | AR38: =-(lokalsykehus_befolkning[[#This Row],[Gjennomsnitt 2022-2040]]-MIN(lokalsykehus_befolkning[[#This Row],[2022]:[2040]]))/lokalsykehus_befolkning[[#This Row],[Gjennomsnitt 2022-2040]] -> -0.1659402242 | AS38: =(MAX(lokalsykehus_befolkning[[#This Row],[2022]:[2040]])-lokalsykehus_befolkning[[#This Row],[Gjennomsnitt 2022-2040]])/lokalsykehus_befolkning[[#This Row],[Gjennomsnitt 2022-2040]] -> 0.2126400996 | AT38: =MAX(lokalsykehus_befolkning[[#This Row],[2022]:[2040]])-MIN(lokalsykehus_befolkning[[#This Row],[2022]:[2040]]) -> 128 | AU38: =SUM(lokalsykehus_befolkning[[#This Row],[2022]:[2040]]) -> 6424
A39: Helse Nord | B39: Bodø | C39: Nordlandssykehuset | D39: 84684 | E39: 84836 | F39: 84981 | G39: 85131 | H39: 85287 | I39: 85442 | J39: 85591 | K39: 85737 | L39: 85875 | M39: 86008 | N39: 86135 | O39: 86251 | P39: 86361 | Q39: 86464 | R39: 86564 | S39: 86652 | T39: 86732 | U39: 86797 | V39: 86850 | W39: 1135 | X39: 1191 | Y39: 1226 | Z39: 1227 | AA39: 1162 | AB39: 1132 | AC39: 1135 | AD39: 1088 | AE39: 1090 | AF39: 1055 | AG39: 999 | AH39: 952 | AI39: 987 | AJ39: 1028 | AK39: 1027 | AL39: 1058 | AM39: 1018 | AN39: 1009 | AO39: 1022 | AP39: =AVERAGE(lokalsykehus_befolkning[[#This Row],[2022]:[2040]]) -> 1081.105263 | AQ39: =_xlfn.STDEV.P(lokalsykehus_befolkning[[#This Row],[2022]:[2040]])/lokalsykehus_befolkning[[#This Row],[Gjennomsnitt 2022-2040]] -> 0.07391608222 | AR39: =-(lokalsykehus_befolkning[[#This Row],[Gjennomsnitt 2022-2040]]-MIN(lokalsykehus_befolkning[[#This Row],[2022]:[2040]]))/lokalsykehus_befolkning[[#This Row],[Gjennomsnitt 2022-2040]] -> -0.1194196972 | AS39: =(MAX(lokalsykehus_befolkning[[#This Row],[2022]:[2040]])-lokalsykehus_befolkning[[#This Row],[Gjennomsnitt 2022-2040]])/lokalsykehus_befolkning[[#This Row],[Gjennomsnitt 2022-2040]] -> 0.134949613 | AT39: =MAX(lokalsykehus_befolkning[[#This Row],[2022]:[2040]])-MIN(lokalsykehus_befolkning[[#This Row],[2022]:[2040]]) -> 275 | AU39: =SUM(lokalsykehus_befolkning[[#This Row],[2022]:[2040]]) -> 20541
A40: Helse Nord | B40: Lofoten | C40: Nordlandssykehuset | D40: 23226 | E40: 23234 | F40: 23250 | G40: 23277 | H40: 23315 | I40: 23355 | J40: 23397 | K40: 23437 | L40: 23476 | M40: 23513 | N40: 23548 | O40: 23581 | P40: 23614 | Q40: 23644 | R40: 23672 | S40: 23697 | T40: 23722 | U40: 23741 | V40: 23758 | W40: 325 | X40: 343 | Y40: 337 | Z40: 344 | AA40: 326 | AB40: 312 | AC40: 304 | AD40: 295 | AE40: 299 | AF40: 286 | AG40: 262 | AH40: 284 | AI40: 284 | AJ40: 286 | AK40: 312 | AL40: 290 | AM40: 286 | AN40: 297 | AO40: 300 | AP40: =AVERAGE(lokalsykehus_befolkning[[#This Row],[2022]:[2040]]) -> 303.7894737 | AQ40: =_xlfn.STDEV.P(lokalsykehus_befolkning[[#This Row],[2022]:[2040]])/lokalsykehus_befolkning[[#This Row],[Gjennomsnitt 2022-2040]] -> 0.07229702951 | AR40: =-(lokalsykehus_befolkning[[#This Row],[Gjennomsnitt 2022-2040]]-MIN(lokalsykehus_befolkning[[#This Row],[2022]:[2040]]))/lokalsykehus_befolkning[[#This Row],[Gjennomsnitt 2022-2040]] -> -0.1375606376 | AS40: =(MAX(lokalsykehus_befolkning[[#This Row],[2022]:[2040]])-lokalsykehus_befolkning[[#This Row],[Gjennomsnitt 2022-2040]])/lokalsykehus_befolkning[[#This Row],[Gjennomsnitt 2022-2040]] -> 0.1323631324 | AT40: =MAX(lokalsykehus_befolkning[[#This Row],[2022]:[2040]])-MIN(lokalsykehus_befolkning[[#This Row],[2022]:[2040]]) -> 82 | AU40: =SUM(lokalsykehus_befolkning[[#This Row],[2022]:[2040]]) -> 5772
A41: Helse Nord | B41: Stokmarknes | C41: Nordlandssykehuset | D41: 30018 | E41: 29952 | F41: 29905 | G41: 29877 | H41: 29865 | I41: 29853 | J41: 29845 | K41: 29839 | L41: 29831 | M41: 29821 | N41: 29809 | O41: 29794 | P41: 29780 | Q41: 29763 | R41: 29746 | S41: 29727 | T41: 29702 | U41: 29677 | V41: 29647 | W41: 478 | X41: 463 | Y41: 447 | Z41: 432 | AA41: 394 | AB41: 458 | AC41: 410 | AD41: 366 | AE41: 384 | AF41: 337 | AG41: 328 | AH41: 340 | AI41: 346 | AJ41: 326 | AK41: 332 | AL41: 338 | AM41: 354 | AN41: 352 | AO41: 356 | AP41: =AVERAGE(lokalsykehus_befolkning[[#This Row],[2022]:[2040]]) -> 381.1052632 | AQ41: =_xlfn.STDEV.P(lokalsykehus_befolkning[[#This Row],[2022]:[2040]])/lokalsykehus_befolkning[[#This Row],[Gjennomsnitt 2022-2040]] -> 0.1310367605 | AR41: =-(lokalsykehus_befolkning[[#This Row],[Gjennomsnitt 2022-2040]]-MIN(lokalsykehus_befolkning[[#This Row],[2022]:[2040]]))/lokalsykehus_befolkning[[#This Row],[Gjennomsnitt 2022-2040]] -> -0.1445932882 | AS41: =(MAX(lokalsykehus_befolkning[[#This Row],[2022]:[2040]])-lokalsykehus_befolkning[[#This Row],[Gjennomsnitt 2022-2040]])/lokalsykehus_befolkning[[#This Row],[Gjennomsnitt 2022-2040]] -> 0.254246651 | AT41: =MAX(lokalsykehus_befolkning[[#This Row],[2022]:[2040]])-MIN(lokalsykehus_befolkning[[#This Row],[2022]:[2040]]) -> 152 | AU41: =SUM(lokalsykehus_befolkning[[#This Row],[2022]:[2040]]) -> 7241
A42: Helse Nord | B42: Harstad | C42: Universitetssykehuset Nord-Norge | D42: 50710 | E42: 50621 | F42: 50573 | G42: 50569 | H42: 50607 | I42: 50648 | J42: 50686 | K42: 50724 | L42: 50759 | M42: 50791 | N42: 50817 | O42: 50842 | P42: 50865 | Q42: 50885 | R42: 50902 | S42: 50914 | T42: 50922 | U42: 50919 | V42: 50911 | W42: 674 | X42: 736 | Y42: 708 | Z42: 697 | AA42: 679 | AB42: 707 | AC42: 708 | AD42: 668 | AE42: 657 | AF42: 596 | AG42: 611 | AH42: 587 | AI42: 582 | AJ42: 564 | AK42: 584 | AL42: 558 | AM42: 598 | AN42: 590 | AO42: 586 | AP42: =AVERAGE(lokalsykehus_befolkning[[#This Row],[2022]:[2040]]) -> 636.3157895 | AQ42: =_xlfn.STDEV.P(lokalsykehus_befolkning[[#This Row],[2022]:[2040]])/lokalsykehus_befolkning[[#This Row],[Gjennomsnitt 2022-2040]] -> 0.08938139931 | AR42: =-(lokalsykehus_befolkning[[#This Row],[Gjennomsnitt 2022-2040]]-MIN(lokalsykehus_befolkning[[#This Row],[2022]:[2040]]))/lokalsykehus_befolkning[[#This Row],[Gjennomsnitt 2022-2040]] -> -0.1230769231 | AS42: =(MAX(lokalsykehus_befolkning[[#This Row],[2022]:[2040]])-lokalsykehus_befolkning[[#This Row],[Gjennomsnitt 2022-2040]])/lokalsykehus_befolkning[[#This Row],[Gjennomsnitt 2022-2040]] -> 0.1566583954 | AT42: =MAX(lokalsykehus_befolkning[[#This Row],[2022]:[2040]])-MIN(lokalsykehus_befolkning[[#This Row],[2022]:[2040]]) -> 178 | AU42: =SUM(lokalsykehus_befolkning[[#This Row],[2022]:[2040]]) -> 12090
A43: Helse Nord | B43: Narvik | C43: Universitetssykehuset Nord-Norge | D43: 27066 | E43: 26946 | F43: 26852 | G43: 26786 | H43: 26745 | I43: 26707 | J43: 26669 | K43: 26632 | L43: 26593 | M43: 26555 | N43: 26517 | O43: 26477 | P43: 26437 | Q43: 26398 | R43: 26358 | S43: 26320 | T43: 26278 | U43: 26235 | V43: 26191 | W43: 400 | X43: 387 | Y43: 412 | Z43: 379 | AA43: 367 | AB43: 325 | AC43: 319 | AD43: 330 | AE43: 344 | AF43: 316 | AG43: 274 | AH43: 288 | AI43: 303 | AJ43: 296 | AK43: 304 | AL43: 315 | AM43: 305 | AN43: 289 | AO43: 311 | AP43: =AVERAGE(lokalsykehus_befolkning[[#This Row],[2022]:[2040]]) -> 329.6842105 | AQ43: =_xlfn.STDEV.P(lokalsykehus_befolkning[[#This Row],[2022]:[2040]])/lokalsykehus_befolkning[[#This Row],[Gjennomsnitt 2022-2040]] -> 0.119583774 | AR43: =-(lokalsykehus_befolkning[[#This Row],[Gjennomsnitt 2022-2040]]-MIN(lokalsykehus_befolkning[[#This Row],[2022]:[2040]]))/lokalsykehus_befolkning[[#This Row],[Gjennomsnitt 2022-2040]] -> -0.1689016603 | AS43: =(MAX(lokalsykehus_befolkning[[#This Row],[2022]:[2040]])-lokalsykehus_befolkning[[#This Row],[Gjennomsnitt 2022-2040]])/lokalsykehus_befolkning[[#This Row],[Gjennomsnitt 2022-2040]] -> 0.2496807152 | AT43: =MAX(lokalsykehus_befolkning[[#This Row],[2022]:[2040]])-MIN(lokalsykehus_befolkning[[#This Row],[2022]:[2040]]) -> 138 | AU43: =SUM(lokalsykehus_befolkning[[#This Row],[2022]:[2040]]) -> 6264
A44: Helse Nord | B44: Tromsø | C44: Universitetssykehuset Nord-Norge | D44: 115061 | E44: 115449 | F44: 115831 | G44: 116220 | H44: 116621 | I44: 117010 | J44: 117385 | K44: 117750 | L44: 118105 | M44: 118447 | N44: 118774 | O44: 119087 | P44: 119390 | Q44: 119676 | R44: 119951 | S44: 120204 | T44: 120432 | U44: 120633 | V44: 120813 | W44: 1601 | X44: 1536 | Y44: 1583 | Z44: 1575 | AA44: 1631 | AB44: 1640 | AC44: 1556 | AD44: 1546 | AE44: 1492 | AF44: 1353 | AG44: 1326 | AH44: 1300 | AI44: 1297 | AJ44: 1341 | AK44: 1357 | AL44: 1360 | AM44: 1385 | AN44: 1393 | AO44: 1386 | AP44: =AVERAGE(lokalsykehus_befolkning[[#This Row],[2022]:[2040]]) -> 1455.684211 | AQ44: =_xlfn.STDEV.P(lokalsykehus_befolkning[[#This Row],[2022]:[2040]])/lokalsykehus_befolkning[[#This Row],[Gjennomsnitt 2022-2040]] -> 0.08110933871 | AR44: =-(lokalsykehus_befolkning[[#This Row],[Gjennomsnitt 2022-2040]]-MIN(lokalsykehus_befolkning[[#This Row],[2022]:[2040]]))/lokalsykehus_befolkning[[#This Row],[Gjennomsnitt 2022-2040]] -> -0.1090100513 | AS44: =(MAX(lokalsykehus_befolkning[[#This Row],[2022]:[2040]])-lokalsykehus_befolkning[[#This Row],[Gjennomsnitt 2022-2040]])/lokalsykehus_befolkning[[#This Row],[Gjennomsnitt 2022-2040]] -> 0.1266179767 | AT44: =MAX(lokalsykehus_befolkning[[#This Row],[2022]:[2040]])-MIN(lokalsykehus_befolkning[[#This Row],[2022]:[2040]]) -> 343 | AU44: =SUM(lokalsykehus_befolkning[[#This Row],[2022]:[2040]]) -> 27658
A45: Helse Sør-Øst | B45: Ahus | C45: Akershus universitetssykehus | D45: 424135 | E45: 429428 | F45: 434045 | G45: 438231 | H45: 442008 | I45: 445706 | J45: 449321 | K45: 452888 | L45: 456364 | M45: 459757 | N45: 463063 | O45: 466267 | P45: 469418 | Q45: 472520 | R45: 475548 | S45: 478503 | T45: 481359 | U45: 484128 | V45: 486762 | W45: 5976 | X45: 5902 | Y45: 6117 | Z45: 6188 | AA45: 6132 | AB45: 6265 | AC45: 6345 | AD45: 6054 | AE45: 6213 | AF45: 6044 | AG45: 5946 | AH45: 5879 | AI45: 5994 | AJ45: 6112 | AK45: 6216 | AL45: 6183 | AM45: 6381 | AN45: 6384 | AO45: 6484 | AP45: =AVERAGE(lokalsykehus_befolkning[[#This Row],[2022]:[2040]]) -> 6148.157895 | AQ45: =_xlfn.STDEV.P(lokalsykehus_befolkning[[#This Row],[2022]:[2040]])/lokalsykehus_befolkning[[#This Row],[Gjennomsnitt 2022-2040]] -> 0.02732379354 | AR45: =-(lokalsykehus_befolkning[[#This Row],[Gjennomsnitt 2022-2040]]-MIN(lokalsykehus_befolkning[[#This Row],[2022]:[2040]]))/lokalsykehus_befolkning[[#This Row],[Gjennomsnitt 2022-2040]] -> -0.04377862432 | AS45: =(MAX(lokalsykehus_befolkning[[#This Row],[2022]:[2040]])-lokalsykehus_befolkning[[#This Row],[Gjennomsnitt 2022-2040]])/lokalsykehus_befolkning[[#This Row],[Gjennomsnitt 2022-2040]] -> 0.05462483414 | AT45: =MAX(lokalsykehus_befolkning[[#This Row],[2022]:[2040]])-MIN(lokalsykehus_befolkning[[#This Row],[2022]:[2040]]) -> 605 | AU45: =SUM(lokalsykehus_befolkning[[#This Row],[2022]:[2040]]) -> 116815
A46: Helse Sør-Øst | B46: Kongsvinger | C46: Akershus universitetssykehus | D46: 48532 | E46: 48498 | F46: 48481 | G46: 48479 | H46: 48495 | I46: 48520 | J46: 48554 | K46: 48595 | L46: 48639 | M46: 48686 | N46: 48730 | O46: 48776 | P46: 48822 | Q46: 48866 | R46: 48913 | S46: 48955 | T46: 48993 | U46: 49028 | V46: 49057 | W46: 745 | X46: 790 | Y46: 822 | Z46: 800 | AA46: 791 | AB46: 808 | AC46: 748 | AD46: 713 | AE46: 696 | AF46: 664 | AG46: 639 | AH46: 606 | AI46: 584 | AJ46: 593 | AK46: 592 | AL46: 594 | AM46: 606 | AN46: 608 | AO46: 598 | AP46: =AVERAGE(lokalsykehus_befolkning[[#This Row],[2022]:[2040]]) -> 684.0526316 | AQ46: =_xlfn.STDEV.P(lokalsykehus_befolkning[[#This Row],[2022]:[2040]])/lokalsykehus_befolkning[[#This Row],[Gjennomsnitt 2022-2040]] -> 0.1263678163 | AR46: =-(lokalsykehus_befolkning[[#This Row],[Gjennomsnitt 2022-2040]]-MIN(lokalsykehus_befolkning[[#This Row],[2022]:[2040]]))/lokalsykehus_befolkning[[#This Row],[Gjennomsnitt 2022-2040]] -> -0.1462645226 | AS46: =(MAX(lokalsykehus_befolkning[[#This Row],[2022]:[2040]])-lokalsykehus_befolkning[[#This Row],[Gjennomsnitt 2022-2040]])/lokalsykehus_befolkning[[#This Row],[Gjennomsnitt 2022-2040]] -> 0.201661922 | AT46: =MAX(lokalsykehus_befolkning[[#This Row],[2022]:[2040]])-MIN(lokalsykehus_befolkning[[#This Row],[2022]:[2040]]) -> 238 | AU46: =SUM(lokalsykehus_befolkning[[#This Row],[2022]:[2040]]) -> 12997
A47: Helse Sør-Øst | B47: Ski | C47: Akershus universitetssykehus | D47: 128559 | E47: 129638 | F47: 130636 | G47: 131565 | H47: 132434 | I47: 133293 | J47: 134138 | K47: 134970 | L47: 135791 | M47: 136596 | N47: 137384 | O47: 138159 | P47: 138925 | Q47: 139682 | R47: 140438 | S47: 141183 | T47: 141911 | U47: 142624 | V47: 143318 | W47: 1885 | X47: 1760 | Y47: 1966 | Z47: 1883 | AA47: 1828 | AB47: 1896 | AC47: 1937 | AD47: 1874 | AE47: 1943 | AF47: 1797 | AG47: 1771 | AH47: 1735 | AI47: 1841 | AJ47: 1798 | AK47: 1800 | AL47: 1785 | AM47: 1816 | AN47: 1821 | AO47: 1836 | AP47: =AVERAGE(lokalsykehus_befolkning[[#This Row],[2022]:[2040]]) -> 1840.631579 | AQ47: =_xlfn.STDEV.P(lokalsykehus_befolkning[[#This Row],[2022]:[2040]])/lokalsykehus_befolkning[[#This Row],[Gjennomsnitt 2022-2040]] -> 0.03426444843 | AR47: =-(lokalsykehus_befolkning[[#This Row],[Gjennomsnitt 2022-2040]]-MIN(lokalsykehus_befolkning[[#This Row],[2022]:[2040]]))/lokalsykehus_befolkning[[#This Row],[Gjennomsnitt 2022-2040]] -> -0.05738876816 | AS47: =(MAX(lokalsykehus_befolkning[[#This Row],[2022]:[2040]])-lokalsykehus_befolkning[[#This Row],[Gjennomsnitt 2022-2040]])/lokalsykehus_befolkning[[#This Row],[Gjennomsnitt 2022-2040]] -> 0.06811163216 | AT47: =MAX(lokalsykehus_befolkning[[#This Row],[2022]:[2040]])-MIN(lokalsykehus_befolkning[[#This Row],[2022]:[2040]]) -> 231 | AU47: =SUM(lokalsykehus_befolkning[[#This Row],[2022]:[2040]]) -> 34972
A48: Helse Sør-Øst | B48: Diakonhjemmet | C48: Oslosykehusene | D48: 144823 | E48: 145780 | F48: 146757 | G48: 147650 | H48: 148476 | I48: 149259 | J48: 150027 | K48: 150793 | L48: 151548 | M48: 152269 | N48: 152959 | O48: 153660 | P48: 154323 | Q48: 154953 | R48: 155578 | S48: 156168 | T48: 156704 | U48: 157191 | V48: 157650 | W48: 1727 | X48: 1732 | Y48: 1761 | Z48: 1799 | AA48: 1795 | AB48: 1868 | AC48: 1884 | AD48: 1835 | AE48: 1902 | AF48: 1856 | AG48: 1832 | AH48: 1791 | AI48: 1832 | AJ48: 1889 | AK48: 1936 | AL48: 1895 | AM48: 1929 | AN48: 1922 | AO48: 1960 | AP48: =AVERAGE(lokalsykehus_befolkning[[#This Row],[2022]:[2040]]) -> 1849.736842 | AQ48: =_xlfn.STDEV.P(lokalsykehus_befolkning[[#This Row],[2022]:[2040]])/lokalsykehus_befolkning[[#This Row],[Gjennomsnitt 2022-2040]] -> 0.03629533268 | AR48: =-(lokalsykehus_befolkning[[#This Row],[Gjennomsnitt 2022-2040]]-MIN(lokalsykehus_befolkning[[#This Row],[2022]:[2040]]))/lokalsykehus_befolkning[[#This Row],[Gjennomsnitt 2022-2040]] -> -0.06635367762 | AS48: =(MAX(lokalsykehus_befolkning[[#This Row],[2022]:[2040]])-lokalsykehus_befolkning[[#This Row],[Gjennomsnitt 2022-2040]])/lokalsykehus_befolkning[[#This Row],[Gjennomsnitt 2022-2040]] -> 0.05961018637 | AT48: =MAX(lokalsykehus_befolkning[[#This Row],[2022]:[2040]])-MIN(lokalsykehus_befolkning[[#This Row],[2022]:[2040]]) -> 233 | AU48: =SUM(lokalsykehus_befolkning[[#This Row],[2022]:[2040]]) -> 35145
A49: Helse Sør-Øst | B49: Lovisenberg | C49: Oslosykehusene | D49: 163706 | E49: 165039 | F49: 166275 | G49: 167344 | H49: 168307 | I49: 169228 | J49: 170089 | K49: 170924 | L49: 171733 | M49: 172539 | N49: 173315 | O49: 174068 | P49: 174799 | Q49: 175501 | R49: 176145 | S49: 176751 | T49: 177266 | U49: 177714 | V49: 178101 | W49: 1454 | X49: 1417 | Y49: 1447 | Z49: 1511 | AA49: 1575 | AB49: 1591 | AC49: 1652 | AD49: 1613 | AE49: 1645 | AF49: 1628 | AG49: 1622 | AH49: 1623 | AI49: 1677 | AJ49: 1693 | AK49: 1754 | AL49: 1718 | AM49: 1755 | AN49: 1746 | AO49: 1788 | AP49: =AVERAGE(lokalsykehus_befolkning[[#This Row],[2022]:[2040]]) -> 1626.789474 | AQ49: =_xlfn.STDEV.P(lokalsykehus_befolkning[[#This Row],[2022]:[2040]])/lokalsykehus_befolkning[[#This Row],[Gjennomsnitt 2022-2040]] -> 0.0650550298 | AR49: =-(lokalsykehus_befolkning[[#This Row],[Gjennomsnitt 2022-2040]]-MIN(lokalsykehus_befolkning[[#This Row],[2022]:[2040]]))/lokalsykehus_befolkning[[#This Row],[Gjennomsnitt 2022-2040]] -> -0.1289592028 | AS49: =(MAX(lokalsykehus_befolkning[[#This Row],[2022]:[2040]])-lokalsykehus_befolkning[[#This Row],[Gjennomsnitt 2022-2040]])/lokalsykehus_befolkning[[#This Row],[Gjennomsnitt 2022-2040]] -> 0.09909735029 | AT49: =MAX(lokalsykehus_befolkning[[#This Row],[2022]:[2040]])-MIN(lokalsykehus_befolkning[[#This Row],[2022]:[2040]]) -> 371 | AU49: =SUM(lokalsykehus_befolkning[[#This Row],[2022]:[2040]]) -> 30909
A50: Helse Sør-Øst | B50: Ullevål | C50: Oslosykehusene | D50: 282598 | E50: 285284 | F50: 287694 | G50: 289959 | H50: 292121 | I50: 294217 | J50: 296274 | K50: 298257 | L50: 300197 | M50: 302105 | N50: 303964 | O50: 305761 | P50: 307526 | Q50: 309267 | R50: 310982 | S50: 312597 | T50: 314151 | U50: 315606 | V50: 317010 | W50: 3351 | X50: 3370 | Y50: 3461 | Z50: 3618 | AA50: 3613 | AB50: 3640 | AC50: 3698 | AD50: 3681 | AE50: 3711 | AF50: 3679 | AG50: 3653 | AH50: 3607 | AI50: 3696 | AJ50: 3746 | AK50: 3880 | AL50: 3819 | AM50: 3893 | AN50: 3868 | AO50: 3952 | AP50: =AVERAGE(lokalsykehus_befolkning[[#This Row],[2022]:[2040]]) -> 3680.842105 | AQ50: =_xlfn.STDEV.P(lokalsykehus_befolkning[[#This Row],[2022]:[2040]])/lokalsykehus_befolkning[[#This Row],[Gjennomsnitt 2022-2040]] -> 0.04354851536 | AR50: =-(lokalsykehus_befolkning[[#This Row],[Gjennomsnitt 2022-2040]]-MIN(lokalsykehus_befolkning[[#This Row],[2022]:[2040]]))/lokalsykehus_befolkning[[#This Row],[Gjennomsnitt 2022-2040]] -> -0.08961050103 | AS50: =(MAX(lokalsykehus_befolkning[[#This Row],[2022]:[2040]])-lokalsykehus_befolkning[[#This Row],[Gjennomsnitt 2022-2040]])/lokalsykehus_befolkning[[#This Row],[Gjennomsnitt 2022-2040]] -> 0.07366735301 | AT50: =MAX(lokalsykehus_befolkning[[#This Row],[2022]:[2040]])-MIN(lokalsykehus_befolkning[[#This Row],[2022]:[2040]]) -> 601 | AU50: =SUM(lokalsykehus_befolkning[[#This Row],[2022]:[2040]]) -> 69936
A51: Helse Sør-Øst | B51: Tønsberg | C51: Sykehuset i Vestfold | D51: 248509 | E51: 249812 | F51: 251095 | G51: 252368 | H51: 253634 | I51: 254886 | J51: 256120 | K51: 257342 | L51: 258544 | M51: 259728 | N51: 260888 | O51: 262029 | P51: 263151 | Q51: 264254 | R51: 265351 | S51: 266420 | T51: 267451 | U51: 268442 | V51: 269397 | W51: 3499 | X51: 3614 | Y51: 3658 | Z51: 3767 | AA51: 3544 | AB51: 3661 | AC51: 3727 | AD51: 3465 | AE51: 3475 | AF51: 3389 | AG51: 3309 | AH51: 3234 | AI51: 3300 | AJ51: 3271 | AK51: 3316 | AL51: 3306 | AM51: 3401 | AN51: 3386 | AO51: 3410 | AP51: =AVERAGE(lokalsykehus_befolkning[[#This Row],[2022]:[2040]]) -> 3459.578947 | AQ51: =_xlfn.STDEV.P(lokalsykehus_befolkning[[#This Row],[2022]:[2040]])/lokalsykehus_befolkning[[#This Row],[Gjennomsnitt 2022-2040]] -> 0.04564692434 | AR51: =-(lokalsykehus_befolkning[[#This Row],[Gjennomsnitt 2022-2040]]-MIN(lokalsykehus_befolkning[[#This Row],[2022]:[2040]]))/lokalsykehus_befolkning[[#This Row],[Gjennomsnitt 2022-2040]] -> -0.06520416236 | AS51: =(MAX(lokalsykehus_befolkning[[#This Row],[2022]:[2040]])-lokalsykehus_befolkning[[#This Row],[Gjennomsnitt 2022-2040]])/lokalsykehus_befolkning[[#This Row],[Gjennomsnitt 2022-2040]] -> 0.08886082882 | AT51: =MAX(lokalsykehus_befolkning[[#This Row],[2022]:[2040]])-MIN(lokalsykehus_befolkning[[#This Row],[2022]:[2040]]) -> 533 | AU51: =SUM(lokalsykehus_befolkning[[#This Row],[2022]:[2040]]) -> 65732
A52: Helse Sør-Øst | B52: Elverum | C52: Sykehuset Innlandet | D52: 37237 | E52: 37294 | F52: 37346 | G52: 37400 | H52: 37457 | I52: 37519 | J52: 37584 | K52: 37649 | L52: 37718 | M52: 37787 | N52: 37856 | O52: 37923 | P52: 37990 | Q52: 38054 | R52: 38119 | S52: 38178 | T52: 38230 | U52: 38280 | V52: 38325 | W52: 519 | X52: 541 | Y52: 580 | Z52: 573 | AA52: 559 | AB52: 547 | AC52: 549 | AD52: 492 | AE52: 497 | AF52: 489 | AG52: 462 | AH52: 470 | AI52: 409 | AJ52: 450 | AK52: 408 | AL52: 443 | AM52: 425 | AN52: 469 | AO52: 457 | AP52: =AVERAGE(lokalsykehus_befolkning[[#This Row],[2022]:[2040]]) -> 491.5263158 | AQ52: =_xlfn.STDEV.P(lokalsykehus_befolkning[[#This Row],[2022]:[2040]])/lokalsykehus_befolkning[[#This Row],[Gjennomsnitt 2022-2040]] -> 0.1084255058 | AR52: =-(lokalsykehus_befolkning[[#This Row],[Gjennomsnitt 2022-2040]]-MIN(lokalsykehus_befolkning[[#This Row],[2022]:[2040]]))/lokalsykehus_befolkning[[#This Row],[Gjennomsnitt 2022-2040]] -> -0.169932541 | AS52: =(MAX(lokalsykehus_befolkning[[#This Row],[2022]:[2040]])-lokalsykehus_befolkning[[#This Row],[Gjennomsnitt 2022-2040]])/lokalsykehus_befolkning[[#This Row],[Gjennomsnitt 2022-2040]] -> 0.1799978584 | AT52: =MAX(lokalsykehus_befolkning[[#This Row],[2022]:[2040]])-MIN(lokalsykehus_befolkning[[#This Row],[2022]:[2040]]) -> 172 | AU52: =SUM(lokalsykehus_befolkning[[#This Row],[2022]:[2040]]) -> 9339
A53: Helse Sør-Øst | B53: Gjøvik | C53: Sykehuset Innlandet | D53: 111257 | E53: 111308 | F53: 111410 | G53: 111570 | H53: 111780 | I53: 112000 | J53: 112229 | K53: 112465 | L53: 112706 | M53: 112946 | N53: 113180 | O53: 113414 | P53: 113643 | Q53: 113871 | R53: 114101 | S53: 114327 | T53: 114545 | U53: 114752 | V53: 114949 | W53: 1706 | X53: 1678 | Y53: 1634 | Z53: 1711 | AA53: 1692 | AB53: 1641 | AC53: 1680 | AD53: 1601 | AE53: 1585 | AF53: 1470 | AG53: 1438 | AH53: 1356 | AI53: 1382 | AJ53: 1373 | AK53: 1386 | AL53: 1373 | AM53: 1389 | AN53: 1409 | AO53: 1394 | AP53: =AVERAGE(lokalsykehus_befolkning[[#This Row],[2022]:[2040]]) -> 1520.947368 | AQ53: =_xlfn.STDEV.P(lokalsykehus_befolkning[[#This Row],[2022]:[2040]])/lokalsykehus_befolkning[[#This Row],[Gjennomsnitt 2022-2040]] -> 0.08940560469 | AR53: =-(lokalsykehus_befolkning[[#This Row],[Gjennomsnitt 2022-2040]]-MIN(lokalsykehus_befolkning[[#This Row],[2022]:[2040]]))/lokalsykehus_befolkning[[#This Row],[Gjennomsnitt 2022-2040]] -> -0.1084504118 | AS53: =(MAX(lokalsykehus_befolkning[[#This Row],[2022]:[2040]])-lokalsykehus_befolkning[[#This Row],[Gjennomsnitt 2022-2040]])/lokalsykehus_befolkning[[#This Row],[Gjennomsnitt 2022-2040]] -> 0.1249567444 | AT53: =MAX(lokalsykehus_befolkning[[#This Row],[2022]:[2040]])-MIN(lokalsykehus_befolkning[[#This Row],[2022]:[2040]]) -> 355 | AU53: =SUM(lokalsykehus_befolkning[[#This Row],[2022]:[2040]]) -> 28898
A54: Helse Sør-Øst | B54: Hamar | C54: Sykehuset Innlandet | D54: 96061 | E54: 96634 | F54: 97159 | G54: 97646 | H54: 98098 | I54: 98551 | J54: 99003 | K54: 99450 | L54: 99889 | M54: 100318 | N54: 100735 | O54: 101140 | P54: 101536 | Q54: 101921 | R54: 102296 | S54: 102654 | T54: 102991 | U54: 103307 | V54: 103606 | W54: 1375 | X54: 1348 | Y54: 1300 | Z54: 1392 | AA54: 1395 | AB54: 1371 | AC54: 1376 | AD54: 1309 | AE54: 1256 | AF54: 1231 | AG54: 1241 | AH54: 1208 | AI54: 1196 | AJ54: 1262 | AK54: 1246 | AL54: 1168 | AM54: 1258 | AN54: 1277 | AO54: 1302 | AP54: =AVERAGE(lokalsykehus_befolkning[[#This Row],[2022]:[2040]]) -> 1290.052632 | AQ54: =_xlfn.STDEV.P(lokalsykehus_befolkning[[#This Row],[2022]:[2040]])/lokalsykehus_befolkning[[#This Row],[Gjennomsnitt 2022-2040]] -> 0.0527466981 | AR54: =-(lokalsykehus_befolkning[[#This Row],[Gjennomsnitt 2022-2040]]-MIN(lokalsykehus_befolkning[[#This Row],[2022]:[2040]]))/lokalsykehus_befolkning[[#This Row],[Gjennomsnitt 2022-2040]] -> -0.094610583 | AS54: =(MAX(lokalsykehus_befolkning[[#This Row],[2022]:[2040]])-lokalsykehus_befolkning[[#This Row],[Gjennomsnitt 2022-2040]])/lokalsykehus_befolkning[[#This Row],[Gjennomsnitt 2022-2040]] -> 0.08135123006 | AT54: =MAX(lokalsykehus_befolkning[[#This Row],[2022]:[2040]])-MIN(lokalsykehus_befolkning[[#This Row],[2022]:[2040]]) -> 227 | AU54: =SUM(lokalsykehus_befolkning[[#This Row],[2022]:[2040]]) -> 24511
A55: Helse Sør-Øst | B55: Lillehammer | C55: Sykehuset Innlandet | D55: 70985 | E55: 70989 | F55: 70994 | G55: 71003 | H55: 71023 | I55: 71056 | J55: 71101 | K55: 71154 | L55: 71214 | M55: 71272 | N55: 71334 | O55: 71390 | P55: 71445 | Q55: 71497 | R55: 71548 | S55: 71593 | T55: 71626 | U55: 71656 | V55: 71676 | W55: 1051 | X55: 1034 | Y55: 1054 | Z55: 1073 | AA55: 980 | AB55: 1019 | AC55: 988 | AD55: 952 | AE55: 940 | AF55: 895 | AG55: 799 | AH55: 794 | AI55: 822 | AJ55: 797 | AK55: 843 | AL55: 838 | AM55: 806 | AN55: 844 | AO55: 815 | AP55: =AVERAGE(lokalsykehus_befolkning[[#This Row],[2022]:[2040]]) -> 912.8421053 | AQ55: =_xlfn.STDEV.P(lokalsykehus_befolkning[[#This Row],[2022]:[2040]])/lokalsykehus_befolkning[[#This Row],[Gjennomsnitt 2022-2040]] -> 0.1090633093 | AR55: =-(lokalsykehus_befolkning[[#This Row],[Gjennomsnitt 2022-2040]]-MIN(lokalsykehus_befolkning[[#This Row],[2022]:[2040]]))/lokalsykehus_befolkning[[#This Row],[Gjennomsnitt 2022-2040]] -> -0.1301891144 | AS55: =(MAX(lokalsykehus_befolkning[[#This Row],[2022]:[2040]])-lokalsykehus_befolkning[[#This Row],[Gjennomsnitt 2022-2040]])/lokalsykehus_befolkning[[#This Row],[Gjennomsnitt 2022-2040]] -> 0.1754497232 | AT55: =MAX(lokalsykehus_befolkning[[#This Row],[2022]:[2040]])-MIN(lokalsykehus_befolkning[[#This Row],[2022]:[2040]]) -> 279 | AU55: =SUM(lokalsykehus_befolkning[[#This Row],[2022]:[2040]]) -> 17344
A56: Helse Sør-Øst | B56: Tynset | C56: Sykehuset Innlandet | D56: 17086 | E56: 17062 | F56: 17047 | G56: 17038 | H56: 17039 | I56: 17041 | J56: 17046 | K56: 17050 | L56: 17054 | M56: 17058 | N56: 17059 | O56: 17062 | P56: 17065 | Q56: 17068 | R56: 17073 | S56: 17077 | T56: 17081 | U56: 17083 | V56: 17082 | W56: 247 | X56: 244 | Y56: 254 | Z56: 258 | AA56: 251 | AB56: 242 | AC56: 239 | AD56: 223 | AE56: 228 | AF56: 206 | AG56: 189 | AH56: 192 | AI56: 205 | AJ56: 198 | AK56: 206 | AL56: 195 | AM56: 214 | AN56: 201 | AO56: 194 | AP56: =AVERAGE(lokalsykehus_befolkning[[#This Row],[2022]:[2040]]) -> 220.3157895 | AQ56: =_xlfn.STDEV.P(lokalsykehus_befolkning[[#This Row],[2022]:[2040]])/lokalsykehus_befolkning[[#This Row],[Gjennomsnitt 2022-2040]] -> 0.1058146623 | AR56: =-(lokalsykehus_befolkning[[#This Row],[Gjennomsnitt 2022-2040]]-MIN(lokalsykehus_befolkning[[#This Row],[2022]:[2040]]))/lokalsykehus_befolkning[[#This Row],[Gjennomsnitt 2022-2040]] -> -0.1421404682 | AS56: =(MAX(lokalsykehus_befolkning[[#This Row],[2022]:[2040]])-lokalsykehus_befolkning[[#This Row],[Gjennomsnitt 2022-2040]])/lokalsykehus_befolkning[[#This Row],[Gjennomsnitt 2022-2040]] -> 0.171046345 | AT56: =MAX(lokalsykehus_befolkning[[#This Row],[2022]:[2040]])-MIN(lokalsykehus_befolkning[[#This Row],[2022]:[2040]]) -> 69 | AU56: =SUM(lokalsykehus_befolkning[[#This Row],[2022]:[2040]]) -> 4186
A57: Helse Sør-Øst | B57: Notodden | C57: Sykehuset Telemark | D57: 48159 | E57: 48114 | F57: 48109 | G57: 48141 | H57: 48204 | I57: 48274 | J57: 48347 | K57: 48422 | L57: 48495 | M57: 48566 | N57: 48637 | O57: 48700 | P57: 48763 | Q57: 48823 | R57: 48880 | S57: 48931 | T57: 48976 | U57: 49016 | V57: 49049 | W57: 716 | X57: 717 | Y57: 645 | Z57: 664 | AA57: 720 | AB57: 684 | AC57: 695 | AD57: 640 | AE57: 638 | AF57: 602 | AG57: 581 | AH57: 571 | AI57: 570 | AJ57: 566 | AK57: 562 | AL57: 536 | AM57: 595 | AN57: 569 | AO57: 578 | AP57: =AVERAGE(lokalsykehus_befolkning[[#This Row],[2022]:[2040]]) -> 623.6315789 | AQ57: =_xlfn.STDEV.P(lokalsykehus_befolkning[[#This Row],[2022]:[2040]])/lokalsykehus_befolkning[[#This Row],[Gjennomsnitt 2022-2040]] -> 0.09483103818 | AR57: =-(lokalsykehus_befolkning[[#This Row],[Gjennomsnitt 2022-2040]]-MIN(lokalsykehus_befolkning[[#This Row],[2022]:[2040]]))/lokalsykehus_befolkning[[#This Row],[Gjennomsnitt 2022-2040]] -> -0.1405181872 | AS57: =(MAX(lokalsykehus_befolkning[[#This Row],[2022]:[2040]])-lokalsykehus_befolkning[[#This Row],[Gjennomsnitt 2022-2040]])/lokalsykehus_befolkning[[#This Row],[Gjennomsnitt 2022-2040]] -> 0.1545278083 | AT57: =MAX(lokalsykehus_befolkning[[#This Row],[2022]:[2040]])-MIN(lokalsykehus_befolkning[[#This Row],[2022]:[2040]]) -> 184 | AU57: =SUM(lokalsykehus_befolkning[[#This Row],[2022]:[2040]]) -> 11849
A58: Helse Sør-Øst | B58: Skien | C58: Sykehuset Telemark | D58: 125065 | E58: 125255 | F58: 125481 | G58: 125740 | H58: 126039 | I58: 126329 | J58: 126617 | K58: 126903 | L58: 127181 | M58: 127451 | N58: 127714 | O58: 127969 | P58: 128219 | Q58: 128463 | R58: 128708 | S58: 128943 | T58: 129164 | U58: 129372 | V58: 129565 | W58: 1856 | X58: 1831 | Y58: 1872 | Z58: 1882 | AA58: 1868 | AB58: 1855 | AC58: 1850 | AD58: 1746 | AE58: 1737 | AF58: 1635 | AG58: 1612 | AH58: 1517 | AI58: 1528 | AJ58: 1540 | AK58: 1512 | AL58: 1538 | AM58: 1565 | AN58: 1548 | AO58: 1573 | AP58: =AVERAGE(lokalsykehus_befolkning[[#This Row],[2022]:[2040]]) -> 1687.631579 | AQ58: =_xlfn.STDEV.P(lokalsykehus_befolkning[[#This Row],[2022]:[2040]])/lokalsykehus_befolkning[[#This Row],[Gjennomsnitt 2022-2040]] -> 0.08589184474 | AR58: =-(lokalsykehus_befolkning[[#This Row],[Gjennomsnitt 2022-2040]]-MIN(lokalsykehus_befolkning[[#This Row],[2022]:[2040]]))/lokalsykehus_befolkning[[#This Row],[Gjennomsnitt 2022-2040]] -> -0.1040698581 | AS58: =(MAX(lokalsykehus_befolkning[[#This Row],[2022]:[2040]])-lokalsykehus_befolkning[[#This Row],[Gjennomsnitt 2022-2040]])/lokalsykehus_befolkning[[#This Row],[Gjennomsnitt 2022-2040]] -> 0.1151723063 | AT58: =MAX(lokalsykehus_befolkning[[#This Row],[2022]:[2040]])-MIN(lokalsykehus_befolkning[[#This Row],[2022]:[2040]]) -> 370 | AU58: =SUM(lokalsykehus_befolkning[[#This Row],[2022]:[2040]]) -> 32065
A59: Helse Sør-Øst | B59: Kalnes | C59: Sykehuset Østfold | D59: 321458 | E59: 323520 | F59: 325572 | G59: 327621 | H59: 329689 | I59: 331724 | J59: 333727 | K59: 335707 | L59: 337654 | M59: 339572 | N59: 341452 | O59: 343301 | P59: 345120 | Q59: 346914 | R59: 348690 | S59: 350428 | T59: 352110 | U59: 353742 | V59: 355323 | W59: 4593 | X59: 4740 | Y59: 5005 | Z59: 4918 | AA59: 4898 | AB59: 4868 | AC59: 4903 | AD59: 4697 | AE59: 4747 | AF59: 4543 | AG59: 4388 | AH59: 4333 | AI59: 4431 | AJ59: 4355 | AK59: 4477 | AL59: 4383 | AM59: 4455 | AN59: 4494 | AO59: 4541 | AP59: =AVERAGE(lokalsykehus_befolkning[[#This Row],[2022]:[2040]]) -> 4619.421053 | AQ59: =_xlfn.STDEV.P(lokalsykehus_befolkning[[#This Row],[2022]:[2040]])/lokalsykehus_befolkning[[#This Row],[Gjennomsnitt 2022-2040]] -> 0.04624597153 | AR59: =-(lokalsykehus_befolkning[[#This Row],[Gjennomsnitt 2022-2040]]-MIN(lokalsykehus_befolkning[[#This Row],[2022]:[2040]]))/lokalsykehus_befolkning[[#This Row],[Gjennomsnitt 2022-2040]] -> -0.06200366872 | AS59: =(MAX(lokalsykehus_befolkning[[#This Row],[2022]:[2040]])-lokalsykehus_befolkning[[#This Row],[Gjennomsnitt 2022-2040]])/lokalsykehus_befolkning[[#This Row],[Gjennomsnitt 2022-2040]] -> 0.0834691064 | AT59: =MAX(lokalsykehus_befolkning[[#This Row],[2022]:[2040]])-MIN(lokalsykehus_befolkning[[#This Row],[2022]:[2040]]) -> 672 | AU59: =SUM(lokalsykehus_befolkning[[#This Row],[2022]:[2040]]) -> 87769
A60: Helse Sør-Øst | B60: Arendal | C60: Sørlandet sykehus | D60: 119382 | E60: 119961 | F60: 120518 | G60: 121066 | H60: 121603 | I60: 122130 | J60: 122650 | K60: 123158 | L60: 123657 | M60: 124142 | N60: 124616 | O60: 125082 | P60: 125540 | Q60: 125995 | R60: 126447 | S60: 126893 | T60: 127324 | U60: 127734 | V60: 128127 | W60: 1589 | X60: 1702 | Y60: 1678 | Z60: 1748 | AA60: 1701 | AB60: 1731 | AC60: 1711 | AD60: 1732 | AE60: 1699 | AF60: 1720 | AG60: 1704 | AH60: 1596 | AI60: 1567 | AJ60: 1551 | AK60: 1597 | AL60: 1604 | AM60: 1625 | AN60: 1612 | AO60: 1636 | AP60: =AVERAGE(lokalsykehus_befolkning[[#This Row],[2022]:[2040]]) -> 1658.052632 | AQ60: =_xlfn.STDEV.P(lokalsykehus_befolkning[[#This Row],[2022]:[2040]])/lokalsykehus_befolkning[[#This Row],[Gjennomsnitt 2022-2040]] -> 0.0371788828 | AR60: =-(lokalsykehus_befolkning[[#This Row],[Gjennomsnitt 2022-2040]]-MIN(lokalsykehus_befolkning[[#This Row],[2022]:[2040]]))/lokalsykehus_befolkning[[#This Row],[Gjennomsnitt 2022-2040]] -> -0.0645652795 | AS60: =(MAX(lokalsykehus_befolkning[[#This Row],[2022]:[2040]])-lokalsykehus_befolkning[[#This Row],[Gjennomsnitt 2022-2040]])/lokalsykehus_befolkning[[#This Row],[Gjennomsnitt 2022-2040]] -> 0.0542488017 | AT60: =MAX(lokalsykehus_befolkning[[#This Row],[2022]:[2040]])-MIN(lokalsykehus_befolkning[[#This Row],[2022]:[2040]]) -> 197 | AU60: =SUM(lokalsykehus_befolkning[[#This Row],[2022]:[2040]]) -> 31503
A61: Helse Sør-Øst | B61: Flekkefjord | C61: Sørlandet sykehus | D61: 44573 | E61: 44425 | F61: 44321 | G61: 44261 | H61: 44241 | I61: 44229 | J61: 44217 | K61: 44207 | L61: 44200 | M61: 44191 | N61: 44182 | O61: 44173 | P61: 44164 | Q61: 44160 | R61: 44159 | S61: 44157 | T61: 44154 | U61: 44151 | V61: 44146 | W61: 608 | X61: 605 | Y61: 636 | Z61: 664 | AA61: 594 | AB61: 605 | AC61: 604 | AD61: 628 | AE61: 547 | AF61: 547 | AG61: 538 | AH61: 508 | AI61: 554 | AJ61: 561 | AK61: 553 | AL61: 542 | AM61: 519 | AN61: 540 | AO61: 535 | AP61: =AVERAGE(lokalsykehus_befolkning[[#This Row],[2022]:[2040]]) -> 573.0526316 | AQ61: =_xlfn.STDEV.P(lokalsykehus_befolkning[[#This Row],[2022]:[2040]])/lokalsykehus_befolkning[[#This Row],[Gjennomsnitt 2022-2040]] -> 0.0738916387 | AR61: =-(lokalsykehus_befolkning[[#This Row],[Gjennomsnitt 2022-2040]]-MIN(lokalsykehus_befolkning[[#This Row],[2022]:[2040]]))/lokalsykehus_befolkning[[#This Row],[Gjennomsnitt 2022-2040]] -> -0.113519471 | AS61: =(MAX(lokalsykehus_befolkning[[#This Row],[2022]:[2040]])-lokalsykehus_befolkning[[#This Row],[Gjennomsnitt 2022-2040]])/lokalsykehus_befolkning[[#This Row],[Gjennomsnitt 2022-2040]] -> 0.1587068332 | AT61: =MAX(lokalsykehus_befolkning[[#This Row],[2022]:[2040]])-MIN(lokalsykehus_befolkning[[#This Row],[2022]:[2040]]) -> 156 | AU61: =SUM(lokalsykehus_befolkning[[#This Row],[2022]:[2040]]) -> 10888
A62: Helse Sør-Øst | B62: Kristiansand | C62: Sørlandet sykehus | D62: 152405 | E62: 153397 | F62: 154343 | G62: 155259 | H62: 156154 | I62: 157059 | J62: 157969 | K62: 158878 | L62: 159781 | M62: 160674 | N62: 161552 | O62: 162419 | P62: 163273 | Q62: 164116 | R62: 164948 | S62: 165764 | T62: 166547 | U62: 167301 | V62: 168028 | W62: 2008 | X62: 1981 | Y62: 1951 | Z62: 2038 | AA62: 2006 | AB62: 2092 | AC62: 2037 | AD62: 1964 | AE62: 2042 | AF62: 1942 | AG62: 1937 | AH62: 1805 | AI62: 1972 | AJ62: 1939 | AK62: 2049 | AL62: 1998 | AM62: 2056 | AN62: 1994 | AO62: 2007 | AP62: =AVERAGE(lokalsykehus_befolkning[[#This Row],[2022]:[2040]]) -> 1990.421053 | AQ62: =_xlfn.STDEV.P(lokalsykehus_befolkning[[#This Row],[2022]:[2040]])/lokalsykehus_befolkning[[#This Row],[Gjennomsnitt 2022-2040]] -> 0.03069997429 | AR62: =-(lokalsykehus_befolkning[[#This Row],[Gjennomsnitt 2022-2040]]-MIN(lokalsykehus_befolkning[[#This Row],[2022]:[2040]]))/lokalsykehus_befolkning[[#This Row],[Gjennomsnitt 2022-2040]] -> -0.09315669787 | AS62: =(MAX(lokalsykehus_befolkning[[#This Row],[2022]:[2040]])-lokalsykehus_befolkning[[#This Row],[Gjennomsnitt 2022-2040]])/lokalsykehus_befolkning[[#This Row],[Gjennomsnitt 2022-2040]] -> 0.0510338992 | AT62: =MAX(lokalsykehus_befolkning[[#This Row],[2022]:[2040]])-MIN(lokalsykehus_befolkning[[#This Row],[2022]:[2040]]) -> 287 | AU62: =SUM(lokalsykehus_befolkning[[#This Row],[2022]:[2040]]) -> 37818
A63: Helse Sør-Øst | B63: Bærum | C63: Vestre Viken | D63: 224445 | E63: 225864 | F63: 227360 | G63: 228951 | H63: 230636 | I63: 232285 | J63: 233901 | K63: 235491 | L63: 237046 | M63: 238565 | N63: 240042 | O63: 241487 | P63: 242905 | Q63: 244303 | R63: 245690 | S63: 247056 | T63: 248394 | U63: 249704 | V63: 250987 | W63: 3249 | X63: 3169 | Y63: 3232 | Z63: 3250 | AA63: 3221 | AB63: 3322 | AC63: 3390 | AD63: 3284 | AE63: 3367 | AF63: 3221 | AG63: 3140 | AH63: 3082 | AI63: 3202 | AJ63: 3176 | AK63: 3229 | AL63: 3263 | AM63: 3342 | AN63: 3324 | AO63: 3310 | AP63: =AVERAGE(lokalsykehus_befolkning[[#This Row],[2022]:[2040]]) -> 3251.210526 | AQ63: =_xlfn.STDEV.P(lokalsykehus_befolkning[[#This Row],[2022]:[2040]])/lokalsykehus_befolkning[[#This Row],[Gjennomsnitt 2022-2040]] -> 0.02386904657 | AR63: =-(lokalsykehus_befolkning[[#This Row],[Gjennomsnitt 2022-2040]]-MIN(lokalsykehus_befolkning[[#This Row],[2022]:[2040]]))/lokalsykehus_befolkning[[#This Row],[Gjennomsnitt 2022-2040]] -> -0.052045392 | AS63: =(MAX(lokalsykehus_befolkning[[#This Row],[2022]:[2040]])-lokalsykehus_befolkning[[#This Row],[Gjennomsnitt 2022-2040]])/lokalsykehus_befolkning[[#This Row],[Gjennomsnitt 2022-2040]] -> 0.04268855325 | AT63: =MAX(lokalsykehus_befolkning[[#This Row],[2022]:[2040]])-MIN(lokalsykehus_befolkning[[#This Row],[2022]:[2040]]) -> 308 | AU63: =SUM(lokalsykehus_befolkning[[#This Row],[2022]:[2040]]) -> 61773
A64: Helse Sør-Øst | B64: Drammen | C64: Vestre Viken | D64: 144033 | E64: 144963 | F64: 145862 | G64: 146739 | H64: 147603 | I64: 148451 | J64: 149286 | K64: 150110 | L64: 150921 | M64: 151725 | N64: 152512 | O64: 153288 | P64: 154056 | Q64: 154816 | R64: 155570 | S64: 156310 | T64: 157029 | U64: 157725 | V64: 158403 | W64: 1943 | X64: 1976 | Y64: 2096 | Z64: 2123 | AA64: 2058 | AB64: 2139 | AC64: 2122 | AD64: 2058 | AE64: 2102 | AF64: 1977 | AG64: 1942 | AH64: 1909 | AI64: 1971 | AJ64: 1967 | AK64: 1997 | AL64: 1949 | AM64: 2034 | AN64: 2017 | AO64: 2031 | AP64: =AVERAGE(lokalsykehus_befolkning[[#This Row],[2022]:[2040]]) -> 2021.631579 | AQ64: =_xlfn.STDEV.P(lokalsykehus_befolkning[[#This Row],[2022]:[2040]])/lokalsykehus_befolkning[[#This Row],[Gjennomsnitt 2022-2040]] -> 0.03399425744 | AR64: =-(lokalsykehus_befolkning[[#This Row],[Gjennomsnitt 2022-2040]]-MIN(lokalsykehus_befolkning[[#This Row],[2022]:[2040]]))/lokalsykehus_befolkning[[#This Row],[Gjennomsnitt 2022-2040]] -> -0.05571320715 | AS64: =(MAX(lokalsykehus_befolkning[[#This Row],[2022]:[2040]])-lokalsykehus_befolkning[[#This Row],[Gjennomsnitt 2022-2040]])/lokalsykehus_befolkning[[#This Row],[Gjennomsnitt 2022-2040]] -> 0.05805628596 | AT64: =MAX(lokalsykehus_befolkning[[#This Row],[2022]:[2040]])-MIN(lokalsykehus_befolkning[[#This Row],[2022]:[2040]]) -> 230 | AU64: =SUM(lokalsykehus_befolkning[[#This Row],[2022]:[2040]]) -> 38411
A65: Helse Sør-Øst | B65: Kongsberg | C65: Vestre Viken | D65: 57854 | E65: 58247 | F65: 58636 | G65: 59025 | H65: 59413 | I65: 59787 | J65: 60155 | K65: 60514 | L65: 60869 | M65: 61218 | N65: 61561 | O65: 61899 | P65: 62233 | Q65: 62559 | R65: 62884 | S65: 63198 | T65: 63500 | U65: 63791 | V65: 64072 | W65: 825 | X65: 783 | Y65: 834 | Z65: 832 | AA65: 811 | AB65: 895 | AC65: 829 | AD65: 831 | AE65: 876 | AF65: 827 | AG65: 773 | AH65: 755 | AI65: 781 | AJ65: 787 | AK65: 806 | AL65: 798 | AM65: 818 | AN65: 814 | AO65: 797 | AP65: =AVERAGE(lokalsykehus_befolkning[[#This Row],[2022]:[2040]]) -> 814.3157895 | AQ65: =_xlfn.STDEV.P(lokalsykehus_befolkning[[#This Row],[2022]:[2040]])/lokalsykehus_befolkning[[#This Row],[Gjennomsnitt 2022-2040]] -> 0.04034334786 | AR65: =-(lokalsykehus_befolkning[[#This Row],[Gjennomsnitt 2022-2040]]-MIN(lokalsykehus_befolkning[[#This Row],[2022]:[2040]]))/lokalsykehus_befolkning[[#This Row],[Gjennomsnitt 2022-2040]] -> -0.07284126163 | AS65: =(MAX(lokalsykehus_befolkning[[#This Row],[2022]:[2040]])-lokalsykehus_befolkning[[#This Row],[Gjennomsnitt 2022-2040]])/lokalsykehus_befolkning[[#This Row],[Gjennomsnitt 2022-2040]] -> 0.09908221303 | AT65: =MAX(lokalsykehus_befolkning[[#This Row],[2022]:[2040]])-MIN(lokalsykehus_befolkning[[#This Row],[2022]:[2040]]) -> 140 | AU65: =SUM(lokalsykehus_befolkning[[#This Row],[2022]:[2040]]) -> 15472
A66: Helse Sør-Øst | B66: Ringerike | C66: Vestre Viken | D66: 67433 | E66: 67720 | F66: 68026 | G66: 68361 | H66: 68719 | I66: 69073 | J66: 69424 | K66: 69774 | L66: 70117 | M66: 70453 | N66: 70786 | O66: 71112 | P66: 71433 | Q66: 71754 | R66: 72065 | S66: 72376 | T66: 72673 | U66: 72955 | V66: 73228 | W66: 1038 | X66: 971 | Y66: 1038 | Z66: 999 | AA66: 1031 | AB66: 1008 | AC66: 999 | AD66: 993 | AE66: 971 | AF66: 953 | AG66: 898 | AH66: 877 | AI66: 922 | AJ66: 923 | AK66: 964 | AL66: 878 | AM66: 901 | AN66: 938 | AO66: 917 | AP66: =AVERAGE(lokalsykehus_befolkning[[#This Row],[2022]:[2040]]) -> 958.8947368 | AQ66: =_xlfn.STDEV.P(lokalsykehus_befolkning[[#This Row],[2022]:[2040]])/lokalsykehus_befolkning[[#This Row],[Gjennomsnitt 2022-2040]] -> 0.05350427231 | AR66: =-(lokalsykehus_befolkning[[#This Row],[Gjennomsnitt 2022-2040]]-MIN(lokalsykehus_befolkning[[#This Row],[2022]:[2040]]))/lokalsykehus_befolkning[[#This Row],[Gjennomsnitt 2022-2040]] -> -0.08540534607 | AS66: =(MAX(lokalsykehus_befolkning[[#This Row],[2022]:[2040]])-lokalsykehus_befolkning[[#This Row],[Gjennomsnitt 2022-2040]])/lokalsykehus_befolkning[[#This Row],[Gjennomsnitt 2022-2040]] -> 0.08249629508 | AT66: =MAX(lokalsykehus_befolkning[[#This Row],[2022]:[2040]])-MIN(lokalsykehus_befolkning[[#This Row],[2022]:[2040]]) -> 161 | AU66: =SUM(lokalsykehus_befolkning[[#This Row],[2022]:[2040]]) -> 18219
A67: Helse Vest | B67: Haukeland | C67: Helse Bergen | D67: 436434 | E67: 438905 | F67: 441347 | G67: 443795 | H67: 446297 | I67: 448780 | J67: 451258 | K67: 453718 | L67: 456162 | M67: 458579 | N67: 460950 | O67: 463277 | P67: 465559 | Q67: 467797 | R67: 469984 | S67: 472099 | T67: 474112 | U67: 476024 | V67: 477844 | W67: 5487 | X67: 5628 | Y67: 5686 | Z67: 5816 | AA67: 5749 | AB67: 5669 | AC67: 5791 | AD67: 5784 | AE67: 5682 | AF67: 5637 | AG67: 5417 | AH67: 5303 | AI67: 5483 | AJ67: 5619 | AK67: 5654 | AL67: 5706 | AM67: 5816 | AN67: 5624 | AO67: 5624 | AP67: =AVERAGE(lokalsykehus_befolkning[[#This Row],[2022]:[2040]]) -> 5640.789474 | AQ67: =_xlfn.STDEV.P(lokalsykehus_befolkning[[#This Row],[2022]:[2040]])/lokalsykehus_befolkning[[#This Row],[Gjennomsnitt 2022-2040]] -> 0.02368333301 | AR67: =-(lokalsykehus_befolkning[[#This Row],[Gjennomsnitt 2022-2040]]-MIN(lokalsykehus_befolkning[[#This Row],[2022]:[2040]]))/lokalsykehus_befolkning[[#This Row],[Gjennomsnitt 2022-2040]] -> -0.05988336832 | AS67: =(MAX(lokalsykehus_befolkning[[#This Row],[2022]:[2040]])-lokalsykehus_befolkning[[#This Row],[Gjennomsnitt 2022-2040]])/lokalsykehus_befolkning[[#This Row],[Gjennomsnitt 2022-2040]] -> 0.03106134826 | AT67: =MAX(lokalsykehus_befolkning[[#This Row],[2022]:[2040]])-MIN(lokalsykehus_befolkning[[#This Row],[2022]:[2040]]) -> 513 | AU67: =SUM(lokalsykehus_befolkning[[#This Row],[2022]:[2040]]) -> 107175
A68: Helse Vest | B68: Voss | C68: Helse Bergen | D68: 29429 | E68: 29379 | F68: 29353 | G68: 29350 | H68: 29367 | I68: 29387 | J68: 29406 | K68: 29431 | L68: 29454 | M68: 29477 | N68: 29498 | O68: 29519 | P68: 29537 | Q68: 29554 | R68: 29573 | S68: 29587 | T68: 29599 | U68: 29607 | V68: 29613 | W68: 379 | X68: 373 | Y68: 376 | Z68: 421 | AA68: 334 | AB68: 396 | AC68: 341 | AD68: 359 | AE68: 349 | AF68: 341 | AG68: 316 | AH68: 320 | AI68: 367 | AJ68: 355 | AK68: 348 | AL68: 347 | AM68: 343 | AN68: 357 | AO68: 378 | AP68: =AVERAGE(lokalsykehus_befolkning[[#This Row],[2022]:[2040]]) -> 357.8947368 | AQ68: =_xlfn.STDEV.P(lokalsykehus_befolkning[[#This Row],[2022]:[2040]])/lokalsykehus_befolkning[[#This Row],[Gjennomsnitt 2022-2040]] -> 0.0695841578 | AR68: =-(lokalsykehus_befolkning[[#This Row],[Gjennomsnitt 2022-2040]]-MIN(lokalsykehus_befolkning[[#This Row],[2022]:[2040]]))/lokalsykehus_befolkning[[#This Row],[Gjennomsnitt 2022-2040]] -> -0.1170588235 | AS68: =(MAX(lokalsykehus_befolkning[[#This Row],[2022]:[2040]])-lokalsykehus_befolkning[[#This Row],[Gjennomsnitt 2022-2040]])/lokalsykehus_befolkning[[#This Row],[Gjennomsnitt 2022-2040]] -> 0.1763235294 | AT68: =MAX(lokalsykehus_befolkning[[#This Row],[2022]:[2040]])-MIN(lokalsykehus_befolkning[[#This Row],[2022]:[2040]]) -> 105 | AU68: =SUM(lokalsykehus_befolkning[[#This Row],[2022]:[2040]]) -> 6800
A69: Helse Vest | B69: Haugesund | C69: Helse Fonna | D69: 118334 | E69: 118392 | F69: 118546 | G69: 118803 | H69: 119156 | I69: 119503 | J69: 119839 | K69: 120174 | L69: 120492 | M69: 120806 | N69: 121112 | O69: 121409 | P69: 121708 | Q69: 122003 | R69: 122301 | S69: 122597 | T69: 122881 | U69: 123154 | V69: 123411 | W69: 1577 | X69: 1594 | Y69: 1694 | Z69: 1657 | AA69: 1634 | AB69: 1679 | AC69: 1605 | AD69: 1628 | AE69: 1545 | AF69: 1579 | AG69: 1513 | AH69: 1497 | AI69: 1538 | AJ69: 1585 | AK69: 1572 | AL69: 1515 | AM69: 1551 | AN69: 1531 | AO69: 1508 | AP69: =AVERAGE(lokalsykehus_befolkning[[#This Row],[2022]:[2040]]) -> 1579.052632 | AQ69: =_xlfn.STDEV.P(lokalsykehus_befolkning[[#This Row],[2022]:[2040]])/lokalsykehus_befolkning[[#This Row],[Gjennomsnitt 2022-2040]] -> 0.03613731968 | AR69: =-(lokalsykehus_befolkning[[#This Row],[Gjennomsnitt 2022-2040]]-MIN(lokalsykehus_befolkning[[#This Row],[2022]:[2040]]))/lokalsykehus_befolkning[[#This Row],[Gjennomsnitt 2022-2040]] -> -0.05196320245 | AS69: =(MAX(lokalsykehus_befolkning[[#This Row],[2022]:[2040]])-lokalsykehus_befolkning[[#This Row],[Gjennomsnitt 2022-2040]])/lokalsykehus_befolkning[[#This Row],[Gjennomsnitt 2022-2040]] -> 0.07279514699 | AT69: =MAX(lokalsykehus_befolkning[[#This Row],[2022]:[2040]])-MIN(lokalsykehus_befolkning[[#This Row],[2022]:[2040]]) -> 197 | AU69: =SUM(lokalsykehus_befolkning[[#This Row],[2022]:[2040]]) -> 30002
A70: Helse Vest | B70: Odda | C70: Helse Fonna | D70: 11709 | E70: 11622 | F70: 11549 | G70: 11488 | H70: 11437 | I70: 11389 | J70: 11345 | K70: 11300 | L70: 11256 | M70: 11213 | N70: 11170 | O70: 11127 | P70: 11086 | Q70: 11046 | R70: 11007 | S70: 10970 | T70: 10933 | U70: 10898 | V70: 10862 | W70: 180 | X70: 171 | Y70: 171 | Z70: 158 | AA70: 157 | AB70: 136 | AC70: 149 | AD70: 161 | AE70: 140 | AF70: 142 | AG70: 131 | AH70: 127 | AI70: 134 | AJ70: 139 | AK70: 130 | AL70: 137 | AM70: 128 | AN70: 126 | AO70: 125 | AP70: =AVERAGE(lokalsykehus_befolkning[[#This Row],[2022]:[2040]]) -> 144.3157895 | AQ70: =_xlfn.STDEV.P(lokalsykehus_befolkning[[#This Row],[2022]:[2040]])/lokalsykehus_befolkning[[#This Row],[Gjennomsnitt 2022-2040]] -> 0.1155566865 | AR70: =-(lokalsykehus_befolkning[[#This Row],[Gjennomsnitt 2022-2040]]-MIN(lokalsykehus_befolkning[[#This Row],[2022]:[2040]]))/lokalsykehus_befolkning[[#This Row],[Gjennomsnitt 2022-2040]] -> -0.1338439096 | AS70: =(MAX(lokalsykehus_befolkning[[#This Row],[2022]:[2040]])-lokalsykehus_befolkning[[#This Row],[Gjennomsnitt 2022-2040]])/lokalsykehus_befolkning[[#This Row],[Gjennomsnitt 2022-2040]] -> 0.2472647702 | AT70: =MAX(lokalsykehus_befolkning[[#This Row],[2022]:[2040]])-MIN(lokalsykehus_befolkning[[#This Row],[2022]:[2040]]) -> 55 | AU70: =SUM(lokalsykehus_befolkning[[#This Row],[2022]:[2040]]) -> 2742
A71: Helse Vest | B71: Stord | C71: Helse Fonna | D71: 49364 | E71: 49235 | F71: 49157 | G71: 49127 | H71: 49146 | I71: 49168 | J71: 49191 | K71: 49212 | L71: 49234 | M71: 49256 | N71: 49277 | O71: 49297 | P71: 49316 | Q71: 49336 | R71: 49356 | S71: 49376 | T71: 49391 | U71: 49400 | V71: 49403 | W71: 710 | X71: 650 | Y71: 705 | Z71: 675 | AA71: 672 | AB71: 682 | AC71: 653 | AD71: 673 | AE71: 648 | AF71: 638 | AG71: 597 | AH71: 588 | AI71: 581 | AJ71: 628 | AK71: 624 | AL71: 600 | AM71: 644 | AN71: 614 | AO71: 619 | AP71: =AVERAGE(lokalsykehus_befolkning[[#This Row],[2022]:[2040]]) -> 642.1578947 | AQ71: =_xlfn.STDEV.P(lokalsykehus_befolkning[[#This Row],[2022]:[2040]])/lokalsykehus_befolkning[[#This Row],[Gjennomsnitt 2022-2040]] -> 0.05720866038 | AR71: =-(lokalsykehus_befolkning[[#This Row],[Gjennomsnitt 2022-2040]]-MIN(lokalsykehus_befolkning[[#This Row],[2022]:[2040]]))/lokalsykehus_befolkning[[#This Row],[Gjennomsnitt 2022-2040]] -> -0.09523809524 | AS71: =(MAX(lokalsykehus_befolkning[[#This Row],[2022]:[2040]])-lokalsykehus_befolkning[[#This Row],[Gjennomsnitt 2022-2040]])/lokalsykehus_befolkning[[#This Row],[Gjennomsnitt 2022-2040]] -> 0.1056470781 | AT71: =MAX(lokalsykehus_befolkning[[#This Row],[2022]:[2040]])-MIN(lokalsykehus_befolkning[[#This Row],[2022]:[2040]]) -> 129 | AU71: =SUM(lokalsykehus_befolkning[[#This Row],[2022]:[2040]]) -> 12201
A72: Helse Vest | B72: Førde | C72: Helse Førde | D72: 54266 | E72: 54064 | F72: 53907 | G72: 53799 | H72: 53742 | I72: 53689 | J72: 53640 | K72: 53595 | L72: 53553 | M72: 53514 | N72: 53478 | O72: 53443 | P72: 53412 | Q72: 53385 | R72: 53363 | S72: 53343 | T72: 53320 | U72: 53291 | V72: 53259 | W72: 707 | X72: 719 | Y72: 708 | Z72: 746 | AA72: 744 | AB72: 743 | AC72: 749 | AD72: 671 | AE72: 675 | AF72: 604 | AG72: 617 | AH72: 596 | AI72: 620 | AJ72: 610 | AK72: 630 | AL72: 641 | AM72: 614 | AN72: 633 | AO72: 630 | AP72: =AVERAGE(lokalsykehus_befolkning[[#This Row],[2022]:[2040]]) -> 666.1578947 | AQ72: =_xlfn.STDEV.P(lokalsykehus_befolkning[[#This Row],[2022]:[2040]])/lokalsykehus_befolkning[[#This Row],[Gjennomsnitt 2022-2040]] -> 0.08081607378 | AR72: =-(lokalsykehus_befolkning[[#This Row],[Gjennomsnitt 2022-2040]]-MIN(lokalsykehus_befolkning[[#This Row],[2022]:[2040]]))/lokalsykehus_befolkning[[#This Row],[Gjennomsnitt 2022-2040]] -> -0.1053172158 | AS72: =(MAX(lokalsykehus_befolkning[[#This Row],[2022]:[2040]])-lokalsykehus_befolkning[[#This Row],[Gjennomsnitt 2022-2040]])/lokalsykehus_befolkning[[#This Row],[Gjennomsnitt 2022-2040]] -> 0.1243580627 | AT72: =MAX(lokalsykehus_befolkning[[#This Row],[2022]:[2040]])-MIN(lokalsykehus_befolkning[[#This Row],[2022]:[2040]]) -> 153 | AU72: =SUM(lokalsykehus_befolkning[[#This Row],[2022]:[2040]]) -> 12657
A73: Helse Vest | B73: Lærdal | C73: Helse Førde | D73: 26082 | E73: 26104 | F73: 26131 | G73: 26166 | H73: 26206 | I73: 26249 | J73: 26297 | K73: 26345 | L73: 26394 | M73: 26443 | N73: 26491 | O73: 26534 | P73: 26578 | Q73: 26618 | R73: 26654 | S73: 26685 | T73: 26708 | U73: 26724 | V73: 26735 | W73: 336 | X73: 352 | Y73: 388 | Z73: 330 | AA73: 344 | AB73: 361 | AC73: 362 | AD73: 303 | AE73: 288 | AF73: 283 | AG73: 298 | AH73: 274 | AI73: 277 | AJ73: 265 | AK73: 318 | AL73: 289 | AM73: 299 | AN73: 300 | AO73: 322 | AP73: =AVERAGE(lokalsykehus_befolkning[[#This Row],[2022]:[2040]]) -> 315.2105263 | AQ73: =_xlfn.STDEV.P(lokalsykehus_befolkning[[#This Row],[2022]:[2040]])/lokalsykehus_befolkning[[#This Row],[Gjennomsnitt 2022-2040]] -> 0.1068557979 | AR73: =-(lokalsykehus_befolkning[[#This Row],[Gjennomsnitt 2022-2040]]-MIN(lokalsykehus_befolkning[[#This Row],[2022]:[2040]]))/lokalsykehus_befolkning[[#This Row],[Gjennomsnitt 2022-2040]] -> -0.1592920354 | AS73: =(MAX(lokalsykehus_befolkning[[#This Row],[2022]:[2040]])-lokalsykehus_befolkning[[#This Row],[Gjennomsnitt 2022-2040]])/lokalsykehus_befolkning[[#This Row],[Gjennomsnitt 2022-2040]] -> 0.2309233595 | AT73: =MAX(lokalsykehus_befolkning[[#This Row],[2022]:[2040]])-MIN(lokalsykehus_befolkning[[#This Row],[2022]:[2040]]) -> 123 | AU73: =SUM(lokalsykehus_befolkning[[#This Row],[2022]:[2040]]) -> 5989
A74: Helse Vest | B74: Nordfjordeid | C74: Helse Førde | D74: 22219 | E74: 22160 | F74: 22113 | G74: 22078 | H74: 22054 | I74: 22033 | J74: 22015 | K74: 21997 | L74: 21981 | M74: 21964 | N74: 21948 | O74: 21930 | P74: 21912 | Q74: 21895 | R74: 21877 | S74: 21857 | T74: 21836 | U74: 21814 | V74: 21789 | W74: 318 | X74: 305 | Y74: 284 | Z74: 318 | AA74: 283 | AB74: 313 | AC74: 280 | AD74: 266 | AE74: 280 | AF74: 261 | AG74: 245 | AH74: 253 | AI74: 281 | AJ74: 265 | AK74: 239 | AL74: 258 | AM74: 262 | AN74: 264 | AO74: 255 | AP74: =AVERAGE(lokalsykehus_befolkning[[#This Row],[2022]:[2040]]) -> 275.2631579 | AQ74: =_xlfn.STDEV.P(lokalsykehus_befolkning[[#This Row],[2022]:[2040]])/lokalsykehus_befolkning[[#This Row],[Gjennomsnitt 2022-2040]] -> 0.08461661816 | AR74: =-(lokalsykehus_befolkning[[#This Row],[Gjennomsnitt 2022-2040]]-MIN(lokalsykehus_befolkning[[#This Row],[2022]:[2040]]))/lokalsykehus_befolkning[[#This Row],[Gjennomsnitt 2022-2040]] -> -0.1317399618 | AS74: =(MAX(lokalsykehus_befolkning[[#This Row],[2022]:[2040]])-lokalsykehus_befolkning[[#This Row],[Gjennomsnitt 2022-2040]])/lokalsykehus_befolkning[[#This Row],[Gjennomsnitt 2022-2040]] -> 0.1552581262 | AT74: =MAX(lokalsykehus_befolkning[[#This Row],[2022]:[2040]])-MIN(lokalsykehus_befolkning[[#This Row],[2022]:[2040]]) -> 79 | AU74: =SUM(lokalsykehus_befolkning[[#This Row],[2022]:[2040]]) -> 5230
A75: Helse Vest | B75: Stavanger | C75: Helse Stavanger | D75: 369799 | E75: 372337 | F75: 374728 | G75: 377020 | H75: 379252 | I75: 381432 | J75: 383571 | K75: 385680 | L75: 387754 | M75: 389796 | N75: 391796 | O75: 393766 | P75: 395709 | Q75: 397641 | R75: 399557 | S75: 401426 | T75: 403231 | U75: 404969 | V75: 406643 | W75: 4639 | X75: 4854 | Y75: 4858 | Z75: 4959 | AA75: 4794 | AB75: 4844 | AC75: 4908 | AD75: 4867 | AE75: 4824 | AF75: 4745 | AG75: 4728 | AH75: 4731 | AI75: 4930 | AJ75: 4989 | AK75: 5096 | AL75: 5035 | AM75: 5159 | AN75: 5104 | AO75: 5155 | AP75: =AVERAGE(lokalsykehus_befolkning[[#This Row],[2022]:[2040]]) -> 4906.263158 | AQ75: =_xlfn.STDEV.P(lokalsykehus_befolkning[[#This Row],[2022]:[2040]])/lokalsykehus_befolkning[[#This Row],[Gjennomsnitt 2022-2040]] -> 0.03020955005 | AR75: =-(lokalsykehus_befolkning[[#This Row],[Gjennomsnitt 2022-2040]]-MIN(lokalsykehus_befolkning[[#This Row],[2022]:[2040]]))/lokalsykehus_befolkning[[#This Row],[Gjennomsnitt 2022-2040]] -> -0.05447387335 | AS75: =(MAX(lokalsykehus_befolkning[[#This Row],[2022]:[2040]])-lokalsykehus_befolkning[[#This Row],[Gjennomsnitt 2022-2040]])/lokalsykehus_befolkning[[#This Row],[Gjennomsnitt 2022-2040]] -> 0.05151310355 | AT75: =MAX(lokalsykehus_befolkning[[#This Row],[2022]:[2040]])-MIN(lokalsykehus_befolkning[[#This Row],[2022]:[2040]]) -> 520 | AU75: =SUM(lokalsykehus_befolkning[[#This Row],[2022]:[2040]]) -> 93219
